{"text_format":"1","workbook":"xlsx","n_sheets":16,"sheets":["Instructions","Helpful Tips","Risk Assessment Scoring Scales","Risk Assessment Matrix","Significance & Likelihood","HeatMap","Fraud Risk Ranking","Control Activities Matrix","Allegations-Disposition","Monitoring Actions","Risk Assessment Matrix (ex.)","Heat Map (ex.)","Fraud Risk Ranking (ex.)","Control Activities Matrix (ex.)","Sheet1","Sheet2"],"not_rendered":{"charts":2,"images":7,"macros":1,"external_links":0,"defined_names":10,"comments":0,"pivot_tables":0},"unopened":[],"bounds":{"document_bytes":16777216,"sheet_cells":100000,"rows_first":2000,"rows_last":500,"rows_between":2000,"halvings":0,"cell_chars":16384,"cell_head_chars":4096},"cells_cut":0,"cells_raw":0,"read":"whole","date_system":"1900"}

{"sheet":"Instructions","index":0,"n_rows":16,"n_cols":1,"rows_kept":16,"cut":false,"hidden":false,"merged":[]}
["Fraud Risk Assessement Instructions"]
[]
["The Risk Assessment Matrix Tab is used to document the fraud risk assessment. It identifies every fraud risk or exposure, scores the likelihood and significance of each fraud risk/exposure, enables identification of existing control activities and their effectiveness, records the assessed effectiveness of each control activity, identifies residual fraud risk, and allows recording of fraud risk response action plans."]
[]
["The Heat Map Tab automatically creates a \"heat map\" based on the information in the Risk Assessment Matrix Tab."]
[]
["The Fraud Risk Ranking Tab is created automatically based on the information in the  Risk Assessment Matrix Tab and lists all identified fraud schemes/fraud risk scores/and response plans."]
[]
["The Control Activities Matrix Tab is generated based on information in the Risk Assessment Matrix Tab and facilitates documentation of control activities and individuals responsible for each control activity."]
[]
["The Allegations-Disposition Tab provides a record of allegations received, actions taken to investigate each allegation, and the final disposition of each allegation."]
[]
["The Monitoring Actions Tab provides a record of the organization's monitoring plans, persons responsible for monitoring actions, and the results of each monitoring action."]
[]
["*Note:"]
["*Examples have been provided in this workbook to illustrate how to complete the Risk Assessment Matrix (see tabs ending in (ex.). These examples are based off of APPENDIX I: FRAUD RISK ASSESSMENT EXAMPLE.\n\n*Sample scoring scales are included in the Risk Assessment Scoring Scales Tab. These scoring scales provide guidance on how to score  fraud risks identified in the Risk Assessment Matrix.\n\n*To populate the heat map, this file must be saved using the file extension .xlsm.\n\n*To use the heat map, you must have macros enabled. If you need assistance on enabling macros, see the Helpful Tips tab.\n\n*The heat map must be refreshed once the Risk Assessment Matrix has been completed (see refresh button on the Heat Map Tab).\n\n*If any additions/changes are made to the risk assessment matrix, the heat map will need to be refreshed. Please click the refresh button on the Heat Map Tab to re-populate the data."]

{"sheet":"Helpful Tips","index":1,"n_rows":68,"n_cols":3,"rows_kept":68,"cut":false,"hidden":false,"merged":[[67,2,67,3],[0,0,0,2],[56,0,56,17]]}
["ENABLING MACROS"]
["Step 1"]
["Go to File, then click on Options."]
[]
[]
[]
[]
[]
[]
[]
[]
[]
[]
[]
[]
[]
[]
[]
[]
["Step 2"]
["Under the General option, click on Customize Ribbon."]
[]
[]
[]
[]
[]
[]
[]
[]
[]
[]
[]
[]
[]
[]
["Step 3"]
["Make sure there is a checkmark in the Developer box and then click OK."]
[]
[]
[]
[]
[]
[]
[]
[]
[]
[]
[]
[]
[]
[]
[]
[]
[]
["Your macros have now been enabled."]
[]
["*NOTE: Each time the file is opened you will have to enable the macros by clicking the button \"Enable Content\". To bypass this message each time the file is opened, you can click on Macro Security listed under the Developer tab."]
[]
[]
[]
[]
[]
[]
[]
[]
[]
[]
[null,null,"OR"]

{"sheet":"Risk Assessment Scoring Scales","index":2,"n_rows":43,"n_cols":5,"rows_kept":43,"cut":false,"hidden":false,"merged":[[41,1,41,2],[42,1,42,2],[38,1,38,2],[39,1,39,2],[40,1,40,2],[37,1,37,2],[36,0,36,2],[28,2,28,4],[29,2,29,4],[30,2,30,4],[31,2,31,4],[32,2,32,4],[23,2,23,4],[24,2,24,4],[25,2,25,4],[26,2,26,4],[27,2,27,4],[17,0,20,0],[17,1,20,1],[20,2,20,4],[21,2,21,4],[22,2,22,4],[14,2,14,4],[15,2,15,4],[16,2,16,4],[13,0,16,0],[13,1,16,1],[1,0,1,4],[25,0,28,0],[25,1,28,1],[29,0,32,0],[29,1,32,1],[21,0,24,0],[21,1,24,1],[2,0,3,0],[2,1,2,2],[2,3,2,4],[12,2,12,4],[11,0,11,4],[17,2,17,4],[18,2,18,4],[19,2,19,4],[13,2,13,4]]}
[]
["Likelihood"]
["Rating","Based on Annual Frequency",null,"Based on Annual Probability of Occurrence"]
[null,"Descriptor","Definition","Descriptor","Definition"]
[5,"Very frequent","More than twenty times per year","Almost certain",">90% chance of occurrence"]
[4,"Frequent","Six to twenty times per year","Likely","65% to 90% chance of occurrence"]
[3,"Reasonably frequent","Two to five times per year","Reasonably possible","35% to 65% chance of occurrence"]
[2,"Occasional","Once per year","Unlikely","10% to 35% chance of occurrence"]
[1,"Rare","Less than once per year","Remote","< 10% chance of occurrence"]
[]
[]
["Significance"]
["Rating","Descriptor","Definition"]
[5,"Catastrophic","·         Financial loss to company in excess of $10 million"]
[null,null,"·         International, long-term media coverage"]
[null,null,"·         Widespread employee morale issues and loss of multiple senior leaders "]
[null,null,"·         Required to report incident to authorities, resulting in significant sanctions and financial penalties"]
[4,"Major","·         Financial loss to company between $100,000 and $10 million"]
[null,null,"·         National, long-term media coverage"]
[null,null,"·         Widespread employee morale problems and turnover"]
[null,null,"·         Required to report incident to authorities, resulting in sanctions against company "]
[3,"Moderate","·         Financial loss to company between $10,000 and $100,000"]
[null,null,"·         Short-term, regional or national media coverage"]
[null,null,"·         Widespread employee morale problems"]
[null,null,"·         Required to report incident to authorities and take immediate corrective action "]
[2,"Minor","·         Financial loss to company between $1,000 and $10,000"]
[null,null,"·         Limited, local media coverage"]
[null,null,"·         General employee morale problems"]
[null,null,"·         Incident is reportable to authorities, but no follow-up"]
[1,"Incidental","·         Financial loss to company less than $1,000"]
[null,null,"·         No media coverage"]
[null,null,"·         Isolated employee dissatisfaction"]
[null,null,"·         Event does not need to be reported to authorities"]
[]
[]
[]
["Control Effectiveness"]
["Control Risk Rating","Description"]
[5,"Very effective (reduces 81–100% of the risk)"]
[4,"Effective (reduces 61–80% of the risk)"]
[3,"Moderately effective (reduces 41–60% of the risk)"]
[2,"Marginally effective (reduces 21–40% of the risk)"]
[1,"Not effective (reduces 0–20% of the risk)"]

{"sheet":"Risk Assessment Matrix","index":3,"n_rows":521,"n_cols":11,"rows_kept":521,"cut":false,"hidden":false,"merged":[[0,0,0,10]]}
["Fraud Risk Assessment as of [DATE]"]
[]
["ID Number","Identified Fraud Risks and Schemes","Likelihood [1-5]","Significance [1-5]","Fraud Risk Rating","People and/or Department","Existing Anti-Fraud Controls","Preventive [P], Detective [D], or Combined [C]","Controls Effectiveness Assessment [1-5]","Residual Risks\n(High, Medium, Low)","Fraud Risk Response\n(List an action plan on how each residual risk will be mitigated)"]
[123,"Cash",4,4,{"$f":"C4*D4","v":16},null,null,null,null," "]
[null,null,null,null,0]
[null,null,null,null,0]
[null,null,null,null,0]
[null,null,null,null,0]
[null,null,null,null,0]
[null,null,null,null,0]
[null,null,null,null,0]
[null,null,null,null,0]
[null,null,null,null,0]
[null,null,null,null,0]
[null,null,null,null,0]
[null,null,null,null,0]
[null,null,null,null,0]
[null,null,null,null,0]
[null,null,null,null,0]
[null,null,null,null,0]
[null,null,null,null,0]
[null,null,null,null,0]
[null,null,null,null,0]
[null,null,null,null,0]
[null,null,null,null,0]
[null,null,null,null,0]
[null,null,null,null,0]
[null,null,null,null,0]
[null,null,null,null,0]
[null,null,null,null,0]
[null,null,null,null,0]
[null,null,null,null,0]
[null,null,null,null,0]
[null,null,null,null,0]
[null,null,null,null,0]
[null,null,null,null,0]
[null,null,null,null,0]
[null,null,null,null,0]
[null,null,null,null,0]
[null,null,null,null,0]
[null,null,null,null,0]
[null,null,null,null,0]
[null,null,null,null,0]
[null,null,null,null,0]
[null,null,null,null,0]
[null,null,null,null,0]
[null,null,null,null,0]
[null,null,null,null,0]
[null,null,null,null,0]
[null,null,null,null,0]
[null,null,null,null,0]
[null,null,null,null,0]
[null,null,null,null,0]
[null,null,null,null,0]
[null,null,null,null,0]
[null,null,null,null,0]
[null,null,null,null,0]
[null,null,null,null,0]
[null,null,null,null,0]
[null,null,null,null,0]
[null,null,null,null,0]
[null,null,null,null,0]
[null,null,null,null,0]
[null,null,null,null,0]
[null,null,null,null,0]
[null,null,null,null,0]
[null,null,null,null,0]
[null,null,null,null,{"$f":"C68*D68","v":0}]
[null,null,null,null,0]
[null,null,null,null,0]
[null,null,null,null,0]
[null,null,null,null,0]
[null,null,null,null,0]
[null,null,null,null,0]
[null,null,null,null,0]
[null,null,null,null,0]
[null,null,null,null,0]
[null,null,null,null,0]
[null,null,null,null,0]
[null,null,null,null,0]
[null,null,null,null,0]
[null,null,null,null,0]
[null,null,null,null,0]
[null,null,null,null,0]
[null,null,null,null,0]
[null,null,null,null,0]
[null,null,null,null,0]
[null,null,null,null,0]
[null,null,null,null,0]
[null,null,null,null,0]
[null,null,null,null,0]
[null,null,null,null,0]
[null,null,null,null,0]
[null,null,null,null,0]
[null,null,null,null,0]
[null,null,null,null,0]
[null,null,null,null,0]
[null,null,null,null,0]
[null,null,null,null,0]
[null,null,null,null,0]
[null,null,null,null,0]
[null,null,null,null,0]
[null,null,null,null,0]
[null,null,null,null,0]
[null,null,null,null,0]
[null,null,null,null,0]
[null,null,null,null,0]
[null,null,null,null,0]
[null,null,null,null,0]
[null,null,null,null,0]
[null,null,null,null,0]
[null,null,null,null,0]
[null,null,null,null,0]
[null,null,null,null,0]
[null,null,null,null,0]
[null,null,null,null,0]
[null,null,null,null,0]
[null,null,null,null,0]
[null,null,null,null,0]
[null,null,null,null,0]
[null,null,null,null,0]
[null,null,null,null,0]
[null,null,null,null,0]
[null,null,null,null,0]
[null,null,null,null,0]
[null,null,null,null,0]
[null,null,null,null,0]
[null,null,null,null,0]
[null,null,null,null,0]
[null,null,null,null,0]
[null,null,null,null,0]
[null,null,null,null,{"$f":"C132*D132","v":0}]
[null,null,null,null,0]
[null,null,null,null,0]
[null,null,null,null,0]
[null,null,null,null,0]
[null,null,null,null,0]
[null,null,null,null,0]
[null,null,null,null,0]
[null,null,null,null,0]
[null,null,null,null,0]
[null,null,null,null,0]
[null,null,null,null,0]
[null,null,null,null,0]
[null,null,null,null,0]
[null,null,null,null,0]
[null,null,null,null,0]
[null,null,null,null,0]
[null,null,null,null,0]
[null,null,null,null,0]
[null,null,null,null,0]
[null,null,null,null,0]
[null,null,null,null,0]
[null,null,null,null,0]
[null,null,null,null,0]
[null,null,null,null,0]
[null,null,null,null,0]
[null,null,null,null,0]
[null,null,null,null,0]
[null,null,null,null,0]
[null,null,null,null,0]
[null,null,null,null,0]
[null,null,null,null,0]
[null,null,null,null,0]
[null,null,null,null,0]
[null,null,null,null,0]
[null,null,null,null,0]
[null,null,null,null,0]
[null,null,null,null,0]
[null,null,null,null,0]
[null,null,null,null,0]
[null,null,null,null,0]
[null,null,null,null,0]
[null,null,null,null,0]
[null,null,null,null,0]
[null,null,null,null,0]
[null,null,null,null,0]
[null,null,null,null,0]
[null,null,null,null,0]
[null,null,null,null,0]
[null,null,null,null,0]
[null,null,null,null,0]
[null,null,null,null,0]
[null,null,null,null,0]
[null,null,null,null,0]
[null,null,null,null,0]
[null,null,null,null,0]
[null,null,null,null,0]
[null,null,null,null,0]
[null,null,null,null,0]
[null,null,null,null,0]
[null,null,null,null,0]
[null,null,null,null,0]
[null,null,null,null,0]
[null,null,null,null,0]
[null,null,null,null,{"$f":"C196*D196","v":0}]
[null,null,null,null,0]
[null,null,null,null,0]
[null,null,null,null,0]
[null,null,null,null,0]
[null,null,null,null,0]
[null,null,null,null,0]
[null,null,null,null,0]
[null,null,null,null,0]
[null,null,null,null,0]
[null,null,null,null,0]
[null,null,null,null,0]
[null,null,null,null,0]
[null,null,null,null,0]
[null,null,null,null,0]
[null,null,null,null,0]
[null,null,null,null,0]
[null,null,null,null,0]
[null,null,null,null,0]
[null,null,null,null,0]
[null,null,null,null,0]
[null,null,null,null,0]
[null,null,null,null,0]
[null,null,null,null,0]
[null,null,null,null,0]
[null,null,null,null,0]
[null,null,null,null,0]
[null,null,null,null,0]
[null,null,null,null,0]
[null,null,null,null,0]
[null,null,null,null,0]
[null,null,null,null,0]
[null,null,null,null,0]
[null,null,null,null,0]
[null,null,null,null,0]
[null,null,null,null,0]
[null,null,null,null,0]
[null,null,null,null,0]
[null,null,null,null,0]
[null,null,null,null,0]
[null,null,null,null,0]
[null,null,null,null,0]
[null,null,null,null,0]
[null,null,null,null,0]
[null,null,null,null,0]
[null,null,null,null,0]
[null,null,null,null,0]
[null,null,null,null,0]
[null,null,null,null,0]
[null,null,null,null,0]
[null,null,null,null,0]
[null,null,null,null,0]
[null,null,null,null,0]
[null,null,null,null,0]
[null,null,null,null,0]
[null,null,null,null,0]
[null,null,null,null,0]
[null,null,null,null,0]
[null,null,null,null,0]
[null,null,null,null,0]
[null,null,null,null,0]
[null,null,null,null,0]
[null,null,null,null,0]
[null,null,null,null,0]
[null,null,null,null,{"$f":"C260*D260","v":0}]
[null,null,null,null,0]
[null,null,null,null,0]
[null,null,null,null,0]
[null,null,null,null,0]
[null,null,null,null,0]
[null,null,null,null,0]
[null,null,null,null,0]
[null,null,null,null,0]
[null,null,null,null,0]
[null,null,null,null,0]
[null,null,null,null,0]
[null,null,null,null,0]
[null,null,null,null,0]
[null,null,null,null,0]
[null,null,null,null,0]
[null,null,null,null,0]
[null,null,null,null,0]
[null,null,null,null,0]
[null,null,null,null,0]
[null,null,null,null,0]
[null,null,null,null,0]
[null,null,null,null,0]
[null,null,null,null,0]
[null,null,null,null,0]
[null,null,null,null,0]
[null,null,null,null,0]
[null,null,null,null,0]
[null,null,null,null,0]
[null,null,null,null,0]
[null,null,null,null,0]
[null,null,null,null,0]
[null,null,null,null,0]
[null,null,null,null,0]
[null,null,null,null,0]
[null,null,null,null,0]
[null,null,null,null,0]
[null,null,null,null,0]
[null,null,null,null,0]
[null,null,null,null,0]
[null,null,null,null,0]
[null,null,null,null,0]
[null,null,null,null,0]
[null,null,null,null,0]
[null,null,null,null,0]
[null,null,null,null,0]
[null,null,null,null,0]
[null,null,null,null,0]
[null,null,null,null,0]
[null,null,null,null,0]
[null,null,null,null,0]
[null,null,null,null,0]
[null,null,null,null,0]
[null,null,null,null,0]
[null,null,null,null,0]
[null,null,null,null,0]
[null,null,null,null,0]
[null,null,null,null,0]
[null,null,null,null,0]
[null,null,null,null,0]
[null,null,null,null,0]
[null,null,null,null,0]
[null,null,null,null,0]
[null,null,null,null,0]
[null,null,null,null,{"$f":"C324*D324","v":0}]
[null,null,null,null,0]
[null,null,null,null,0]
[null,null,null,null,0]
[null,null,null,null,0]
[null,null,null,null,0]
[null,null,null,null,0]
[null,null,null,null,0]
[null,null,null,null,0]
[null,null,null,null,0]
[null,null,null,null,0]
[null,null,null,null,0]
[null,null,null,null,0]
[null,null,null,null,0]
[null,null,null,null,0]
[null,null,null,null,0]
[null,null,null,null,0]
[null,null,null,null,0]
[null,null,null,null,0]
[null,null,null,null,0]
[null,null,null,null,0]
[null,null,null,null,0]
[null,null,null,null,0]
[null,null,null,null,0]
[null,null,null,null,0]
[null,null,null,null,0]
[null,null,null,null,0]
[null,null,null,null,0]
[null,null,null,null,0]
[null,null,null,null,0]
[null,null,null,null,0]
[null,null,null,null,0]
[null,null,null,null,0]
[null,null,null,null,0]
[null,null,null,null,0]
[null,null,null,null,0]
[null,null,null,null,0]
[null,null,null,null,0]
[null,null,null,null,0]
[null,null,null,null,0]
[null,null,null,null,0]
[null,null,null,null,0]
[null,null,null,null,0]
[null,null,null,null,0]
[null,null,null,null,0]
[null,null,null,null,0]
[null,null,null,null,0]
[null,null,null,null,0]
[null,null,null,null,0]
[null,null,null,null,0]
[null,null,null,null,0]
[null,null,null,null,0]
[null,null,null,null,0]
[null,null,null,null,0]
[null,null,null,null,0]
[null,null,null,null,0]
[null,null,null,null,0]
[null,null,null,null,0]
[null,null,null,null,0]
[null,null,null,null,0]
[null,null,null,null,0]
[null,null,null,null,0]
[null,null,null,null,0]
[null,null,null,null,0]
[null,null,null,null,{"$f":"C388*D388","v":0}]
[null,null,null,null,0]
[null,null,null,null,0]
[null,null,null,null,0]
[null,null,null,null,0]
[null,null,null,null,0]
[null,null,null,null,0]
[null,null,null,null,0]
[null,null,null,null,0]
[null,null,null,null,0]
[null,null,null,null,0]
[null,null,null,null,0]
[null,null,null,null,0]
[null,null,null,null,0]
[null,null,null,null,0]
[null,null,null,null,0]
[null,null,null,null,0]
[null,null,null,null,0]
[null,null,null,null,0]
[null,null,null,null,0]
[null,null,null,null,0]
[null,null,null,null,0]
[null,null,null,null,0]
[null,null,null,null,0]
[null,null,null,null,0]
[null,null,null,null,0]
[null,null,null,null,0]
[null,null,null,null,0]
[null,null,null,null,0]
[null,null,null,null,0]
[null,null,null,null,0]
[null,null,null,null,0]
[null,null,null,null,0]
[null,null,null,null,0]
[null,null,null,null,0]
[null,null,null,null,0]
[null,null,null,null,0]
[null,null,null,null,0]
[null,null,null,null,0]
[null,null,null,null,0]
[null,null,null,null,0]
[null,null,null,null,0]
[null,null,null,null,0]
[null,null,null,null,0]
[null,null,null,null,0]
[null,null,null,null,0]
[null,null,null,null,0]
[null,null,null,null,0]
[null,null,null,null,0]
[null,null,null,null,0]
[null,null,null,null,0]
[null,null,null,null,0]
[null,null,null,null,0]
[null,null,null,null,0]
[null,null,null,null,0]
[null,null,null,null,0]
[null,null,null,null,0]
[null,null,null,null,0]
[null,null,null,null,0]
[null,null,null,null,0]
[null,null,null,null,0]
[null,null,null,null,0]
[null,null,null,null,0]
[null,null,null,null,0]
[null,null,null,null,{"$f":"C452*D452","v":0}]
[null,null,null,null,0]
[null,null,null,null,0]
[null,null,null,null,0]
[null,null,null,null,0]
[null,null,null,null,0]
[null,null,null,null,0]
[null,null,null,null,0]
[null,null,null,null,0]
[null,null,null,null,0]
[null,null,null,null,0]
[null,null,null,null,0]
[null,null,null,null,0]
[null,null,null,null,0]
[null,null,null,null,0]
[null,null,null,null,0]
[null,null,null,null,0]
[null,null,null,null,0]
[null,null,null,null,0]
[null,null,null,null,0]
[null,null,null,null,0]
[null,null,null,null,0]
[null,null,null,null,0]
[null,null,null,null,0]
[null,null,null,null,0]
[null,null,null,null,0]
[null,null,null,null,0]
[null,null,null,null,0]
[null,null,null,null,0]
[null,null,null,null,0]
[null,null,null,null,0]
[null,null,null,null,0]
[null,null,null,null,0]
[null,null,null,null,0]
[null,null,null,null,0]
[null,null,null,null,0]
[null,null,null,null,0]
[null,null,null,null,0]
[null,null,null,null,0]
[null,null,null,null,0]
[null,null,null,null,0]
[null,null,null,null,0]
[null,null,null,null,0]
[null,null,null,null,0]
[null,null,null,null,0]
[null,null,null,null,0]
[null,null,null,null,0]
[null,null,null,null,0]
[null,null,null,null,0]
[null,null,null,null,0]
[null,null,null,null,0]
[null,null,null,null,0]
[null,null,null,null,0]
[null,null,null,null,0]
[null,null,null,null,0]
[null,null,null,null,0]
[null,null,null,null,0]
[null,null,null,null,0]
[null,null,null,null,0]
[null,null,null,null,0]
[null,null,null,null,0]
[null,null,null,null,0]
[null,null,null,null,0]
[null,null,null,null,0]
[null,null,null,null,{"$f":"C516*D516","v":0}]
[null,null,null,null,0]
[null,null,null,null,0]
[null,null,null,null,0]
[null,null,null,null,0]
[null,null,null,null,0]

{"sheet":"Significance & Likelihood","index":4,"n_rows":0,"n_cols":0,"rows_kept":0,"cut":false,"hidden":true,"merged":[]}

{"sheet":"HeatMap","index":5,"n_rows":398,"n_cols":5,"rows_kept":398,"cut":false,"hidden":false,"merged":[[32,4,32,15]]}
["ID Number","Likelihood [1-5]","Significance [1-5]"]
[{"$f":"'Risk Assessment Matrix'!A4","v":123},{"$f":"'Risk Assessment Matrix'!C4","v":4},{"$f":"'Risk Assessment Matrix'!D4","v":4}]
[{"$f":"'Risk Assessment Matrix'!A5","v":0},{"$f":"'Risk Assessment Matrix'!C5","v":0},{"$f":"'Risk Assessment Matrix'!D5","v":0}]
[{"$f":"'Risk Assessment Matrix'!A6","v":0},{"$f":"'Risk Assessment Matrix'!C6","v":0},{"$f":"'Risk Assessment Matrix'!D6","v":0}]
[{"$f":"'Risk Assessment Matrix'!A7","v":0},{"$f":"'Risk Assessment Matrix'!C7","v":0},{"$f":"'Risk Assessment Matrix'!D7","v":0}]
[{"$f":"'Risk Assessment Matrix'!A8","v":0},{"$f":"'Risk Assessment Matrix'!C8","v":0},{"$f":"'Risk Assessment Matrix'!D8","v":0}]
[{"$f":"'Risk Assessment Matrix'!A9","v":0},{"$f":"'Risk Assessment Matrix'!C9","v":0},{"$f":"'Risk Assessment Matrix'!D9","v":0}]
[{"$f":"'Risk Assessment Matrix'!A10","v":0},{"$f":"'Risk Assessment Matrix'!C10","v":0},{"$f":"'Risk Assessment Matrix'!D10","v":0}]
[{"$f":"'Risk Assessment Matrix'!A11","v":0},{"$f":"'Risk Assessment Matrix'!C11","v":0},{"$f":"'Risk Assessment Matrix'!D11","v":0}]
[{"$f":"'Risk Assessment Matrix'!A12","v":0},{"$f":"'Risk Assessment Matrix'!C12","v":0},{"$f":"'Risk Assessment Matrix'!D12","v":0}]
[{"$f":"'Risk Assessment Matrix'!A13","v":0},{"$f":"'Risk Assessment Matrix'!C13","v":0},{"$f":"'Risk Assessment Matrix'!D13","v":0}]
[{"$f":"'Risk Assessment Matrix'!A14","v":0},{"$f":"'Risk Assessment Matrix'!C14","v":0},{"$f":"'Risk Assessment Matrix'!D14","v":0}]
[{"$f":"'Risk Assessment Matrix'!A15","v":0},{"$f":"'Risk Assessment Matrix'!C15","v":0},{"$f":"'Risk Assessment Matrix'!D15","v":0}]
[{"$f":"'Risk Assessment Matrix'!A16","v":0},{"$f":"'Risk Assessment Matrix'!C16","v":0},{"$f":"'Risk Assessment Matrix'!D16","v":0}]
[{"$f":"'Risk Assessment Matrix'!A17","v":0},{"$f":"'Risk Assessment Matrix'!C17","v":0},{"$f":"'Risk Assessment Matrix'!D17","v":0}]
[{"$f":"'Risk Assessment Matrix'!A18","v":0},{"$f":"'Risk Assessment Matrix'!C18","v":0},{"$f":"'Risk Assessment Matrix'!D18","v":0}]
[{"$f":"'Risk Assessment Matrix'!A19","v":0},{"$f":"'Risk Assessment Matrix'!C19","v":0},{"$f":"'Risk Assessment Matrix'!D19","v":0}]
[{"$f":"'Risk Assessment Matrix'!A20","v":0},{"$f":"'Risk Assessment Matrix'!C20","v":0},{"$f":"'Risk Assessment Matrix'!D20","v":0}]
[{"$f":"'Risk Assessment Matrix'!A21","v":0},{"$f":"'Risk Assessment Matrix'!C21","v":0},{"$f":"'Risk Assessment Matrix'!D21","v":0}]
[{"$f":"'Risk Assessment Matrix'!A22","v":0},{"$f":"'Risk Assessment Matrix'!C22","v":0},{"$f":"'Risk Assessment Matrix'!D22","v":0}]
[{"$f":"'Risk Assessment Matrix'!A23","v":0},{"$f":"'Risk Assessment Matrix'!C23","v":0},{"$f":"'Risk Assessment Matrix'!D23","v":0}]
[{"$f":"'Risk Assessment Matrix'!A24","v":0},{"$f":"'Risk Assessment Matrix'!C24","v":0},{"$f":"'Risk Assessment Matrix'!D24","v":0}]
[{"$f":"'Risk Assessment Matrix'!A25","v":0},{"$f":"'Risk Assessment Matrix'!C25","v":0},{"$f":"'Risk Assessment Matrix'!D25","v":0}]
[{"$f":"'Risk Assessment Matrix'!A26","v":0},{"$f":"'Risk Assessment Matrix'!C26","v":0},{"$f":"'Risk Assessment Matrix'!D26","v":0}]
[{"$f":"'Risk Assessment Matrix'!A27","v":0},{"$f":"'Risk Assessment Matrix'!C27","v":0},{"$f":"'Risk Assessment Matrix'!D27","v":0}]
[{"$f":"'Risk Assessment Matrix'!A28","v":0},{"$f":"'Risk Assessment Matrix'!C28","v":0},{"$f":"'Risk Assessment Matrix'!D28","v":0}]
[{"$f":"'Risk Assessment Matrix'!A29","v":0},{"$f":"'Risk Assessment Matrix'!C29","v":0},{"$f":"'Risk Assessment Matrix'!D29","v":0}]
[{"$f":"'Risk Assessment Matrix'!A30","v":0},{"$f":"'Risk Assessment Matrix'!C30","v":0},{"$f":"'Risk Assessment Matrix'!D30","v":0}]
[{"$f":"'Risk Assessment Matrix'!A31","v":0},{"$f":"'Risk Assessment Matrix'!C31","v":0},{"$f":"'Risk Assessment Matrix'!D31","v":0}]
[{"$f":"'Risk Assessment Matrix'!A32","v":0},{"$f":"'Risk Assessment Matrix'!C32","v":0},{"$f":"'Risk Assessment Matrix'!D32","v":0}]
[{"$f":"'Risk Assessment Matrix'!A33","v":0},{"$f":"'Risk Assessment Matrix'!C33","v":0},{"$f":"'Risk Assessment Matrix'!D33","v":0}]
[{"$f":"'Risk Assessment Matrix'!A34","v":0},{"$f":"'Risk Assessment Matrix'!C34","v":0},{"$f":"'Risk Assessment Matrix'!D34","v":0}]
[{"$f":"'Risk Assessment Matrix'!A35","v":0},{"$f":"'Risk Assessment Matrix'!C35","v":0},{"$f":"'Risk Assessment Matrix'!D35","v":0},null,"LIKELIHOOD"]
[{"$f":"'Risk Assessment Matrix'!A36","v":0},{"$f":"'Risk Assessment Matrix'!C36","v":0},{"$f":"'Risk Assessment Matrix'!D36","v":0}]
[{"$f":"'Risk Assessment Matrix'!A37","v":0},{"$f":"'Risk Assessment Matrix'!C37","v":0},{"$f":"'Risk Assessment Matrix'!D37","v":0}]
[{"$f":"'Risk Assessment Matrix'!A38","v":0},{"$f":"'Risk Assessment Matrix'!C38","v":0},{"$f":"'Risk Assessment Matrix'!D38","v":0}]
[{"$f":"'Risk Assessment Matrix'!A39","v":0},{"$f":"'Risk Assessment Matrix'!C39","v":0},{"$f":"'Risk Assessment Matrix'!D39","v":0}]
[{"$f":"'Risk Assessment Matrix'!A40","v":0},{"$f":"'Risk Assessment Matrix'!C40","v":0},{"$f":"'Risk Assessment Matrix'!D40","v":0}]
[{"$f":"'Risk Assessment Matrix'!A41","v":0},{"$f":"'Risk Assessment Matrix'!C41","v":0},{"$f":"'Risk Assessment Matrix'!D41","v":0}]
[{"$f":"'Risk Assessment Matrix'!A42","v":0},{"$f":"'Risk Assessment Matrix'!C42","v":0},{"$f":"'Risk Assessment Matrix'!D42","v":0}]
[{"$f":"'Risk Assessment Matrix'!A43","v":0},{"$f":"'Risk Assessment Matrix'!C43","v":0},{"$f":"'Risk Assessment Matrix'!D43","v":0}]
[{"$f":"'Risk Assessment Matrix'!A44","v":0},{"$f":"'Risk Assessment Matrix'!C44","v":0},{"$f":"'Risk Assessment Matrix'!D44","v":0}]
[{"$f":"'Risk Assessment Matrix'!A45","v":0},{"$f":"'Risk Assessment Matrix'!C45","v":0},{"$f":"'Risk Assessment Matrix'!D45","v":0}]
[{"$f":"'Risk Assessment Matrix'!A46","v":0},{"$f":"'Risk Assessment Matrix'!C46","v":0},{"$f":"'Risk Assessment Matrix'!D46","v":0}]
[{"$f":"'Risk Assessment Matrix'!A47","v":0},{"$f":"'Risk Assessment Matrix'!C47","v":0},{"$f":"'Risk Assessment Matrix'!D47","v":0}]
[{"$f":"'Risk Assessment Matrix'!A48","v":0},{"$f":"'Risk Assessment Matrix'!C48","v":0},{"$f":"'Risk Assessment Matrix'!D48","v":0}]
[{"$f":"'Risk Assessment Matrix'!A49","v":0},{"$f":"'Risk Assessment Matrix'!C49","v":0},{"$f":"'Risk Assessment Matrix'!D49","v":0}]
[{"$f":"'Risk Assessment Matrix'!A50","v":0},{"$f":"'Risk Assessment Matrix'!C50","v":0},{"$f":"'Risk Assessment Matrix'!D50","v":0}]
[{"$f":"'Risk Assessment Matrix'!A51","v":0},{"$f":"'Risk Assessment Matrix'!C51","v":0},{"$f":"'Risk Assessment Matrix'!D51","v":0}]
[{"$f":"'Risk Assessment Matrix'!A52","v":0},{"$f":"'Risk Assessment Matrix'!C52","v":0},{"$f":"'Risk Assessment Matrix'!D52","v":0}]
[{"$f":"'Risk Assessment Matrix'!A53","v":0},{"$f":"'Risk Assessment Matrix'!C53","v":0},{"$f":"'Risk Assessment Matrix'!D53","v":0}]
[{"$f":"'Risk Assessment Matrix'!A54","v":0},{"$f":"'Risk Assessment Matrix'!C54","v":0},{"$f":"'Risk Assessment Matrix'!D54","v":0}]
[{"$f":"'Risk Assessment Matrix'!A55","v":0},{"$f":"'Risk Assessment Matrix'!C55","v":0},{"$f":"'Risk Assessment Matrix'!D55","v":0}]
[{"$f":"'Risk Assessment Matrix'!A56","v":0},{"$f":"'Risk Assessment Matrix'!C56","v":0},{"$f":"'Risk Assessment Matrix'!D56","v":0}]
[{"$f":"'Risk Assessment Matrix'!A57","v":0},{"$f":"'Risk Assessment Matrix'!C57","v":0},{"$f":"'Risk Assessment Matrix'!D57","v":0}]
[{"$f":"'Risk Assessment Matrix'!A58","v":0},{"$f":"'Risk Assessment Matrix'!C58","v":0},{"$f":"'Risk Assessment Matrix'!D58","v":0}]
[{"$f":"'Risk Assessment Matrix'!A59","v":0},{"$f":"'Risk Assessment Matrix'!C59","v":0},{"$f":"'Risk Assessment Matrix'!D59","v":0}]
[{"$f":"'Risk Assessment Matrix'!A60","v":0},{"$f":"'Risk Assessment Matrix'!C60","v":0},{"$f":"'Risk Assessment Matrix'!D60","v":0}]
[{"$f":"'Risk Assessment Matrix'!A61","v":0},{"$f":"'Risk Assessment Matrix'!C61","v":0},{"$f":"'Risk Assessment Matrix'!D61","v":0}]
[{"$f":"'Risk Assessment Matrix'!A62","v":0},{"$f":"'Risk Assessment Matrix'!C62","v":0},{"$f":"'Risk Assessment Matrix'!D62","v":0}]
[{"$f":"'Risk Assessment Matrix'!A63","v":0},{"$f":"'Risk Assessment Matrix'!C63","v":0},{"$f":"'Risk Assessment Matrix'!D63","v":0}]
[{"$f":"'Risk Assessment Matrix'!A64","v":0},{"$f":"'Risk Assessment Matrix'!C64","v":0},{"$f":"'Risk Assessment Matrix'!D64","v":0}]
[{"$f":"'Risk Assessment Matrix'!A65","v":0},{"$f":"'Risk Assessment Matrix'!C65","v":0},{"$f":"'Risk Assessment Matrix'!D65","v":0}]
[{"$f":"'Risk Assessment Matrix'!A66","v":0},{"$f":"'Risk Assessment Matrix'!C66","v":0},{"$f":"'Risk Assessment Matrix'!D66","v":0}]
[{"$f":"'Risk Assessment Matrix'!A67","v":0},{"$f":"'Risk Assessment Matrix'!C67","v":0},{"$f":"'Risk Assessment Matrix'!D67","v":0}]
[{"$f":"'Risk Assessment Matrix'!A68","v":0},{"$f":"'Risk Assessment Matrix'!C68","v":0},{"$f":"'Risk Assessment Matrix'!D68","v":0}]
[{"$f":"'Risk Assessment Matrix'!A69","v":0},{"$f":"'Risk Assessment Matrix'!C69","v":0},{"$f":"'Risk Assessment Matrix'!D69","v":0}]
[{"$f":"'Risk Assessment Matrix'!A70","v":0},{"$f":"'Risk Assessment Matrix'!C70","v":0},{"$f":"'Risk Assessment Matrix'!D70","v":0}]
[{"$f":"'Risk Assessment Matrix'!A71","v":0},{"$f":"'Risk Assessment Matrix'!C71","v":0},{"$f":"'Risk Assessment Matrix'!D71","v":0}]
[{"$f":"'Risk Assessment Matrix'!A72","v":0},{"$f":"'Risk Assessment Matrix'!C72","v":0},{"$f":"'Risk Assessment Matrix'!D72","v":0}]
[{"$f":"'Risk Assessment Matrix'!A73","v":0},{"$f":"'Risk Assessment Matrix'!C73","v":0},{"$f":"'Risk Assessment Matrix'!D73","v":0}]
[{"$f":"'Risk Assessment Matrix'!A74","v":0},{"$f":"'Risk Assessment Matrix'!C74","v":0},{"$f":"'Risk Assessment Matrix'!D74","v":0}]
[{"$f":"'Risk Assessment Matrix'!A75","v":0},{"$f":"'Risk Assessment Matrix'!C75","v":0},{"$f":"'Risk Assessment Matrix'!D75","v":0}]
[{"$f":"'Risk Assessment Matrix'!A76","v":0},{"$f":"'Risk Assessment Matrix'!C76","v":0},{"$f":"'Risk Assessment Matrix'!D76","v":0}]
[{"$f":"'Risk Assessment Matrix'!A77","v":0},{"$f":"'Risk Assessment Matrix'!C77","v":0},{"$f":"'Risk Assessment Matrix'!D77","v":0}]
[{"$f":"'Risk Assessment Matrix'!A78","v":0},{"$f":"'Risk Assessment Matrix'!C78","v":0},{"$f":"'Risk Assessment Matrix'!D78","v":0}]
[{"$f":"'Risk Assessment Matrix'!A79","v":0},{"$f":"'Risk Assessment Matrix'!C79","v":0},{"$f":"'Risk Assessment Matrix'!D79","v":0}]
[{"$f":"'Risk Assessment Matrix'!A80","v":0},{"$f":"'Risk Assessment Matrix'!C80","v":0},{"$f":"'Risk Assessment Matrix'!D80","v":0}]
[{"$f":"'Risk Assessment Matrix'!A81","v":0},{"$f":"'Risk Assessment Matrix'!C81","v":0},{"$f":"'Risk Assessment Matrix'!D81","v":0}]
[{"$f":"'Risk Assessment Matrix'!A82","v":0},{"$f":"'Risk Assessment Matrix'!C82","v":0},{"$f":"'Risk Assessment Matrix'!D82","v":0}]
[{"$f":"'Risk Assessment Matrix'!A83","v":0},{"$f":"'Risk Assessment Matrix'!C83","v":0},{"$f":"'Risk Assessment Matrix'!D83","v":0}]
[{"$f":"'Risk Assessment Matrix'!A84","v":0},{"$f":"'Risk Assessment Matrix'!C84","v":0},{"$f":"'Risk Assessment Matrix'!D84","v":0}]
[{"$f":"'Risk Assessment Matrix'!A85","v":0},{"$f":"'Risk Assessment Matrix'!C85","v":0},{"$f":"'Risk Assessment Matrix'!D85","v":0}]
[{"$f":"'Risk Assessment Matrix'!A86","v":0},{"$f":"'Risk Assessment Matrix'!C86","v":0},{"$f":"'Risk Assessment Matrix'!D86","v":0}]
[{"$f":"'Risk Assessment Matrix'!A87","v":0},{"$f":"'Risk Assessment Matrix'!C87","v":0},{"$f":"'Risk Assessment Matrix'!D87","v":0}]
[{"$f":"'Risk Assessment Matrix'!A88","v":0},{"$f":"'Risk Assessment Matrix'!C88","v":0},{"$f":"'Risk Assessment Matrix'!D88","v":0}]
[{"$f":"'Risk Assessment Matrix'!A89","v":0},{"$f":"'Risk Assessment Matrix'!C89","v":0},{"$f":"'Risk Assessment Matrix'!D89","v":0}]
[{"$f":"'Risk Assessment Matrix'!A90","v":0},{"$f":"'Risk Assessment Matrix'!C90","v":0},{"$f":"'Risk Assessment Matrix'!D90","v":0}]
[{"$f":"'Risk Assessment Matrix'!A91","v":0},{"$f":"'Risk Assessment Matrix'!C91","v":0},{"$f":"'Risk Assessment Matrix'!D91","v":0}]
[{"$f":"'Risk Assessment Matrix'!A92","v":0},{"$f":"'Risk Assessment Matrix'!C92","v":0},{"$f":"'Risk Assessment Matrix'!D92","v":0}]
[{"$f":"'Risk Assessment Matrix'!A93","v":0},{"$f":"'Risk Assessment Matrix'!C93","v":0},{"$f":"'Risk Assessment Matrix'!D93","v":0}]
[{"$f":"'Risk Assessment Matrix'!A94","v":0},{"$f":"'Risk Assessment Matrix'!C94","v":0},{"$f":"'Risk Assessment Matrix'!D94","v":0}]
[{"$f":"'Risk Assessment Matrix'!A95","v":0},{"$f":"'Risk Assessment Matrix'!C95","v":0},{"$f":"'Risk Assessment Matrix'!D95","v":0}]
[{"$f":"'Risk Assessment Matrix'!A96","v":0},{"$f":"'Risk Assessment Matrix'!C96","v":0},{"$f":"'Risk Assessment Matrix'!D96","v":0}]
[{"$f":"'Risk Assessment Matrix'!A97","v":0},{"$f":"'Risk Assessment Matrix'!C97","v":0},{"$f":"'Risk Assessment Matrix'!D97","v":0}]
[{"$f":"'Risk Assessment Matrix'!A98","v":0},{"$f":"'Risk Assessment Matrix'!C98","v":0},{"$f":"'Risk Assessment Matrix'!D98","v":0}]
[{"$f":"'Risk Assessment Matrix'!A99","v":0},{"$f":"'Risk Assessment Matrix'!C99","v":0},{"$f":"'Risk Assessment Matrix'!D99","v":0}]
[{"$f":"'Risk Assessment Matrix'!A100","v":0},{"$f":"'Risk Assessment Matrix'!C100","v":0},{"$f":"'Risk Assessment Matrix'!D100","v":0}]
[{"$f":"'Risk Assessment Matrix'!A101","v":0},{"$f":"'Risk Assessment Matrix'!C101","v":0},{"$f":"'Risk Assessment Matrix'!D101","v":0}]
[{"$f":"'Risk Assessment Matrix'!A102","v":0},{"$f":"'Risk Assessment Matrix'!C102","v":0},{"$f":"'Risk Assessment Matrix'!D102","v":0}]
[{"$f":"'Risk Assessment Matrix'!A103","v":0},{"$f":"'Risk Assessment Matrix'!C103","v":0},{"$f":"'Risk Assessment Matrix'!D103","v":0}]
[{"$f":"'Risk Assessment Matrix'!A104","v":0},{"$f":"'Risk Assessment Matrix'!C104","v":0},{"$f":"'Risk Assessment Matrix'!D104","v":0}]
[{"$f":"'Risk Assessment Matrix'!A105","v":0},{"$f":"'Risk Assessment Matrix'!C105","v":0},{"$f":"'Risk Assessment Matrix'!D105","v":0}]
[{"$f":"'Risk Assessment Matrix'!A106","v":0},{"$f":"'Risk Assessment Matrix'!C106","v":0},{"$f":"'Risk Assessment Matrix'!D106","v":0}]
[{"$f":"'Risk Assessment Matrix'!A107","v":0},{"$f":"'Risk Assessment Matrix'!C107","v":0},{"$f":"'Risk Assessment Matrix'!D107","v":0}]
[{"$f":"'Risk Assessment Matrix'!A108","v":0},{"$f":"'Risk Assessment Matrix'!C108","v":0},{"$f":"'Risk Assessment Matrix'!D108","v":0}]
[{"$f":"'Risk Assessment Matrix'!A109","v":0},{"$f":"'Risk Assessment Matrix'!C109","v":0},{"$f":"'Risk Assessment Matrix'!D109","v":0}]
[{"$f":"'Risk Assessment Matrix'!A110","v":0},{"$f":"'Risk Assessment Matrix'!C110","v":0},{"$f":"'Risk Assessment Matrix'!D110","v":0}]
[{"$f":"'Risk Assessment Matrix'!A111","v":0},{"$f":"'Risk Assessment Matrix'!C111","v":0},{"$f":"'Risk Assessment Matrix'!D111","v":0}]
[{"$f":"'Risk Assessment Matrix'!A112","v":0},{"$f":"'Risk Assessment Matrix'!C112","v":0},{"$f":"'Risk Assessment Matrix'!D112","v":0}]
[{"$f":"'Risk Assessment Matrix'!A113","v":0},{"$f":"'Risk Assessment Matrix'!C113","v":0},{"$f":"'Risk Assessment Matrix'!D113","v":0}]
[{"$f":"'Risk Assessment Matrix'!A114","v":0},{"$f":"'Risk Assessment Matrix'!C114","v":0},{"$f":"'Risk Assessment Matrix'!D114","v":0}]
[{"$f":"'Risk Assessment Matrix'!A115","v":0},{"$f":"'Risk Assessment Matrix'!C115","v":0},{"$f":"'Risk Assessment Matrix'!D115","v":0}]
[{"$f":"'Risk Assessment Matrix'!A116","v":0},{"$f":"'Risk Assessment Matrix'!C116","v":0},{"$f":"'Risk Assessment Matrix'!D116","v":0}]
[{"$f":"'Risk Assessment Matrix'!A117","v":0},{"$f":"'Risk Assessment Matrix'!C117","v":0},{"$f":"'Risk Assessment Matrix'!D117","v":0}]
[{"$f":"'Risk Assessment Matrix'!A118","v":0},{"$f":"'Risk Assessment Matrix'!C118","v":0},{"$f":"'Risk Assessment Matrix'!D118","v":0}]
[{"$f":"'Risk Assessment Matrix'!A119","v":0},{"$f":"'Risk Assessment Matrix'!C119","v":0},{"$f":"'Risk Assessment Matrix'!D119","v":0}]
[{"$f":"'Risk Assessment Matrix'!A120","v":0},{"$f":"'Risk Assessment Matrix'!C120","v":0},{"$f":"'Risk Assessment Matrix'!D120","v":0}]
[{"$f":"'Risk Assessment Matrix'!A121","v":0},{"$f":"'Risk Assessment Matrix'!C121","v":0},{"$f":"'Risk Assessment Matrix'!D121","v":0}]
[{"$f":"'Risk Assessment Matrix'!A122","v":0},{"$f":"'Risk Assessment Matrix'!C122","v":0},{"$f":"'Risk Assessment Matrix'!D122","v":0}]
[{"$f":"'Risk Assessment Matrix'!A123","v":0},{"$f":"'Risk Assessment Matrix'!C123","v":0},{"$f":"'Risk Assessment Matrix'!D123","v":0}]
[{"$f":"'Risk Assessment Matrix'!A124","v":0},{"$f":"'Risk Assessment Matrix'!C124","v":0},{"$f":"'Risk Assessment Matrix'!D124","v":0}]
[{"$f":"'Risk Assessment Matrix'!A125","v":0},{"$f":"'Risk Assessment Matrix'!C125","v":0},{"$f":"'Risk Assessment Matrix'!D125","v":0}]
[{"$f":"'Risk Assessment Matrix'!A126","v":0},{"$f":"'Risk Assessment Matrix'!C126","v":0},{"$f":"'Risk Assessment Matrix'!D126","v":0}]
[{"$f":"'Risk Assessment Matrix'!A127","v":0},{"$f":"'Risk Assessment Matrix'!C127","v":0},{"$f":"'Risk Assessment Matrix'!D127","v":0}]
[{"$f":"'Risk Assessment Matrix'!A128","v":0},{"$f":"'Risk Assessment Matrix'!C128","v":0},{"$f":"'Risk Assessment Matrix'!D128","v":0}]
[{"$f":"'Risk Assessment Matrix'!A129","v":0},{"$f":"'Risk Assessment Matrix'!C129","v":0},{"$f":"'Risk Assessment Matrix'!D129","v":0}]
[{"$f":"'Risk Assessment Matrix'!A130","v":0},{"$f":"'Risk Assessment Matrix'!C130","v":0},{"$f":"'Risk Assessment Matrix'!D130","v":0}]
[{"$f":"'Risk Assessment Matrix'!A131","v":0},{"$f":"'Risk Assessment Matrix'!C131","v":0},{"$f":"'Risk Assessment Matrix'!D131","v":0}]
[{"$f":"'Risk Assessment Matrix'!A132","v":0},{"$f":"'Risk Assessment Matrix'!C132","v":0},{"$f":"'Risk Assessment Matrix'!D132","v":0}]
[{"$f":"'Risk Assessment Matrix'!A133","v":0},{"$f":"'Risk Assessment Matrix'!C133","v":0},{"$f":"'Risk Assessment Matrix'!D133","v":0}]
[{"$f":"'Risk Assessment Matrix'!A134","v":0},{"$f":"'Risk Assessment Matrix'!C134","v":0},{"$f":"'Risk Assessment Matrix'!D134","v":0}]
[{"$f":"'Risk Assessment Matrix'!A135","v":0},{"$f":"'Risk Assessment Matrix'!C135","v":0},{"$f":"'Risk Assessment Matrix'!D135","v":0}]
[{"$f":"'Risk Assessment Matrix'!A136","v":0},{"$f":"'Risk Assessment Matrix'!C136","v":0},{"$f":"'Risk Assessment Matrix'!D136","v":0}]
[{"$f":"'Risk Assessment Matrix'!A137","v":0},{"$f":"'Risk Assessment Matrix'!C137","v":0},{"$f":"'Risk Assessment Matrix'!D137","v":0}]
[{"$f":"'Risk Assessment Matrix'!A138","v":0},{"$f":"'Risk Assessment Matrix'!C138","v":0},{"$f":"'Risk Assessment Matrix'!D138","v":0}]
[{"$f":"'Risk Assessment Matrix'!A139","v":0},{"$f":"'Risk Assessment Matrix'!C139","v":0},{"$f":"'Risk Assessment Matrix'!D139","v":0}]
[{"$f":"'Risk Assessment Matrix'!A140","v":0},{"$f":"'Risk Assessment Matrix'!C140","v":0},{"$f":"'Risk Assessment Matrix'!D140","v":0}]
[{"$f":"'Risk Assessment Matrix'!A141","v":0},{"$f":"'Risk Assessment Matrix'!C141","v":0},{"$f":"'Risk Assessment Matrix'!D141","v":0}]
[{"$f":"'Risk Assessment Matrix'!A142","v":0},{"$f":"'Risk Assessment Matrix'!C142","v":0},{"$f":"'Risk Assessment Matrix'!D142","v":0}]
[{"$f":"'Risk Assessment Matrix'!A143","v":0},{"$f":"'Risk Assessment Matrix'!C143","v":0},{"$f":"'Risk Assessment Matrix'!D143","v":0}]
[{"$f":"'Risk Assessment Matrix'!A144","v":0},{"$f":"'Risk Assessment Matrix'!C144","v":0},{"$f":"'Risk Assessment Matrix'!D144","v":0}]
[{"$f":"'Risk Assessment Matrix'!A145","v":0},{"$f":"'Risk Assessment Matrix'!C145","v":0},{"$f":"'Risk Assessment Matrix'!D145","v":0}]
[{"$f":"'Risk Assessment Matrix'!A146","v":0},{"$f":"'Risk Assessment Matrix'!C146","v":0},{"$f":"'Risk Assessment Matrix'!D146","v":0}]
[{"$f":"'Risk Assessment Matrix'!A147","v":0},{"$f":"'Risk Assessment Matrix'!C147","v":0},{"$f":"'Risk Assessment Matrix'!D147","v":0}]
[{"$f":"'Risk Assessment Matrix'!A148","v":0},{"$f":"'Risk Assessment Matrix'!C148","v":0},{"$f":"'Risk Assessment Matrix'!D148","v":0}]
[{"$f":"'Risk Assessment Matrix'!A149","v":0},{"$f":"'Risk Assessment Matrix'!C149","v":0},{"$f":"'Risk Assessment Matrix'!D149","v":0}]
[{"$f":"'Risk Assessment Matrix'!A150","v":0},{"$f":"'Risk Assessment Matrix'!C150","v":0},{"$f":"'Risk Assessment Matrix'!D150","v":0}]
[{"$f":"'Risk Assessment Matrix'!A151","v":0},{"$f":"'Risk Assessment Matrix'!C151","v":0},{"$f":"'Risk Assessment Matrix'!D151","v":0}]
[{"$f":"'Risk Assessment Matrix'!A152","v":0},{"$f":"'Risk Assessment Matrix'!C152","v":0},{"$f":"'Risk Assessment Matrix'!D152","v":0}]
[{"$f":"'Risk Assessment Matrix'!A153","v":0},{"$f":"'Risk Assessment Matrix'!C153","v":0},{"$f":"'Risk Assessment Matrix'!D153","v":0}]
[{"$f":"'Risk Assessment Matrix'!A154","v":0},{"$f":"'Risk Assessment Matrix'!C154","v":0},{"$f":"'Risk Assessment Matrix'!D154","v":0}]
[{"$f":"'Risk Assessment Matrix'!A155","v":0},{"$f":"'Risk Assessment Matrix'!C155","v":0},{"$f":"'Risk Assessment Matrix'!D155","v":0}]
[{"$f":"'Risk Assessment Matrix'!A156","v":0},{"$f":"'Risk Assessment Matrix'!C156","v":0},{"$f":"'Risk Assessment Matrix'!D156","v":0}]
[{"$f":"'Risk Assessment Matrix'!A157","v":0},{"$f":"'Risk Assessment Matrix'!C157","v":0},{"$f":"'Risk Assessment Matrix'!D157","v":0}]
[{"$f":"'Risk Assessment Matrix'!A158","v":0},{"$f":"'Risk Assessment Matrix'!C158","v":0},{"$f":"'Risk Assessment Matrix'!D158","v":0}]
[{"$f":"'Risk Assessment Matrix'!A159","v":0},{"$f":"'Risk Assessment Matrix'!C159","v":0},{"$f":"'Risk Assessment Matrix'!D159","v":0}]
[{"$f":"'Risk Assessment Matrix'!A160","v":0},{"$f":"'Risk Assessment Matrix'!C160","v":0},{"$f":"'Risk Assessment Matrix'!D160","v":0}]
[{"$f":"'Risk Assessment Matrix'!A161","v":0},{"$f":"'Risk Assessment Matrix'!C161","v":0},{"$f":"'Risk Assessment Matrix'!D161","v":0}]
[{"$f":"'Risk Assessment Matrix'!A162","v":0},{"$f":"'Risk Assessment Matrix'!C162","v":0},{"$f":"'Risk Assessment Matrix'!D162","v":0}]
[{"$f":"'Risk Assessment Matrix'!A163","v":0},{"$f":"'Risk Assessment Matrix'!C163","v":0},{"$f":"'Risk Assessment Matrix'!D163","v":0}]
[{"$f":"'Risk Assessment Matrix'!A164","v":0},{"$f":"'Risk Assessment Matrix'!C164","v":0},{"$f":"'Risk Assessment Matrix'!D164","v":0}]
[{"$f":"'Risk Assessment Matrix'!A165","v":0},{"$f":"'Risk Assessment Matrix'!C165","v":0},{"$f":"'Risk Assessment Matrix'!D165","v":0}]
[{"$f":"'Risk Assessment Matrix'!A166","v":0},{"$f":"'Risk Assessment Matrix'!C166","v":0},{"$f":"'Risk Assessment Matrix'!D166","v":0}]
[{"$f":"'Risk Assessment Matrix'!A167","v":0},{"$f":"'Risk Assessment Matrix'!C167","v":0},{"$f":"'Risk Assessment Matrix'!D167","v":0}]
[{"$f":"'Risk Assessment Matrix'!A168","v":0},{"$f":"'Risk Assessment Matrix'!C168","v":0},{"$f":"'Risk Assessment Matrix'!D168","v":0}]
[{"$f":"'Risk Assessment Matrix'!A169","v":0},{"$f":"'Risk Assessment Matrix'!C169","v":0},{"$f":"'Risk Assessment Matrix'!D169","v":0}]
[{"$f":"'Risk Assessment Matrix'!A170","v":0},{"$f":"'Risk Assessment Matrix'!C170","v":0},{"$f":"'Risk Assessment Matrix'!D170","v":0}]
[{"$f":"'Risk Assessment Matrix'!A171","v":0},{"$f":"'Risk Assessment Matrix'!C171","v":0},{"$f":"'Risk Assessment Matrix'!D171","v":0}]
[{"$f":"'Risk Assessment Matrix'!A172","v":0},{"$f":"'Risk Assessment Matrix'!C172","v":0},{"$f":"'Risk Assessment Matrix'!D172","v":0}]
[{"$f":"'Risk Assessment Matrix'!A173","v":0},{"$f":"'Risk Assessment Matrix'!C173","v":0},{"$f":"'Risk Assessment Matrix'!D173","v":0}]
[{"$f":"'Risk Assessment Matrix'!A174","v":0},{"$f":"'Risk Assessment Matrix'!C174","v":0},{"$f":"'Risk Assessment Matrix'!D174","v":0}]
[{"$f":"'Risk Assessment Matrix'!A175","v":0},{"$f":"'Risk Assessment Matrix'!C175","v":0},{"$f":"'Risk Assessment Matrix'!D175","v":0}]
[{"$f":"'Risk Assessment Matrix'!A176","v":0},{"$f":"'Risk Assessment Matrix'!C176","v":0},{"$f":"'Risk Assessment Matrix'!D176","v":0}]
[{"$f":"'Risk Assessment Matrix'!A177","v":0},{"$f":"'Risk Assessment Matrix'!C177","v":0},{"$f":"'Risk Assessment Matrix'!D177","v":0}]
[{"$f":"'Risk Assessment Matrix'!A178","v":0},{"$f":"'Risk Assessment Matrix'!C178","v":0},{"$f":"'Risk Assessment Matrix'!D178","v":0}]
[{"$f":"'Risk Assessment Matrix'!A179","v":0},{"$f":"'Risk Assessment Matrix'!C179","v":0},{"$f":"'Risk Assessment Matrix'!D179","v":0}]
[{"$f":"'Risk Assessment Matrix'!A180","v":0},{"$f":"'Risk Assessment Matrix'!C180","v":0},{"$f":"'Risk Assessment Matrix'!D180","v":0}]
[{"$f":"'Risk Assessment Matrix'!A181","v":0},{"$f":"'Risk Assessment Matrix'!C181","v":0},{"$f":"'Risk Assessment Matrix'!D181","v":0}]
[{"$f":"'Risk Assessment Matrix'!A182","v":0},{"$f":"'Risk Assessment Matrix'!C182","v":0},{"$f":"'Risk Assessment Matrix'!D182","v":0}]
[{"$f":"'Risk Assessment Matrix'!A183","v":0},{"$f":"'Risk Assessment Matrix'!C183","v":0},{"$f":"'Risk Assessment Matrix'!D183","v":0}]
[{"$f":"'Risk Assessment Matrix'!A184","v":0},{"$f":"'Risk Assessment Matrix'!C184","v":0},{"$f":"'Risk Assessment Matrix'!D184","v":0}]
[{"$f":"'Risk Assessment Matrix'!A185","v":0},{"$f":"'Risk Assessment Matrix'!C185","v":0},{"$f":"'Risk Assessment Matrix'!D185","v":0}]
[{"$f":"'Risk Assessment Matrix'!A186","v":0},{"$f":"'Risk Assessment Matrix'!C186","v":0},{"$f":"'Risk Assessment Matrix'!D186","v":0}]
[{"$f":"'Risk Assessment Matrix'!A187","v":0},{"$f":"'Risk Assessment Matrix'!C187","v":0},{"$f":"'Risk Assessment Matrix'!D187","v":0}]
[{"$f":"'Risk Assessment Matrix'!A188","v":0},{"$f":"'Risk Assessment Matrix'!C188","v":0},{"$f":"'Risk Assessment Matrix'!D188","v":0}]
[{"$f":"'Risk Assessment Matrix'!A189","v":0},{"$f":"'Risk Assessment Matrix'!C189","v":0},{"$f":"'Risk Assessment Matrix'!D189","v":0}]
[{"$f":"'Risk Assessment Matrix'!A190","v":0},{"$f":"'Risk Assessment Matrix'!C190","v":0},{"$f":"'Risk Assessment Matrix'!D190","v":0}]
[{"$f":"'Risk Assessment Matrix'!A191","v":0},{"$f":"'Risk Assessment Matrix'!C191","v":0},{"$f":"'Risk Assessment Matrix'!D191","v":0}]
[{"$f":"'Risk Assessment Matrix'!A192","v":0},{"$f":"'Risk Assessment Matrix'!C192","v":0},{"$f":"'Risk Assessment Matrix'!D192","v":0}]
[{"$f":"'Risk Assessment Matrix'!A193","v":0},{"$f":"'Risk Assessment Matrix'!C193","v":0},{"$f":"'Risk Assessment Matrix'!D193","v":0}]
[{"$f":"'Risk Assessment Matrix'!A194","v":0},{"$f":"'Risk Assessment Matrix'!C194","v":0},{"$f":"'Risk Assessment Matrix'!D194","v":0}]
[{"$f":"'Risk Assessment Matrix'!A195","v":0},{"$f":"'Risk Assessment Matrix'!C195","v":0},{"$f":"'Risk Assessment Matrix'!D195","v":0}]
[{"$f":"'Risk Assessment Matrix'!A196","v":0},{"$f":"'Risk Assessment Matrix'!C196","v":0},{"$f":"'Risk Assessment Matrix'!D196","v":0}]
[{"$f":"'Risk Assessment Matrix'!A197","v":0},{"$f":"'Risk Assessment Matrix'!C197","v":0},{"$f":"'Risk Assessment Matrix'!D197","v":0}]
[{"$f":"'Risk Assessment Matrix'!A198","v":0},{"$f":"'Risk Assessment Matrix'!C198","v":0},{"$f":"'Risk Assessment Matrix'!D198","v":0}]
[{"$f":"'Risk Assessment Matrix'!A199","v":0},{"$f":"'Risk Assessment Matrix'!C199","v":0},{"$f":"'Risk Assessment Matrix'!D199","v":0}]
[{"$f":"'Risk Assessment Matrix'!A200","v":0},{"$f":"'Risk Assessment Matrix'!C200","v":0},{"$f":"'Risk Assessment Matrix'!D200","v":0}]
[{"$f":"'Risk Assessment Matrix'!A201","v":0},{"$f":"'Risk Assessment Matrix'!C201","v":0},{"$f":"'Risk Assessment Matrix'!D201","v":0}]
[{"$f":"'Risk Assessment Matrix'!A202","v":0},{"$f":"'Risk Assessment Matrix'!C202","v":0},{"$f":"'Risk Assessment Matrix'!D202","v":0}]
[{"$f":"'Risk Assessment Matrix'!A203","v":0},{"$f":"'Risk Assessment Matrix'!C203","v":0},{"$f":"'Risk Assessment Matrix'!D203","v":0}]
[{"$f":"'Risk Assessment Matrix'!A204","v":0},{"$f":"'Risk Assessment Matrix'!C204","v":0},{"$f":"'Risk Assessment Matrix'!D204","v":0}]
[{"$f":"'Risk Assessment Matrix'!A205","v":0},{"$f":"'Risk Assessment Matrix'!C205","v":0},{"$f":"'Risk Assessment Matrix'!D205","v":0}]
[{"$f":"'Risk Assessment Matrix'!A206","v":0},{"$f":"'Risk Assessment Matrix'!C206","v":0},{"$f":"'Risk Assessment Matrix'!D206","v":0}]
[{"$f":"'Risk Assessment Matrix'!A207","v":0},{"$f":"'Risk Assessment Matrix'!C207","v":0},{"$f":"'Risk Assessment Matrix'!D207","v":0}]
[{"$f":"'Risk Assessment Matrix'!A208","v":0},{"$f":"'Risk Assessment Matrix'!C208","v":0},{"$f":"'Risk Assessment Matrix'!D208","v":0}]
[{"$f":"'Risk Assessment Matrix'!A209","v":0},{"$f":"'Risk Assessment Matrix'!C209","v":0},{"$f":"'Risk Assessment Matrix'!D209","v":0}]
[{"$f":"'Risk Assessment Matrix'!A210","v":0},{"$f":"'Risk Assessment Matrix'!C210","v":0},{"$f":"'Risk Assessment Matrix'!D210","v":0}]
[{"$f":"'Risk Assessment Matrix'!A211","v":0},{"$f":"'Risk Assessment Matrix'!C211","v":0},{"$f":"'Risk Assessment Matrix'!D211","v":0}]
[{"$f":"'Risk Assessment Matrix'!A212","v":0},{"$f":"'Risk Assessment Matrix'!C212","v":0},{"$f":"'Risk Assessment Matrix'!D212","v":0}]
[{"$f":"'Risk Assessment Matrix'!A213","v":0},{"$f":"'Risk Assessment Matrix'!C213","v":0},{"$f":"'Risk Assessment Matrix'!D213","v":0}]
[{"$f":"'Risk Assessment Matrix'!A214","v":0},{"$f":"'Risk Assessment Matrix'!C214","v":0},{"$f":"'Risk Assessment Matrix'!D214","v":0}]
[{"$f":"'Risk Assessment Matrix'!A215","v":0},{"$f":"'Risk Assessment Matrix'!C215","v":0},{"$f":"'Risk Assessment Matrix'!D215","v":0}]
[{"$f":"'Risk Assessment Matrix'!A216","v":0},{"$f":"'Risk Assessment Matrix'!C216","v":0},{"$f":"'Risk Assessment Matrix'!D216","v":0}]
[{"$f":"'Risk Assessment Matrix'!A217","v":0},{"$f":"'Risk Assessment Matrix'!C217","v":0},{"$f":"'Risk Assessment Matrix'!D217","v":0}]
[{"$f":"'Risk Assessment Matrix'!A218","v":0},{"$f":"'Risk Assessment Matrix'!C218","v":0},{"$f":"'Risk Assessment Matrix'!D218","v":0}]
[{"$f":"'Risk Assessment Matrix'!A219","v":0},{"$f":"'Risk Assessment Matrix'!C219","v":0},{"$f":"'Risk Assessment Matrix'!D219","v":0}]
[{"$f":"'Risk Assessment Matrix'!A220","v":0},{"$f":"'Risk Assessment Matrix'!C220","v":0},{"$f":"'Risk Assessment Matrix'!D220","v":0}]
[{"$f":"'Risk Assessment Matrix'!A221","v":0},{"$f":"'Risk Assessment Matrix'!C221","v":0},{"$f":"'Risk Assessment Matrix'!D221","v":0}]
[{"$f":"'Risk Assessment Matrix'!A222","v":0},{"$f":"'Risk Assessment Matrix'!C222","v":0},{"$f":"'Risk Assessment Matrix'!D222","v":0}]
[{"$f":"'Risk Assessment Matrix'!A223","v":0},{"$f":"'Risk Assessment Matrix'!C223","v":0},{"$f":"'Risk Assessment Matrix'!D223","v":0}]
[{"$f":"'Risk Assessment Matrix'!A224","v":0},{"$f":"'Risk Assessment Matrix'!C224","v":0},{"$f":"'Risk Assessment Matrix'!D224","v":0}]
[{"$f":"'Risk Assessment Matrix'!A225","v":0},{"$f":"'Risk Assessment Matrix'!C225","v":0},{"$f":"'Risk Assessment Matrix'!D225","v":0}]
[{"$f":"'Risk Assessment Matrix'!A226","v":0},{"$f":"'Risk Assessment Matrix'!C226","v":0},{"$f":"'Risk Assessment Matrix'!D226","v":0}]
[{"$f":"'Risk Assessment Matrix'!A227","v":0},{"$f":"'Risk Assessment Matrix'!C227","v":0},{"$f":"'Risk Assessment Matrix'!D227","v":0}]
[{"$f":"'Risk Assessment Matrix'!A228","v":0},{"$f":"'Risk Assessment Matrix'!C228","v":0},{"$f":"'Risk Assessment Matrix'!D228","v":0}]
[{"$f":"'Risk Assessment Matrix'!A229","v":0},{"$f":"'Risk Assessment Matrix'!C229","v":0},{"$f":"'Risk Assessment Matrix'!D229","v":0}]
[{"$f":"'Risk Assessment Matrix'!A230","v":0},{"$f":"'Risk Assessment Matrix'!C230","v":0},{"$f":"'Risk Assessment Matrix'!D230","v":0}]
[{"$f":"'Risk Assessment Matrix'!A231","v":0},{"$f":"'Risk Assessment Matrix'!C231","v":0},{"$f":"'Risk Assessment Matrix'!D231","v":0}]
[{"$f":"'Risk Assessment Matrix'!A232","v":0},{"$f":"'Risk Assessment Matrix'!C232","v":0},{"$f":"'Risk Assessment Matrix'!D232","v":0}]
[{"$f":"'Risk Assessment Matrix'!A233","v":0},{"$f":"'Risk Assessment Matrix'!C233","v":0},{"$f":"'Risk Assessment Matrix'!D233","v":0}]
[{"$f":"'Risk Assessment Matrix'!A234","v":0},{"$f":"'Risk Assessment Matrix'!C234","v":0},{"$f":"'Risk Assessment Matrix'!D234","v":0}]
[{"$f":"'Risk Assessment Matrix'!A235","v":0},{"$f":"'Risk Assessment Matrix'!C235","v":0},{"$f":"'Risk Assessment Matrix'!D235","v":0}]
[{"$f":"'Risk Assessment Matrix'!A236","v":0},{"$f":"'Risk Assessment Matrix'!C236","v":0},{"$f":"'Risk Assessment Matrix'!D236","v":0}]
[{"$f":"'Risk Assessment Matrix'!A237","v":0},{"$f":"'Risk Assessment Matrix'!C237","v":0},{"$f":"'Risk Assessment Matrix'!D237","v":0}]
[{"$f":"'Risk Assessment Matrix'!A238","v":0},{"$f":"'Risk Assessment Matrix'!C238","v":0},{"$f":"'Risk Assessment Matrix'!D238","v":0}]
[{"$f":"'Risk Assessment Matrix'!A239","v":0},{"$f":"'Risk Assessment Matrix'!C239","v":0},{"$f":"'Risk Assessment Matrix'!D239","v":0}]
[{"$f":"'Risk Assessment Matrix'!A240","v":0},{"$f":"'Risk Assessment Matrix'!C240","v":0},{"$f":"'Risk Assessment Matrix'!D240","v":0}]
[{"$f":"'Risk Assessment Matrix'!A241","v":0},{"$f":"'Risk Assessment Matrix'!C241","v":0},{"$f":"'Risk Assessment Matrix'!D241","v":0}]
[{"$f":"'Risk Assessment Matrix'!A242","v":0},{"$f":"'Risk Assessment Matrix'!C242","v":0},{"$f":"'Risk Assessment Matrix'!D242","v":0}]
[{"$f":"'Risk Assessment Matrix'!A243","v":0},{"$f":"'Risk Assessment Matrix'!C243","v":0},{"$f":"'Risk Assessment Matrix'!D243","v":0}]
[{"$f":"'Risk Assessment Matrix'!A244","v":0},{"$f":"'Risk Assessment Matrix'!C244","v":0},{"$f":"'Risk Assessment Matrix'!D244","v":0}]
[{"$f":"'Risk Assessment Matrix'!A245","v":0},{"$f":"'Risk Assessment Matrix'!C245","v":0},{"$f":"'Risk Assessment Matrix'!D245","v":0}]
[{"$f":"'Risk Assessment Matrix'!A246","v":0},{"$f":"'Risk Assessment Matrix'!C246","v":0},{"$f":"'Risk Assessment Matrix'!D246","v":0}]
[{"$f":"'Risk Assessment Matrix'!A247","v":0},{"$f":"'Risk Assessment Matrix'!C247","v":0},{"$f":"'Risk Assessment Matrix'!D247","v":0}]
[{"$f":"'Risk Assessment Matrix'!A248","v":0},{"$f":"'Risk Assessment Matrix'!C248","v":0},{"$f":"'Risk Assessment Matrix'!D248","v":0}]
[{"$f":"'Risk Assessment Matrix'!A249","v":0},{"$f":"'Risk Assessment Matrix'!C249","v":0},{"$f":"'Risk Assessment Matrix'!D249","v":0}]
[{"$f":"'Risk Assessment Matrix'!A250","v":0},{"$f":"'Risk Assessment Matrix'!C250","v":0},{"$f":"'Risk Assessment Matrix'!D250","v":0}]
[{"$f":"'Risk Assessment Matrix'!A251","v":0},{"$f":"'Risk Assessment Matrix'!C251","v":0},{"$f":"'Risk Assessment Matrix'!D251","v":0}]
[{"$f":"'Risk Assessment Matrix'!A252","v":0},{"$f":"'Risk Assessment Matrix'!C252","v":0},{"$f":"'Risk Assessment Matrix'!D252","v":0}]
[{"$f":"'Risk Assessment Matrix'!A253","v":0},{"$f":"'Risk Assessment Matrix'!C253","v":0},{"$f":"'Risk Assessment Matrix'!D253","v":0}]
[{"$f":"'Risk Assessment Matrix'!A254","v":0},{"$f":"'Risk Assessment Matrix'!C254","v":0},{"$f":"'Risk Assessment Matrix'!D254","v":0}]
[{"$f":"'Risk Assessment Matrix'!A255","v":0},{"$f":"'Risk Assessment Matrix'!C255","v":0},{"$f":"'Risk Assessment Matrix'!D255","v":0}]
[{"$f":"'Risk Assessment Matrix'!A256","v":0},{"$f":"'Risk Assessment Matrix'!C256","v":0},{"$f":"'Risk Assessment Matrix'!D256","v":0}]
[{"$f":"'Risk Assessment Matrix'!A257","v":0},{"$f":"'Risk Assessment Matrix'!C257","v":0},{"$f":"'Risk Assessment Matrix'!D257","v":0}]
[{"$f":"'Risk Assessment Matrix'!A258","v":0},{"$f":"'Risk Assessment Matrix'!C258","v":0},{"$f":"'Risk Assessment Matrix'!D258","v":0}]
[{"$f":"'Risk Assessment Matrix'!A259","v":0},{"$f":"'Risk Assessment Matrix'!C259","v":0},{"$f":"'Risk Assessment Matrix'!D259","v":0}]
[{"$f":"'Risk Assessment Matrix'!A260","v":0},{"$f":"'Risk Assessment Matrix'!C260","v":0},{"$f":"'Risk Assessment Matrix'!D260","v":0}]
[{"$f":"'Risk Assessment Matrix'!A261","v":0},{"$f":"'Risk Assessment Matrix'!C261","v":0},{"$f":"'Risk Assessment Matrix'!D261","v":0}]
[{"$f":"'Risk Assessment Matrix'!A262","v":0},{"$f":"'Risk Assessment Matrix'!C262","v":0},{"$f":"'Risk Assessment Matrix'!D262","v":0}]
[{"$f":"'Risk Assessment Matrix'!A263","v":0},{"$f":"'Risk Assessment Matrix'!C263","v":0},{"$f":"'Risk Assessment Matrix'!D263","v":0}]
[{"$f":"'Risk Assessment Matrix'!A264","v":0},{"$f":"'Risk Assessment Matrix'!C264","v":0},{"$f":"'Risk Assessment Matrix'!D264","v":0}]
[{"$f":"'Risk Assessment Matrix'!A265","v":0},{"$f":"'Risk Assessment Matrix'!C265","v":0},{"$f":"'Risk Assessment Matrix'!D265","v":0}]
[{"$f":"'Risk Assessment Matrix'!A266","v":0},{"$f":"'Risk Assessment Matrix'!C266","v":0},{"$f":"'Risk Assessment Matrix'!D266","v":0}]
[{"$f":"'Risk Assessment Matrix'!A267","v":0},{"$f":"'Risk Assessment Matrix'!C267","v":0},{"$f":"'Risk Assessment Matrix'!D267","v":0}]
[{"$f":"'Risk Assessment Matrix'!A268","v":0},{"$f":"'Risk Assessment Matrix'!C268","v":0},{"$f":"'Risk Assessment Matrix'!D268","v":0}]
[{"$f":"'Risk Assessment Matrix'!A269","v":0},{"$f":"'Risk Assessment Matrix'!C269","v":0},{"$f":"'Risk Assessment Matrix'!D269","v":0}]
[{"$f":"'Risk Assessment Matrix'!A270","v":0},{"$f":"'Risk Assessment Matrix'!C270","v":0},{"$f":"'Risk Assessment Matrix'!D270","v":0}]
[{"$f":"'Risk Assessment Matrix'!A271","v":0},{"$f":"'Risk Assessment Matrix'!C271","v":0},{"$f":"'Risk Assessment Matrix'!D271","v":0}]
[{"$f":"'Risk Assessment Matrix'!A272","v":0},{"$f":"'Risk Assessment Matrix'!C272","v":0},{"$f":"'Risk Assessment Matrix'!D272","v":0}]
[{"$f":"'Risk Assessment Matrix'!A273","v":0},{"$f":"'Risk Assessment Matrix'!C273","v":0},{"$f":"'Risk Assessment Matrix'!D273","v":0}]
[{"$f":"'Risk Assessment Matrix'!A274","v":0},{"$f":"'Risk Assessment Matrix'!C274","v":0},{"$f":"'Risk Assessment Matrix'!D274","v":0}]
[{"$f":"'Risk Assessment Matrix'!A275","v":0},{"$f":"'Risk Assessment Matrix'!C275","v":0},{"$f":"'Risk Assessment Matrix'!D275","v":0}]
[{"$f":"'Risk Assessment Matrix'!A276","v":0},{"$f":"'Risk Assessment Matrix'!C276","v":0},{"$f":"'Risk Assessment Matrix'!D276","v":0}]
[{"$f":"'Risk Assessment Matrix'!A277","v":0},{"$f":"'Risk Assessment Matrix'!C277","v":0},{"$f":"'Risk Assessment Matrix'!D277","v":0}]
[{"$f":"'Risk Assessment Matrix'!A278","v":0},{"$f":"'Risk Assessment Matrix'!C278","v":0},{"$f":"'Risk Assessment Matrix'!D278","v":0}]
[{"$f":"'Risk Assessment Matrix'!A279","v":0},{"$f":"'Risk Assessment Matrix'!C279","v":0},{"$f":"'Risk Assessment Matrix'!D279","v":0}]
[{"$f":"'Risk Assessment Matrix'!A280","v":0},{"$f":"'Risk Assessment Matrix'!C280","v":0},{"$f":"'Risk Assessment Matrix'!D280","v":0}]
[{"$f":"'Risk Assessment Matrix'!A281","v":0},{"$f":"'Risk Assessment Matrix'!C281","v":0},{"$f":"'Risk Assessment Matrix'!D281","v":0}]
[{"$f":"'Risk Assessment Matrix'!A282","v":0},{"$f":"'Risk Assessment Matrix'!C282","v":0},{"$f":"'Risk Assessment Matrix'!D282","v":0}]
[{"$f":"'Risk Assessment Matrix'!A283","v":0},{"$f":"'Risk Assessment Matrix'!C283","v":0},{"$f":"'Risk Assessment Matrix'!D283","v":0}]
[{"$f":"'Risk Assessment Matrix'!A284","v":0},{"$f":"'Risk Assessment Matrix'!C284","v":0},{"$f":"'Risk Assessment Matrix'!D284","v":0}]
[{"$f":"'Risk Assessment Matrix'!A285","v":0},{"$f":"'Risk Assessment Matrix'!C285","v":0},{"$f":"'Risk Assessment Matrix'!D285","v":0}]
[{"$f":"'Risk Assessment Matrix'!A286","v":0},{"$f":"'Risk Assessment Matrix'!C286","v":0},{"$f":"'Risk Assessment Matrix'!D286","v":0}]
[{"$f":"'Risk Assessment Matrix'!A287","v":0},{"$f":"'Risk Assessment Matrix'!C287","v":0},{"$f":"'Risk Assessment Matrix'!D287","v":0}]
[{"$f":"'Risk Assessment Matrix'!A288","v":0},{"$f":"'Risk Assessment Matrix'!C288","v":0},{"$f":"'Risk Assessment Matrix'!D288","v":0}]
[{"$f":"'Risk Assessment Matrix'!A289","v":0},{"$f":"'Risk Assessment Matrix'!C289","v":0},{"$f":"'Risk Assessment Matrix'!D289","v":0}]
[{"$f":"'Risk Assessment Matrix'!A290","v":0},{"$f":"'Risk Assessment Matrix'!C290","v":0},{"$f":"'Risk Assessment Matrix'!D290","v":0}]
[{"$f":"'Risk Assessment Matrix'!A291","v":0},{"$f":"'Risk Assessment Matrix'!C291","v":0},{"$f":"'Risk Assessment Matrix'!D291","v":0}]
[{"$f":"'Risk Assessment Matrix'!A292","v":0},{"$f":"'Risk Assessment Matrix'!C292","v":0},{"$f":"'Risk Assessment Matrix'!D292","v":0}]
[{"$f":"'Risk Assessment Matrix'!A293","v":0},{"$f":"'Risk Assessment Matrix'!C293","v":0},{"$f":"'Risk Assessment Matrix'!D293","v":0}]
[{"$f":"'Risk Assessment Matrix'!A294","v":0},{"$f":"'Risk Assessment Matrix'!C294","v":0},{"$f":"'Risk Assessment Matrix'!D294","v":0}]
[{"$f":"'Risk Assessment Matrix'!A295","v":0},{"$f":"'Risk Assessment Matrix'!C295","v":0},{"$f":"'Risk Assessment Matrix'!D295","v":0}]
[{"$f":"'Risk Assessment Matrix'!A296","v":0},{"$f":"'Risk Assessment Matrix'!C296","v":0},{"$f":"'Risk Assessment Matrix'!D296","v":0}]
[{"$f":"'Risk Assessment Matrix'!A297","v":0},{"$f":"'Risk Assessment Matrix'!C297","v":0},{"$f":"'Risk Assessment Matrix'!D297","v":0}]
[{"$f":"'Risk Assessment Matrix'!A298","v":0},{"$f":"'Risk Assessment Matrix'!C298","v":0},{"$f":"'Risk Assessment Matrix'!D298","v":0}]
[{"$f":"'Risk Assessment Matrix'!A299","v":0},{"$f":"'Risk Assessment Matrix'!C299","v":0},{"$f":"'Risk Assessment Matrix'!D299","v":0}]
[{"$f":"'Risk Assessment Matrix'!A300","v":0},{"$f":"'Risk Assessment Matrix'!C300","v":0},{"$f":"'Risk Assessment Matrix'!D300","v":0}]
[{"$f":"'Risk Assessment Matrix'!A301","v":0},{"$f":"'Risk Assessment Matrix'!C301","v":0},{"$f":"'Risk Assessment Matrix'!D301","v":0}]
[{"$f":"'Risk Assessment Matrix'!A302","v":0},{"$f":"'Risk Assessment Matrix'!C302","v":0},{"$f":"'Risk Assessment Matrix'!D302","v":0}]
[{"$f":"'Risk Assessment Matrix'!A303","v":0},{"$f":"'Risk Assessment Matrix'!C303","v":0},{"$f":"'Risk Assessment Matrix'!D303","v":0}]
[{"$f":"'Risk Assessment Matrix'!A304","v":0},{"$f":"'Risk Assessment Matrix'!C304","v":0},{"$f":"'Risk Assessment Matrix'!D304","v":0}]
[{"$f":"'Risk Assessment Matrix'!A305","v":0},{"$f":"'Risk Assessment Matrix'!C305","v":0},{"$f":"'Risk Assessment Matrix'!D305","v":0}]
[{"$f":"'Risk Assessment Matrix'!A306","v":0},{"$f":"'Risk Assessment Matrix'!C306","v":0},{"$f":"'Risk Assessment Matrix'!D306","v":0}]
[{"$f":"'Risk Assessment Matrix'!A307","v":0},{"$f":"'Risk Assessment Matrix'!C307","v":0},{"$f":"'Risk Assessment Matrix'!D307","v":0}]
[{"$f":"'Risk Assessment Matrix'!A308","v":0},{"$f":"'Risk Assessment Matrix'!C308","v":0},{"$f":"'Risk Assessment Matrix'!D308","v":0}]
[{"$f":"'Risk Assessment Matrix'!A309","v":0},{"$f":"'Risk Assessment Matrix'!C309","v":0},{"$f":"'Risk Assessment Matrix'!D309","v":0}]
[{"$f":"'Risk Assessment Matrix'!A310","v":0},{"$f":"'Risk Assessment Matrix'!C310","v":0},{"$f":"'Risk Assessment Matrix'!D310","v":0}]
[{"$f":"'Risk Assessment Matrix'!A311","v":0},{"$f":"'Risk Assessment Matrix'!C311","v":0},{"$f":"'Risk Assessment Matrix'!D311","v":0}]
[{"$f":"'Risk Assessment Matrix'!A312","v":0},{"$f":"'Risk Assessment Matrix'!C312","v":0},{"$f":"'Risk Assessment Matrix'!D312","v":0}]
[{"$f":"'Risk Assessment Matrix'!A313","v":0},{"$f":"'Risk Assessment Matrix'!C313","v":0},{"$f":"'Risk Assessment Matrix'!D313","v":0}]
[{"$f":"'Risk Assessment Matrix'!A314","v":0},{"$f":"'Risk Assessment Matrix'!C314","v":0},{"$f":"'Risk Assessment Matrix'!D314","v":0}]
[{"$f":"'Risk Assessment Matrix'!A315","v":0},{"$f":"'Risk Assessment Matrix'!C315","v":0},{"$f":"'Risk Assessment Matrix'!D315","v":0}]
[{"$f":"'Risk Assessment Matrix'!A316","v":0},{"$f":"'Risk Assessment Matrix'!C316","v":0},{"$f":"'Risk Assessment Matrix'!D316","v":0}]
[{"$f":"'Risk Assessment Matrix'!A317","v":0},{"$f":"'Risk Assessment Matrix'!C317","v":0},{"$f":"'Risk Assessment Matrix'!D317","v":0}]
[{"$f":"'Risk Assessment Matrix'!A318","v":0},{"$f":"'Risk Assessment Matrix'!C318","v":0},{"$f":"'Risk Assessment Matrix'!D318","v":0}]
[{"$f":"'Risk Assessment Matrix'!A319","v":0},{"$f":"'Risk Assessment Matrix'!C319","v":0},{"$f":"'Risk Assessment Matrix'!D319","v":0}]
[{"$f":"'Risk Assessment Matrix'!A320","v":0},{"$f":"'Risk Assessment Matrix'!C320","v":0},{"$f":"'Risk Assessment Matrix'!D320","v":0}]
[{"$f":"'Risk Assessment Matrix'!A321","v":0},{"$f":"'Risk Assessment Matrix'!C321","v":0},{"$f":"'Risk Assessment Matrix'!D321","v":0}]
[{"$f":"'Risk Assessment Matrix'!A322","v":0},{"$f":"'Risk Assessment Matrix'!C322","v":0},{"$f":"'Risk Assessment Matrix'!D322","v":0}]
[{"$f":"'Risk Assessment Matrix'!A323","v":0},{"$f":"'Risk Assessment Matrix'!C323","v":0},{"$f":"'Risk Assessment Matrix'!D323","v":0}]
[{"$f":"'Risk Assessment Matrix'!A324","v":0},{"$f":"'Risk Assessment Matrix'!C324","v":0},{"$f":"'Risk Assessment Matrix'!D324","v":0}]
[{"$f":"'Risk Assessment Matrix'!A325","v":0},{"$f":"'Risk Assessment Matrix'!C325","v":0},{"$f":"'Risk Assessment Matrix'!D325","v":0}]
[{"$f":"'Risk Assessment Matrix'!A326","v":0},{"$f":"'Risk Assessment Matrix'!C326","v":0},{"$f":"'Risk Assessment Matrix'!D326","v":0}]
[{"$f":"'Risk Assessment Matrix'!A327","v":0},{"$f":"'Risk Assessment Matrix'!C327","v":0},{"$f":"'Risk Assessment Matrix'!D327","v":0}]
[{"$f":"'Risk Assessment Matrix'!A328","v":0},{"$f":"'Risk Assessment Matrix'!C328","v":0},{"$f":"'Risk Assessment Matrix'!D328","v":0}]
[{"$f":"'Risk Assessment Matrix'!A329","v":0},{"$f":"'Risk Assessment Matrix'!C329","v":0},{"$f":"'Risk Assessment Matrix'!D329","v":0}]
[{"$f":"'Risk Assessment Matrix'!A330","v":0},{"$f":"'Risk Assessment Matrix'!C330","v":0},{"$f":"'Risk Assessment Matrix'!D330","v":0}]
[{"$f":"'Risk Assessment Matrix'!A331","v":0},{"$f":"'Risk Assessment Matrix'!C331","v":0},{"$f":"'Risk Assessment Matrix'!D331","v":0}]
[{"$f":"'Risk Assessment Matrix'!A332","v":0},{"$f":"'Risk Assessment Matrix'!C332","v":0},{"$f":"'Risk Assessment Matrix'!D332","v":0}]
[{"$f":"'Risk Assessment Matrix'!A333","v":0},{"$f":"'Risk Assessment Matrix'!C333","v":0},{"$f":"'Risk Assessment Matrix'!D333","v":0}]
[{"$f":"'Risk Assessment Matrix'!A334","v":0},{"$f":"'Risk Assessment Matrix'!C334","v":0},{"$f":"'Risk Assessment Matrix'!D334","v":0}]
[{"$f":"'Risk Assessment Matrix'!A335","v":0},{"$f":"'Risk Assessment Matrix'!C335","v":0},{"$f":"'Risk Assessment Matrix'!D335","v":0}]
[{"$f":"'Risk Assessment Matrix'!A336","v":0},{"$f":"'Risk Assessment Matrix'!C336","v":0},{"$f":"'Risk Assessment Matrix'!D336","v":0}]
[{"$f":"'Risk Assessment Matrix'!A337","v":0},{"$f":"'Risk Assessment Matrix'!C337","v":0},{"$f":"'Risk Assessment Matrix'!D337","v":0}]
[{"$f":"'Risk Assessment Matrix'!A338","v":0},{"$f":"'Risk Assessment Matrix'!C338","v":0},{"$f":"'Risk Assessment Matrix'!D338","v":0}]
[{"$f":"'Risk Assessment Matrix'!A339","v":0},{"$f":"'Risk Assessment Matrix'!C339","v":0},{"$f":"'Risk Assessment Matrix'!D339","v":0}]
[{"$f":"'Risk Assessment Matrix'!A340","v":0},{"$f":"'Risk Assessment Matrix'!C340","v":0},{"$f":"'Risk Assessment Matrix'!D340","v":0}]
[{"$f":"'Risk Assessment Matrix'!A341","v":0},{"$f":"'Risk Assessment Matrix'!C341","v":0},{"$f":"'Risk Assessment Matrix'!D341","v":0}]
[{"$f":"'Risk Assessment Matrix'!A342","v":0},{"$f":"'Risk Assessment Matrix'!C342","v":0},{"$f":"'Risk Assessment Matrix'!D342","v":0}]
[{"$f":"'Risk Assessment Matrix'!A343","v":0},{"$f":"'Risk Assessment Matrix'!C343","v":0},{"$f":"'Risk Assessment Matrix'!D343","v":0}]
[{"$f":"'Risk Assessment Matrix'!A344","v":0},{"$f":"'Risk Assessment Matrix'!C344","v":0},{"$f":"'Risk Assessment Matrix'!D344","v":0}]
[{"$f":"'Risk Assessment Matrix'!A345","v":0},{"$f":"'Risk Assessment Matrix'!C345","v":0},{"$f":"'Risk Assessment Matrix'!D345","v":0}]
[{"$f":"'Risk Assessment Matrix'!A346","v":0},{"$f":"'Risk Assessment Matrix'!C346","v":0},{"$f":"'Risk Assessment Matrix'!D346","v":0}]
[{"$f":"'Risk Assessment Matrix'!A347","v":0},{"$f":"'Risk Assessment Matrix'!C347","v":0},{"$f":"'Risk Assessment Matrix'!D347","v":0}]
[{"$f":"'Risk Assessment Matrix'!A348","v":0},{"$f":"'Risk Assessment Matrix'!C348","v":0},{"$f":"'Risk Assessment Matrix'!D348","v":0}]
[{"$f":"'Risk Assessment Matrix'!A349","v":0},{"$f":"'Risk Assessment Matrix'!C349","v":0},{"$f":"'Risk Assessment Matrix'!D349","v":0}]
[{"$f":"'Risk Assessment Matrix'!A350","v":0},{"$f":"'Risk Assessment Matrix'!C350","v":0},{"$f":"'Risk Assessment Matrix'!D350","v":0}]
[{"$f":"'Risk Assessment Matrix'!A351","v":0},{"$f":"'Risk Assessment Matrix'!C351","v":0},{"$f":"'Risk Assessment Matrix'!D351","v":0}]
[{"$f":"'Risk Assessment Matrix'!A352","v":0},{"$f":"'Risk Assessment Matrix'!C352","v":0},{"$f":"'Risk Assessment Matrix'!D352","v":0}]
[{"$f":"'Risk Assessment Matrix'!A353","v":0},{"$f":"'Risk Assessment Matrix'!C353","v":0},{"$f":"'Risk Assessment Matrix'!D353","v":0}]
[{"$f":"'Risk Assessment Matrix'!A354","v":0},{"$f":"'Risk Assessment Matrix'!C354","v":0},{"$f":"'Risk Assessment Matrix'!D354","v":0}]
[{"$f":"'Risk Assessment Matrix'!A355","v":0},{"$f":"'Risk Assessment Matrix'!C355","v":0},{"$f":"'Risk Assessment Matrix'!D355","v":0}]
[{"$f":"'Risk Assessment Matrix'!A356","v":0},{"$f":"'Risk Assessment Matrix'!C356","v":0},{"$f":"'Risk Assessment Matrix'!D356","v":0}]
[{"$f":"'Risk Assessment Matrix'!A357","v":0},{"$f":"'Risk Assessment Matrix'!C357","v":0},{"$f":"'Risk Assessment Matrix'!D357","v":0}]
[{"$f":"'Risk Assessment Matrix'!A358","v":0},{"$f":"'Risk Assessment Matrix'!C358","v":0},{"$f":"'Risk Assessment Matrix'!D358","v":0}]
[{"$f":"'Risk Assessment Matrix'!A359","v":0},{"$f":"'Risk Assessment Matrix'!C359","v":0},{"$f":"'Risk Assessment Matrix'!D359","v":0}]
[{"$f":"'Risk Assessment Matrix'!A360","v":0},{"$f":"'Risk Assessment Matrix'!C360","v":0},{"$f":"'Risk Assessment Matrix'!D360","v":0}]
[{"$f":"'Risk Assessment Matrix'!A361","v":0},{"$f":"'Risk Assessment Matrix'!C361","v":0},{"$f":"'Risk Assessment Matrix'!D361","v":0}]
[{"$f":"'Risk Assessment Matrix'!A362","v":0},{"$f":"'Risk Assessment Matrix'!C362","v":0},{"$f":"'Risk Assessment Matrix'!D362","v":0}]
[{"$f":"'Risk Assessment Matrix'!A363","v":0},{"$f":"'Risk Assessment Matrix'!C363","v":0},{"$f":"'Risk Assessment Matrix'!D363","v":0}]
[{"$f":"'Risk Assessment Matrix'!A364","v":0},{"$f":"'Risk Assessment Matrix'!C364","v":0},{"$f":"'Risk Assessment Matrix'!D364","v":0}]
[{"$f":"'Risk Assessment Matrix'!A365","v":0},{"$f":"'Risk Assessment Matrix'!C365","v":0},{"$f":"'Risk Assessment Matrix'!D365","v":0}]
[{"$f":"'Risk Assessment Matrix'!A366","v":0},{"$f":"'Risk Assessment Matrix'!C366","v":0},{"$f":"'Risk Assessment Matrix'!D366","v":0}]
[{"$f":"'Risk Assessment Matrix'!A367","v":0},{"$f":"'Risk Assessment Matrix'!C367","v":0},{"$f":"'Risk Assessment Matrix'!D367","v":0}]
[{"$f":"'Risk Assessment Matrix'!A368","v":0},{"$f":"'Risk Assessment Matrix'!C368","v":0},{"$f":"'Risk Assessment Matrix'!D368","v":0}]
[{"$f":"'Risk Assessment Matrix'!A369","v":0},{"$f":"'Risk Assessment Matrix'!C369","v":0},{"$f":"'Risk Assessment Matrix'!D369","v":0}]
[{"$f":"'Risk Assessment Matrix'!A370","v":0},{"$f":"'Risk Assessment Matrix'!C370","v":0},{"$f":"'Risk Assessment Matrix'!D370","v":0}]
[{"$f":"'Risk Assessment Matrix'!A371","v":0},{"$f":"'Risk Assessment Matrix'!C371","v":0},{"$f":"'Risk Assessment Matrix'!D371","v":0}]
[{"$f":"'Risk Assessment Matrix'!A372","v":0},{"$f":"'Risk Assessment Matrix'!C372","v":0},{"$f":"'Risk Assessment Matrix'!D372","v":0}]
[{"$f":"'Risk Assessment Matrix'!A373","v":0},{"$f":"'Risk Assessment Matrix'!C373","v":0},{"$f":"'Risk Assessment Matrix'!D373","v":0}]
[{"$f":"'Risk Assessment Matrix'!A374","v":0},{"$f":"'Risk Assessment Matrix'!C374","v":0},{"$f":"'Risk Assessment Matrix'!D374","v":0}]
[{"$f":"'Risk Assessment Matrix'!A375","v":0},{"$f":"'Risk Assessment Matrix'!C375","v":0},{"$f":"'Risk Assessment Matrix'!D375","v":0}]
[{"$f":"'Risk Assessment Matrix'!A376","v":0},{"$f":"'Risk Assessment Matrix'!C376","v":0},{"$f":"'Risk Assessment Matrix'!D376","v":0}]
[{"$f":"'Risk Assessment Matrix'!A377","v":0},{"$f":"'Risk Assessment Matrix'!C377","v":0},{"$f":"'Risk Assessment Matrix'!D377","v":0}]
[{"$f":"'Risk Assessment Matrix'!A378","v":0},{"$f":"'Risk Assessment Matrix'!C378","v":0},{"$f":"'Risk Assessment Matrix'!D378","v":0}]
[{"$f":"'Risk Assessment Matrix'!A379","v":0},{"$f":"'Risk Assessment Matrix'!C379","v":0},{"$f":"'Risk Assessment Matrix'!D379","v":0}]
[{"$f":"'Risk Assessment Matrix'!A380","v":0},{"$f":"'Risk Assessment Matrix'!C380","v":0},{"$f":"'Risk Assessment Matrix'!D380","v":0}]
[{"$f":"'Risk Assessment Matrix'!A381","v":0},{"$f":"'Risk Assessment Matrix'!C381","v":0},{"$f":"'Risk Assessment Matrix'!D381","v":0}]
[{"$f":"'Risk Assessment Matrix'!A382","v":0},{"$f":"'Risk Assessment Matrix'!C382","v":0},{"$f":"'Risk Assessment Matrix'!D382","v":0}]
[{"$f":"'Risk Assessment Matrix'!A383","v":0},{"$f":"'Risk Assessment Matrix'!C383","v":0},{"$f":"'Risk Assessment Matrix'!D383","v":0}]
[{"$f":"'Risk Assessment Matrix'!A384","v":0},{"$f":"'Risk Assessment Matrix'!C384","v":0},{"$f":"'Risk Assessment Matrix'!D384","v":0}]
[{"$f":"'Risk Assessment Matrix'!A385","v":0},{"$f":"'Risk Assessment Matrix'!C385","v":0},{"$f":"'Risk Assessment Matrix'!D385","v":0}]
[{"$f":"'Risk Assessment Matrix'!A386","v":0},{"$f":"'Risk Assessment Matrix'!C386","v":0},{"$f":"'Risk Assessment Matrix'!D386","v":0}]
[{"$f":"'Risk Assessment Matrix'!A387","v":0},{"$f":"'Risk Assessment Matrix'!C387","v":0},{"$f":"'Risk Assessment Matrix'!D387","v":0}]
[{"$f":"'Risk Assessment Matrix'!A388","v":0},{"$f":"'Risk Assessment Matrix'!C388","v":0},{"$f":"'Risk Assessment Matrix'!D388","v":0}]
[{"$f":"'Risk Assessment Matrix'!A389","v":0},{"$f":"'Risk Assessment Matrix'!C389","v":0},{"$f":"'Risk Assessment Matrix'!D389","v":0}]
[{"$f":"'Risk Assessment Matrix'!A390","v":0},{"$f":"'Risk Assessment Matrix'!C390","v":0},{"$f":"'Risk Assessment Matrix'!D390","v":0}]
[{"$f":"'Risk Assessment Matrix'!A391","v":0},{"$f":"'Risk Assessment Matrix'!C391","v":0},{"$f":"'Risk Assessment Matrix'!D391","v":0}]
[{"$f":"'Risk Assessment Matrix'!A392","v":0},{"$f":"'Risk Assessment Matrix'!C392","v":0},{"$f":"'Risk Assessment Matrix'!D392","v":0}]
[{"$f":"'Risk Assessment Matrix'!A393","v":0},{"$f":"'Risk Assessment Matrix'!C393","v":0},{"$f":"'Risk Assessment Matrix'!D393","v":0}]
[{"$f":"'Risk Assessment Matrix'!A394","v":0},{"$f":"'Risk Assessment Matrix'!C394","v":0},{"$f":"'Risk Assessment Matrix'!D394","v":0}]
[{"$f":"'Risk Assessment Matrix'!A395","v":0},{"$f":"'Risk Assessment Matrix'!C395","v":0},{"$f":"'Risk Assessment Matrix'!D395","v":0}]
[{"$f":"'Risk Assessment Matrix'!A396","v":0},{"$f":"'Risk Assessment Matrix'!C396","v":0},{"$f":"'Risk Assessment Matrix'!D396","v":0}]
[{"$f":"'Risk Assessment Matrix'!A397","v":0},{"$f":"'Risk Assessment Matrix'!C397","v":0},{"$f":"'Risk Assessment Matrix'!D397","v":0}]
[{"$f":"'Risk Assessment Matrix'!A398","v":0},{"$f":"'Risk Assessment Matrix'!C398","v":0},{"$f":"'Risk Assessment Matrix'!D398","v":0}]
[{"$f":"'Risk Assessment Matrix'!A399","v":0},{"$f":"'Risk Assessment Matrix'!C399","v":0},{"$f":"'Risk Assessment Matrix'!D399","v":0}]
[{"$f":"'Risk Assessment Matrix'!A400","v":0},{"$f":"'Risk Assessment Matrix'!C400","v":0},{"$f":"'Risk Assessment Matrix'!D400","v":0}]

{"sheet":"Fraud Risk Ranking","index":6,"n_rows":400,"n_cols":6,"rows_kept":400,"cut":false,"hidden":false,"merged":[[0,0,0,5]]}
["Fraud Risk Ranking"]
[]
["ID Number","Identified Fraud Risks and Schemes","Likelihood [1-5]","Significance [1-5]","Fraud Risk Score","Response Plan"]
[{"$f":"'Risk Assessment Matrix'!A4","v":123},{"$f":"'Risk Assessment Matrix'!B4","v":"Cash"},{"$f":"'Risk Assessment Matrix'!C4","v":4},{"$f":"'Risk Assessment Matrix'!D4","v":4},{"$f":"C4*D4","v":16}]
[{"$f":"'Risk Assessment Matrix'!A5","v":0},{"$f":"'Risk Assessment Matrix'!B5","v":0},{"$f":"'Risk Assessment Matrix'!C5","v":0},{"$f":"'Risk Assessment Matrix'!D5","v":0},0]
[{"$f":"'Risk Assessment Matrix'!A6","v":0},{"$f":"'Risk Assessment Matrix'!B6","v":0},{"$f":"'Risk Assessment Matrix'!C6","v":0},{"$f":"'Risk Assessment Matrix'!D6","v":0},0]
[{"$f":"'Risk Assessment Matrix'!A11","v":0},{"$f":"'Risk Assessment Matrix'!B11","v":0},{"$f":"'Risk Assessment Matrix'!C11","v":0},{"$f":"'Risk Assessment Matrix'!D11","v":0},0]
[{"$f":"'Risk Assessment Matrix'!A10","v":0},{"$f":"'Risk Assessment Matrix'!B10","v":0},{"$f":"'Risk Assessment Matrix'!C10","v":0},{"$f":"'Risk Assessment Matrix'!D10","v":0},0]
[{"$f":"'Risk Assessment Matrix'!A13","v":0},{"$f":"'Risk Assessment Matrix'!B13","v":0},{"$f":"'Risk Assessment Matrix'!C13","v":0},{"$f":"'Risk Assessment Matrix'!D13","v":0},0]
[{"$f":"'Risk Assessment Matrix'!A7","v":0},{"$f":"'Risk Assessment Matrix'!B7","v":0},{"$f":"'Risk Assessment Matrix'!C7","v":0},{"$f":"'Risk Assessment Matrix'!D7","v":0},0]
[{"$f":"'Risk Assessment Matrix'!A8","v":0},{"$f":"'Risk Assessment Matrix'!B8","v":0},{"$f":"'Risk Assessment Matrix'!C8","v":0},{"$f":"'Risk Assessment Matrix'!D8","v":0},0]
[{"$f":"'Risk Assessment Matrix'!A9","v":0},{"$f":"'Risk Assessment Matrix'!B9","v":0},{"$f":"'Risk Assessment Matrix'!C9","v":0},{"$f":"'Risk Assessment Matrix'!D9","v":0},0]
[{"$f":"'Risk Assessment Matrix'!A12","v":0},{"$f":"'Risk Assessment Matrix'!B12","v":0},{"$f":"'Risk Assessment Matrix'!C12","v":0},{"$f":"'Risk Assessment Matrix'!D12","v":0},0]
[{"$f":"'Risk Assessment Matrix'!A14","v":0},{"$f":"'Risk Assessment Matrix'!B14","v":0},{"$f":"'Risk Assessment Matrix'!C14","v":0},{"$f":"'Risk Assessment Matrix'!D14","v":0},0]
[{"$f":"'Risk Assessment Matrix'!A15","v":0},{"$f":"'Risk Assessment Matrix'!B15","v":0},{"$f":"'Risk Assessment Matrix'!C15","v":0},{"$f":"'Risk Assessment Matrix'!D15","v":0},0]
[{"$f":"'Risk Assessment Matrix'!A16","v":0},{"$f":"'Risk Assessment Matrix'!B16","v":0},{"$f":"'Risk Assessment Matrix'!C16","v":0},{"$f":"'Risk Assessment Matrix'!D16","v":0},0]
[{"$f":"'Risk Assessment Matrix'!A17","v":0},{"$f":"'Risk Assessment Matrix'!B17","v":0},{"$f":"'Risk Assessment Matrix'!C17","v":0},{"$f":"'Risk Assessment Matrix'!D17","v":0},0]
[{"$f":"'Risk Assessment Matrix'!A18","v":0},{"$f":"'Risk Assessment Matrix'!B18","v":0},{"$f":"'Risk Assessment Matrix'!C18","v":0},{"$f":"'Risk Assessment Matrix'!D18","v":0},0]
[{"$f":"'Risk Assessment Matrix'!A19","v":0},{"$f":"'Risk Assessment Matrix'!B19","v":0},{"$f":"'Risk Assessment Matrix'!C19","v":0},{"$f":"'Risk Assessment Matrix'!D19","v":0},0]
[{"$f":"'Risk Assessment Matrix'!A20","v":0},{"$f":"'Risk Assessment Matrix'!B20","v":0},{"$f":"'Risk Assessment Matrix'!C20","v":0},{"$f":"'Risk Assessment Matrix'!D20","v":0},0]
[{"$f":"'Risk Assessment Matrix'!A21","v":0},{"$f":"'Risk Assessment Matrix'!B21","v":0},{"$f":"'Risk Assessment Matrix'!C21","v":0},{"$f":"'Risk Assessment Matrix'!D21","v":0},0]
[{"$f":"'Risk Assessment Matrix'!A22","v":0},{"$f":"'Risk Assessment Matrix'!B22","v":0},{"$f":"'Risk Assessment Matrix'!C22","v":0},{"$f":"'Risk Assessment Matrix'!D22","v":0},0]
[{"$f":"'Risk Assessment Matrix'!A23","v":0},{"$f":"'Risk Assessment Matrix'!B23","v":0},{"$f":"'Risk Assessment Matrix'!C23","v":0},{"$f":"'Risk Assessment Matrix'!D23","v":0},0]
[{"$f":"'Risk Assessment Matrix'!A24","v":0},{"$f":"'Risk Assessment Matrix'!B24","v":0},{"$f":"'Risk Assessment Matrix'!C24","v":0},{"$f":"'Risk Assessment Matrix'!D24","v":0},0]
[{"$f":"'Risk Assessment Matrix'!A25","v":0},{"$f":"'Risk Assessment Matrix'!B25","v":0},{"$f":"'Risk Assessment Matrix'!C25","v":0},{"$f":"'Risk Assessment Matrix'!D25","v":0},0]
[{"$f":"'Risk Assessment Matrix'!A26","v":0},{"$f":"'Risk Assessment Matrix'!B26","v":0},{"$f":"'Risk Assessment Matrix'!C26","v":0},{"$f":"'Risk Assessment Matrix'!D26","v":0},0]
[{"$f":"'Risk Assessment Matrix'!A27","v":0},{"$f":"'Risk Assessment Matrix'!B27","v":0},{"$f":"'Risk Assessment Matrix'!C27","v":0},{"$f":"'Risk Assessment Matrix'!D27","v":0},0]
[{"$f":"'Risk Assessment Matrix'!A28","v":0},{"$f":"'Risk Assessment Matrix'!B28","v":0},{"$f":"'Risk Assessment Matrix'!C28","v":0},{"$f":"'Risk Assessment Matrix'!D28","v":0},0]
[{"$f":"'Risk Assessment Matrix'!A29","v":0},{"$f":"'Risk Assessment Matrix'!B29","v":0},{"$f":"'Risk Assessment Matrix'!C29","v":0},{"$f":"'Risk Assessment Matrix'!D29","v":0},0]
[{"$f":"'Risk Assessment Matrix'!A30","v":0},{"$f":"'Risk Assessment Matrix'!B30","v":0},{"$f":"'Risk Assessment Matrix'!C30","v":0},{"$f":"'Risk Assessment Matrix'!D30","v":0},0]
[{"$f":"'Risk Assessment Matrix'!A31","v":0},{"$f":"'Risk Assessment Matrix'!B31","v":0},{"$f":"'Risk Assessment Matrix'!C31","v":0},{"$f":"'Risk Assessment Matrix'!D31","v":0},0]
[{"$f":"'Risk Assessment Matrix'!A32","v":0},{"$f":"'Risk Assessment Matrix'!B32","v":0},{"$f":"'Risk Assessment Matrix'!C32","v":0},{"$f":"'Risk Assessment Matrix'!D32","v":0},0]
[{"$f":"'Risk Assessment Matrix'!A33","v":0},{"$f":"'Risk Assessment Matrix'!B33","v":0},{"$f":"'Risk Assessment Matrix'!C33","v":0},{"$f":"'Risk Assessment Matrix'!D33","v":0},0]
[{"$f":"'Risk Assessment Matrix'!A34","v":0},{"$f":"'Risk Assessment Matrix'!B34","v":0},{"$f":"'Risk Assessment Matrix'!C34","v":0},{"$f":"'Risk Assessment Matrix'!D34","v":0},0]
[{"$f":"'Risk Assessment Matrix'!A35","v":0},{"$f":"'Risk Assessment Matrix'!B35","v":0},{"$f":"'Risk Assessment Matrix'!C35","v":0},{"$f":"'Risk Assessment Matrix'!D35","v":0},0]
[{"$f":"'Risk Assessment Matrix'!A36","v":0},{"$f":"'Risk Assessment Matrix'!B36","v":0},{"$f":"'Risk Assessment Matrix'!C36","v":0},{"$f":"'Risk Assessment Matrix'!D36","v":0},0]
[{"$f":"'Risk Assessment Matrix'!A37","v":0},{"$f":"'Risk Assessment Matrix'!B37","v":0},{"$f":"'Risk Assessment Matrix'!C37","v":0},{"$f":"'Risk Assessment Matrix'!D37","v":0},0]
[{"$f":"'Risk Assessment Matrix'!A38","v":0},{"$f":"'Risk Assessment Matrix'!B38","v":0},{"$f":"'Risk Assessment Matrix'!C38","v":0},{"$f":"'Risk Assessment Matrix'!D38","v":0},0]
[{"$f":"'Risk Assessment Matrix'!A39","v":0},{"$f":"'Risk Assessment Matrix'!B39","v":0},{"$f":"'Risk Assessment Matrix'!C39","v":0},{"$f":"'Risk Assessment Matrix'!D39","v":0},0]
[{"$f":"'Risk Assessment Matrix'!A40","v":0},{"$f":"'Risk Assessment Matrix'!B40","v":0},{"$f":"'Risk Assessment Matrix'!C40","v":0},{"$f":"'Risk Assessment Matrix'!D40","v":0},0]
[{"$f":"'Risk Assessment Matrix'!A41","v":0},{"$f":"'Risk Assessment Matrix'!B41","v":0},{"$f":"'Risk Assessment Matrix'!C41","v":0},{"$f":"'Risk Assessment Matrix'!D41","v":0},0]
[{"$f":"'Risk Assessment Matrix'!A42","v":0},{"$f":"'Risk Assessment Matrix'!B42","v":0},{"$f":"'Risk Assessment Matrix'!C42","v":0},{"$f":"'Risk Assessment Matrix'!D42","v":0},0]
[{"$f":"'Risk Assessment Matrix'!A43","v":0},{"$f":"'Risk Assessment Matrix'!B43","v":0},{"$f":"'Risk Assessment Matrix'!C43","v":0},{"$f":"'Risk Assessment Matrix'!D43","v":0},0]
[{"$f":"'Risk Assessment Matrix'!A44","v":0},{"$f":"'Risk Assessment Matrix'!B44","v":0},{"$f":"'Risk Assessment Matrix'!C44","v":0},{"$f":"'Risk Assessment Matrix'!D44","v":0},0]
[{"$f":"'Risk Assessment Matrix'!A45","v":0},{"$f":"'Risk Assessment Matrix'!B45","v":0},{"$f":"'Risk Assessment Matrix'!C45","v":0},{"$f":"'Risk Assessment Matrix'!D45","v":0},0]
[{"$f":"'Risk Assessment Matrix'!A46","v":0},{"$f":"'Risk Assessment Matrix'!B46","v":0},{"$f":"'Risk Assessment Matrix'!C46","v":0},{"$f":"'Risk Assessment Matrix'!D46","v":0},0]
[{"$f":"'Risk Assessment Matrix'!A47","v":0},{"$f":"'Risk Assessment Matrix'!B47","v":0},{"$f":"'Risk Assessment Matrix'!C47","v":0},{"$f":"'Risk Assessment Matrix'!D47","v":0},0]
[{"$f":"'Risk Assessment Matrix'!A48","v":0},{"$f":"'Risk Assessment Matrix'!B48","v":0},{"$f":"'Risk Assessment Matrix'!C48","v":0},{"$f":"'Risk Assessment Matrix'!D48","v":0},0]
[{"$f":"'Risk Assessment Matrix'!A49","v":0},{"$f":"'Risk Assessment Matrix'!B49","v":0},{"$f":"'Risk Assessment Matrix'!C49","v":0},{"$f":"'Risk Assessment Matrix'!D49","v":0},0]
[{"$f":"'Risk Assessment Matrix'!A50","v":0},{"$f":"'Risk Assessment Matrix'!B50","v":0},{"$f":"'Risk Assessment Matrix'!C50","v":0},{"$f":"'Risk Assessment Matrix'!D50","v":0},0]
[{"$f":"'Risk Assessment Matrix'!A51","v":0},{"$f":"'Risk Assessment Matrix'!B51","v":0},{"$f":"'Risk Assessment Matrix'!C51","v":0},{"$f":"'Risk Assessment Matrix'!D51","v":0},0]
[{"$f":"'Risk Assessment Matrix'!A52","v":0},{"$f":"'Risk Assessment Matrix'!B52","v":0},{"$f":"'Risk Assessment Matrix'!C52","v":0},{"$f":"'Risk Assessment Matrix'!D52","v":0},0]
[{"$f":"'Risk Assessment Matrix'!A53","v":0},{"$f":"'Risk Assessment Matrix'!B53","v":0},{"$f":"'Risk Assessment Matrix'!C53","v":0},{"$f":"'Risk Assessment Matrix'!D53","v":0},0]
[{"$f":"'Risk Assessment Matrix'!A54","v":0},{"$f":"'Risk Assessment Matrix'!B54","v":0},{"$f":"'Risk Assessment Matrix'!C54","v":0},{"$f":"'Risk Assessment Matrix'!D54","v":0},0]
[{"$f":"'Risk Assessment Matrix'!A55","v":0},{"$f":"'Risk Assessment Matrix'!B55","v":0},{"$f":"'Risk Assessment Matrix'!C55","v":0},{"$f":"'Risk Assessment Matrix'!D55","v":0},0]
[{"$f":"'Risk Assessment Matrix'!A56","v":0},{"$f":"'Risk Assessment Matrix'!B56","v":0},{"$f":"'Risk Assessment Matrix'!C56","v":0},{"$f":"'Risk Assessment Matrix'!D56","v":0},0]
[{"$f":"'Risk Assessment Matrix'!A57","v":0},{"$f":"'Risk Assessment Matrix'!B57","v":0},{"$f":"'Risk Assessment Matrix'!C57","v":0},{"$f":"'Risk Assessment Matrix'!D57","v":0},0]
[{"$f":"'Risk Assessment Matrix'!A58","v":0},{"$f":"'Risk Assessment Matrix'!B58","v":0},{"$f":"'Risk Assessment Matrix'!C58","v":0},{"$f":"'Risk Assessment Matrix'!D58","v":0},0]
[{"$f":"'Risk Assessment Matrix'!A59","v":0},{"$f":"'Risk Assessment Matrix'!B59","v":0},{"$f":"'Risk Assessment Matrix'!C59","v":0},{"$f":"'Risk Assessment Matrix'!D59","v":0},0]
[{"$f":"'Risk Assessment Matrix'!A60","v":0},{"$f":"'Risk Assessment Matrix'!B60","v":0},{"$f":"'Risk Assessment Matrix'!C60","v":0},{"$f":"'Risk Assessment Matrix'!D60","v":0},0]
[{"$f":"'Risk Assessment Matrix'!A61","v":0},{"$f":"'Risk Assessment Matrix'!B61","v":0},{"$f":"'Risk Assessment Matrix'!C61","v":0},{"$f":"'Risk Assessment Matrix'!D61","v":0},0]
[{"$f":"'Risk Assessment Matrix'!A62","v":0},{"$f":"'Risk Assessment Matrix'!B62","v":0},{"$f":"'Risk Assessment Matrix'!C62","v":0},{"$f":"'Risk Assessment Matrix'!D62","v":0},0]
[{"$f":"'Risk Assessment Matrix'!A63","v":0},{"$f":"'Risk Assessment Matrix'!B63","v":0},{"$f":"'Risk Assessment Matrix'!C63","v":0},{"$f":"'Risk Assessment Matrix'!D63","v":0},0]
[{"$f":"'Risk Assessment Matrix'!A64","v":0},{"$f":"'Risk Assessment Matrix'!B64","v":0},{"$f":"'Risk Assessment Matrix'!C64","v":0},{"$f":"'Risk Assessment Matrix'!D64","v":0},0]
[{"$f":"'Risk Assessment Matrix'!A65","v":0},{"$f":"'Risk Assessment Matrix'!B65","v":0},{"$f":"'Risk Assessment Matrix'!C65","v":0},{"$f":"'Risk Assessment Matrix'!D65","v":0},0]
[{"$f":"'Risk Assessment Matrix'!A66","v":0},{"$f":"'Risk Assessment Matrix'!B66","v":0},{"$f":"'Risk Assessment Matrix'!C66","v":0},{"$f":"'Risk Assessment Matrix'!D66","v":0},0]
[{"$f":"'Risk Assessment Matrix'!A67","v":0},{"$f":"'Risk Assessment Matrix'!B67","v":0},{"$f":"'Risk Assessment Matrix'!C67","v":0},{"$f":"'Risk Assessment Matrix'!D67","v":0},0]
[{"$f":"'Risk Assessment Matrix'!A68","v":0},{"$f":"'Risk Assessment Matrix'!B68","v":0},{"$f":"'Risk Assessment Matrix'!C68","v":0},{"$f":"'Risk Assessment Matrix'!D68","v":0},{"$f":"C68*D68","v":0}]
[{"$f":"'Risk Assessment Matrix'!A69","v":0},{"$f":"'Risk Assessment Matrix'!B69","v":0},{"$f":"'Risk Assessment Matrix'!C69","v":0},{"$f":"'Risk Assessment Matrix'!D69","v":0},0]
[{"$f":"'Risk Assessment Matrix'!A70","v":0},{"$f":"'Risk Assessment Matrix'!B70","v":0},{"$f":"'Risk Assessment Matrix'!C70","v":0},{"$f":"'Risk Assessment Matrix'!D70","v":0},0]
[{"$f":"'Risk Assessment Matrix'!A71","v":0},{"$f":"'Risk Assessment Matrix'!B71","v":0},{"$f":"'Risk Assessment Matrix'!C71","v":0},{"$f":"'Risk Assessment Matrix'!D71","v":0},0]
[{"$f":"'Risk Assessment Matrix'!A72","v":0},{"$f":"'Risk Assessment Matrix'!B72","v":0},{"$f":"'Risk Assessment Matrix'!C72","v":0},{"$f":"'Risk Assessment Matrix'!D72","v":0},0]
[{"$f":"'Risk Assessment Matrix'!A73","v":0},{"$f":"'Risk Assessment Matrix'!B73","v":0},{"$f":"'Risk Assessment Matrix'!C73","v":0},{"$f":"'Risk Assessment Matrix'!D73","v":0},0]
[{"$f":"'Risk Assessment Matrix'!A74","v":0},{"$f":"'Risk Assessment Matrix'!B74","v":0},{"$f":"'Risk Assessment Matrix'!C74","v":0},{"$f":"'Risk Assessment Matrix'!D74","v":0},0]
[{"$f":"'Risk Assessment Matrix'!A75","v":0},{"$f":"'Risk Assessment Matrix'!B75","v":0},{"$f":"'Risk Assessment Matrix'!C75","v":0},{"$f":"'Risk Assessment Matrix'!D75","v":0},0]
[{"$f":"'Risk Assessment Matrix'!A76","v":0},{"$f":"'Risk Assessment Matrix'!B76","v":0},{"$f":"'Risk Assessment Matrix'!C76","v":0},{"$f":"'Risk Assessment Matrix'!D76","v":0},0]
[{"$f":"'Risk Assessment Matrix'!A77","v":0},{"$f":"'Risk Assessment Matrix'!B77","v":0},{"$f":"'Risk Assessment Matrix'!C77","v":0},{"$f":"'Risk Assessment Matrix'!D77","v":0},0]
[{"$f":"'Risk Assessment Matrix'!A78","v":0},{"$f":"'Risk Assessment Matrix'!B78","v":0},{"$f":"'Risk Assessment Matrix'!C78","v":0},{"$f":"'Risk Assessment Matrix'!D78","v":0},0]
[{"$f":"'Risk Assessment Matrix'!A79","v":0},{"$f":"'Risk Assessment Matrix'!B79","v":0},{"$f":"'Risk Assessment Matrix'!C79","v":0},{"$f":"'Risk Assessment Matrix'!D79","v":0},0]
[{"$f":"'Risk Assessment Matrix'!A80","v":0},{"$f":"'Risk Assessment Matrix'!B80","v":0},{"$f":"'Risk Assessment Matrix'!C80","v":0},{"$f":"'Risk Assessment Matrix'!D80","v":0},0]
[{"$f":"'Risk Assessment Matrix'!A81","v":0},{"$f":"'Risk Assessment Matrix'!B81","v":0},{"$f":"'Risk Assessment Matrix'!C81","v":0},{"$f":"'Risk Assessment Matrix'!D81","v":0},0]
[{"$f":"'Risk Assessment Matrix'!A82","v":0},{"$f":"'Risk Assessment Matrix'!B82","v":0},{"$f":"'Risk Assessment Matrix'!C82","v":0},{"$f":"'Risk Assessment Matrix'!D82","v":0},0]
[{"$f":"'Risk Assessment Matrix'!A83","v":0},{"$f":"'Risk Assessment Matrix'!B83","v":0},{"$f":"'Risk Assessment Matrix'!C83","v":0},{"$f":"'Risk Assessment Matrix'!D83","v":0},0]
[{"$f":"'Risk Assessment Matrix'!A84","v":0},{"$f":"'Risk Assessment Matrix'!B84","v":0},{"$f":"'Risk Assessment Matrix'!C84","v":0},{"$f":"'Risk Assessment Matrix'!D84","v":0},0]
[{"$f":"'Risk Assessment Matrix'!A85","v":0},{"$f":"'Risk Assessment Matrix'!B85","v":0},{"$f":"'Risk Assessment Matrix'!C85","v":0},{"$f":"'Risk Assessment Matrix'!D85","v":0},0]
[{"$f":"'Risk Assessment Matrix'!A86","v":0},{"$f":"'Risk Assessment Matrix'!B86","v":0},{"$f":"'Risk Assessment Matrix'!C86","v":0},{"$f":"'Risk Assessment Matrix'!D86","v":0},0]
[{"$f":"'Risk Assessment Matrix'!A87","v":0},{"$f":"'Risk Assessment Matrix'!B87","v":0},{"$f":"'Risk Assessment Matrix'!C87","v":0},{"$f":"'Risk Assessment Matrix'!D87","v":0},0]
[{"$f":"'Risk Assessment Matrix'!A88","v":0},{"$f":"'Risk Assessment Matrix'!B88","v":0},{"$f":"'Risk Assessment Matrix'!C88","v":0},{"$f":"'Risk Assessment Matrix'!D88","v":0},0]
[{"$f":"'Risk Assessment Matrix'!A89","v":0},{"$f":"'Risk Assessment Matrix'!B89","v":0},{"$f":"'Risk Assessment Matrix'!C89","v":0},{"$f":"'Risk Assessment Matrix'!D89","v":0},0]
[{"$f":"'Risk Assessment Matrix'!A90","v":0},{"$f":"'Risk Assessment Matrix'!B90","v":0},{"$f":"'Risk Assessment Matrix'!C90","v":0},{"$f":"'Risk Assessment Matrix'!D90","v":0},0]
[{"$f":"'Risk Assessment Matrix'!A91","v":0},{"$f":"'Risk Assessment Matrix'!B91","v":0},{"$f":"'Risk Assessment Matrix'!C91","v":0},{"$f":"'Risk Assessment Matrix'!D91","v":0},0]
[{"$f":"'Risk Assessment Matrix'!A92","v":0},{"$f":"'Risk Assessment Matrix'!B92","v":0},{"$f":"'Risk Assessment Matrix'!C92","v":0},{"$f":"'Risk Assessment Matrix'!D92","v":0},0]
[{"$f":"'Risk Assessment Matrix'!A93","v":0},{"$f":"'Risk Assessment Matrix'!B93","v":0},{"$f":"'Risk Assessment Matrix'!C93","v":0},{"$f":"'Risk Assessment Matrix'!D93","v":0},0]
[{"$f":"'Risk Assessment Matrix'!A94","v":0},{"$f":"'Risk Assessment Matrix'!B94","v":0},{"$f":"'Risk Assessment Matrix'!C94","v":0},{"$f":"'Risk Assessment Matrix'!D94","v":0},0]
[{"$f":"'Risk Assessment Matrix'!A95","v":0},{"$f":"'Risk Assessment Matrix'!B95","v":0},{"$f":"'Risk Assessment Matrix'!C95","v":0},{"$f":"'Risk Assessment Matrix'!D95","v":0},0]
[{"$f":"'Risk Assessment Matrix'!A96","v":0},{"$f":"'Risk Assessment Matrix'!B96","v":0},{"$f":"'Risk Assessment Matrix'!C96","v":0},{"$f":"'Risk Assessment Matrix'!D96","v":0},0]
[{"$f":"'Risk Assessment Matrix'!A97","v":0},{"$f":"'Risk Assessment Matrix'!B97","v":0},{"$f":"'Risk Assessment Matrix'!C97","v":0},{"$f":"'Risk Assessment Matrix'!D97","v":0},0]
[{"$f":"'Risk Assessment Matrix'!A98","v":0},{"$f":"'Risk Assessment Matrix'!B98","v":0},{"$f":"'Risk Assessment Matrix'!C98","v":0},{"$f":"'Risk Assessment Matrix'!D98","v":0},0]
[{"$f":"'Risk Assessment Matrix'!A99","v":0},{"$f":"'Risk Assessment Matrix'!B99","v":0},{"$f":"'Risk Assessment Matrix'!C99","v":0},{"$f":"'Risk Assessment Matrix'!D99","v":0},0]
[{"$f":"'Risk Assessment Matrix'!A100","v":0},{"$f":"'Risk Assessment Matrix'!B100","v":0},{"$f":"'Risk Assessment Matrix'!C100","v":0},{"$f":"'Risk Assessment Matrix'!D100","v":0},0]
[{"$f":"'Risk Assessment Matrix'!A101","v":0},{"$f":"'Risk Assessment Matrix'!B101","v":0},{"$f":"'Risk Assessment Matrix'!C101","v":0},{"$f":"'Risk Assessment Matrix'!D101","v":0},0]
[{"$f":"'Risk Assessment Matrix'!A102","v":0},{"$f":"'Risk Assessment Matrix'!B102","v":0},{"$f":"'Risk Assessment Matrix'!C102","v":0},{"$f":"'Risk Assessment Matrix'!D102","v":0},0]
[{"$f":"'Risk Assessment Matrix'!A103","v":0},{"$f":"'Risk Assessment Matrix'!B103","v":0},{"$f":"'Risk Assessment Matrix'!C103","v":0},{"$f":"'Risk Assessment Matrix'!D103","v":0},0]
[{"$f":"'Risk Assessment Matrix'!A104","v":0},{"$f":"'Risk Assessment Matrix'!B104","v":0},{"$f":"'Risk Assessment Matrix'!C104","v":0},{"$f":"'Risk Assessment Matrix'!D104","v":0},0]
[{"$f":"'Risk Assessment Matrix'!A105","v":0},{"$f":"'Risk Assessment Matrix'!B105","v":0},{"$f":"'Risk Assessment Matrix'!C105","v":0},{"$f":"'Risk Assessment Matrix'!D105","v":0},0]
[{"$f":"'Risk Assessment Matrix'!A106","v":0},{"$f":"'Risk Assessment Matrix'!B106","v":0},{"$f":"'Risk Assessment Matrix'!C106","v":0},{"$f":"'Risk Assessment Matrix'!D106","v":0},0]
[{"$f":"'Risk Assessment Matrix'!A107","v":0},{"$f":"'Risk Assessment Matrix'!B107","v":0},{"$f":"'Risk Assessment Matrix'!C107","v":0},{"$f":"'Risk Assessment Matrix'!D107","v":0},0]
[{"$f":"'Risk Assessment Matrix'!A108","v":0},{"$f":"'Risk Assessment Matrix'!B108","v":0},{"$f":"'Risk Assessment Matrix'!C108","v":0},{"$f":"'Risk Assessment Matrix'!D108","v":0},0]
[{"$f":"'Risk Assessment Matrix'!A109","v":0},{"$f":"'Risk Assessment Matrix'!B109","v":0},{"$f":"'Risk Assessment Matrix'!C109","v":0},{"$f":"'Risk Assessment Matrix'!D109","v":0},0]
[{"$f":"'Risk Assessment Matrix'!A110","v":0},{"$f":"'Risk Assessment Matrix'!B110","v":0},{"$f":"'Risk Assessment Matrix'!C110","v":0},{"$f":"'Risk Assessment Matrix'!D110","v":0},0]
[{"$f":"'Risk Assessment Matrix'!A111","v":0},{"$f":"'Risk Assessment Matrix'!B111","v":0},{"$f":"'Risk Assessment Matrix'!C111","v":0},{"$f":"'Risk Assessment Matrix'!D111","v":0},0]
[{"$f":"'Risk Assessment Matrix'!A112","v":0},{"$f":"'Risk Assessment Matrix'!B112","v":0},{"$f":"'Risk Assessment Matrix'!C112","v":0},{"$f":"'Risk Assessment Matrix'!D112","v":0},0]
[{"$f":"'Risk Assessment Matrix'!A113","v":0},{"$f":"'Risk Assessment Matrix'!B113","v":0},{"$f":"'Risk Assessment Matrix'!C113","v":0},{"$f":"'Risk Assessment Matrix'!D113","v":0},0]
[{"$f":"'Risk Assessment Matrix'!A114","v":0},{"$f":"'Risk Assessment Matrix'!B114","v":0},{"$f":"'Risk Assessment Matrix'!C114","v":0},{"$f":"'Risk Assessment Matrix'!D114","v":0},0]
[{"$f":"'Risk Assessment Matrix'!A115","v":0},{"$f":"'Risk Assessment Matrix'!B115","v":0},{"$f":"'Risk Assessment Matrix'!C115","v":0},{"$f":"'Risk Assessment Matrix'!D115","v":0},0]
[{"$f":"'Risk Assessment Matrix'!A116","v":0},{"$f":"'Risk Assessment Matrix'!B116","v":0},{"$f":"'Risk Assessment Matrix'!C116","v":0},{"$f":"'Risk Assessment Matrix'!D116","v":0},0]
[{"$f":"'Risk Assessment Matrix'!A117","v":0},{"$f":"'Risk Assessment Matrix'!B117","v":0},{"$f":"'Risk Assessment Matrix'!C117","v":0},{"$f":"'Risk Assessment Matrix'!D117","v":0},0]
[{"$f":"'Risk Assessment Matrix'!A118","v":0},{"$f":"'Risk Assessment Matrix'!B118","v":0},{"$f":"'Risk Assessment Matrix'!C118","v":0},{"$f":"'Risk Assessment Matrix'!D118","v":0},0]
[{"$f":"'Risk Assessment Matrix'!A119","v":0},{"$f":"'Risk Assessment Matrix'!B119","v":0},{"$f":"'Risk Assessment Matrix'!C119","v":0},{"$f":"'Risk Assessment Matrix'!D119","v":0},0]
[{"$f":"'Risk Assessment Matrix'!A120","v":0},{"$f":"'Risk Assessment Matrix'!B120","v":0},{"$f":"'Risk Assessment Matrix'!C120","v":0},{"$f":"'Risk Assessment Matrix'!D120","v":0},0]
[{"$f":"'Risk Assessment Matrix'!A121","v":0},{"$f":"'Risk Assessment Matrix'!B121","v":0},{"$f":"'Risk Assessment Matrix'!C121","v":0},{"$f":"'Risk Assessment Matrix'!D121","v":0},0]
[{"$f":"'Risk Assessment Matrix'!A122","v":0},{"$f":"'Risk Assessment Matrix'!B122","v":0},{"$f":"'Risk Assessment Matrix'!C122","v":0},{"$f":"'Risk Assessment Matrix'!D122","v":0},0]
[{"$f":"'Risk Assessment Matrix'!A123","v":0},{"$f":"'Risk Assessment Matrix'!B123","v":0},{"$f":"'Risk Assessment Matrix'!C123","v":0},{"$f":"'Risk Assessment Matrix'!D123","v":0},0]
[{"$f":"'Risk Assessment Matrix'!A124","v":0},{"$f":"'Risk Assessment Matrix'!B124","v":0},{"$f":"'Risk Assessment Matrix'!C124","v":0},{"$f":"'Risk Assessment Matrix'!D124","v":0},0]
[{"$f":"'Risk Assessment Matrix'!A125","v":0},{"$f":"'Risk Assessment Matrix'!B125","v":0},{"$f":"'Risk Assessment Matrix'!C125","v":0},{"$f":"'Risk Assessment Matrix'!D125","v":0},0]
[{"$f":"'Risk Assessment Matrix'!A126","v":0},{"$f":"'Risk Assessment Matrix'!B126","v":0},{"$f":"'Risk Assessment Matrix'!C126","v":0},{"$f":"'Risk Assessment Matrix'!D126","v":0},0]
[{"$f":"'Risk Assessment Matrix'!A127","v":0},{"$f":"'Risk Assessment Matrix'!B127","v":0},{"$f":"'Risk Assessment Matrix'!C127","v":0},{"$f":"'Risk Assessment Matrix'!D127","v":0},0]
[{"$f":"'Risk Assessment Matrix'!A128","v":0},{"$f":"'Risk Assessment Matrix'!B128","v":0},{"$f":"'Risk Assessment Matrix'!C128","v":0},{"$f":"'Risk Assessment Matrix'!D128","v":0},0]
[{"$f":"'Risk Assessment Matrix'!A129","v":0},{"$f":"'Risk Assessment Matrix'!B129","v":0},{"$f":"'Risk Assessment Matrix'!C129","v":0},{"$f":"'Risk Assessment Matrix'!D129","v":0},0]
[{"$f":"'Risk Assessment Matrix'!A130","v":0},{"$f":"'Risk Assessment Matrix'!B130","v":0},{"$f":"'Risk Assessment Matrix'!C130","v":0},{"$f":"'Risk Assessment Matrix'!D130","v":0},0]
[{"$f":"'Risk Assessment Matrix'!A131","v":0},{"$f":"'Risk Assessment Matrix'!B131","v":0},{"$f":"'Risk Assessment Matrix'!C131","v":0},{"$f":"'Risk Assessment Matrix'!D131","v":0},0]
[{"$f":"'Risk Assessment Matrix'!A132","v":0},{"$f":"'Risk Assessment Matrix'!B132","v":0},{"$f":"'Risk Assessment Matrix'!C132","v":0},{"$f":"'Risk Assessment Matrix'!D132","v":0},{"$f":"C132*D132","v":0}]
[{"$f":"'Risk Assessment Matrix'!A133","v":0},{"$f":"'Risk Assessment Matrix'!B133","v":0},{"$f":"'Risk Assessment Matrix'!C133","v":0},{"$f":"'Risk Assessment Matrix'!D133","v":0},0]
[{"$f":"'Risk Assessment Matrix'!A134","v":0},{"$f":"'Risk Assessment Matrix'!B134","v":0},{"$f":"'Risk Assessment Matrix'!C134","v":0},{"$f":"'Risk Assessment Matrix'!D134","v":0},0]
[{"$f":"'Risk Assessment Matrix'!A135","v":0},{"$f":"'Risk Assessment Matrix'!B135","v":0},{"$f":"'Risk Assessment Matrix'!C135","v":0},{"$f":"'Risk Assessment Matrix'!D135","v":0},0]
[{"$f":"'Risk Assessment Matrix'!A136","v":0},{"$f":"'Risk Assessment Matrix'!B136","v":0},{"$f":"'Risk Assessment Matrix'!C136","v":0},{"$f":"'Risk Assessment Matrix'!D136","v":0},0]
[{"$f":"'Risk Assessment Matrix'!A137","v":0},{"$f":"'Risk Assessment Matrix'!B137","v":0},{"$f":"'Risk Assessment Matrix'!C137","v":0},{"$f":"'Risk Assessment Matrix'!D137","v":0},0]
[{"$f":"'Risk Assessment Matrix'!A138","v":0},{"$f":"'Risk Assessment Matrix'!B138","v":0},{"$f":"'Risk Assessment Matrix'!C138","v":0},{"$f":"'Risk Assessment Matrix'!D138","v":0},0]
[{"$f":"'Risk Assessment Matrix'!A139","v":0},{"$f":"'Risk Assessment Matrix'!B139","v":0},{"$f":"'Risk Assessment Matrix'!C139","v":0},{"$f":"'Risk Assessment Matrix'!D139","v":0},0]
[{"$f":"'Risk Assessment Matrix'!A140","v":0},{"$f":"'Risk Assessment Matrix'!B140","v":0},{"$f":"'Risk Assessment Matrix'!C140","v":0},{"$f":"'Risk Assessment Matrix'!D140","v":0},0]
[{"$f":"'Risk Assessment Matrix'!A141","v":0},{"$f":"'Risk Assessment Matrix'!B141","v":0},{"$f":"'Risk Assessment Matrix'!C141","v":0},{"$f":"'Risk Assessment Matrix'!D141","v":0},0]
[{"$f":"'Risk Assessment Matrix'!A142","v":0},{"$f":"'Risk Assessment Matrix'!B142","v":0},{"$f":"'Risk Assessment Matrix'!C142","v":0},{"$f":"'Risk Assessment Matrix'!D142","v":0},0]
[{"$f":"'Risk Assessment Matrix'!A143","v":0},{"$f":"'Risk Assessment Matrix'!B143","v":0},{"$f":"'Risk Assessment Matrix'!C143","v":0},{"$f":"'Risk Assessment Matrix'!D143","v":0},0]
[{"$f":"'Risk Assessment Matrix'!A144","v":0},{"$f":"'Risk Assessment Matrix'!B144","v":0},{"$f":"'Risk Assessment Matrix'!C144","v":0},{"$f":"'Risk Assessment Matrix'!D144","v":0},0]
[{"$f":"'Risk Assessment Matrix'!A145","v":0},{"$f":"'Risk Assessment Matrix'!B145","v":0},{"$f":"'Risk Assessment Matrix'!C145","v":0},{"$f":"'Risk Assessment Matrix'!D145","v":0},0]
[{"$f":"'Risk Assessment Matrix'!A146","v":0},{"$f":"'Risk Assessment Matrix'!B146","v":0},{"$f":"'Risk Assessment Matrix'!C146","v":0},{"$f":"'Risk Assessment Matrix'!D146","v":0},0]
[{"$f":"'Risk Assessment Matrix'!A147","v":0},{"$f":"'Risk Assessment Matrix'!B147","v":0},{"$f":"'Risk Assessment Matrix'!C147","v":0},{"$f":"'Risk Assessment Matrix'!D147","v":0},0]
[{"$f":"'Risk Assessment Matrix'!A148","v":0},{"$f":"'Risk Assessment Matrix'!B148","v":0},{"$f":"'Risk Assessment Matrix'!C148","v":0},{"$f":"'Risk Assessment Matrix'!D148","v":0},0]
[{"$f":"'Risk Assessment Matrix'!A149","v":0},{"$f":"'Risk Assessment Matrix'!B149","v":0},{"$f":"'Risk Assessment Matrix'!C149","v":0},{"$f":"'Risk Assessment Matrix'!D149","v":0},0]
[{"$f":"'Risk Assessment Matrix'!A150","v":0},{"$f":"'Risk Assessment Matrix'!B150","v":0},{"$f":"'Risk Assessment Matrix'!C150","v":0},{"$f":"'Risk Assessment Matrix'!D150","v":0},0]
[{"$f":"'Risk Assessment Matrix'!A151","v":0},{"$f":"'Risk Assessment Matrix'!B151","v":0},{"$f":"'Risk Assessment Matrix'!C151","v":0},{"$f":"'Risk Assessment Matrix'!D151","v":0},0]
[{"$f":"'Risk Assessment Matrix'!A152","v":0},{"$f":"'Risk Assessment Matrix'!B152","v":0},{"$f":"'Risk Assessment Matrix'!C152","v":0},{"$f":"'Risk Assessment Matrix'!D152","v":0},0]
[{"$f":"'Risk Assessment Matrix'!A153","v":0},{"$f":"'Risk Assessment Matrix'!B153","v":0},{"$f":"'Risk Assessment Matrix'!C153","v":0},{"$f":"'Risk Assessment Matrix'!D153","v":0},0]
[{"$f":"'Risk Assessment Matrix'!A154","v":0},{"$f":"'Risk Assessment Matrix'!B154","v":0},{"$f":"'Risk Assessment Matrix'!C154","v":0},{"$f":"'Risk Assessment Matrix'!D154","v":0},0]
[{"$f":"'Risk Assessment Matrix'!A155","v":0},{"$f":"'Risk Assessment Matrix'!B155","v":0},{"$f":"'Risk Assessment Matrix'!C155","v":0},{"$f":"'Risk Assessment Matrix'!D155","v":0},0]
[{"$f":"'Risk Assessment Matrix'!A156","v":0},{"$f":"'Risk Assessment Matrix'!B156","v":0},{"$f":"'Risk Assessment Matrix'!C156","v":0},{"$f":"'Risk Assessment Matrix'!D156","v":0},0]
[{"$f":"'Risk Assessment Matrix'!A157","v":0},{"$f":"'Risk Assessment Matrix'!B157","v":0},{"$f":"'Risk Assessment Matrix'!C157","v":0},{"$f":"'Risk Assessment Matrix'!D157","v":0},0]
[{"$f":"'Risk Assessment Matrix'!A158","v":0},{"$f":"'Risk Assessment Matrix'!B158","v":0},{"$f":"'Risk Assessment Matrix'!C158","v":0},{"$f":"'Risk Assessment Matrix'!D158","v":0},0]
[{"$f":"'Risk Assessment Matrix'!A159","v":0},{"$f":"'Risk Assessment Matrix'!B159","v":0},{"$f":"'Risk Assessment Matrix'!C159","v":0},{"$f":"'Risk Assessment Matrix'!D159","v":0},0]
[{"$f":"'Risk Assessment Matrix'!A160","v":0},{"$f":"'Risk Assessment Matrix'!B160","v":0},{"$f":"'Risk Assessment Matrix'!C160","v":0},{"$f":"'Risk Assessment Matrix'!D160","v":0},0]
[{"$f":"'Risk Assessment Matrix'!A161","v":0},{"$f":"'Risk Assessment Matrix'!B161","v":0},{"$f":"'Risk Assessment Matrix'!C161","v":0},{"$f":"'Risk Assessment Matrix'!D161","v":0},0]
[{"$f":"'Risk Assessment Matrix'!A162","v":0},{"$f":"'Risk Assessment Matrix'!B162","v":0},{"$f":"'Risk Assessment Matrix'!C162","v":0},{"$f":"'Risk Assessment Matrix'!D162","v":0},0]
[{"$f":"'Risk Assessment Matrix'!A163","v":0},{"$f":"'Risk Assessment Matrix'!B163","v":0},{"$f":"'Risk Assessment Matrix'!C163","v":0},{"$f":"'Risk Assessment Matrix'!D163","v":0},0]
[{"$f":"'Risk Assessment Matrix'!A164","v":0},{"$f":"'Risk Assessment Matrix'!B164","v":0},{"$f":"'Risk Assessment Matrix'!C164","v":0},{"$f":"'Risk Assessment Matrix'!D164","v":0},0]
[{"$f":"'Risk Assessment Matrix'!A165","v":0},{"$f":"'Risk Assessment Matrix'!B165","v":0},{"$f":"'Risk Assessment Matrix'!C165","v":0},{"$f":"'Risk Assessment Matrix'!D165","v":0},0]
[{"$f":"'Risk Assessment Matrix'!A166","v":0},{"$f":"'Risk Assessment Matrix'!B166","v":0},{"$f":"'Risk Assessment Matrix'!C166","v":0},{"$f":"'Risk Assessment Matrix'!D166","v":0},0]
[{"$f":"'Risk Assessment Matrix'!A167","v":0},{"$f":"'Risk Assessment Matrix'!B167","v":0},{"$f":"'Risk Assessment Matrix'!C167","v":0},{"$f":"'Risk Assessment Matrix'!D167","v":0},0]
[{"$f":"'Risk Assessment Matrix'!A168","v":0},{"$f":"'Risk Assessment Matrix'!B168","v":0},{"$f":"'Risk Assessment Matrix'!C168","v":0},{"$f":"'Risk Assessment Matrix'!D168","v":0},0]
[{"$f":"'Risk Assessment Matrix'!A169","v":0},{"$f":"'Risk Assessment Matrix'!B169","v":0},{"$f":"'Risk Assessment Matrix'!C169","v":0},{"$f":"'Risk Assessment Matrix'!D169","v":0},0]
[{"$f":"'Risk Assessment Matrix'!A170","v":0},{"$f":"'Risk Assessment Matrix'!B170","v":0},{"$f":"'Risk Assessment Matrix'!C170","v":0},{"$f":"'Risk Assessment Matrix'!D170","v":0},0]
[{"$f":"'Risk Assessment Matrix'!A171","v":0},{"$f":"'Risk Assessment Matrix'!B171","v":0},{"$f":"'Risk Assessment Matrix'!C171","v":0},{"$f":"'Risk Assessment Matrix'!D171","v":0},0]
[{"$f":"'Risk Assessment Matrix'!A172","v":0},{"$f":"'Risk Assessment Matrix'!B172","v":0},{"$f":"'Risk Assessment Matrix'!C172","v":0},{"$f":"'Risk Assessment Matrix'!D172","v":0},0]
[{"$f":"'Risk Assessment Matrix'!A173","v":0},{"$f":"'Risk Assessment Matrix'!B173","v":0},{"$f":"'Risk Assessment Matrix'!C173","v":0},{"$f":"'Risk Assessment Matrix'!D173","v":0},0]
[{"$f":"'Risk Assessment Matrix'!A174","v":0},{"$f":"'Risk Assessment Matrix'!B174","v":0},{"$f":"'Risk Assessment Matrix'!C174","v":0},{"$f":"'Risk Assessment Matrix'!D174","v":0},0]
[{"$f":"'Risk Assessment Matrix'!A175","v":0},{"$f":"'Risk Assessment Matrix'!B175","v":0},{"$f":"'Risk Assessment Matrix'!C175","v":0},{"$f":"'Risk Assessment Matrix'!D175","v":0},0]
[{"$f":"'Risk Assessment Matrix'!A176","v":0},{"$f":"'Risk Assessment Matrix'!B176","v":0},{"$f":"'Risk Assessment Matrix'!C176","v":0},{"$f":"'Risk Assessment Matrix'!D176","v":0},0]
[{"$f":"'Risk Assessment Matrix'!A177","v":0},{"$f":"'Risk Assessment Matrix'!B177","v":0},{"$f":"'Risk Assessment Matrix'!C177","v":0},{"$f":"'Risk Assessment Matrix'!D177","v":0},0]
[{"$f":"'Risk Assessment Matrix'!A178","v":0},{"$f":"'Risk Assessment Matrix'!B178","v":0},{"$f":"'Risk Assessment Matrix'!C178","v":0},{"$f":"'Risk Assessment Matrix'!D178","v":0},0]
[{"$f":"'Risk Assessment Matrix'!A179","v":0},{"$f":"'Risk Assessment Matrix'!B179","v":0},{"$f":"'Risk Assessment Matrix'!C179","v":0},{"$f":"'Risk Assessment Matrix'!D179","v":0},0]
[{"$f":"'Risk Assessment Matrix'!A180","v":0},{"$f":"'Risk Assessment Matrix'!B180","v":0},{"$f":"'Risk Assessment Matrix'!C180","v":0},{"$f":"'Risk Assessment Matrix'!D180","v":0},0]
[{"$f":"'Risk Assessment Matrix'!A181","v":0},{"$f":"'Risk Assessment Matrix'!B181","v":0},{"$f":"'Risk Assessment Matrix'!C181","v":0},{"$f":"'Risk Assessment Matrix'!D181","v":0},0]
[{"$f":"'Risk Assessment Matrix'!A182","v":0},{"$f":"'Risk Assessment Matrix'!B182","v":0},{"$f":"'Risk Assessment Matrix'!C182","v":0},{"$f":"'Risk Assessment Matrix'!D182","v":0},0]
[{"$f":"'Risk Assessment Matrix'!A183","v":0},{"$f":"'Risk Assessment Matrix'!B183","v":0},{"$f":"'Risk Assessment Matrix'!C183","v":0},{"$f":"'Risk Assessment Matrix'!D183","v":0},0]
[{"$f":"'Risk Assessment Matrix'!A184","v":0},{"$f":"'Risk Assessment Matrix'!B184","v":0},{"$f":"'Risk Assessment Matrix'!C184","v":0},{"$f":"'Risk Assessment Matrix'!D184","v":0},0]
[{"$f":"'Risk Assessment Matrix'!A185","v":0},{"$f":"'Risk Assessment Matrix'!B185","v":0},{"$f":"'Risk Assessment Matrix'!C185","v":0},{"$f":"'Risk Assessment Matrix'!D185","v":0},0]
[{"$f":"'Risk Assessment Matrix'!A186","v":0},{"$f":"'Risk Assessment Matrix'!B186","v":0},{"$f":"'Risk Assessment Matrix'!C186","v":0},{"$f":"'Risk Assessment Matrix'!D186","v":0},0]
[{"$f":"'Risk Assessment Matrix'!A187","v":0},{"$f":"'Risk Assessment Matrix'!B187","v":0},{"$f":"'Risk Assessment Matrix'!C187","v":0},{"$f":"'Risk Assessment Matrix'!D187","v":0},0]
[{"$f":"'Risk Assessment Matrix'!A188","v":0},{"$f":"'Risk Assessment Matrix'!B188","v":0},{"$f":"'Risk Assessment Matrix'!C188","v":0},{"$f":"'Risk Assessment Matrix'!D188","v":0},0]
[{"$f":"'Risk Assessment Matrix'!A189","v":0},{"$f":"'Risk Assessment Matrix'!B189","v":0},{"$f":"'Risk Assessment Matrix'!C189","v":0},{"$f":"'Risk Assessment Matrix'!D189","v":0},0]
[{"$f":"'Risk Assessment Matrix'!A190","v":0},{"$f":"'Risk Assessment Matrix'!B190","v":0},{"$f":"'Risk Assessment Matrix'!C190","v":0},{"$f":"'Risk Assessment Matrix'!D190","v":0},0]
[{"$f":"'Risk Assessment Matrix'!A191","v":0},{"$f":"'Risk Assessment Matrix'!B191","v":0},{"$f":"'Risk Assessment Matrix'!C191","v":0},{"$f":"'Risk Assessment Matrix'!D191","v":0},0]
[{"$f":"'Risk Assessment Matrix'!A192","v":0},{"$f":"'Risk Assessment Matrix'!B192","v":0},{"$f":"'Risk Assessment Matrix'!C192","v":0},{"$f":"'Risk Assessment Matrix'!D192","v":0},0]
[{"$f":"'Risk Assessment Matrix'!A193","v":0},{"$f":"'Risk Assessment Matrix'!B193","v":0},{"$f":"'Risk Assessment Matrix'!C193","v":0},{"$f":"'Risk Assessment Matrix'!D193","v":0},0]
[{"$f":"'Risk Assessment Matrix'!A194","v":0},{"$f":"'Risk Assessment Matrix'!B194","v":0},{"$f":"'Risk Assessment Matrix'!C194","v":0},{"$f":"'Risk Assessment Matrix'!D194","v":0},0]
[{"$f":"'Risk Assessment Matrix'!A195","v":0},{"$f":"'Risk Assessment Matrix'!B195","v":0},{"$f":"'Risk Assessment Matrix'!C195","v":0},{"$f":"'Risk Assessment Matrix'!D195","v":0},0]
[{"$f":"'Risk Assessment Matrix'!A196","v":0},{"$f":"'Risk Assessment Matrix'!B196","v":0},{"$f":"'Risk Assessment Matrix'!C196","v":0},{"$f":"'Risk Assessment Matrix'!D196","v":0},{"$f":"C196*D196","v":0}]
[{"$f":"'Risk Assessment Matrix'!A197","v":0},{"$f":"'Risk Assessment Matrix'!B197","v":0},{"$f":"'Risk Assessment Matrix'!C197","v":0},{"$f":"'Risk Assessment Matrix'!D197","v":0},0]
[{"$f":"'Risk Assessment Matrix'!A198","v":0},{"$f":"'Risk Assessment Matrix'!B198","v":0},{"$f":"'Risk Assessment Matrix'!C198","v":0},{"$f":"'Risk Assessment Matrix'!D198","v":0},0]
[{"$f":"'Risk Assessment Matrix'!A199","v":0},{"$f":"'Risk Assessment Matrix'!B199","v":0},{"$f":"'Risk Assessment Matrix'!C199","v":0},{"$f":"'Risk Assessment Matrix'!D199","v":0},0]
[{"$f":"'Risk Assessment Matrix'!A200","v":0},{"$f":"'Risk Assessment Matrix'!B200","v":0},{"$f":"'Risk Assessment Matrix'!C200","v":0},{"$f":"'Risk Assessment Matrix'!D200","v":0},0]
[{"$f":"'Risk Assessment Matrix'!A201","v":0},{"$f":"'Risk Assessment Matrix'!B201","v":0},{"$f":"'Risk Assessment Matrix'!C201","v":0},{"$f":"'Risk Assessment Matrix'!D201","v":0},0]
[{"$f":"'Risk Assessment Matrix'!A202","v":0},{"$f":"'Risk Assessment Matrix'!B202","v":0},{"$f":"'Risk Assessment Matrix'!C202","v":0},{"$f":"'Risk Assessment Matrix'!D202","v":0},0]
[{"$f":"'Risk Assessment Matrix'!A203","v":0},{"$f":"'Risk Assessment Matrix'!B203","v":0},{"$f":"'Risk Assessment Matrix'!C203","v":0},{"$f":"'Risk Assessment Matrix'!D203","v":0},0]
[{"$f":"'Risk Assessment Matrix'!A204","v":0},{"$f":"'Risk Assessment Matrix'!B204","v":0},{"$f":"'Risk Assessment Matrix'!C204","v":0},{"$f":"'Risk Assessment Matrix'!D204","v":0},0]
[{"$f":"'Risk Assessment Matrix'!A205","v":0},{"$f":"'Risk Assessment Matrix'!B205","v":0},{"$f":"'Risk Assessment Matrix'!C205","v":0},{"$f":"'Risk Assessment Matrix'!D205","v":0},0]
[{"$f":"'Risk Assessment Matrix'!A206","v":0},{"$f":"'Risk Assessment Matrix'!B206","v":0},{"$f":"'Risk Assessment Matrix'!C206","v":0},{"$f":"'Risk Assessment Matrix'!D206","v":0},0]
[{"$f":"'Risk Assessment Matrix'!A207","v":0},{"$f":"'Risk Assessment Matrix'!B207","v":0},{"$f":"'Risk Assessment Matrix'!C207","v":0},{"$f":"'Risk Assessment Matrix'!D207","v":0},0]
[{"$f":"'Risk Assessment Matrix'!A208","v":0},{"$f":"'Risk Assessment Matrix'!B208","v":0},{"$f":"'Risk Assessment Matrix'!C208","v":0},{"$f":"'Risk Assessment Matrix'!D208","v":0},0]
[{"$f":"'Risk Assessment Matrix'!A209","v":0},{"$f":"'Risk Assessment Matrix'!B209","v":0},{"$f":"'Risk Assessment Matrix'!C209","v":0},{"$f":"'Risk Assessment Matrix'!D209","v":0},0]
[{"$f":"'Risk Assessment Matrix'!A210","v":0},{"$f":"'Risk Assessment Matrix'!B210","v":0},{"$f":"'Risk Assessment Matrix'!C210","v":0},{"$f":"'Risk Assessment Matrix'!D210","v":0},0]
[{"$f":"'Risk Assessment Matrix'!A211","v":0},{"$f":"'Risk Assessment Matrix'!B211","v":0},{"$f":"'Risk Assessment Matrix'!C211","v":0},{"$f":"'Risk Assessment Matrix'!D211","v":0},0]
[{"$f":"'Risk Assessment Matrix'!A212","v":0},{"$f":"'Risk Assessment Matrix'!B212","v":0},{"$f":"'Risk Assessment Matrix'!C212","v":0},{"$f":"'Risk Assessment Matrix'!D212","v":0},0]
[{"$f":"'Risk Assessment Matrix'!A213","v":0},{"$f":"'Risk Assessment Matrix'!B213","v":0},{"$f":"'Risk Assessment Matrix'!C213","v":0},{"$f":"'Risk Assessment Matrix'!D213","v":0},0]
[{"$f":"'Risk Assessment Matrix'!A214","v":0},{"$f":"'Risk Assessment Matrix'!B214","v":0},{"$f":"'Risk Assessment Matrix'!C214","v":0},{"$f":"'Risk Assessment Matrix'!D214","v":0},0]
[{"$f":"'Risk Assessment Matrix'!A215","v":0},{"$f":"'Risk Assessment Matrix'!B215","v":0},{"$f":"'Risk Assessment Matrix'!C215","v":0},{"$f":"'Risk Assessment Matrix'!D215","v":0},0]
[{"$f":"'Risk Assessment Matrix'!A216","v":0},{"$f":"'Risk Assessment Matrix'!B216","v":0},{"$f":"'Risk Assessment Matrix'!C216","v":0},{"$f":"'Risk Assessment Matrix'!D216","v":0},0]
[{"$f":"'Risk Assessment Matrix'!A217","v":0},{"$f":"'Risk Assessment Matrix'!B217","v":0},{"$f":"'Risk Assessment Matrix'!C217","v":0},{"$f":"'Risk Assessment Matrix'!D217","v":0},0]
[{"$f":"'Risk Assessment Matrix'!A218","v":0},{"$f":"'Risk Assessment Matrix'!B218","v":0},{"$f":"'Risk Assessment Matrix'!C218","v":0},{"$f":"'Risk Assessment Matrix'!D218","v":0},0]
[{"$f":"'Risk Assessment Matrix'!A219","v":0},{"$f":"'Risk Assessment Matrix'!B219","v":0},{"$f":"'Risk Assessment Matrix'!C219","v":0},{"$f":"'Risk Assessment Matrix'!D219","v":0},0]
[{"$f":"'Risk Assessment Matrix'!A220","v":0},{"$f":"'Risk Assessment Matrix'!B220","v":0},{"$f":"'Risk Assessment Matrix'!C220","v":0},{"$f":"'Risk Assessment Matrix'!D220","v":0},0]
[{"$f":"'Risk Assessment Matrix'!A221","v":0},{"$f":"'Risk Assessment Matrix'!B221","v":0},{"$f":"'Risk Assessment Matrix'!C221","v":0},{"$f":"'Risk Assessment Matrix'!D221","v":0},0]
[{"$f":"'Risk Assessment Matrix'!A222","v":0},{"$f":"'Risk Assessment Matrix'!B222","v":0},{"$f":"'Risk Assessment Matrix'!C222","v":0},{"$f":"'Risk Assessment Matrix'!D222","v":0},0]
[{"$f":"'Risk Assessment Matrix'!A223","v":0},{"$f":"'Risk Assessment Matrix'!B223","v":0},{"$f":"'Risk Assessment Matrix'!C223","v":0},{"$f":"'Risk Assessment Matrix'!D223","v":0},0]
[{"$f":"'Risk Assessment Matrix'!A224","v":0},{"$f":"'Risk Assessment Matrix'!B224","v":0},{"$f":"'Risk Assessment Matrix'!C224","v":0},{"$f":"'Risk Assessment Matrix'!D224","v":0},0]
[{"$f":"'Risk Assessment Matrix'!A225","v":0},{"$f":"'Risk Assessment Matrix'!B225","v":0},{"$f":"'Risk Assessment Matrix'!C225","v":0},{"$f":"'Risk Assessment Matrix'!D225","v":0},0]
[{"$f":"'Risk Assessment Matrix'!A226","v":0},{"$f":"'Risk Assessment Matrix'!B226","v":0},{"$f":"'Risk Assessment Matrix'!C226","v":0},{"$f":"'Risk Assessment Matrix'!D226","v":0},0]
[{"$f":"'Risk Assessment Matrix'!A227","v":0},{"$f":"'Risk Assessment Matrix'!B227","v":0},{"$f":"'Risk Assessment Matrix'!C227","v":0},{"$f":"'Risk Assessment Matrix'!D227","v":0},0]
[{"$f":"'Risk Assessment Matrix'!A228","v":0},{"$f":"'Risk Assessment Matrix'!B228","v":0},{"$f":"'Risk Assessment Matrix'!C228","v":0},{"$f":"'Risk Assessment Matrix'!D228","v":0},0]
[{"$f":"'Risk Assessment Matrix'!A229","v":0},{"$f":"'Risk Assessment Matrix'!B229","v":0},{"$f":"'Risk Assessment Matrix'!C229","v":0},{"$f":"'Risk Assessment Matrix'!D229","v":0},0]
[{"$f":"'Risk Assessment Matrix'!A230","v":0},{"$f":"'Risk Assessment Matrix'!B230","v":0},{"$f":"'Risk Assessment Matrix'!C230","v":0},{"$f":"'Risk Assessment Matrix'!D230","v":0},0]
[{"$f":"'Risk Assessment Matrix'!A231","v":0},{"$f":"'Risk Assessment Matrix'!B231","v":0},{"$f":"'Risk Assessment Matrix'!C231","v":0},{"$f":"'Risk Assessment Matrix'!D231","v":0},0]
[{"$f":"'Risk Assessment Matrix'!A232","v":0},{"$f":"'Risk Assessment Matrix'!B232","v":0},{"$f":"'Risk Assessment Matrix'!C232","v":0},{"$f":"'Risk Assessment Matrix'!D232","v":0},0]
[{"$f":"'Risk Assessment Matrix'!A233","v":0},{"$f":"'Risk Assessment Matrix'!B233","v":0},{"$f":"'Risk Assessment Matrix'!C233","v":0},{"$f":"'Risk Assessment Matrix'!D233","v":0},0]
[{"$f":"'Risk Assessment Matrix'!A234","v":0},{"$f":"'Risk Assessment Matrix'!B234","v":0},{"$f":"'Risk Assessment Matrix'!C234","v":0},{"$f":"'Risk Assessment Matrix'!D234","v":0},0]
[{"$f":"'Risk Assessment Matrix'!A235","v":0},{"$f":"'Risk Assessment Matrix'!B235","v":0},{"$f":"'Risk Assessment Matrix'!C235","v":0},{"$f":"'Risk Assessment Matrix'!D235","v":0},0]
[{"$f":"'Risk Assessment Matrix'!A236","v":0},{"$f":"'Risk Assessment Matrix'!B236","v":0},{"$f":"'Risk Assessment Matrix'!C236","v":0},{"$f":"'Risk Assessment Matrix'!D236","v":0},0]
[{"$f":"'Risk Assessment Matrix'!A237","v":0},{"$f":"'Risk Assessment Matrix'!B237","v":0},{"$f":"'Risk Assessment Matrix'!C237","v":0},{"$f":"'Risk Assessment Matrix'!D237","v":0},0]
[{"$f":"'Risk Assessment Matrix'!A238","v":0},{"$f":"'Risk Assessment Matrix'!B238","v":0},{"$f":"'Risk Assessment Matrix'!C238","v":0},{"$f":"'Risk Assessment Matrix'!D238","v":0},0]
[{"$f":"'Risk Assessment Matrix'!A239","v":0},{"$f":"'Risk Assessment Matrix'!B239","v":0},{"$f":"'Risk Assessment Matrix'!C239","v":0},{"$f":"'Risk Assessment Matrix'!D239","v":0},0]
[{"$f":"'Risk Assessment Matrix'!A240","v":0},{"$f":"'Risk Assessment Matrix'!B240","v":0},{"$f":"'Risk Assessment Matrix'!C240","v":0},{"$f":"'Risk Assessment Matrix'!D240","v":0},0]
[{"$f":"'Risk Assessment Matrix'!A241","v":0},{"$f":"'Risk Assessment Matrix'!B241","v":0},{"$f":"'Risk Assessment Matrix'!C241","v":0},{"$f":"'Risk Assessment Matrix'!D241","v":0},0]
[{"$f":"'Risk Assessment Matrix'!A242","v":0},{"$f":"'Risk Assessment Matrix'!B242","v":0},{"$f":"'Risk Assessment Matrix'!C242","v":0},{"$f":"'Risk Assessment Matrix'!D242","v":0},0]
[{"$f":"'Risk Assessment Matrix'!A243","v":0},{"$f":"'Risk Assessment Matrix'!B243","v":0},{"$f":"'Risk Assessment Matrix'!C243","v":0},{"$f":"'Risk Assessment Matrix'!D243","v":0},0]
[{"$f":"'Risk Assessment Matrix'!A244","v":0},{"$f":"'Risk Assessment Matrix'!B244","v":0},{"$f":"'Risk Assessment Matrix'!C244","v":0},{"$f":"'Risk Assessment Matrix'!D244","v":0},0]
[{"$f":"'Risk Assessment Matrix'!A245","v":0},{"$f":"'Risk Assessment Matrix'!B245","v":0},{"$f":"'Risk Assessment Matrix'!C245","v":0},{"$f":"'Risk Assessment Matrix'!D245","v":0},0]
[{"$f":"'Risk Assessment Matrix'!A246","v":0},{"$f":"'Risk Assessment Matrix'!B246","v":0},{"$f":"'Risk Assessment Matrix'!C246","v":0},{"$f":"'Risk Assessment Matrix'!D246","v":0},0]
[{"$f":"'Risk Assessment Matrix'!A247","v":0},{"$f":"'Risk Assessment Matrix'!B247","v":0},{"$f":"'Risk Assessment Matrix'!C247","v":0},{"$f":"'Risk Assessment Matrix'!D247","v":0},0]
[{"$f":"'Risk Assessment Matrix'!A248","v":0},{"$f":"'Risk Assessment Matrix'!B248","v":0},{"$f":"'Risk Assessment Matrix'!C248","v":0},{"$f":"'Risk Assessment Matrix'!D248","v":0},0]
[{"$f":"'Risk Assessment Matrix'!A249","v":0},{"$f":"'Risk Assessment Matrix'!B249","v":0},{"$f":"'Risk Assessment Matrix'!C249","v":0},{"$f":"'Risk Assessment Matrix'!D249","v":0},0]
[{"$f":"'Risk Assessment Matrix'!A250","v":0},{"$f":"'Risk Assessment Matrix'!B250","v":0},{"$f":"'Risk Assessment Matrix'!C250","v":0},{"$f":"'Risk Assessment Matrix'!D250","v":0},0]
[{"$f":"'Risk Assessment Matrix'!A251","v":0},{"$f":"'Risk Assessment Matrix'!B251","v":0},{"$f":"'Risk Assessment Matrix'!C251","v":0},{"$f":"'Risk Assessment Matrix'!D251","v":0},0]
[{"$f":"'Risk Assessment Matrix'!A252","v":0},{"$f":"'Risk Assessment Matrix'!B252","v":0},{"$f":"'Risk Assessment Matrix'!C252","v":0},{"$f":"'Risk Assessment Matrix'!D252","v":0},0]
[{"$f":"'Risk Assessment Matrix'!A253","v":0},{"$f":"'Risk Assessment Matrix'!B253","v":0},{"$f":"'Risk Assessment Matrix'!C253","v":0},{"$f":"'Risk Assessment Matrix'!D253","v":0},0]
[{"$f":"'Risk Assessment Matrix'!A254","v":0},{"$f":"'Risk Assessment Matrix'!B254","v":0},{"$f":"'Risk Assessment Matrix'!C254","v":0},{"$f":"'Risk Assessment Matrix'!D254","v":0},0]
[{"$f":"'Risk Assessment Matrix'!A255","v":0},{"$f":"'Risk Assessment Matrix'!B255","v":0},{"$f":"'Risk Assessment Matrix'!C255","v":0},{"$f":"'Risk Assessment Matrix'!D255","v":0},0]
[{"$f":"'Risk Assessment Matrix'!A256","v":0},{"$f":"'Risk Assessment Matrix'!B256","v":0},{"$f":"'Risk Assessment Matrix'!C256","v":0},{"$f":"'Risk Assessment Matrix'!D256","v":0},0]
[{"$f":"'Risk Assessment Matrix'!A257","v":0},{"$f":"'Risk Assessment Matrix'!B257","v":0},{"$f":"'Risk Assessment Matrix'!C257","v":0},{"$f":"'Risk Assessment Matrix'!D257","v":0},0]
[{"$f":"'Risk Assessment Matrix'!A258","v":0},{"$f":"'Risk Assessment Matrix'!B258","v":0},{"$f":"'Risk Assessment Matrix'!C258","v":0},{"$f":"'Risk Assessment Matrix'!D258","v":0},0]
[{"$f":"'Risk Assessment Matrix'!A259","v":0},{"$f":"'Risk Assessment Matrix'!B259","v":0},{"$f":"'Risk Assessment Matrix'!C259","v":0},{"$f":"'Risk Assessment Matrix'!D259","v":0},0]
[{"$f":"'Risk Assessment Matrix'!A260","v":0},{"$f":"'Risk Assessment Matrix'!B260","v":0},{"$f":"'Risk Assessment Matrix'!C260","v":0},{"$f":"'Risk Assessment Matrix'!D260","v":0},{"$f":"C260*D260","v":0}]
[{"$f":"'Risk Assessment Matrix'!A261","v":0},{"$f":"'Risk Assessment Matrix'!B261","v":0},{"$f":"'Risk Assessment Matrix'!C261","v":0},{"$f":"'Risk Assessment Matrix'!D261","v":0},0]
[{"$f":"'Risk Assessment Matrix'!A262","v":0},{"$f":"'Risk Assessment Matrix'!B262","v":0},{"$f":"'Risk Assessment Matrix'!C262","v":0},{"$f":"'Risk Assessment Matrix'!D262","v":0},0]
[{"$f":"'Risk Assessment Matrix'!A263","v":0},{"$f":"'Risk Assessment Matrix'!B263","v":0},{"$f":"'Risk Assessment Matrix'!C263","v":0},{"$f":"'Risk Assessment Matrix'!D263","v":0},0]
[{"$f":"'Risk Assessment Matrix'!A264","v":0},{"$f":"'Risk Assessment Matrix'!B264","v":0},{"$f":"'Risk Assessment Matrix'!C264","v":0},{"$f":"'Risk Assessment Matrix'!D264","v":0},0]
[{"$f":"'Risk Assessment Matrix'!A265","v":0},{"$f":"'Risk Assessment Matrix'!B265","v":0},{"$f":"'Risk Assessment Matrix'!C265","v":0},{"$f":"'Risk Assessment Matrix'!D265","v":0},0]
[{"$f":"'Risk Assessment Matrix'!A266","v":0},{"$f":"'Risk Assessment Matrix'!B266","v":0},{"$f":"'Risk Assessment Matrix'!C266","v":0},{"$f":"'Risk Assessment Matrix'!D266","v":0},0]
[{"$f":"'Risk Assessment Matrix'!A267","v":0},{"$f":"'Risk Assessment Matrix'!B267","v":0},{"$f":"'Risk Assessment Matrix'!C267","v":0},{"$f":"'Risk Assessment Matrix'!D267","v":0},0]
[{"$f":"'Risk Assessment Matrix'!A268","v":0},{"$f":"'Risk Assessment Matrix'!B268","v":0},{"$f":"'Risk Assessment Matrix'!C268","v":0},{"$f":"'Risk Assessment Matrix'!D268","v":0},0]
[{"$f":"'Risk Assessment Matrix'!A269","v":0},{"$f":"'Risk Assessment Matrix'!B269","v":0},{"$f":"'Risk Assessment Matrix'!C269","v":0},{"$f":"'Risk Assessment Matrix'!D269","v":0},0]
[{"$f":"'Risk Assessment Matrix'!A270","v":0},{"$f":"'Risk Assessment Matrix'!B270","v":0},{"$f":"'Risk Assessment Matrix'!C270","v":0},{"$f":"'Risk Assessment Matrix'!D270","v":0},0]
[{"$f":"'Risk Assessment Matrix'!A271","v":0},{"$f":"'Risk Assessment Matrix'!B271","v":0},{"$f":"'Risk Assessment Matrix'!C271","v":0},{"$f":"'Risk Assessment Matrix'!D271","v":0},0]
[{"$f":"'Risk Assessment Matrix'!A272","v":0},{"$f":"'Risk Assessment Matrix'!B272","v":0},{"$f":"'Risk Assessment Matrix'!C272","v":0},{"$f":"'Risk Assessment Matrix'!D272","v":0},0]
[{"$f":"'Risk Assessment Matrix'!A273","v":0},{"$f":"'Risk Assessment Matrix'!B273","v":0},{"$f":"'Risk Assessment Matrix'!C273","v":0},{"$f":"'Risk Assessment Matrix'!D273","v":0},0]
[{"$f":"'Risk Assessment Matrix'!A274","v":0},{"$f":"'Risk Assessment Matrix'!B274","v":0},{"$f":"'Risk Assessment Matrix'!C274","v":0},{"$f":"'Risk Assessment Matrix'!D274","v":0},0]
[{"$f":"'Risk Assessment Matrix'!A275","v":0},{"$f":"'Risk Assessment Matrix'!B275","v":0},{"$f":"'Risk Assessment Matrix'!C275","v":0},{"$f":"'Risk Assessment Matrix'!D275","v":0},0]
[{"$f":"'Risk Assessment Matrix'!A276","v":0},{"$f":"'Risk Assessment Matrix'!B276","v":0},{"$f":"'Risk Assessment Matrix'!C276","v":0},{"$f":"'Risk Assessment Matrix'!D276","v":0},0]
[{"$f":"'Risk Assessment Matrix'!A277","v":0},{"$f":"'Risk Assessment Matrix'!B277","v":0},{"$f":"'Risk Assessment Matrix'!C277","v":0},{"$f":"'Risk Assessment Matrix'!D277","v":0},0]
[{"$f":"'Risk Assessment Matrix'!A278","v":0},{"$f":"'Risk Assessment Matrix'!B278","v":0},{"$f":"'Risk Assessment Matrix'!C278","v":0},{"$f":"'Risk Assessment Matrix'!D278","v":0},0]
[{"$f":"'Risk Assessment Matrix'!A279","v":0},{"$f":"'Risk Assessment Matrix'!B279","v":0},{"$f":"'Risk Assessment Matrix'!C279","v":0},{"$f":"'Risk Assessment Matrix'!D279","v":0},0]
[{"$f":"'Risk Assessment Matrix'!A280","v":0},{"$f":"'Risk Assessment Matrix'!B280","v":0},{"$f":"'Risk Assessment Matrix'!C280","v":0},{"$f":"'Risk Assessment Matrix'!D280","v":0},0]
[{"$f":"'Risk Assessment Matrix'!A281","v":0},{"$f":"'Risk Assessment Matrix'!B281","v":0},{"$f":"'Risk Assessment Matrix'!C281","v":0},{"$f":"'Risk Assessment Matrix'!D281","v":0},0]
[{"$f":"'Risk Assessment Matrix'!A282","v":0},{"$f":"'Risk Assessment Matrix'!B282","v":0},{"$f":"'Risk Assessment Matrix'!C282","v":0},{"$f":"'Risk Assessment Matrix'!D282","v":0},0]
[{"$f":"'Risk Assessment Matrix'!A283","v":0},{"$f":"'Risk Assessment Matrix'!B283","v":0},{"$f":"'Risk Assessment Matrix'!C283","v":0},{"$f":"'Risk Assessment Matrix'!D283","v":0},0]
[{"$f":"'Risk Assessment Matrix'!A284","v":0},{"$f":"'Risk Assessment Matrix'!B284","v":0},{"$f":"'Risk Assessment Matrix'!C284","v":0},{"$f":"'Risk Assessment Matrix'!D284","v":0},0]
[{"$f":"'Risk Assessment Matrix'!A285","v":0},{"$f":"'Risk Assessment Matrix'!B285","v":0},{"$f":"'Risk Assessment Matrix'!C285","v":0},{"$f":"'Risk Assessment Matrix'!D285","v":0},0]
[{"$f":"'Risk Assessment Matrix'!A286","v":0},{"$f":"'Risk Assessment Matrix'!B286","v":0},{"$f":"'Risk Assessment Matrix'!C286","v":0},{"$f":"'Risk Assessment Matrix'!D286","v":0},0]
[{"$f":"'Risk Assessment Matrix'!A287","v":0},{"$f":"'Risk Assessment Matrix'!B287","v":0},{"$f":"'Risk Assessment Matrix'!C287","v":0},{"$f":"'Risk Assessment Matrix'!D287","v":0},0]
[{"$f":"'Risk Assessment Matrix'!A288","v":0},{"$f":"'Risk Assessment Matrix'!B288","v":0},{"$f":"'Risk Assessment Matrix'!C288","v":0},{"$f":"'Risk Assessment Matrix'!D288","v":0},0]
[{"$f":"'Risk Assessment Matrix'!A289","v":0},{"$f":"'Risk Assessment Matrix'!B289","v":0},{"$f":"'Risk Assessment Matrix'!C289","v":0},{"$f":"'Risk Assessment Matrix'!D289","v":0},0]
[{"$f":"'Risk Assessment Matrix'!A290","v":0},{"$f":"'Risk Assessment Matrix'!B290","v":0},{"$f":"'Risk Assessment Matrix'!C290","v":0},{"$f":"'Risk Assessment Matrix'!D290","v":0},0]
[{"$f":"'Risk Assessment Matrix'!A291","v":0},{"$f":"'Risk Assessment Matrix'!B291","v":0},{"$f":"'Risk Assessment Matrix'!C291","v":0},{"$f":"'Risk Assessment Matrix'!D291","v":0},0]
[{"$f":"'Risk Assessment Matrix'!A292","v":0},{"$f":"'Risk Assessment Matrix'!B292","v":0},{"$f":"'Risk Assessment Matrix'!C292","v":0},{"$f":"'Risk Assessment Matrix'!D292","v":0},0]
[{"$f":"'Risk Assessment Matrix'!A293","v":0},{"$f":"'Risk Assessment Matrix'!B293","v":0},{"$f":"'Risk Assessment Matrix'!C293","v":0},{"$f":"'Risk Assessment Matrix'!D293","v":0},0]
[{"$f":"'Risk Assessment Matrix'!A294","v":0},{"$f":"'Risk Assessment Matrix'!B294","v":0},{"$f":"'Risk Assessment Matrix'!C294","v":0},{"$f":"'Risk Assessment Matrix'!D294","v":0},0]
[{"$f":"'Risk Assessment Matrix'!A295","v":0},{"$f":"'Risk Assessment Matrix'!B295","v":0},{"$f":"'Risk Assessment Matrix'!C295","v":0},{"$f":"'Risk Assessment Matrix'!D295","v":0},0]
[{"$f":"'Risk Assessment Matrix'!A296","v":0},{"$f":"'Risk Assessment Matrix'!B296","v":0},{"$f":"'Risk Assessment Matrix'!C296","v":0},{"$f":"'Risk Assessment Matrix'!D296","v":0},0]
[{"$f":"'Risk Assessment Matrix'!A297","v":0},{"$f":"'Risk Assessment Matrix'!B297","v":0},{"$f":"'Risk Assessment Matrix'!C297","v":0},{"$f":"'Risk Assessment Matrix'!D297","v":0},0]
[{"$f":"'Risk Assessment Matrix'!A298","v":0},{"$f":"'Risk Assessment Matrix'!B298","v":0},{"$f":"'Risk Assessment Matrix'!C298","v":0},{"$f":"'Risk Assessment Matrix'!D298","v":0},0]
[{"$f":"'Risk Assessment Matrix'!A299","v":0},{"$f":"'Risk Assessment Matrix'!B299","v":0},{"$f":"'Risk Assessment Matrix'!C299","v":0},{"$f":"'Risk Assessment Matrix'!D299","v":0},0]
[{"$f":"'Risk Assessment Matrix'!A300","v":0},{"$f":"'Risk Assessment Matrix'!B300","v":0},{"$f":"'Risk Assessment Matrix'!C300","v":0},{"$f":"'Risk Assessment Matrix'!D300","v":0},0]
[{"$f":"'Risk Assessment Matrix'!A301","v":0},{"$f":"'Risk Assessment Matrix'!B301","v":0},{"$f":"'Risk Assessment Matrix'!C301","v":0},{"$f":"'Risk Assessment Matrix'!D301","v":0},0]
[{"$f":"'Risk Assessment Matrix'!A302","v":0},{"$f":"'Risk Assessment Matrix'!B302","v":0},{"$f":"'Risk Assessment Matrix'!C302","v":0},{"$f":"'Risk Assessment Matrix'!D302","v":0},0]
[{"$f":"'Risk Assessment Matrix'!A303","v":0},{"$f":"'Risk Assessment Matrix'!B303","v":0},{"$f":"'Risk Assessment Matrix'!C303","v":0},{"$f":"'Risk Assessment Matrix'!D303","v":0},0]
[{"$f":"'Risk Assessment Matrix'!A304","v":0},{"$f":"'Risk Assessment Matrix'!B304","v":0},{"$f":"'Risk Assessment Matrix'!C304","v":0},{"$f":"'Risk Assessment Matrix'!D304","v":0},0]
[{"$f":"'Risk Assessment Matrix'!A305","v":0},{"$f":"'Risk Assessment Matrix'!B305","v":0},{"$f":"'Risk Assessment Matrix'!C305","v":0},{"$f":"'Risk Assessment Matrix'!D305","v":0},0]
[{"$f":"'Risk Assessment Matrix'!A306","v":0},{"$f":"'Risk Assessment Matrix'!B306","v":0},{"$f":"'Risk Assessment Matrix'!C306","v":0},{"$f":"'Risk Assessment Matrix'!D306","v":0},0]
[{"$f":"'Risk Assessment Matrix'!A307","v":0},{"$f":"'Risk Assessment Matrix'!B307","v":0},{"$f":"'Risk Assessment Matrix'!C307","v":0},{"$f":"'Risk Assessment Matrix'!D307","v":0},0]
[{"$f":"'Risk Assessment Matrix'!A308","v":0},{"$f":"'Risk Assessment Matrix'!B308","v":0},{"$f":"'Risk Assessment Matrix'!C308","v":0},{"$f":"'Risk Assessment Matrix'!D308","v":0},0]
[{"$f":"'Risk Assessment Matrix'!A309","v":0},{"$f":"'Risk Assessment Matrix'!B309","v":0},{"$f":"'Risk Assessment Matrix'!C309","v":0},{"$f":"'Risk Assessment Matrix'!D309","v":0},0]
[{"$f":"'Risk Assessment Matrix'!A310","v":0},{"$f":"'Risk Assessment Matrix'!B310","v":0},{"$f":"'Risk Assessment Matrix'!C310","v":0},{"$f":"'Risk Assessment Matrix'!D310","v":0},0]
[{"$f":"'Risk Assessment Matrix'!A311","v":0},{"$f":"'Risk Assessment Matrix'!B311","v":0},{"$f":"'Risk Assessment Matrix'!C311","v":0},{"$f":"'Risk Assessment Matrix'!D311","v":0},0]
[{"$f":"'Risk Assessment Matrix'!A312","v":0},{"$f":"'Risk Assessment Matrix'!B312","v":0},{"$f":"'Risk Assessment Matrix'!C312","v":0},{"$f":"'Risk Assessment Matrix'!D312","v":0},0]
[{"$f":"'Risk Assessment Matrix'!A313","v":0},{"$f":"'Risk Assessment Matrix'!B313","v":0},{"$f":"'Risk Assessment Matrix'!C313","v":0},{"$f":"'Risk Assessment Matrix'!D313","v":0},0]
[{"$f":"'Risk Assessment Matrix'!A314","v":0},{"$f":"'Risk Assessment Matrix'!B314","v":0},{"$f":"'Risk Assessment Matrix'!C314","v":0},{"$f":"'Risk Assessment Matrix'!D314","v":0},0]
[{"$f":"'Risk Assessment Matrix'!A315","v":0},{"$f":"'Risk Assessment Matrix'!B315","v":0},{"$f":"'Risk Assessment Matrix'!C315","v":0},{"$f":"'Risk Assessment Matrix'!D315","v":0},0]
[{"$f":"'Risk Assessment Matrix'!A316","v":0},{"$f":"'Risk Assessment Matrix'!B316","v":0},{"$f":"'Risk Assessment Matrix'!C316","v":0},{"$f":"'Risk Assessment Matrix'!D316","v":0},0]
[{"$f":"'Risk Assessment Matrix'!A317","v":0},{"$f":"'Risk Assessment Matrix'!B317","v":0},{"$f":"'Risk Assessment Matrix'!C317","v":0},{"$f":"'Risk Assessment Matrix'!D317","v":0},0]
[{"$f":"'Risk Assessment Matrix'!A318","v":0},{"$f":"'Risk Assessment Matrix'!B318","v":0},{"$f":"'Risk Assessment Matrix'!C318","v":0},{"$f":"'Risk Assessment Matrix'!D318","v":0},0]
[{"$f":"'Risk Assessment Matrix'!A319","v":0},{"$f":"'Risk Assessment Matrix'!B319","v":0},{"$f":"'Risk Assessment Matrix'!C319","v":0},{"$f":"'Risk Assessment Matrix'!D319","v":0},0]
[{"$f":"'Risk Assessment Matrix'!A320","v":0},{"$f":"'Risk Assessment Matrix'!B320","v":0},{"$f":"'Risk Assessment Matrix'!C320","v":0},{"$f":"'Risk Assessment Matrix'!D320","v":0},0]
[{"$f":"'Risk Assessment Matrix'!A321","v":0},{"$f":"'Risk Assessment Matrix'!B321","v":0},{"$f":"'Risk Assessment Matrix'!C321","v":0},{"$f":"'Risk Assessment Matrix'!D321","v":0},0]
[{"$f":"'Risk Assessment Matrix'!A322","v":0},{"$f":"'Risk Assessment Matrix'!B322","v":0},{"$f":"'Risk Assessment Matrix'!C322","v":0},{"$f":"'Risk Assessment Matrix'!D322","v":0},0]
[{"$f":"'Risk Assessment Matrix'!A323","v":0},{"$f":"'Risk Assessment Matrix'!B323","v":0},{"$f":"'Risk Assessment Matrix'!C323","v":0},{"$f":"'Risk Assessment Matrix'!D323","v":0},0]
[{"$f":"'Risk Assessment Matrix'!A324","v":0},{"$f":"'Risk Assessment Matrix'!B324","v":0},{"$f":"'Risk Assessment Matrix'!C324","v":0},{"$f":"'Risk Assessment Matrix'!D324","v":0},{"$f":"C324*D324","v":0}]
[{"$f":"'Risk Assessment Matrix'!A325","v":0},{"$f":"'Risk Assessment Matrix'!B325","v":0},{"$f":"'Risk Assessment Matrix'!C325","v":0},{"$f":"'Risk Assessment Matrix'!D325","v":0},0]
[{"$f":"'Risk Assessment Matrix'!A326","v":0},{"$f":"'Risk Assessment Matrix'!B326","v":0},{"$f":"'Risk Assessment Matrix'!C326","v":0},{"$f":"'Risk Assessment Matrix'!D326","v":0},0]
[{"$f":"'Risk Assessment Matrix'!A327","v":0},{"$f":"'Risk Assessment Matrix'!B327","v":0},{"$f":"'Risk Assessment Matrix'!C327","v":0},{"$f":"'Risk Assessment Matrix'!D327","v":0},0]
[{"$f":"'Risk Assessment Matrix'!A328","v":0},{"$f":"'Risk Assessment Matrix'!B328","v":0},{"$f":"'Risk Assessment Matrix'!C328","v":0},{"$f":"'Risk Assessment Matrix'!D328","v":0},0]
[{"$f":"'Risk Assessment Matrix'!A329","v":0},{"$f":"'Risk Assessment Matrix'!B329","v":0},{"$f":"'Risk Assessment Matrix'!C329","v":0},{"$f":"'Risk Assessment Matrix'!D329","v":0},0]
[{"$f":"'Risk Assessment Matrix'!A330","v":0},{"$f":"'Risk Assessment Matrix'!B330","v":0},{"$f":"'Risk Assessment Matrix'!C330","v":0},{"$f":"'Risk Assessment Matrix'!D330","v":0},0]
[{"$f":"'Risk Assessment Matrix'!A331","v":0},{"$f":"'Risk Assessment Matrix'!B331","v":0},{"$f":"'Risk Assessment Matrix'!C331","v":0},{"$f":"'Risk Assessment Matrix'!D331","v":0},0]
[{"$f":"'Risk Assessment Matrix'!A332","v":0},{"$f":"'Risk Assessment Matrix'!B332","v":0},{"$f":"'Risk Assessment Matrix'!C332","v":0},{"$f":"'Risk Assessment Matrix'!D332","v":0},0]
[{"$f":"'Risk Assessment Matrix'!A333","v":0},{"$f":"'Risk Assessment Matrix'!B333","v":0},{"$f":"'Risk Assessment Matrix'!C333","v":0},{"$f":"'Risk Assessment Matrix'!D333","v":0},0]
[{"$f":"'Risk Assessment Matrix'!A334","v":0},{"$f":"'Risk Assessment Matrix'!B334","v":0},{"$f":"'Risk Assessment Matrix'!C334","v":0},{"$f":"'Risk Assessment Matrix'!D334","v":0},0]
[{"$f":"'Risk Assessment Matrix'!A335","v":0},{"$f":"'Risk Assessment Matrix'!B335","v":0},{"$f":"'Risk Assessment Matrix'!C335","v":0},{"$f":"'Risk Assessment Matrix'!D335","v":0},0]
[{"$f":"'Risk Assessment Matrix'!A336","v":0},{"$f":"'Risk Assessment Matrix'!B336","v":0},{"$f":"'Risk Assessment Matrix'!C336","v":0},{"$f":"'Risk Assessment Matrix'!D336","v":0},0]
[{"$f":"'Risk Assessment Matrix'!A337","v":0},{"$f":"'Risk Assessment Matrix'!B337","v":0},{"$f":"'Risk Assessment Matrix'!C337","v":0},{"$f":"'Risk Assessment Matrix'!D337","v":0},0]
[{"$f":"'Risk Assessment Matrix'!A338","v":0},{"$f":"'Risk Assessment Matrix'!B338","v":0},{"$f":"'Risk Assessment Matrix'!C338","v":0},{"$f":"'Risk Assessment Matrix'!D338","v":0},0]
[{"$f":"'Risk Assessment Matrix'!A339","v":0},{"$f":"'Risk Assessment Matrix'!B339","v":0},{"$f":"'Risk Assessment Matrix'!C339","v":0},{"$f":"'Risk Assessment Matrix'!D339","v":0},0]
[{"$f":"'Risk Assessment Matrix'!A340","v":0},{"$f":"'Risk Assessment Matrix'!B340","v":0},{"$f":"'Risk Assessment Matrix'!C340","v":0},{"$f":"'Risk Assessment Matrix'!D340","v":0},0]
[{"$f":"'Risk Assessment Matrix'!A341","v":0},{"$f":"'Risk Assessment Matrix'!B341","v":0},{"$f":"'Risk Assessment Matrix'!C341","v":0},{"$f":"'Risk Assessment Matrix'!D341","v":0},0]
[{"$f":"'Risk Assessment Matrix'!A342","v":0},{"$f":"'Risk Assessment Matrix'!B342","v":0},{"$f":"'Risk Assessment Matrix'!C342","v":0},{"$f":"'Risk Assessment Matrix'!D342","v":0},0]
[{"$f":"'Risk Assessment Matrix'!A343","v":0},{"$f":"'Risk Assessment Matrix'!B343","v":0},{"$f":"'Risk Assessment Matrix'!C343","v":0},{"$f":"'Risk Assessment Matrix'!D343","v":0},0]
[{"$f":"'Risk Assessment Matrix'!A344","v":0},{"$f":"'Risk Assessment Matrix'!B344","v":0},{"$f":"'Risk Assessment Matrix'!C344","v":0},{"$f":"'Risk Assessment Matrix'!D344","v":0},0]
[{"$f":"'Risk Assessment Matrix'!A345","v":0},{"$f":"'Risk Assessment Matrix'!B345","v":0},{"$f":"'Risk Assessment Matrix'!C345","v":0},{"$f":"'Risk Assessment Matrix'!D345","v":0},0]
[{"$f":"'Risk Assessment Matrix'!A346","v":0},{"$f":"'Risk Assessment Matrix'!B346","v":0},{"$f":"'Risk Assessment Matrix'!C346","v":0},{"$f":"'Risk Assessment Matrix'!D346","v":0},0]
[{"$f":"'Risk Assessment Matrix'!A347","v":0},{"$f":"'Risk Assessment Matrix'!B347","v":0},{"$f":"'Risk Assessment Matrix'!C347","v":0},{"$f":"'Risk Assessment Matrix'!D347","v":0},0]
[{"$f":"'Risk Assessment Matrix'!A348","v":0},{"$f":"'Risk Assessment Matrix'!B348","v":0},{"$f":"'Risk Assessment Matrix'!C348","v":0},{"$f":"'Risk Assessment Matrix'!D348","v":0},0]
[{"$f":"'Risk Assessment Matrix'!A349","v":0},{"$f":"'Risk Assessment Matrix'!B349","v":0},{"$f":"'Risk Assessment Matrix'!C349","v":0},{"$f":"'Risk Assessment Matrix'!D349","v":0},0]
[{"$f":"'Risk Assessment Matrix'!A350","v":0},{"$f":"'Risk Assessment Matrix'!B350","v":0},{"$f":"'Risk Assessment Matrix'!C350","v":0},{"$f":"'Risk Assessment Matrix'!D350","v":0},0]
[{"$f":"'Risk Assessment Matrix'!A351","v":0},{"$f":"'Risk Assessment Matrix'!B351","v":0},{"$f":"'Risk Assessment Matrix'!C351","v":0},{"$f":"'Risk Assessment Matrix'!D351","v":0},0]
[{"$f":"'Risk Assessment Matrix'!A352","v":0},{"$f":"'Risk Assessment Matrix'!B352","v":0},{"$f":"'Risk Assessment Matrix'!C352","v":0},{"$f":"'Risk Assessment Matrix'!D352","v":0},0]
[{"$f":"'Risk Assessment Matrix'!A353","v":0},{"$f":"'Risk Assessment Matrix'!B353","v":0},{"$f":"'Risk Assessment Matrix'!C353","v":0},{"$f":"'Risk Assessment Matrix'!D353","v":0},0]
[{"$f":"'Risk Assessment Matrix'!A354","v":0},{"$f":"'Risk Assessment Matrix'!B354","v":0},{"$f":"'Risk Assessment Matrix'!C354","v":0},{"$f":"'Risk Assessment Matrix'!D354","v":0},0]
[{"$f":"'Risk Assessment Matrix'!A355","v":0},{"$f":"'Risk Assessment Matrix'!B355","v":0},{"$f":"'Risk Assessment Matrix'!C355","v":0},{"$f":"'Risk Assessment Matrix'!D355","v":0},0]
[{"$f":"'Risk Assessment Matrix'!A356","v":0},{"$f":"'Risk Assessment Matrix'!B356","v":0},{"$f":"'Risk Assessment Matrix'!C356","v":0},{"$f":"'Risk Assessment Matrix'!D356","v":0},0]
[{"$f":"'Risk Assessment Matrix'!A357","v":0},{"$f":"'Risk Assessment Matrix'!B357","v":0},{"$f":"'Risk Assessment Matrix'!C357","v":0},{"$f":"'Risk Assessment Matrix'!D357","v":0},0]
[{"$f":"'Risk Assessment Matrix'!A358","v":0},{"$f":"'Risk Assessment Matrix'!B358","v":0},{"$f":"'Risk Assessment Matrix'!C358","v":0},{"$f":"'Risk Assessment Matrix'!D358","v":0},0]
[{"$f":"'Risk Assessment Matrix'!A359","v":0},{"$f":"'Risk Assessment Matrix'!B359","v":0},{"$f":"'Risk Assessment Matrix'!C359","v":0},{"$f":"'Risk Assessment Matrix'!D359","v":0},0]
[{"$f":"'Risk Assessment Matrix'!A360","v":0},{"$f":"'Risk Assessment Matrix'!B360","v":0},{"$f":"'Risk Assessment Matrix'!C360","v":0},{"$f":"'Risk Assessment Matrix'!D360","v":0},0]
[{"$f":"'Risk Assessment Matrix'!A361","v":0},{"$f":"'Risk Assessment Matrix'!B361","v":0},{"$f":"'Risk Assessment Matrix'!C361","v":0},{"$f":"'Risk Assessment Matrix'!D361","v":0},0]
[{"$f":"'Risk Assessment Matrix'!A362","v":0},{"$f":"'Risk Assessment Matrix'!B362","v":0},{"$f":"'Risk Assessment Matrix'!C362","v":0},{"$f":"'Risk Assessment Matrix'!D362","v":0},0]
[{"$f":"'Risk Assessment Matrix'!A363","v":0},{"$f":"'Risk Assessment Matrix'!B363","v":0},{"$f":"'Risk Assessment Matrix'!C363","v":0},{"$f":"'Risk Assessment Matrix'!D363","v":0},0]
[{"$f":"'Risk Assessment Matrix'!A364","v":0},{"$f":"'Risk Assessment Matrix'!B364","v":0},{"$f":"'Risk Assessment Matrix'!C364","v":0},{"$f":"'Risk Assessment Matrix'!D364","v":0},0]
[{"$f":"'Risk Assessment Matrix'!A365","v":0},{"$f":"'Risk Assessment Matrix'!B365","v":0},{"$f":"'Risk Assessment Matrix'!C365","v":0},{"$f":"'Risk Assessment Matrix'!D365","v":0},0]
[{"$f":"'Risk Assessment Matrix'!A366","v":0},{"$f":"'Risk Assessment Matrix'!B366","v":0},{"$f":"'Risk Assessment Matrix'!C366","v":0},{"$f":"'Risk Assessment Matrix'!D366","v":0},0]
[{"$f":"'Risk Assessment Matrix'!A367","v":0},{"$f":"'Risk Assessment Matrix'!B367","v":0},{"$f":"'Risk Assessment Matrix'!C367","v":0},{"$f":"'Risk Assessment Matrix'!D367","v":0},0]
[{"$f":"'Risk Assessment Matrix'!A368","v":0},{"$f":"'Risk Assessment Matrix'!B368","v":0},{"$f":"'Risk Assessment Matrix'!C368","v":0},{"$f":"'Risk Assessment Matrix'!D368","v":0},0]
[{"$f":"'Risk Assessment Matrix'!A369","v":0},{"$f":"'Risk Assessment Matrix'!B369","v":0},{"$f":"'Risk Assessment Matrix'!C369","v":0},{"$f":"'Risk Assessment Matrix'!D369","v":0},0]
[{"$f":"'Risk Assessment Matrix'!A370","v":0},{"$f":"'Risk Assessment Matrix'!B370","v":0},{"$f":"'Risk Assessment Matrix'!C370","v":0},{"$f":"'Risk Assessment Matrix'!D370","v":0},0]
[{"$f":"'Risk Assessment Matrix'!A371","v":0},{"$f":"'Risk Assessment Matrix'!B371","v":0},{"$f":"'Risk Assessment Matrix'!C371","v":0},{"$f":"'Risk Assessment Matrix'!D371","v":0},0]
[{"$f":"'Risk Assessment Matrix'!A372","v":0},{"$f":"'Risk Assessment Matrix'!B372","v":0},{"$f":"'Risk Assessment Matrix'!C372","v":0},{"$f":"'Risk Assessment Matrix'!D372","v":0},0]
[{"$f":"'Risk Assessment Matrix'!A373","v":0},{"$f":"'Risk Assessment Matrix'!B373","v":0},{"$f":"'Risk Assessment Matrix'!C373","v":0},{"$f":"'Risk Assessment Matrix'!D373","v":0},0]
[{"$f":"'Risk Assessment Matrix'!A374","v":0},{"$f":"'Risk Assessment Matrix'!B374","v":0},{"$f":"'Risk Assessment Matrix'!C374","v":0},{"$f":"'Risk Assessment Matrix'!D374","v":0},0]
[{"$f":"'Risk Assessment Matrix'!A375","v":0},{"$f":"'Risk Assessment Matrix'!B375","v":0},{"$f":"'Risk Assessment Matrix'!C375","v":0},{"$f":"'Risk Assessment Matrix'!D375","v":0},0]
[{"$f":"'Risk Assessment Matrix'!A376","v":0},{"$f":"'Risk Assessment Matrix'!B376","v":0},{"$f":"'Risk Assessment Matrix'!C376","v":0},{"$f":"'Risk Assessment Matrix'!D376","v":0},0]
[{"$f":"'Risk Assessment Matrix'!A377","v":0},{"$f":"'Risk Assessment Matrix'!B377","v":0},{"$f":"'Risk Assessment Matrix'!C377","v":0},{"$f":"'Risk Assessment Matrix'!D377","v":0},0]
[{"$f":"'Risk Assessment Matrix'!A378","v":0},{"$f":"'Risk Assessment Matrix'!B378","v":0},{"$f":"'Risk Assessment Matrix'!C378","v":0},{"$f":"'Risk Assessment Matrix'!D378","v":0},0]
[{"$f":"'Risk Assessment Matrix'!A379","v":0},{"$f":"'Risk Assessment Matrix'!B379","v":0},{"$f":"'Risk Assessment Matrix'!C379","v":0},{"$f":"'Risk Assessment Matrix'!D379","v":0},0]
[{"$f":"'Risk Assessment Matrix'!A380","v":0},{"$f":"'Risk Assessment Matrix'!B380","v":0},{"$f":"'Risk Assessment Matrix'!C380","v":0},{"$f":"'Risk Assessment Matrix'!D380","v":0},0]
[{"$f":"'Risk Assessment Matrix'!A381","v":0},{"$f":"'Risk Assessment Matrix'!B381","v":0},{"$f":"'Risk Assessment Matrix'!C381","v":0},{"$f":"'Risk Assessment Matrix'!D381","v":0},0]
[{"$f":"'Risk Assessment Matrix'!A382","v":0},{"$f":"'Risk Assessment Matrix'!B382","v":0},{"$f":"'Risk Assessment Matrix'!C382","v":0},{"$f":"'Risk Assessment Matrix'!D382","v":0},0]
[{"$f":"'Risk Assessment Matrix'!A383","v":0},{"$f":"'Risk Assessment Matrix'!B383","v":0},{"$f":"'Risk Assessment Matrix'!C383","v":0},{"$f":"'Risk Assessment Matrix'!D383","v":0},0]
[{"$f":"'Risk Assessment Matrix'!A384","v":0},{"$f":"'Risk Assessment Matrix'!B384","v":0},{"$f":"'Risk Assessment Matrix'!C384","v":0},{"$f":"'Risk Assessment Matrix'!D384","v":0},0]
[{"$f":"'Risk Assessment Matrix'!A385","v":0},{"$f":"'Risk Assessment Matrix'!B385","v":0},{"$f":"'Risk Assessment Matrix'!C385","v":0},{"$f":"'Risk Assessment Matrix'!D385","v":0},0]
[{"$f":"'Risk Assessment Matrix'!A386","v":0},{"$f":"'Risk Assessment Matrix'!B386","v":0},{"$f":"'Risk Assessment Matrix'!C386","v":0},{"$f":"'Risk Assessment Matrix'!D386","v":0},0]
[{"$f":"'Risk Assessment Matrix'!A387","v":0},{"$f":"'Risk Assessment Matrix'!B387","v":0},{"$f":"'Risk Assessment Matrix'!C387","v":0},{"$f":"'Risk Assessment Matrix'!D387","v":0},0]
[{"$f":"'Risk Assessment Matrix'!A388","v":0},{"$f":"'Risk Assessment Matrix'!B388","v":0},{"$f":"'Risk Assessment Matrix'!C388","v":0},{"$f":"'Risk Assessment Matrix'!D388","v":0},{"$f":"C388*D388","v":0}]
[{"$f":"'Risk Assessment Matrix'!A389","v":0},{"$f":"'Risk Assessment Matrix'!B389","v":0},{"$f":"'Risk Assessment Matrix'!C389","v":0},{"$f":"'Risk Assessment Matrix'!D389","v":0},0]
[{"$f":"'Risk Assessment Matrix'!A390","v":0},{"$f":"'Risk Assessment Matrix'!B390","v":0},{"$f":"'Risk Assessment Matrix'!C390","v":0},{"$f":"'Risk Assessment Matrix'!D390","v":0},0]
[{"$f":"'Risk Assessment Matrix'!A391","v":0},{"$f":"'Risk Assessment Matrix'!B391","v":0},{"$f":"'Risk Assessment Matrix'!C391","v":0},{"$f":"'Risk Assessment Matrix'!D391","v":0},0]
[{"$f":"'Risk Assessment Matrix'!A392","v":0},{"$f":"'Risk Assessment Matrix'!B392","v":0},{"$f":"'Risk Assessment Matrix'!C392","v":0},{"$f":"'Risk Assessment Matrix'!D392","v":0},0]
[{"$f":"'Risk Assessment Matrix'!A393","v":0},{"$f":"'Risk Assessment Matrix'!B393","v":0},{"$f":"'Risk Assessment Matrix'!C393","v":0},{"$f":"'Risk Assessment Matrix'!D393","v":0},0]
[{"$f":"'Risk Assessment Matrix'!A394","v":0},{"$f":"'Risk Assessment Matrix'!B394","v":0},{"$f":"'Risk Assessment Matrix'!C394","v":0},{"$f":"'Risk Assessment Matrix'!D394","v":0},0]
[{"$f":"'Risk Assessment Matrix'!A395","v":0},{"$f":"'Risk Assessment Matrix'!B395","v":0},{"$f":"'Risk Assessment Matrix'!C395","v":0},{"$f":"'Risk Assessment Matrix'!D395","v":0},0]
[{"$f":"'Risk Assessment Matrix'!A396","v":0},{"$f":"'Risk Assessment Matrix'!B396","v":0},{"$f":"'Risk Assessment Matrix'!C396","v":0},{"$f":"'Risk Assessment Matrix'!D396","v":0},0]
[{"$f":"'Risk Assessment Matrix'!A397","v":0},{"$f":"'Risk Assessment Matrix'!B397","v":0},{"$f":"'Risk Assessment Matrix'!C397","v":0},{"$f":"'Risk Assessment Matrix'!D397","v":0},0]
[{"$f":"'Risk Assessment Matrix'!A398","v":0},{"$f":"'Risk Assessment Matrix'!B398","v":0},{"$f":"'Risk Assessment Matrix'!C398","v":0},{"$f":"'Risk Assessment Matrix'!D398","v":0},0]
[{"$f":"'Risk Assessment Matrix'!A399","v":0},{"$f":"'Risk Assessment Matrix'!B399","v":0},{"$f":"'Risk Assessment Matrix'!C399","v":0},{"$f":"'Risk Assessment Matrix'!D399","v":0},0]
[{"$f":"'Risk Assessment Matrix'!A400","v":0},{"$f":"'Risk Assessment Matrix'!B400","v":0},{"$f":"'Risk Assessment Matrix'!C400","v":0},{"$f":"'Risk Assessment Matrix'!D400","v":0},0]

{"sheet":"Control Activities Matrix","index":7,"n_rows":400,"n_cols":9,"rows_kept":400,"cut":false,"hidden":false,"merged":[[0,0,0,8]]}
["Control Activities Matrix"]
[]
["ID Number","Identified Fraud Risks and Schemes","Fraud Risk Score","Existing Control Activities","Preventive [P], Detective [D], or Combined [C]","Responsible Person(s)","Additional Control Activities","Preventive [P], Detective [D], or Combined [C]","Responsible Person(s)"]
[{"$f":"'Risk Assessment Matrix'!A4","v":123},{"$f":"'Risk Assessment Matrix'!B4","v":"Cash"},{"$f":"'Risk Assessment Matrix'!E4","v":16},{"$f":"'Risk Assessment Matrix'!G4","v":0},{"$f":"'Risk Assessment Matrix'!H4","v":0}]
[{"$f":"'Risk Assessment Matrix'!A5","v":0},{"$f":"'Risk Assessment Matrix'!B5","v":0},{"$f":"'Risk Assessment Matrix'!E5","v":0},{"$f":"'Risk Assessment Matrix'!G5","v":0},{"$f":"'Risk Assessment Matrix'!H5","v":0}]
[{"$f":"'Risk Assessment Matrix'!A6","v":0},{"$f":"'Risk Assessment Matrix'!B6","v":0},{"$f":"'Risk Assessment Matrix'!E6","v":0},{"$f":"'Risk Assessment Matrix'!G6","v":0},{"$f":"'Risk Assessment Matrix'!H6","v":0}]
[{"$f":"'Risk Assessment Matrix'!A7","v":0},{"$f":"'Risk Assessment Matrix'!B7","v":0},{"$f":"'Risk Assessment Matrix'!E7","v":0},{"$f":"'Risk Assessment Matrix'!G7","v":0},{"$f":"'Risk Assessment Matrix'!H7","v":0}]
[{"$f":"'Risk Assessment Matrix'!A8","v":0},{"$f":"'Risk Assessment Matrix'!B8","v":0},{"$f":"'Risk Assessment Matrix'!E8","v":0},{"$f":"'Risk Assessment Matrix'!G8","v":0},{"$f":"'Risk Assessment Matrix'!H8","v":0}]
[{"$f":"'Risk Assessment Matrix'!A9","v":0},{"$f":"'Risk Assessment Matrix'!B9","v":0},{"$f":"'Risk Assessment Matrix'!E9","v":0},{"$f":"'Risk Assessment Matrix'!G9","v":0},{"$f":"'Risk Assessment Matrix'!H9","v":0}]
[{"$f":"'Risk Assessment Matrix'!A10","v":0},{"$f":"'Risk Assessment Matrix'!B10","v":0},{"$f":"'Risk Assessment Matrix'!E10","v":0},{"$f":"'Risk Assessment Matrix'!G10","v":0},{"$f":"'Risk Assessment Matrix'!H10","v":0}]
[{"$f":"'Risk Assessment Matrix'!A11","v":0},{"$f":"'Risk Assessment Matrix'!B11","v":0},{"$f":"'Risk Assessment Matrix'!E11","v":0},{"$f":"'Risk Assessment Matrix'!G11","v":0},{"$f":"'Risk Assessment Matrix'!H11","v":0}]
[{"$f":"'Risk Assessment Matrix'!A12","v":0},{"$f":"'Risk Assessment Matrix'!B12","v":0},{"$f":"'Risk Assessment Matrix'!E12","v":0},{"$f":"'Risk Assessment Matrix'!G12","v":0},{"$f":"'Risk Assessment Matrix'!H12","v":0}]
[{"$f":"'Risk Assessment Matrix'!A13","v":0},{"$f":"'Risk Assessment Matrix'!B13","v":0},{"$f":"'Risk Assessment Matrix'!E13","v":0},{"$f":"'Risk Assessment Matrix'!G13","v":0},{"$f":"'Risk Assessment Matrix'!H13","v":0}]
[{"$f":"'Risk Assessment Matrix'!A14","v":0},{"$f":"'Risk Assessment Matrix'!B14","v":0},{"$f":"'Risk Assessment Matrix'!E14","v":0},{"$f":"'Risk Assessment Matrix'!G14","v":0},{"$f":"'Risk Assessment Matrix'!H14","v":0}]
[{"$f":"'Risk Assessment Matrix'!A15","v":0},{"$f":"'Risk Assessment Matrix'!B15","v":0},{"$f":"'Risk Assessment Matrix'!E15","v":0},{"$f":"'Risk Assessment Matrix'!G15","v":0},{"$f":"'Risk Assessment Matrix'!H15","v":0}]
[{"$f":"'Risk Assessment Matrix'!A16","v":0},{"$f":"'Risk Assessment Matrix'!B16","v":0},{"$f":"'Risk Assessment Matrix'!E16","v":0},{"$f":"'Risk Assessment Matrix'!G16","v":0},{"$f":"'Risk Assessment Matrix'!H16","v":0}]
[{"$f":"'Risk Assessment Matrix'!A17","v":0},{"$f":"'Risk Assessment Matrix'!B17","v":0},{"$f":"'Risk Assessment Matrix'!E17","v":0},{"$f":"'Risk Assessment Matrix'!G17","v":0},{"$f":"'Risk Assessment Matrix'!H17","v":0}]
[{"$f":"'Risk Assessment Matrix'!A18","v":0},{"$f":"'Risk Assessment Matrix'!B18","v":0},{"$f":"'Risk Assessment Matrix'!E18","v":0},{"$f":"'Risk Assessment Matrix'!G18","v":0},{"$f":"'Risk Assessment Matrix'!H18","v":0}]
[{"$f":"'Risk Assessment Matrix'!A19","v":0},{"$f":"'Risk Assessment Matrix'!B19","v":0},{"$f":"'Risk Assessment Matrix'!E19","v":0},{"$f":"'Risk Assessment Matrix'!G19","v":0},{"$f":"'Risk Assessment Matrix'!H19","v":0}]
[{"$f":"'Risk Assessment Matrix'!A20","v":0},{"$f":"'Risk Assessment Matrix'!B20","v":0},{"$f":"'Risk Assessment Matrix'!E20","v":0},{"$f":"'Risk Assessment Matrix'!G20","v":0},{"$f":"'Risk Assessment Matrix'!H20","v":0}]
[{"$f":"'Risk Assessment Matrix'!A21","v":0},{"$f":"'Risk Assessment Matrix'!B21","v":0},{"$f":"'Risk Assessment Matrix'!E21","v":0},{"$f":"'Risk Assessment Matrix'!G21","v":0},{"$f":"'Risk Assessment Matrix'!H21","v":0}]
[{"$f":"'Risk Assessment Matrix'!A22","v":0},{"$f":"'Risk Assessment Matrix'!B22","v":0},{"$f":"'Risk Assessment Matrix'!E22","v":0},{"$f":"'Risk Assessment Matrix'!G22","v":0},{"$f":"'Risk Assessment Matrix'!H22","v":0}]
[{"$f":"'Risk Assessment Matrix'!A23","v":0},{"$f":"'Risk Assessment Matrix'!B23","v":0},{"$f":"'Risk Assessment Matrix'!E23","v":0},{"$f":"'Risk Assessment Matrix'!G23","v":0},{"$f":"'Risk Assessment Matrix'!H23","v":0}]
[{"$f":"'Risk Assessment Matrix'!A24","v":0},{"$f":"'Risk Assessment Matrix'!B24","v":0},{"$f":"'Risk Assessment Matrix'!E24","v":0},{"$f":"'Risk Assessment Matrix'!G24","v":0},{"$f":"'Risk Assessment Matrix'!H24","v":0}]
[{"$f":"'Risk Assessment Matrix'!A25","v":0},{"$f":"'Risk Assessment Matrix'!B25","v":0},{"$f":"'Risk Assessment Matrix'!E25","v":0},{"$f":"'Risk Assessment Matrix'!G25","v":0},{"$f":"'Risk Assessment Matrix'!H25","v":0}]
[{"$f":"'Risk Assessment Matrix'!A26","v":0},{"$f":"'Risk Assessment Matrix'!B26","v":0},{"$f":"'Risk Assessment Matrix'!E26","v":0},{"$f":"'Risk Assessment Matrix'!G26","v":0},{"$f":"'Risk Assessment Matrix'!H26","v":0}]
[{"$f":"'Risk Assessment Matrix'!A27","v":0},{"$f":"'Risk Assessment Matrix'!B27","v":0},{"$f":"'Risk Assessment Matrix'!E27","v":0},{"$f":"'Risk Assessment Matrix'!G27","v":0},{"$f":"'Risk Assessment Matrix'!H27","v":0}]
[{"$f":"'Risk Assessment Matrix'!A28","v":0},{"$f":"'Risk Assessment Matrix'!B28","v":0},{"$f":"'Risk Assessment Matrix'!E28","v":0},{"$f":"'Risk Assessment Matrix'!G28","v":0},{"$f":"'Risk Assessment Matrix'!H28","v":0}]
[{"$f":"'Risk Assessment Matrix'!A29","v":0},{"$f":"'Risk Assessment Matrix'!B29","v":0},{"$f":"'Risk Assessment Matrix'!E29","v":0},{"$f":"'Risk Assessment Matrix'!G29","v":0},{"$f":"'Risk Assessment Matrix'!H29","v":0}]
[{"$f":"'Risk Assessment Matrix'!A30","v":0},{"$f":"'Risk Assessment Matrix'!B30","v":0},{"$f":"'Risk Assessment Matrix'!E30","v":0},{"$f":"'Risk Assessment Matrix'!G30","v":0},{"$f":"'Risk Assessment Matrix'!H30","v":0}]
[{"$f":"'Risk Assessment Matrix'!A31","v":0},{"$f":"'Risk Assessment Matrix'!B31","v":0},{"$f":"'Risk Assessment Matrix'!E31","v":0},{"$f":"'Risk Assessment Matrix'!G31","v":0},{"$f":"'Risk Assessment Matrix'!H31","v":0}]
[{"$f":"'Risk Assessment Matrix'!A32","v":0},{"$f":"'Risk Assessment Matrix'!B32","v":0},{"$f":"'Risk Assessment Matrix'!E32","v":0},{"$f":"'Risk Assessment Matrix'!G32","v":0},{"$f":"'Risk Assessment Matrix'!H32","v":0}]
[{"$f":"'Risk Assessment Matrix'!A33","v":0},{"$f":"'Risk Assessment Matrix'!B33","v":0},{"$f":"'Risk Assessment Matrix'!E33","v":0},{"$f":"'Risk Assessment Matrix'!G33","v":0},{"$f":"'Risk Assessment Matrix'!H33","v":0}]
[{"$f":"'Risk Assessment Matrix'!A34","v":0},{"$f":"'Risk Assessment Matrix'!B34","v":0},{"$f":"'Risk Assessment Matrix'!E34","v":0},{"$f":"'Risk Assessment Matrix'!G34","v":0},{"$f":"'Risk Assessment Matrix'!H34","v":0}]
[{"$f":"'Risk Assessment Matrix'!A35","v":0},{"$f":"'Risk Assessment Matrix'!B35","v":0},{"$f":"'Risk Assessment Matrix'!E35","v":0},{"$f":"'Risk Assessment Matrix'!G35","v":0},{"$f":"'Risk Assessment Matrix'!H35","v":0}]
[{"$f":"'Risk Assessment Matrix'!A36","v":0},{"$f":"'Risk Assessment Matrix'!B36","v":0},{"$f":"'Risk Assessment Matrix'!E36","v":0},{"$f":"'Risk Assessment Matrix'!G36","v":0},{"$f":"'Risk Assessment Matrix'!H36","v":0}]
[{"$f":"'Risk Assessment Matrix'!A37","v":0},{"$f":"'Risk Assessment Matrix'!B37","v":0},{"$f":"'Risk Assessment Matrix'!E37","v":0},{"$f":"'Risk Assessment Matrix'!G37","v":0},{"$f":"'Risk Assessment Matrix'!H37","v":0}]
[{"$f":"'Risk Assessment Matrix'!A38","v":0},{"$f":"'Risk Assessment Matrix'!B38","v":0},{"$f":"'Risk Assessment Matrix'!E38","v":0},{"$f":"'Risk Assessment Matrix'!G38","v":0},{"$f":"'Risk Assessment Matrix'!H38","v":0}]
[{"$f":"'Risk Assessment Matrix'!A39","v":0},{"$f":"'Risk Assessment Matrix'!B39","v":0},{"$f":"'Risk Assessment Matrix'!E39","v":0},{"$f":"'Risk Assessment Matrix'!G39","v":0},{"$f":"'Risk Assessment Matrix'!H39","v":0}]
[{"$f":"'Risk Assessment Matrix'!A40","v":0},{"$f":"'Risk Assessment Matrix'!B40","v":0},{"$f":"'Risk Assessment Matrix'!E40","v":0},{"$f":"'Risk Assessment Matrix'!G40","v":0},{"$f":"'Risk Assessment Matrix'!H40","v":0}]
[{"$f":"'Risk Assessment Matrix'!A41","v":0},{"$f":"'Risk Assessment Matrix'!B41","v":0},{"$f":"'Risk Assessment Matrix'!E41","v":0},{"$f":"'Risk Assessment Matrix'!G41","v":0},{"$f":"'Risk Assessment Matrix'!H41","v":0}]
[{"$f":"'Risk Assessment Matrix'!A42","v":0},{"$f":"'Risk Assessment Matrix'!B42","v":0},{"$f":"'Risk Assessment Matrix'!E42","v":0},{"$f":"'Risk Assessment Matrix'!G42","v":0},{"$f":"'Risk Assessment Matrix'!H42","v":0}]
[{"$f":"'Risk Assessment Matrix'!A43","v":0},{"$f":"'Risk Assessment Matrix'!B43","v":0},{"$f":"'Risk Assessment Matrix'!E43","v":0},{"$f":"'Risk Assessment Matrix'!G43","v":0},{"$f":"'Risk Assessment Matrix'!H43","v":0}]
[{"$f":"'Risk Assessment Matrix'!A44","v":0},{"$f":"'Risk Assessment Matrix'!B44","v":0},{"$f":"'Risk Assessment Matrix'!E44","v":0},{"$f":"'Risk Assessment Matrix'!G44","v":0},{"$f":"'Risk Assessment Matrix'!H44","v":0}]
[{"$f":"'Risk Assessment Matrix'!A45","v":0},{"$f":"'Risk Assessment Matrix'!B45","v":0},{"$f":"'Risk Assessment Matrix'!E45","v":0},{"$f":"'Risk Assessment Matrix'!G45","v":0},{"$f":"'Risk Assessment Matrix'!H45","v":0}]
[{"$f":"'Risk Assessment Matrix'!A46","v":0},{"$f":"'Risk Assessment Matrix'!B46","v":0},{"$f":"'Risk Assessment Matrix'!E46","v":0},{"$f":"'Risk Assessment Matrix'!G46","v":0},{"$f":"'Risk Assessment Matrix'!H46","v":0}]
[{"$f":"'Risk Assessment Matrix'!A47","v":0},{"$f":"'Risk Assessment Matrix'!B47","v":0},{"$f":"'Risk Assessment Matrix'!E47","v":0},{"$f":"'Risk Assessment Matrix'!G47","v":0},{"$f":"'Risk Assessment Matrix'!H47","v":0}]
[{"$f":"'Risk Assessment Matrix'!A48","v":0},{"$f":"'Risk Assessment Matrix'!B48","v":0},{"$f":"'Risk Assessment Matrix'!E48","v":0},{"$f":"'Risk Assessment Matrix'!G48","v":0},{"$f":"'Risk Assessment Matrix'!H48","v":0}]
[{"$f":"'Risk Assessment Matrix'!A49","v":0},{"$f":"'Risk Assessment Matrix'!B49","v":0},{"$f":"'Risk Assessment Matrix'!E49","v":0},{"$f":"'Risk Assessment Matrix'!G49","v":0},{"$f":"'Risk Assessment Matrix'!H49","v":0}]
[{"$f":"'Risk Assessment Matrix'!A50","v":0},{"$f":"'Risk Assessment Matrix'!B50","v":0},{"$f":"'Risk Assessment Matrix'!E50","v":0},{"$f":"'Risk Assessment Matrix'!G50","v":0},{"$f":"'Risk Assessment Matrix'!H50","v":0}]
[{"$f":"'Risk Assessment Matrix'!A51","v":0},{"$f":"'Risk Assessment Matrix'!B51","v":0},{"$f":"'Risk Assessment Matrix'!E51","v":0},{"$f":"'Risk Assessment Matrix'!G51","v":0},{"$f":"'Risk Assessment Matrix'!H51","v":0}]
[{"$f":"'Risk Assessment Matrix'!A52","v":0},{"$f":"'Risk Assessment Matrix'!B52","v":0},{"$f":"'Risk Assessment Matrix'!E52","v":0},{"$f":"'Risk Assessment Matrix'!G52","v":0},{"$f":"'Risk Assessment Matrix'!H52","v":0}]
[{"$f":"'Risk Assessment Matrix'!A53","v":0},{"$f":"'Risk Assessment Matrix'!B53","v":0},{"$f":"'Risk Assessment Matrix'!E53","v":0},{"$f":"'Risk Assessment Matrix'!G53","v":0},{"$f":"'Risk Assessment Matrix'!H53","v":0}]
[{"$f":"'Risk Assessment Matrix'!A54","v":0},{"$f":"'Risk Assessment Matrix'!B54","v":0},{"$f":"'Risk Assessment Matrix'!E54","v":0},{"$f":"'Risk Assessment Matrix'!G54","v":0},{"$f":"'Risk Assessment Matrix'!H54","v":0}]
[{"$f":"'Risk Assessment Matrix'!A55","v":0},{"$f":"'Risk Assessment Matrix'!B55","v":0},{"$f":"'Risk Assessment Matrix'!E55","v":0},{"$f":"'Risk Assessment Matrix'!G55","v":0},{"$f":"'Risk Assessment Matrix'!H55","v":0}]
[{"$f":"'Risk Assessment Matrix'!A56","v":0},{"$f":"'Risk Assessment Matrix'!B56","v":0},{"$f":"'Risk Assessment Matrix'!E56","v":0},{"$f":"'Risk Assessment Matrix'!G56","v":0},{"$f":"'Risk Assessment Matrix'!H56","v":0}]
[{"$f":"'Risk Assessment Matrix'!A57","v":0},{"$f":"'Risk Assessment Matrix'!B57","v":0},{"$f":"'Risk Assessment Matrix'!E57","v":0},{"$f":"'Risk Assessment Matrix'!G57","v":0},{"$f":"'Risk Assessment Matrix'!H57","v":0}]
[{"$f":"'Risk Assessment Matrix'!A58","v":0},{"$f":"'Risk Assessment Matrix'!B58","v":0},{"$f":"'Risk Assessment Matrix'!E58","v":0},{"$f":"'Risk Assessment Matrix'!G58","v":0},{"$f":"'Risk Assessment Matrix'!H58","v":0}]
[{"$f":"'Risk Assessment Matrix'!A59","v":0},{"$f":"'Risk Assessment Matrix'!B59","v":0},{"$f":"'Risk Assessment Matrix'!E59","v":0},{"$f":"'Risk Assessment Matrix'!G59","v":0},{"$f":"'Risk Assessment Matrix'!H59","v":0}]
[{"$f":"'Risk Assessment Matrix'!A60","v":0},{"$f":"'Risk Assessment Matrix'!B60","v":0},{"$f":"'Risk Assessment Matrix'!E60","v":0},{"$f":"'Risk Assessment Matrix'!G60","v":0},{"$f":"'Risk Assessment Matrix'!H60","v":0}]
[{"$f":"'Risk Assessment Matrix'!A61","v":0},{"$f":"'Risk Assessment Matrix'!B61","v":0},{"$f":"'Risk Assessment Matrix'!E61","v":0},{"$f":"'Risk Assessment Matrix'!G61","v":0},{"$f":"'Risk Assessment Matrix'!H61","v":0}]
[{"$f":"'Risk Assessment Matrix'!A62","v":0},{"$f":"'Risk Assessment Matrix'!B62","v":0},{"$f":"'Risk Assessment Matrix'!E62","v":0},{"$f":"'Risk Assessment Matrix'!G62","v":0},{"$f":"'Risk Assessment Matrix'!H62","v":0}]
[{"$f":"'Risk Assessment Matrix'!A63","v":0},{"$f":"'Risk Assessment Matrix'!B63","v":0},{"$f":"'Risk Assessment Matrix'!E63","v":0},{"$f":"'Risk Assessment Matrix'!G63","v":0},{"$f":"'Risk Assessment Matrix'!H63","v":0}]
[{"$f":"'Risk Assessment Matrix'!A64","v":0},{"$f":"'Risk Assessment Matrix'!B64","v":0},{"$f":"'Risk Assessment Matrix'!E64","v":0},{"$f":"'Risk Assessment Matrix'!G64","v":0},{"$f":"'Risk Assessment Matrix'!H64","v":0}]
[{"$f":"'Risk Assessment Matrix'!A65","v":0},{"$f":"'Risk Assessment Matrix'!B65","v":0},{"$f":"'Risk Assessment Matrix'!E65","v":0},{"$f":"'Risk Assessment Matrix'!G65","v":0},{"$f":"'Risk Assessment Matrix'!H65","v":0}]
[{"$f":"'Risk Assessment Matrix'!A66","v":0},{"$f":"'Risk Assessment Matrix'!B66","v":0},{"$f":"'Risk Assessment Matrix'!E66","v":0},{"$f":"'Risk Assessment Matrix'!G66","v":0},{"$f":"'Risk Assessment Matrix'!H66","v":0}]
[{"$f":"'Risk Assessment Matrix'!A67","v":0},{"$f":"'Risk Assessment Matrix'!B67","v":0},{"$f":"'Risk Assessment Matrix'!E67","v":0},{"$f":"'Risk Assessment Matrix'!G67","v":0},{"$f":"'Risk Assessment Matrix'!H67","v":0}]
[{"$f":"'Risk Assessment Matrix'!A68","v":0},{"$f":"'Risk Assessment Matrix'!B68","v":0},{"$f":"'Risk Assessment Matrix'!E68","v":0},{"$f":"'Risk Assessment Matrix'!G68","v":0},{"$f":"'Risk Assessment Matrix'!H68","v":0}]
[{"$f":"'Risk Assessment Matrix'!A69","v":0},{"$f":"'Risk Assessment Matrix'!B69","v":0},{"$f":"'Risk Assessment Matrix'!E69","v":0},{"$f":"'Risk Assessment Matrix'!G69","v":0},{"$f":"'Risk Assessment Matrix'!H69","v":0}]
[{"$f":"'Risk Assessment Matrix'!A70","v":0},{"$f":"'Risk Assessment Matrix'!B70","v":0},{"$f":"'Risk Assessment Matrix'!E70","v":0},{"$f":"'Risk Assessment Matrix'!G70","v":0},{"$f":"'Risk Assessment Matrix'!H70","v":0}]
[{"$f":"'Risk Assessment Matrix'!A71","v":0},{"$f":"'Risk Assessment Matrix'!B71","v":0},{"$f":"'Risk Assessment Matrix'!E71","v":0},{"$f":"'Risk Assessment Matrix'!G71","v":0},{"$f":"'Risk Assessment Matrix'!H71","v":0}]
[{"$f":"'Risk Assessment Matrix'!A72","v":0},{"$f":"'Risk Assessment Matrix'!B72","v":0},{"$f":"'Risk Assessment Matrix'!E72","v":0},{"$f":"'Risk Assessment Matrix'!G72","v":0},{"$f":"'Risk Assessment Matrix'!H72","v":0}]
[{"$f":"'Risk Assessment Matrix'!A73","v":0},{"$f":"'Risk Assessment Matrix'!B73","v":0},{"$f":"'Risk Assessment Matrix'!E73","v":0},{"$f":"'Risk Assessment Matrix'!G73","v":0},{"$f":"'Risk Assessment Matrix'!H73","v":0}]
[{"$f":"'Risk Assessment Matrix'!A74","v":0},{"$f":"'Risk Assessment Matrix'!B74","v":0},{"$f":"'Risk Assessment Matrix'!E74","v":0},{"$f":"'Risk Assessment Matrix'!G74","v":0},{"$f":"'Risk Assessment Matrix'!H74","v":0}]
[{"$f":"'Risk Assessment Matrix'!A75","v":0},{"$f":"'Risk Assessment Matrix'!B75","v":0},{"$f":"'Risk Assessment Matrix'!E75","v":0},{"$f":"'Risk Assessment Matrix'!G75","v":0},{"$f":"'Risk Assessment Matrix'!H75","v":0}]
[{"$f":"'Risk Assessment Matrix'!A76","v":0},{"$f":"'Risk Assessment Matrix'!B76","v":0},{"$f":"'Risk Assessment Matrix'!E76","v":0},{"$f":"'Risk Assessment Matrix'!G76","v":0},{"$f":"'Risk Assessment Matrix'!H76","v":0}]
[{"$f":"'Risk Assessment Matrix'!A77","v":0},{"$f":"'Risk Assessment Matrix'!B77","v":0},{"$f":"'Risk Assessment Matrix'!E77","v":0},{"$f":"'Risk Assessment Matrix'!G77","v":0},{"$f":"'Risk Assessment Matrix'!H77","v":0}]
[{"$f":"'Risk Assessment Matrix'!A78","v":0},{"$f":"'Risk Assessment Matrix'!B78","v":0},{"$f":"'Risk Assessment Matrix'!E78","v":0},{"$f":"'Risk Assessment Matrix'!G78","v":0},{"$f":"'Risk Assessment Matrix'!H78","v":0}]
[{"$f":"'Risk Assessment Matrix'!A79","v":0},{"$f":"'Risk Assessment Matrix'!B79","v":0},{"$f":"'Risk Assessment Matrix'!E79","v":0},{"$f":"'Risk Assessment Matrix'!G79","v":0},{"$f":"'Risk Assessment Matrix'!H79","v":0}]
[{"$f":"'Risk Assessment Matrix'!A80","v":0},{"$f":"'Risk Assessment Matrix'!B80","v":0},{"$f":"'Risk Assessment Matrix'!E80","v":0},{"$f":"'Risk Assessment Matrix'!G80","v":0},{"$f":"'Risk Assessment Matrix'!H80","v":0}]
[{"$f":"'Risk Assessment Matrix'!A81","v":0},{"$f":"'Risk Assessment Matrix'!B81","v":0},{"$f":"'Risk Assessment Matrix'!E81","v":0},{"$f":"'Risk Assessment Matrix'!G81","v":0},{"$f":"'Risk Assessment Matrix'!H81","v":0}]
[{"$f":"'Risk Assessment Matrix'!A82","v":0},{"$f":"'Risk Assessment Matrix'!B82","v":0},{"$f":"'Risk Assessment Matrix'!E82","v":0},{"$f":"'Risk Assessment Matrix'!G82","v":0},{"$f":"'Risk Assessment Matrix'!H82","v":0}]
[{"$f":"'Risk Assessment Matrix'!A83","v":0},{"$f":"'Risk Assessment Matrix'!B83","v":0},{"$f":"'Risk Assessment Matrix'!E83","v":0},{"$f":"'Risk Assessment Matrix'!G83","v":0},{"$f":"'Risk Assessment Matrix'!H83","v":0}]
[{"$f":"'Risk Assessment Matrix'!A84","v":0},{"$f":"'Risk Assessment Matrix'!B84","v":0},{"$f":"'Risk Assessment Matrix'!E84","v":0},{"$f":"'Risk Assessment Matrix'!G84","v":0},{"$f":"'Risk Assessment Matrix'!H84","v":0}]
[{"$f":"'Risk Assessment Matrix'!A85","v":0},{"$f":"'Risk Assessment Matrix'!B85","v":0},{"$f":"'Risk Assessment Matrix'!E85","v":0},{"$f":"'Risk Assessment Matrix'!G85","v":0},{"$f":"'Risk Assessment Matrix'!H85","v":0}]
[{"$f":"'Risk Assessment Matrix'!A86","v":0},{"$f":"'Risk Assessment Matrix'!B86","v":0},{"$f":"'Risk Assessment Matrix'!E86","v":0},{"$f":"'Risk Assessment Matrix'!G86","v":0},{"$f":"'Risk Assessment Matrix'!H86","v":0}]
[{"$f":"'Risk Assessment Matrix'!A87","v":0},{"$f":"'Risk Assessment Matrix'!B87","v":0},{"$f":"'Risk Assessment Matrix'!E87","v":0},{"$f":"'Risk Assessment Matrix'!G87","v":0},{"$f":"'Risk Assessment Matrix'!H87","v":0}]
[{"$f":"'Risk Assessment Matrix'!A88","v":0},{"$f":"'Risk Assessment Matrix'!B88","v":0},{"$f":"'Risk Assessment Matrix'!E88","v":0},{"$f":"'Risk Assessment Matrix'!G88","v":0},{"$f":"'Risk Assessment Matrix'!H88","v":0}]
[{"$f":"'Risk Assessment Matrix'!A89","v":0},{"$f":"'Risk Assessment Matrix'!B89","v":0},{"$f":"'Risk Assessment Matrix'!E89","v":0},{"$f":"'Risk Assessment Matrix'!G89","v":0},{"$f":"'Risk Assessment Matrix'!H89","v":0}]
[{"$f":"'Risk Assessment Matrix'!A90","v":0},{"$f":"'Risk Assessment Matrix'!B90","v":0},{"$f":"'Risk Assessment Matrix'!E90","v":0},{"$f":"'Risk Assessment Matrix'!G90","v":0},{"$f":"'Risk Assessment Matrix'!H90","v":0}]
[{"$f":"'Risk Assessment Matrix'!A91","v":0},{"$f":"'Risk Assessment Matrix'!B91","v":0},{"$f":"'Risk Assessment Matrix'!E91","v":0},{"$f":"'Risk Assessment Matrix'!G91","v":0},{"$f":"'Risk Assessment Matrix'!H91","v":0}]
[{"$f":"'Risk Assessment Matrix'!A92","v":0},{"$f":"'Risk Assessment Matrix'!B92","v":0},{"$f":"'Risk Assessment Matrix'!E92","v":0},{"$f":"'Risk Assessment Matrix'!G92","v":0},{"$f":"'Risk Assessment Matrix'!H92","v":0}]
[{"$f":"'Risk Assessment Matrix'!A93","v":0},{"$f":"'Risk Assessment Matrix'!B93","v":0},{"$f":"'Risk Assessment Matrix'!E93","v":0},{"$f":"'Risk Assessment Matrix'!G93","v":0},{"$f":"'Risk Assessment Matrix'!H93","v":0}]
[{"$f":"'Risk Assessment Matrix'!A94","v":0},{"$f":"'Risk Assessment Matrix'!B94","v":0},{"$f":"'Risk Assessment Matrix'!E94","v":0},{"$f":"'Risk Assessment Matrix'!G94","v":0},{"$f":"'Risk Assessment Matrix'!H94","v":0}]
[{"$f":"'Risk Assessment Matrix'!A95","v":0},{"$f":"'Risk Assessment Matrix'!B95","v":0},{"$f":"'Risk Assessment Matrix'!E95","v":0},{"$f":"'Risk Assessment Matrix'!G95","v":0},{"$f":"'Risk Assessment Matrix'!H95","v":0}]
[{"$f":"'Risk Assessment Matrix'!A96","v":0},{"$f":"'Risk Assessment Matrix'!B96","v":0},{"$f":"'Risk Assessment Matrix'!E96","v":0},{"$f":"'Risk Assessment Matrix'!G96","v":0},{"$f":"'Risk Assessment Matrix'!H96","v":0}]
[{"$f":"'Risk Assessment Matrix'!A97","v":0},{"$f":"'Risk Assessment Matrix'!B97","v":0},{"$f":"'Risk Assessment Matrix'!E97","v":0},{"$f":"'Risk Assessment Matrix'!G97","v":0},{"$f":"'Risk Assessment Matrix'!H97","v":0}]
[{"$f":"'Risk Assessment Matrix'!A98","v":0},{"$f":"'Risk Assessment Matrix'!B98","v":0},{"$f":"'Risk Assessment Matrix'!E98","v":0},{"$f":"'Risk Assessment Matrix'!G98","v":0},{"$f":"'Risk Assessment Matrix'!H98","v":0}]
[{"$f":"'Risk Assessment Matrix'!A99","v":0},{"$f":"'Risk Assessment Matrix'!B99","v":0},{"$f":"'Risk Assessment Matrix'!E99","v":0},{"$f":"'Risk Assessment Matrix'!G99","v":0},{"$f":"'Risk Assessment Matrix'!H99","v":0}]
[{"$f":"'Risk Assessment Matrix'!A100","v":0},{"$f":"'Risk Assessment Matrix'!B100","v":0},{"$f":"'Risk Assessment Matrix'!E100","v":0},{"$f":"'Risk Assessment Matrix'!G100","v":0},{"$f":"'Risk Assessment Matrix'!H100","v":0}]
[{"$f":"'Risk Assessment Matrix'!A101","v":0},{"$f":"'Risk Assessment Matrix'!B101","v":0},{"$f":"'Risk Assessment Matrix'!E101","v":0},{"$f":"'Risk Assessment Matrix'!G101","v":0},{"$f":"'Risk Assessment Matrix'!H101","v":0}]
[{"$f":"'Risk Assessment Matrix'!A102","v":0},{"$f":"'Risk Assessment Matrix'!B102","v":0},{"$f":"'Risk Assessment Matrix'!E102","v":0},{"$f":"'Risk Assessment Matrix'!G102","v":0},{"$f":"'Risk Assessment Matrix'!H102","v":0}]
[{"$f":"'Risk Assessment Matrix'!A103","v":0},{"$f":"'Risk Assessment Matrix'!B103","v":0},{"$f":"'Risk Assessment Matrix'!E103","v":0},{"$f":"'Risk Assessment Matrix'!G103","v":0},{"$f":"'Risk Assessment Matrix'!H103","v":0}]
[{"$f":"'Risk Assessment Matrix'!A104","v":0},{"$f":"'Risk Assessment Matrix'!B104","v":0},{"$f":"'Risk Assessment Matrix'!E104","v":0},{"$f":"'Risk Assessment Matrix'!G104","v":0},{"$f":"'Risk Assessment Matrix'!H104","v":0}]
[{"$f":"'Risk Assessment Matrix'!A105","v":0},{"$f":"'Risk Assessment Matrix'!B105","v":0},{"$f":"'Risk Assessment Matrix'!E105","v":0},{"$f":"'Risk Assessment Matrix'!G105","v":0},{"$f":"'Risk Assessment Matrix'!H105","v":0}]
[{"$f":"'Risk Assessment Matrix'!A106","v":0},{"$f":"'Risk Assessment Matrix'!B106","v":0},{"$f":"'Risk Assessment Matrix'!E106","v":0},{"$f":"'Risk Assessment Matrix'!G106","v":0},{"$f":"'Risk Assessment Matrix'!H106","v":0}]
[{"$f":"'Risk Assessment Matrix'!A107","v":0},{"$f":"'Risk Assessment Matrix'!B107","v":0},{"$f":"'Risk Assessment Matrix'!E107","v":0},{"$f":"'Risk Assessment Matrix'!G107","v":0},{"$f":"'Risk Assessment Matrix'!H107","v":0}]
[{"$f":"'Risk Assessment Matrix'!A108","v":0},{"$f":"'Risk Assessment Matrix'!B108","v":0},{"$f":"'Risk Assessment Matrix'!E108","v":0},{"$f":"'Risk Assessment Matrix'!G108","v":0},{"$f":"'Risk Assessment Matrix'!H108","v":0}]
[{"$f":"'Risk Assessment Matrix'!A109","v":0},{"$f":"'Risk Assessment Matrix'!B109","v":0},{"$f":"'Risk Assessment Matrix'!E109","v":0},{"$f":"'Risk Assessment Matrix'!G109","v":0},{"$f":"'Risk Assessment Matrix'!H109","v":0}]
[{"$f":"'Risk Assessment Matrix'!A110","v":0},{"$f":"'Risk Assessment Matrix'!B110","v":0},{"$f":"'Risk Assessment Matrix'!E110","v":0},{"$f":"'Risk Assessment Matrix'!G110","v":0},{"$f":"'Risk Assessment Matrix'!H110","v":0}]
[{"$f":"'Risk Assessment Matrix'!A111","v":0},{"$f":"'Risk Assessment Matrix'!B111","v":0},{"$f":"'Risk Assessment Matrix'!E111","v":0},{"$f":"'Risk Assessment Matrix'!G111","v":0},{"$f":"'Risk Assessment Matrix'!H111","v":0}]
[{"$f":"'Risk Assessment Matrix'!A112","v":0},{"$f":"'Risk Assessment Matrix'!B112","v":0},{"$f":"'Risk Assessment Matrix'!E112","v":0},{"$f":"'Risk Assessment Matrix'!G112","v":0},{"$f":"'Risk Assessment Matrix'!H112","v":0}]
[{"$f":"'Risk Assessment Matrix'!A113","v":0},{"$f":"'Risk Assessment Matrix'!B113","v":0},{"$f":"'Risk Assessment Matrix'!E113","v":0},{"$f":"'Risk Assessment Matrix'!G113","v":0},{"$f":"'Risk Assessment Matrix'!H113","v":0}]
[{"$f":"'Risk Assessment Matrix'!A114","v":0},{"$f":"'Risk Assessment Matrix'!B114","v":0},{"$f":"'Risk Assessment Matrix'!E114","v":0},{"$f":"'Risk Assessment Matrix'!G114","v":0},{"$f":"'Risk Assessment Matrix'!H114","v":0}]
[{"$f":"'Risk Assessment Matrix'!A115","v":0},{"$f":"'Risk Assessment Matrix'!B115","v":0},{"$f":"'Risk Assessment Matrix'!E115","v":0},{"$f":"'Risk Assessment Matrix'!G115","v":0},{"$f":"'Risk Assessment Matrix'!H115","v":0}]
[{"$f":"'Risk Assessment Matrix'!A116","v":0},{"$f":"'Risk Assessment Matrix'!B116","v":0},{"$f":"'Risk Assessment Matrix'!E116","v":0},{"$f":"'Risk Assessment Matrix'!G116","v":0},{"$f":"'Risk Assessment Matrix'!H116","v":0}]
[{"$f":"'Risk Assessment Matrix'!A117","v":0},{"$f":"'Risk Assessment Matrix'!B117","v":0},{"$f":"'Risk Assessment Matrix'!E117","v":0},{"$f":"'Risk Assessment Matrix'!G117","v":0},{"$f":"'Risk Assessment Matrix'!H117","v":0}]
[{"$f":"'Risk Assessment Matrix'!A118","v":0},{"$f":"'Risk Assessment Matrix'!B118","v":0},{"$f":"'Risk Assessment Matrix'!E118","v":0},{"$f":"'Risk Assessment Matrix'!G118","v":0},{"$f":"'Risk Assessment Matrix'!H118","v":0}]
[{"$f":"'Risk Assessment Matrix'!A119","v":0},{"$f":"'Risk Assessment Matrix'!B119","v":0},{"$f":"'Risk Assessment Matrix'!E119","v":0},{"$f":"'Risk Assessment Matrix'!G119","v":0},{"$f":"'Risk Assessment Matrix'!H119","v":0}]
[{"$f":"'Risk Assessment Matrix'!A120","v":0},{"$f":"'Risk Assessment Matrix'!B120","v":0},{"$f":"'Risk Assessment Matrix'!E120","v":0},{"$f":"'Risk Assessment Matrix'!G120","v":0},{"$f":"'Risk Assessment Matrix'!H120","v":0}]
[{"$f":"'Risk Assessment Matrix'!A121","v":0},{"$f":"'Risk Assessment Matrix'!B121","v":0},{"$f":"'Risk Assessment Matrix'!E121","v":0},{"$f":"'Risk Assessment Matrix'!G121","v":0},{"$f":"'Risk Assessment Matrix'!H121","v":0}]
[{"$f":"'Risk Assessment Matrix'!A122","v":0},{"$f":"'Risk Assessment Matrix'!B122","v":0},{"$f":"'Risk Assessment Matrix'!E122","v":0},{"$f":"'Risk Assessment Matrix'!G122","v":0},{"$f":"'Risk Assessment Matrix'!H122","v":0}]
[{"$f":"'Risk Assessment Matrix'!A123","v":0},{"$f":"'Risk Assessment Matrix'!B123","v":0},{"$f":"'Risk Assessment Matrix'!E123","v":0},{"$f":"'Risk Assessment Matrix'!G123","v":0},{"$f":"'Risk Assessment Matrix'!H123","v":0}]
[{"$f":"'Risk Assessment Matrix'!A124","v":0},{"$f":"'Risk Assessment Matrix'!B124","v":0},{"$f":"'Risk Assessment Matrix'!E124","v":0},{"$f":"'Risk Assessment Matrix'!G124","v":0},{"$f":"'Risk Assessment Matrix'!H124","v":0}]
[{"$f":"'Risk Assessment Matrix'!A125","v":0},{"$f":"'Risk Assessment Matrix'!B125","v":0},{"$f":"'Risk Assessment Matrix'!E125","v":0},{"$f":"'Risk Assessment Matrix'!G125","v":0},{"$f":"'Risk Assessment Matrix'!H125","v":0}]
[{"$f":"'Risk Assessment Matrix'!A126","v":0},{"$f":"'Risk Assessment Matrix'!B126","v":0},{"$f":"'Risk Assessment Matrix'!E126","v":0},{"$f":"'Risk Assessment Matrix'!G126","v":0},{"$f":"'Risk Assessment Matrix'!H126","v":0}]
[{"$f":"'Risk Assessment Matrix'!A127","v":0},{"$f":"'Risk Assessment Matrix'!B127","v":0},{"$f":"'Risk Assessment Matrix'!E127","v":0},{"$f":"'Risk Assessment Matrix'!G127","v":0},{"$f":"'Risk Assessment Matrix'!H127","v":0}]
[{"$f":"'Risk Assessment Matrix'!A128","v":0},{"$f":"'Risk Assessment Matrix'!B128","v":0},{"$f":"'Risk Assessment Matrix'!E128","v":0},{"$f":"'Risk Assessment Matrix'!G128","v":0},{"$f":"'Risk Assessment Matrix'!H128","v":0}]
[{"$f":"'Risk Assessment Matrix'!A129","v":0},{"$f":"'Risk Assessment Matrix'!B129","v":0},{"$f":"'Risk Assessment Matrix'!E129","v":0},{"$f":"'Risk Assessment Matrix'!G129","v":0},{"$f":"'Risk Assessment Matrix'!H129","v":0}]
[{"$f":"'Risk Assessment Matrix'!A130","v":0},{"$f":"'Risk Assessment Matrix'!B130","v":0},{"$f":"'Risk Assessment Matrix'!E130","v":0},{"$f":"'Risk Assessment Matrix'!G130","v":0},{"$f":"'Risk Assessment Matrix'!H130","v":0}]
[{"$f":"'Risk Assessment Matrix'!A131","v":0},{"$f":"'Risk Assessment Matrix'!B131","v":0},{"$f":"'Risk Assessment Matrix'!E131","v":0},{"$f":"'Risk Assessment Matrix'!G131","v":0},{"$f":"'Risk Assessment Matrix'!H131","v":0}]
[{"$f":"'Risk Assessment Matrix'!A132","v":0},{"$f":"'Risk Assessment Matrix'!B132","v":0},{"$f":"'Risk Assessment Matrix'!E132","v":0},{"$f":"'Risk Assessment Matrix'!G132","v":0},{"$f":"'Risk Assessment Matrix'!H132","v":0}]
[{"$f":"'Risk Assessment Matrix'!A133","v":0},{"$f":"'Risk Assessment Matrix'!B133","v":0},{"$f":"'Risk Assessment Matrix'!E133","v":0},{"$f":"'Risk Assessment Matrix'!G133","v":0},{"$f":"'Risk Assessment Matrix'!H133","v":0}]
[{"$f":"'Risk Assessment Matrix'!A134","v":0},{"$f":"'Risk Assessment Matrix'!B134","v":0},{"$f":"'Risk Assessment Matrix'!E134","v":0},{"$f":"'Risk Assessment Matrix'!G134","v":0},{"$f":"'Risk Assessment Matrix'!H134","v":0}]
[{"$f":"'Risk Assessment Matrix'!A135","v":0},{"$f":"'Risk Assessment Matrix'!B135","v":0},{"$f":"'Risk Assessment Matrix'!E135","v":0},{"$f":"'Risk Assessment Matrix'!G135","v":0},{"$f":"'Risk Assessment Matrix'!H135","v":0}]
[{"$f":"'Risk Assessment Matrix'!A136","v":0},{"$f":"'Risk Assessment Matrix'!B136","v":0},{"$f":"'Risk Assessment Matrix'!E136","v":0},{"$f":"'Risk Assessment Matrix'!G136","v":0},{"$f":"'Risk Assessment Matrix'!H136","v":0}]
[{"$f":"'Risk Assessment Matrix'!A137","v":0},{"$f":"'Risk Assessment Matrix'!B137","v":0},{"$f":"'Risk Assessment Matrix'!E137","v":0},{"$f":"'Risk Assessment Matrix'!G137","v":0},{"$f":"'Risk Assessment Matrix'!H137","v":0}]
[{"$f":"'Risk Assessment Matrix'!A138","v":0},{"$f":"'Risk Assessment Matrix'!B138","v":0},{"$f":"'Risk Assessment Matrix'!E138","v":0},{"$f":"'Risk Assessment Matrix'!G138","v":0},{"$f":"'Risk Assessment Matrix'!H138","v":0}]
[{"$f":"'Risk Assessment Matrix'!A139","v":0},{"$f":"'Risk Assessment Matrix'!B139","v":0},{"$f":"'Risk Assessment Matrix'!E139","v":0},{"$f":"'Risk Assessment Matrix'!G139","v":0},{"$f":"'Risk Assessment Matrix'!H139","v":0}]
[{"$f":"'Risk Assessment Matrix'!A140","v":0},{"$f":"'Risk Assessment Matrix'!B140","v":0},{"$f":"'Risk Assessment Matrix'!E140","v":0},{"$f":"'Risk Assessment Matrix'!G140","v":0},{"$f":"'Risk Assessment Matrix'!H140","v":0}]
[{"$f":"'Risk Assessment Matrix'!A141","v":0},{"$f":"'Risk Assessment Matrix'!B141","v":0},{"$f":"'Risk Assessment Matrix'!E141","v":0},{"$f":"'Risk Assessment Matrix'!G141","v":0},{"$f":"'Risk Assessment Matrix'!H141","v":0}]
[{"$f":"'Risk Assessment Matrix'!A142","v":0},{"$f":"'Risk Assessment Matrix'!B142","v":0},{"$f":"'Risk Assessment Matrix'!E142","v":0},{"$f":"'Risk Assessment Matrix'!G142","v":0},{"$f":"'Risk Assessment Matrix'!H142","v":0}]
[{"$f":"'Risk Assessment Matrix'!A143","v":0},{"$f":"'Risk Assessment Matrix'!B143","v":0},{"$f":"'Risk Assessment Matrix'!E143","v":0},{"$f":"'Risk Assessment Matrix'!G143","v":0},{"$f":"'Risk Assessment Matrix'!H143","v":0}]
[{"$f":"'Risk Assessment Matrix'!A144","v":0},{"$f":"'Risk Assessment Matrix'!B144","v":0},{"$f":"'Risk Assessment Matrix'!E144","v":0},{"$f":"'Risk Assessment Matrix'!G144","v":0},{"$f":"'Risk Assessment Matrix'!H144","v":0}]
[{"$f":"'Risk Assessment Matrix'!A145","v":0},{"$f":"'Risk Assessment Matrix'!B145","v":0},{"$f":"'Risk Assessment Matrix'!E145","v":0},{"$f":"'Risk Assessment Matrix'!G145","v":0},{"$f":"'Risk Assessment Matrix'!H145","v":0}]
[{"$f":"'Risk Assessment Matrix'!A146","v":0},{"$f":"'Risk Assessment Matrix'!B146","v":0},{"$f":"'Risk Assessment Matrix'!E146","v":0},{"$f":"'Risk Assessment Matrix'!G146","v":0},{"$f":"'Risk Assessment Matrix'!H146","v":0}]
[{"$f":"'Risk Assessment Matrix'!A147","v":0},{"$f":"'Risk Assessment Matrix'!B147","v":0},{"$f":"'Risk Assessment Matrix'!E147","v":0},{"$f":"'Risk Assessment Matrix'!G147","v":0},{"$f":"'Risk Assessment Matrix'!H147","v":0}]
[{"$f":"'Risk Assessment Matrix'!A148","v":0},{"$f":"'Risk Assessment Matrix'!B148","v":0},{"$f":"'Risk Assessment Matrix'!E148","v":0},{"$f":"'Risk Assessment Matrix'!G148","v":0},{"$f":"'Risk Assessment Matrix'!H148","v":0}]
[{"$f":"'Risk Assessment Matrix'!A149","v":0},{"$f":"'Risk Assessment Matrix'!B149","v":0},{"$f":"'Risk Assessment Matrix'!E149","v":0},{"$f":"'Risk Assessment Matrix'!G149","v":0},{"$f":"'Risk Assessment Matrix'!H149","v":0}]
[{"$f":"'Risk Assessment Matrix'!A150","v":0},{"$f":"'Risk Assessment Matrix'!B150","v":0},{"$f":"'Risk Assessment Matrix'!E150","v":0},{"$f":"'Risk Assessment Matrix'!G150","v":0},{"$f":"'Risk Assessment Matrix'!H150","v":0}]
[{"$f":"'Risk Assessment Matrix'!A151","v":0},{"$f":"'Risk Assessment Matrix'!B151","v":0},{"$f":"'Risk Assessment Matrix'!E151","v":0},{"$f":"'Risk Assessment Matrix'!G151","v":0},{"$f":"'Risk Assessment Matrix'!H151","v":0}]
[{"$f":"'Risk Assessment Matrix'!A152","v":0},{"$f":"'Risk Assessment Matrix'!B152","v":0},{"$f":"'Risk Assessment Matrix'!E152","v":0},{"$f":"'Risk Assessment Matrix'!G152","v":0},{"$f":"'Risk Assessment Matrix'!H152","v":0}]
[{"$f":"'Risk Assessment Matrix'!A153","v":0},{"$f":"'Risk Assessment Matrix'!B153","v":0},{"$f":"'Risk Assessment Matrix'!E153","v":0},{"$f":"'Risk Assessment Matrix'!G153","v":0},{"$f":"'Risk Assessment Matrix'!H153","v":0}]
[{"$f":"'Risk Assessment Matrix'!A154","v":0},{"$f":"'Risk Assessment Matrix'!B154","v":0},{"$f":"'Risk Assessment Matrix'!E154","v":0},{"$f":"'Risk Assessment Matrix'!G154","v":0},{"$f":"'Risk Assessment Matrix'!H154","v":0}]
[{"$f":"'Risk Assessment Matrix'!A155","v":0},{"$f":"'Risk Assessment Matrix'!B155","v":0},{"$f":"'Risk Assessment Matrix'!E155","v":0},{"$f":"'Risk Assessment Matrix'!G155","v":0},{"$f":"'Risk Assessment Matrix'!H155","v":0}]
[{"$f":"'Risk Assessment Matrix'!A156","v":0},{"$f":"'Risk Assessment Matrix'!B156","v":0},{"$f":"'Risk Assessment Matrix'!E156","v":0},{"$f":"'Risk Assessment Matrix'!G156","v":0},{"$f":"'Risk Assessment Matrix'!H156","v":0}]
[{"$f":"'Risk Assessment Matrix'!A157","v":0},{"$f":"'Risk Assessment Matrix'!B157","v":0},{"$f":"'Risk Assessment Matrix'!E157","v":0},{"$f":"'Risk Assessment Matrix'!G157","v":0},{"$f":"'Risk Assessment Matrix'!H157","v":0}]
[{"$f":"'Risk Assessment Matrix'!A158","v":0},{"$f":"'Risk Assessment Matrix'!B158","v":0},{"$f":"'Risk Assessment Matrix'!E158","v":0},{"$f":"'Risk Assessment Matrix'!G158","v":0},{"$f":"'Risk Assessment Matrix'!H158","v":0}]
[{"$f":"'Risk Assessment Matrix'!A159","v":0},{"$f":"'Risk Assessment Matrix'!B159","v":0},{"$f":"'Risk Assessment Matrix'!E159","v":0},{"$f":"'Risk Assessment Matrix'!G159","v":0},{"$f":"'Risk Assessment Matrix'!H159","v":0}]
[{"$f":"'Risk Assessment Matrix'!A160","v":0},{"$f":"'Risk Assessment Matrix'!B160","v":0},{"$f":"'Risk Assessment Matrix'!E160","v":0},{"$f":"'Risk Assessment Matrix'!G160","v":0},{"$f":"'Risk Assessment Matrix'!H160","v":0}]
[{"$f":"'Risk Assessment Matrix'!A161","v":0},{"$f":"'Risk Assessment Matrix'!B161","v":0},{"$f":"'Risk Assessment Matrix'!E161","v":0},{"$f":"'Risk Assessment Matrix'!G161","v":0},{"$f":"'Risk Assessment Matrix'!H161","v":0}]
[{"$f":"'Risk Assessment Matrix'!A162","v":0},{"$f":"'Risk Assessment Matrix'!B162","v":0},{"$f":"'Risk Assessment Matrix'!E162","v":0},{"$f":"'Risk Assessment Matrix'!G162","v":0},{"$f":"'Risk Assessment Matrix'!H162","v":0}]
[{"$f":"'Risk Assessment Matrix'!A163","v":0},{"$f":"'Risk Assessment Matrix'!B163","v":0},{"$f":"'Risk Assessment Matrix'!E163","v":0},{"$f":"'Risk Assessment Matrix'!G163","v":0},{"$f":"'Risk Assessment Matrix'!H163","v":0}]
[{"$f":"'Risk Assessment Matrix'!A164","v":0},{"$f":"'Risk Assessment Matrix'!B164","v":0},{"$f":"'Risk Assessment Matrix'!E164","v":0},{"$f":"'Risk Assessment Matrix'!G164","v":0},{"$f":"'Risk Assessment Matrix'!H164","v":0}]
[{"$f":"'Risk Assessment Matrix'!A165","v":0},{"$f":"'Risk Assessment Matrix'!B165","v":0},{"$f":"'Risk Assessment Matrix'!E165","v":0},{"$f":"'Risk Assessment Matrix'!G165","v":0},{"$f":"'Risk Assessment Matrix'!H165","v":0}]
[{"$f":"'Risk Assessment Matrix'!A166","v":0},{"$f":"'Risk Assessment Matrix'!B166","v":0},{"$f":"'Risk Assessment Matrix'!E166","v":0},{"$f":"'Risk Assessment Matrix'!G166","v":0},{"$f":"'Risk Assessment Matrix'!H166","v":0}]
[{"$f":"'Risk Assessment Matrix'!A167","v":0},{"$f":"'Risk Assessment Matrix'!B167","v":0},{"$f":"'Risk Assessment Matrix'!E167","v":0},{"$f":"'Risk Assessment Matrix'!G167","v":0},{"$f":"'Risk Assessment Matrix'!H167","v":0}]
[{"$f":"'Risk Assessment Matrix'!A168","v":0},{"$f":"'Risk Assessment Matrix'!B168","v":0},{"$f":"'Risk Assessment Matrix'!E168","v":0},{"$f":"'Risk Assessment Matrix'!G168","v":0},{"$f":"'Risk Assessment Matrix'!H168","v":0}]
[{"$f":"'Risk Assessment Matrix'!A169","v":0},{"$f":"'Risk Assessment Matrix'!B169","v":0},{"$f":"'Risk Assessment Matrix'!E169","v":0},{"$f":"'Risk Assessment Matrix'!G169","v":0},{"$f":"'Risk Assessment Matrix'!H169","v":0}]
[{"$f":"'Risk Assessment Matrix'!A170","v":0},{"$f":"'Risk Assessment Matrix'!B170","v":0},{"$f":"'Risk Assessment Matrix'!E170","v":0},{"$f":"'Risk Assessment Matrix'!G170","v":0},{"$f":"'Risk Assessment Matrix'!H170","v":0}]
[{"$f":"'Risk Assessment Matrix'!A171","v":0},{"$f":"'Risk Assessment Matrix'!B171","v":0},{"$f":"'Risk Assessment Matrix'!E171","v":0},{"$f":"'Risk Assessment Matrix'!G171","v":0},{"$f":"'Risk Assessment Matrix'!H171","v":0}]
[{"$f":"'Risk Assessment Matrix'!A172","v":0},{"$f":"'Risk Assessment Matrix'!B172","v":0},{"$f":"'Risk Assessment Matrix'!E172","v":0},{"$f":"'Risk Assessment Matrix'!G172","v":0},{"$f":"'Risk Assessment Matrix'!H172","v":0}]
[{"$f":"'Risk Assessment Matrix'!A173","v":0},{"$f":"'Risk Assessment Matrix'!B173","v":0},{"$f":"'Risk Assessment Matrix'!E173","v":0},{"$f":"'Risk Assessment Matrix'!G173","v":0},{"$f":"'Risk Assessment Matrix'!H173","v":0}]
[{"$f":"'Risk Assessment Matrix'!A174","v":0},{"$f":"'Risk Assessment Matrix'!B174","v":0},{"$f":"'Risk Assessment Matrix'!E174","v":0},{"$f":"'Risk Assessment Matrix'!G174","v":0},{"$f":"'Risk Assessment Matrix'!H174","v":0}]
[{"$f":"'Risk Assessment Matrix'!A175","v":0},{"$f":"'Risk Assessment Matrix'!B175","v":0},{"$f":"'Risk Assessment Matrix'!E175","v":0},{"$f":"'Risk Assessment Matrix'!G175","v":0},{"$f":"'Risk Assessment Matrix'!H175","v":0}]
[{"$f":"'Risk Assessment Matrix'!A176","v":0},{"$f":"'Risk Assessment Matrix'!B176","v":0},{"$f":"'Risk Assessment Matrix'!E176","v":0},{"$f":"'Risk Assessment Matrix'!G176","v":0},{"$f":"'Risk Assessment Matrix'!H176","v":0}]
[{"$f":"'Risk Assessment Matrix'!A177","v":0},{"$f":"'Risk Assessment Matrix'!B177","v":0},{"$f":"'Risk Assessment Matrix'!E177","v":0},{"$f":"'Risk Assessment Matrix'!G177","v":0},{"$f":"'Risk Assessment Matrix'!H177","v":0}]
[{"$f":"'Risk Assessment Matrix'!A178","v":0},{"$f":"'Risk Assessment Matrix'!B178","v":0},{"$f":"'Risk Assessment Matrix'!E178","v":0},{"$f":"'Risk Assessment Matrix'!G178","v":0},{"$f":"'Risk Assessment Matrix'!H178","v":0}]
[{"$f":"'Risk Assessment Matrix'!A179","v":0},{"$f":"'Risk Assessment Matrix'!B179","v":0},{"$f":"'Risk Assessment Matrix'!E179","v":0},{"$f":"'Risk Assessment Matrix'!G179","v":0},{"$f":"'Risk Assessment Matrix'!H179","v":0}]
[{"$f":"'Risk Assessment Matrix'!A180","v":0},{"$f":"'Risk Assessment Matrix'!B180","v":0},{"$f":"'Risk Assessment Matrix'!E180","v":0},{"$f":"'Risk Assessment Matrix'!G180","v":0},{"$f":"'Risk Assessment Matrix'!H180","v":0}]
[{"$f":"'Risk Assessment Matrix'!A181","v":0},{"$f":"'Risk Assessment Matrix'!B181","v":0},{"$f":"'Risk Assessment Matrix'!E181","v":0},{"$f":"'Risk Assessment Matrix'!G181","v":0},{"$f":"'Risk Assessment Matrix'!H181","v":0}]
[{"$f":"'Risk Assessment Matrix'!A182","v":0},{"$f":"'Risk Assessment Matrix'!B182","v":0},{"$f":"'Risk Assessment Matrix'!E182","v":0},{"$f":"'Risk Assessment Matrix'!G182","v":0},{"$f":"'Risk Assessment Matrix'!H182","v":0}]
[{"$f":"'Risk Assessment Matrix'!A183","v":0},{"$f":"'Risk Assessment Matrix'!B183","v":0},{"$f":"'Risk Assessment Matrix'!E183","v":0},{"$f":"'Risk Assessment Matrix'!G183","v":0},{"$f":"'Risk Assessment Matrix'!H183","v":0}]
[{"$f":"'Risk Assessment Matrix'!A184","v":0},{"$f":"'Risk Assessment Matrix'!B184","v":0},{"$f":"'Risk Assessment Matrix'!E184","v":0},{"$f":"'Risk Assessment Matrix'!G184","v":0},{"$f":"'Risk Assessment Matrix'!H184","v":0}]
[{"$f":"'Risk Assessment Matrix'!A185","v":0},{"$f":"'Risk Assessment Matrix'!B185","v":0},{"$f":"'Risk Assessment Matrix'!E185","v":0},{"$f":"'Risk Assessment Matrix'!G185","v":0},{"$f":"'Risk Assessment Matrix'!H185","v":0}]
[{"$f":"'Risk Assessment Matrix'!A186","v":0},{"$f":"'Risk Assessment Matrix'!B186","v":0},{"$f":"'Risk Assessment Matrix'!E186","v":0},{"$f":"'Risk Assessment Matrix'!G186","v":0},{"$f":"'Risk Assessment Matrix'!H186","v":0}]
[{"$f":"'Risk Assessment Matrix'!A187","v":0},{"$f":"'Risk Assessment Matrix'!B187","v":0},{"$f":"'Risk Assessment Matrix'!E187","v":0},{"$f":"'Risk Assessment Matrix'!G187","v":0},{"$f":"'Risk Assessment Matrix'!H187","v":0}]
[{"$f":"'Risk Assessment Matrix'!A188","v":0},{"$f":"'Risk Assessment Matrix'!B188","v":0},{"$f":"'Risk Assessment Matrix'!E188","v":0},{"$f":"'Risk Assessment Matrix'!G188","v":0},{"$f":"'Risk Assessment Matrix'!H188","v":0}]
[{"$f":"'Risk Assessment Matrix'!A189","v":0},{"$f":"'Risk Assessment Matrix'!B189","v":0},{"$f":"'Risk Assessment Matrix'!E189","v":0},{"$f":"'Risk Assessment Matrix'!G189","v":0},{"$f":"'Risk Assessment Matrix'!H189","v":0}]
[{"$f":"'Risk Assessment Matrix'!A190","v":0},{"$f":"'Risk Assessment Matrix'!B190","v":0},{"$f":"'Risk Assessment Matrix'!E190","v":0},{"$f":"'Risk Assessment Matrix'!G190","v":0},{"$f":"'Risk Assessment Matrix'!H190","v":0}]
[{"$f":"'Risk Assessment Matrix'!A191","v":0},{"$f":"'Risk Assessment Matrix'!B191","v":0},{"$f":"'Risk Assessment Matrix'!E191","v":0},{"$f":"'Risk Assessment Matrix'!G191","v":0},{"$f":"'Risk Assessment Matrix'!H191","v":0}]
[{"$f":"'Risk Assessment Matrix'!A192","v":0},{"$f":"'Risk Assessment Matrix'!B192","v":0},{"$f":"'Risk Assessment Matrix'!E192","v":0},{"$f":"'Risk Assessment Matrix'!G192","v":0},{"$f":"'Risk Assessment Matrix'!H192","v":0}]
[{"$f":"'Risk Assessment Matrix'!A193","v":0},{"$f":"'Risk Assessment Matrix'!B193","v":0},{"$f":"'Risk Assessment Matrix'!E193","v":0},{"$f":"'Risk Assessment Matrix'!G193","v":0},{"$f":"'Risk Assessment Matrix'!H193","v":0}]
[{"$f":"'Risk Assessment Matrix'!A194","v":0},{"$f":"'Risk Assessment Matrix'!B194","v":0},{"$f":"'Risk Assessment Matrix'!E194","v":0},{"$f":"'Risk Assessment Matrix'!G194","v":0},{"$f":"'Risk Assessment Matrix'!H194","v":0}]
[{"$f":"'Risk Assessment Matrix'!A195","v":0},{"$f":"'Risk Assessment Matrix'!B195","v":0},{"$f":"'Risk Assessment Matrix'!E195","v":0},{"$f":"'Risk Assessment Matrix'!G195","v":0},{"$f":"'Risk Assessment Matrix'!H195","v":0}]
[{"$f":"'Risk Assessment Matrix'!A196","v":0},{"$f":"'Risk Assessment Matrix'!B196","v":0},{"$f":"'Risk Assessment Matrix'!E196","v":0},{"$f":"'Risk Assessment Matrix'!G196","v":0},{"$f":"'Risk Assessment Matrix'!H196","v":0}]
[{"$f":"'Risk Assessment Matrix'!A197","v":0},{"$f":"'Risk Assessment Matrix'!B197","v":0},{"$f":"'Risk Assessment Matrix'!E197","v":0},{"$f":"'Risk Assessment Matrix'!G197","v":0},{"$f":"'Risk Assessment Matrix'!H197","v":0}]
[{"$f":"'Risk Assessment Matrix'!A198","v":0},{"$f":"'Risk Assessment Matrix'!B198","v":0},{"$f":"'Risk Assessment Matrix'!E198","v":0},{"$f":"'Risk Assessment Matrix'!G198","v":0},{"$f":"'Risk Assessment Matrix'!H198","v":0}]
[{"$f":"'Risk Assessment Matrix'!A199","v":0},{"$f":"'Risk Assessment Matrix'!B199","v":0},{"$f":"'Risk Assessment Matrix'!E199","v":0},{"$f":"'Risk Assessment Matrix'!G199","v":0},{"$f":"'Risk Assessment Matrix'!H199","v":0}]
[{"$f":"'Risk Assessment Matrix'!A200","v":0},{"$f":"'Risk Assessment Matrix'!B200","v":0},{"$f":"'Risk Assessment Matrix'!E200","v":0},{"$f":"'Risk Assessment Matrix'!G200","v":0},{"$f":"'Risk Assessment Matrix'!H200","v":0}]
[{"$f":"'Risk Assessment Matrix'!A201","v":0},{"$f":"'Risk Assessment Matrix'!B201","v":0},{"$f":"'Risk Assessment Matrix'!E201","v":0},{"$f":"'Risk Assessment Matrix'!G201","v":0},{"$f":"'Risk Assessment Matrix'!H201","v":0}]
[{"$f":"'Risk Assessment Matrix'!A202","v":0},{"$f":"'Risk Assessment Matrix'!B202","v":0},{"$f":"'Risk Assessment Matrix'!E202","v":0},{"$f":"'Risk Assessment Matrix'!G202","v":0},{"$f":"'Risk Assessment Matrix'!H202","v":0}]
[{"$f":"'Risk Assessment Matrix'!A203","v":0},{"$f":"'Risk Assessment Matrix'!B203","v":0},{"$f":"'Risk Assessment Matrix'!E203","v":0},{"$f":"'Risk Assessment Matrix'!G203","v":0},{"$f":"'Risk Assessment Matrix'!H203","v":0}]
[{"$f":"'Risk Assessment Matrix'!A204","v":0},{"$f":"'Risk Assessment Matrix'!B204","v":0},{"$f":"'Risk Assessment Matrix'!E204","v":0},{"$f":"'Risk Assessment Matrix'!G204","v":0},{"$f":"'Risk Assessment Matrix'!H204","v":0}]
[{"$f":"'Risk Assessment Matrix'!A205","v":0},{"$f":"'Risk Assessment Matrix'!B205","v":0},{"$f":"'Risk Assessment Matrix'!E205","v":0},{"$f":"'Risk Assessment Matrix'!G205","v":0},{"$f":"'Risk Assessment Matrix'!H205","v":0}]
[{"$f":"'Risk Assessment Matrix'!A206","v":0},{"$f":"'Risk Assessment Matrix'!B206","v":0},{"$f":"'Risk Assessment Matrix'!E206","v":0},{"$f":"'Risk Assessment Matrix'!G206","v":0},{"$f":"'Risk Assessment Matrix'!H206","v":0}]
[{"$f":"'Risk Assessment Matrix'!A207","v":0},{"$f":"'Risk Assessment Matrix'!B207","v":0},{"$f":"'Risk Assessment Matrix'!E207","v":0},{"$f":"'Risk Assessment Matrix'!G207","v":0},{"$f":"'Risk Assessment Matrix'!H207","v":0}]
[{"$f":"'Risk Assessment Matrix'!A208","v":0},{"$f":"'Risk Assessment Matrix'!B208","v":0},{"$f":"'Risk Assessment Matrix'!E208","v":0},{"$f":"'Risk Assessment Matrix'!G208","v":0},{"$f":"'Risk Assessment Matrix'!H208","v":0}]
[{"$f":"'Risk Assessment Matrix'!A209","v":0},{"$f":"'Risk Assessment Matrix'!B209","v":0},{"$f":"'Risk Assessment Matrix'!E209","v":0},{"$f":"'Risk Assessment Matrix'!G209","v":0},{"$f":"'Risk Assessment Matrix'!H209","v":0}]
[{"$f":"'Risk Assessment Matrix'!A210","v":0},{"$f":"'Risk Assessment Matrix'!B210","v":0},{"$f":"'Risk Assessment Matrix'!E210","v":0},{"$f":"'Risk Assessment Matrix'!G210","v":0},{"$f":"'Risk Assessment Matrix'!H210","v":0}]
[{"$f":"'Risk Assessment Matrix'!A211","v":0},{"$f":"'Risk Assessment Matrix'!B211","v":0},{"$f":"'Risk Assessment Matrix'!E211","v":0},{"$f":"'Risk Assessment Matrix'!G211","v":0},{"$f":"'Risk Assessment Matrix'!H211","v":0}]
[{"$f":"'Risk Assessment Matrix'!A212","v":0},{"$f":"'Risk Assessment Matrix'!B212","v":0},{"$f":"'Risk Assessment Matrix'!E212","v":0},{"$f":"'Risk Assessment Matrix'!G212","v":0},{"$f":"'Risk Assessment Matrix'!H212","v":0}]
[{"$f":"'Risk Assessment Matrix'!A213","v":0},{"$f":"'Risk Assessment Matrix'!B213","v":0},{"$f":"'Risk Assessment Matrix'!E213","v":0},{"$f":"'Risk Assessment Matrix'!G213","v":0},{"$f":"'Risk Assessment Matrix'!H213","v":0}]
[{"$f":"'Risk Assessment Matrix'!A214","v":0},{"$f":"'Risk Assessment Matrix'!B214","v":0},{"$f":"'Risk Assessment Matrix'!E214","v":0},{"$f":"'Risk Assessment Matrix'!G214","v":0},{"$f":"'Risk Assessment Matrix'!H214","v":0}]
[{"$f":"'Risk Assessment Matrix'!A215","v":0},{"$f":"'Risk Assessment Matrix'!B215","v":0},{"$f":"'Risk Assessment Matrix'!E215","v":0},{"$f":"'Risk Assessment Matrix'!G215","v":0},{"$f":"'Risk Assessment Matrix'!H215","v":0}]
[{"$f":"'Risk Assessment Matrix'!A216","v":0},{"$f":"'Risk Assessment Matrix'!B216","v":0},{"$f":"'Risk Assessment Matrix'!E216","v":0},{"$f":"'Risk Assessment Matrix'!G216","v":0},{"$f":"'Risk Assessment Matrix'!H216","v":0}]
[{"$f":"'Risk Assessment Matrix'!A217","v":0},{"$f":"'Risk Assessment Matrix'!B217","v":0},{"$f":"'Risk Assessment Matrix'!E217","v":0},{"$f":"'Risk Assessment Matrix'!G217","v":0},{"$f":"'Risk Assessment Matrix'!H217","v":0}]
[{"$f":"'Risk Assessment Matrix'!A218","v":0},{"$f":"'Risk Assessment Matrix'!B218","v":0},{"$f":"'Risk Assessment Matrix'!E218","v":0},{"$f":"'Risk Assessment Matrix'!G218","v":0},{"$f":"'Risk Assessment Matrix'!H218","v":0}]
[{"$f":"'Risk Assessment Matrix'!A219","v":0},{"$f":"'Risk Assessment Matrix'!B219","v":0},{"$f":"'Risk Assessment Matrix'!E219","v":0},{"$f":"'Risk Assessment Matrix'!G219","v":0},{"$f":"'Risk Assessment Matrix'!H219","v":0}]
[{"$f":"'Risk Assessment Matrix'!A220","v":0},{"$f":"'Risk Assessment Matrix'!B220","v":0},{"$f":"'Risk Assessment Matrix'!E220","v":0},{"$f":"'Risk Assessment Matrix'!G220","v":0},{"$f":"'Risk Assessment Matrix'!H220","v":0}]
[{"$f":"'Risk Assessment Matrix'!A221","v":0},{"$f":"'Risk Assessment Matrix'!B221","v":0},{"$f":"'Risk Assessment Matrix'!E221","v":0},{"$f":"'Risk Assessment Matrix'!G221","v":0},{"$f":"'Risk Assessment Matrix'!H221","v":0}]
[{"$f":"'Risk Assessment Matrix'!A222","v":0},{"$f":"'Risk Assessment Matrix'!B222","v":0},{"$f":"'Risk Assessment Matrix'!E222","v":0},{"$f":"'Risk Assessment Matrix'!G222","v":0},{"$f":"'Risk Assessment Matrix'!H222","v":0}]
[{"$f":"'Risk Assessment Matrix'!A223","v":0},{"$f":"'Risk Assessment Matrix'!B223","v":0},{"$f":"'Risk Assessment Matrix'!E223","v":0},{"$f":"'Risk Assessment Matrix'!G223","v":0},{"$f":"'Risk Assessment Matrix'!H223","v":0}]
[{"$f":"'Risk Assessment Matrix'!A224","v":0},{"$f":"'Risk Assessment Matrix'!B224","v":0},{"$f":"'Risk Assessment Matrix'!E224","v":0},{"$f":"'Risk Assessment Matrix'!G224","v":0},{"$f":"'Risk Assessment Matrix'!H224","v":0}]
[{"$f":"'Risk Assessment Matrix'!A225","v":0},{"$f":"'Risk Assessment Matrix'!B225","v":0},{"$f":"'Risk Assessment Matrix'!E225","v":0},{"$f":"'Risk Assessment Matrix'!G225","v":0},{"$f":"'Risk Assessment Matrix'!H225","v":0}]
[{"$f":"'Risk Assessment Matrix'!A226","v":0},{"$f":"'Risk Assessment Matrix'!B226","v":0},{"$f":"'Risk Assessment Matrix'!E226","v":0},{"$f":"'Risk Assessment Matrix'!G226","v":0},{"$f":"'Risk Assessment Matrix'!H226","v":0}]
[{"$f":"'Risk Assessment Matrix'!A227","v":0},{"$f":"'Risk Assessment Matrix'!B227","v":0},{"$f":"'Risk Assessment Matrix'!E227","v":0},{"$f":"'Risk Assessment Matrix'!G227","v":0},{"$f":"'Risk Assessment Matrix'!H227","v":0}]
[{"$f":"'Risk Assessment Matrix'!A228","v":0},{"$f":"'Risk Assessment Matrix'!B228","v":0},{"$f":"'Risk Assessment Matrix'!E228","v":0},{"$f":"'Risk Assessment Matrix'!G228","v":0},{"$f":"'Risk Assessment Matrix'!H228","v":0}]
[{"$f":"'Risk Assessment Matrix'!A229","v":0},{"$f":"'Risk Assessment Matrix'!B229","v":0},{"$f":"'Risk Assessment Matrix'!E229","v":0},{"$f":"'Risk Assessment Matrix'!G229","v":0},{"$f":"'Risk Assessment Matrix'!H229","v":0}]
[{"$f":"'Risk Assessment Matrix'!A230","v":0},{"$f":"'Risk Assessment Matrix'!B230","v":0},{"$f":"'Risk Assessment Matrix'!E230","v":0},{"$f":"'Risk Assessment Matrix'!G230","v":0},{"$f":"'Risk Assessment Matrix'!H230","v":0}]
[{"$f":"'Risk Assessment Matrix'!A231","v":0},{"$f":"'Risk Assessment Matrix'!B231","v":0},{"$f":"'Risk Assessment Matrix'!E231","v":0},{"$f":"'Risk Assessment Matrix'!G231","v":0},{"$f":"'Risk Assessment Matrix'!H231","v":0}]
[{"$f":"'Risk Assessment Matrix'!A232","v":0},{"$f":"'Risk Assessment Matrix'!B232","v":0},{"$f":"'Risk Assessment Matrix'!E232","v":0},{"$f":"'Risk Assessment Matrix'!G232","v":0},{"$f":"'Risk Assessment Matrix'!H232","v":0}]
[{"$f":"'Risk Assessment Matrix'!A233","v":0},{"$f":"'Risk Assessment Matrix'!B233","v":0},{"$f":"'Risk Assessment Matrix'!E233","v":0},{"$f":"'Risk Assessment Matrix'!G233","v":0},{"$f":"'Risk Assessment Matrix'!H233","v":0}]
[{"$f":"'Risk Assessment Matrix'!A234","v":0},{"$f":"'Risk Assessment Matrix'!B234","v":0},{"$f":"'Risk Assessment Matrix'!E234","v":0},{"$f":"'Risk Assessment Matrix'!G234","v":0},{"$f":"'Risk Assessment Matrix'!H234","v":0}]
[{"$f":"'Risk Assessment Matrix'!A235","v":0},{"$f":"'Risk Assessment Matrix'!B235","v":0},{"$f":"'Risk Assessment Matrix'!E235","v":0},{"$f":"'Risk Assessment Matrix'!G235","v":0},{"$f":"'Risk Assessment Matrix'!H235","v":0}]
[{"$f":"'Risk Assessment Matrix'!A236","v":0},{"$f":"'Risk Assessment Matrix'!B236","v":0},{"$f":"'Risk Assessment Matrix'!E236","v":0},{"$f":"'Risk Assessment Matrix'!G236","v":0},{"$f":"'Risk Assessment Matrix'!H236","v":0}]
[{"$f":"'Risk Assessment Matrix'!A237","v":0},{"$f":"'Risk Assessment Matrix'!B237","v":0},{"$f":"'Risk Assessment Matrix'!E237","v":0},{"$f":"'Risk Assessment Matrix'!G237","v":0},{"$f":"'Risk Assessment Matrix'!H237","v":0}]
[{"$f":"'Risk Assessment Matrix'!A238","v":0},{"$f":"'Risk Assessment Matrix'!B238","v":0},{"$f":"'Risk Assessment Matrix'!E238","v":0},{"$f":"'Risk Assessment Matrix'!G238","v":0},{"$f":"'Risk Assessment Matrix'!H238","v":0}]
[{"$f":"'Risk Assessment Matrix'!A239","v":0},{"$f":"'Risk Assessment Matrix'!B239","v":0},{"$f":"'Risk Assessment Matrix'!E239","v":0},{"$f":"'Risk Assessment Matrix'!G239","v":0},{"$f":"'Risk Assessment Matrix'!H239","v":0}]
[{"$f":"'Risk Assessment Matrix'!A240","v":0},{"$f":"'Risk Assessment Matrix'!B240","v":0},{"$f":"'Risk Assessment Matrix'!E240","v":0},{"$f":"'Risk Assessment Matrix'!G240","v":0},{"$f":"'Risk Assessment Matrix'!H240","v":0}]
[{"$f":"'Risk Assessment Matrix'!A241","v":0},{"$f":"'Risk Assessment Matrix'!B241","v":0},{"$f":"'Risk Assessment Matrix'!E241","v":0},{"$f":"'Risk Assessment Matrix'!G241","v":0},{"$f":"'Risk Assessment Matrix'!H241","v":0}]
[{"$f":"'Risk Assessment Matrix'!A242","v":0},{"$f":"'Risk Assessment Matrix'!B242","v":0},{"$f":"'Risk Assessment Matrix'!E242","v":0},{"$f":"'Risk Assessment Matrix'!G242","v":0},{"$f":"'Risk Assessment Matrix'!H242","v":0}]
[{"$f":"'Risk Assessment Matrix'!A243","v":0},{"$f":"'Risk Assessment Matrix'!B243","v":0},{"$f":"'Risk Assessment Matrix'!E243","v":0},{"$f":"'Risk Assessment Matrix'!G243","v":0},{"$f":"'Risk Assessment Matrix'!H243","v":0}]
[{"$f":"'Risk Assessment Matrix'!A244","v":0},{"$f":"'Risk Assessment Matrix'!B244","v":0},{"$f":"'Risk Assessment Matrix'!E244","v":0},{"$f":"'Risk Assessment Matrix'!G244","v":0},{"$f":"'Risk Assessment Matrix'!H244","v":0}]
[{"$f":"'Risk Assessment Matrix'!A245","v":0},{"$f":"'Risk Assessment Matrix'!B245","v":0},{"$f":"'Risk Assessment Matrix'!E245","v":0},{"$f":"'Risk Assessment Matrix'!G245","v":0},{"$f":"'Risk Assessment Matrix'!H245","v":0}]
[{"$f":"'Risk Assessment Matrix'!A246","v":0},{"$f":"'Risk Assessment Matrix'!B246","v":0},{"$f":"'Risk Assessment Matrix'!E246","v":0},{"$f":"'Risk Assessment Matrix'!G246","v":0},{"$f":"'Risk Assessment Matrix'!H246","v":0}]
[{"$f":"'Risk Assessment Matrix'!A247","v":0},{"$f":"'Risk Assessment Matrix'!B247","v":0},{"$f":"'Risk Assessment Matrix'!E247","v":0},{"$f":"'Risk Assessment Matrix'!G247","v":0},{"$f":"'Risk Assessment Matrix'!H247","v":0}]
[{"$f":"'Risk Assessment Matrix'!A248","v":0},{"$f":"'Risk Assessment Matrix'!B248","v":0},{"$f":"'Risk Assessment Matrix'!E248","v":0},{"$f":"'Risk Assessment Matrix'!G248","v":0},{"$f":"'Risk Assessment Matrix'!H248","v":0}]
[{"$f":"'Risk Assessment Matrix'!A249","v":0},{"$f":"'Risk Assessment Matrix'!B249","v":0},{"$f":"'Risk Assessment Matrix'!E249","v":0},{"$f":"'Risk Assessment Matrix'!G249","v":0},{"$f":"'Risk Assessment Matrix'!H249","v":0}]
[{"$f":"'Risk Assessment Matrix'!A250","v":0},{"$f":"'Risk Assessment Matrix'!B250","v":0},{"$f":"'Risk Assessment Matrix'!E250","v":0},{"$f":"'Risk Assessment Matrix'!G250","v":0},{"$f":"'Risk Assessment Matrix'!H250","v":0}]
[{"$f":"'Risk Assessment Matrix'!A251","v":0},{"$f":"'Risk Assessment Matrix'!B251","v":0},{"$f":"'Risk Assessment Matrix'!E251","v":0},{"$f":"'Risk Assessment Matrix'!G251","v":0},{"$f":"'Risk Assessment Matrix'!H251","v":0}]
[{"$f":"'Risk Assessment Matrix'!A252","v":0},{"$f":"'Risk Assessment Matrix'!B252","v":0},{"$f":"'Risk Assessment Matrix'!E252","v":0},{"$f":"'Risk Assessment Matrix'!G252","v":0},{"$f":"'Risk Assessment Matrix'!H252","v":0}]
[{"$f":"'Risk Assessment Matrix'!A253","v":0},{"$f":"'Risk Assessment Matrix'!B253","v":0},{"$f":"'Risk Assessment Matrix'!E253","v":0},{"$f":"'Risk Assessment Matrix'!G253","v":0},{"$f":"'Risk Assessment Matrix'!H253","v":0}]
[{"$f":"'Risk Assessment Matrix'!A254","v":0},{"$f":"'Risk Assessment Matrix'!B254","v":0},{"$f":"'Risk Assessment Matrix'!E254","v":0},{"$f":"'Risk Assessment Matrix'!G254","v":0},{"$f":"'Risk Assessment Matrix'!H254","v":0}]
[{"$f":"'Risk Assessment Matrix'!A255","v":0},{"$f":"'Risk Assessment Matrix'!B255","v":0},{"$f":"'Risk Assessment Matrix'!E255","v":0},{"$f":"'Risk Assessment Matrix'!G255","v":0},{"$f":"'Risk Assessment Matrix'!H255","v":0}]
[{"$f":"'Risk Assessment Matrix'!A256","v":0},{"$f":"'Risk Assessment Matrix'!B256","v":0},{"$f":"'Risk Assessment Matrix'!E256","v":0},{"$f":"'Risk Assessment Matrix'!G256","v":0},{"$f":"'Risk Assessment Matrix'!H256","v":0}]
[{"$f":"'Risk Assessment Matrix'!A257","v":0},{"$f":"'Risk Assessment Matrix'!B257","v":0},{"$f":"'Risk Assessment Matrix'!E257","v":0},{"$f":"'Risk Assessment Matrix'!G257","v":0},{"$f":"'Risk Assessment Matrix'!H257","v":0}]
[{"$f":"'Risk Assessment Matrix'!A258","v":0},{"$f":"'Risk Assessment Matrix'!B258","v":0},{"$f":"'Risk Assessment Matrix'!E258","v":0},{"$f":"'Risk Assessment Matrix'!G258","v":0},{"$f":"'Risk Assessment Matrix'!H258","v":0}]
[{"$f":"'Risk Assessment Matrix'!A259","v":0},{"$f":"'Risk Assessment Matrix'!B259","v":0},{"$f":"'Risk Assessment Matrix'!E259","v":0},{"$f":"'Risk Assessment Matrix'!G259","v":0},{"$f":"'Risk Assessment Matrix'!H259","v":0}]
[{"$f":"'Risk Assessment Matrix'!A260","v":0},{"$f":"'Risk Assessment Matrix'!B260","v":0},{"$f":"'Risk Assessment Matrix'!E260","v":0},{"$f":"'Risk Assessment Matrix'!G260","v":0},{"$f":"'Risk Assessment Matrix'!H260","v":0}]
[{"$f":"'Risk Assessment Matrix'!A261","v":0},{"$f":"'Risk Assessment Matrix'!B261","v":0},{"$f":"'Risk Assessment Matrix'!E261","v":0},{"$f":"'Risk Assessment Matrix'!G261","v":0},{"$f":"'Risk Assessment Matrix'!H261","v":0}]
[{"$f":"'Risk Assessment Matrix'!A262","v":0},{"$f":"'Risk Assessment Matrix'!B262","v":0},{"$f":"'Risk Assessment Matrix'!E262","v":0},{"$f":"'Risk Assessment Matrix'!G262","v":0},{"$f":"'Risk Assessment Matrix'!H262","v":0}]
[{"$f":"'Risk Assessment Matrix'!A263","v":0},{"$f":"'Risk Assessment Matrix'!B263","v":0},{"$f":"'Risk Assessment Matrix'!E263","v":0},{"$f":"'Risk Assessment Matrix'!G263","v":0},{"$f":"'Risk Assessment Matrix'!H263","v":0}]
[{"$f":"'Risk Assessment Matrix'!A264","v":0},{"$f":"'Risk Assessment Matrix'!B264","v":0},{"$f":"'Risk Assessment Matrix'!E264","v":0},{"$f":"'Risk Assessment Matrix'!G264","v":0},{"$f":"'Risk Assessment Matrix'!H264","v":0}]
[{"$f":"'Risk Assessment Matrix'!A265","v":0},{"$f":"'Risk Assessment Matrix'!B265","v":0},{"$f":"'Risk Assessment Matrix'!E265","v":0},{"$f":"'Risk Assessment Matrix'!G265","v":0},{"$f":"'Risk Assessment Matrix'!H265","v":0}]
[{"$f":"'Risk Assessment Matrix'!A266","v":0},{"$f":"'Risk Assessment Matrix'!B266","v":0},{"$f":"'Risk Assessment Matrix'!E266","v":0},{"$f":"'Risk Assessment Matrix'!G266","v":0},{"$f":"'Risk Assessment Matrix'!H266","v":0}]
[{"$f":"'Risk Assessment Matrix'!A267","v":0},{"$f":"'Risk Assessment Matrix'!B267","v":0},{"$f":"'Risk Assessment Matrix'!E267","v":0},{"$f":"'Risk Assessment Matrix'!G267","v":0},{"$f":"'Risk Assessment Matrix'!H267","v":0}]
[{"$f":"'Risk Assessment Matrix'!A268","v":0},{"$f":"'Risk Assessment Matrix'!B268","v":0},{"$f":"'Risk Assessment Matrix'!E268","v":0},{"$f":"'Risk Assessment Matrix'!G268","v":0},{"$f":"'Risk Assessment Matrix'!H268","v":0}]
[{"$f":"'Risk Assessment Matrix'!A269","v":0},{"$f":"'Risk Assessment Matrix'!B269","v":0},{"$f":"'Risk Assessment Matrix'!E269","v":0},{"$f":"'Risk Assessment Matrix'!G269","v":0},{"$f":"'Risk Assessment Matrix'!H269","v":0}]
[{"$f":"'Risk Assessment Matrix'!A270","v":0},{"$f":"'Risk Assessment Matrix'!B270","v":0},{"$f":"'Risk Assessment Matrix'!E270","v":0},{"$f":"'Risk Assessment Matrix'!G270","v":0},{"$f":"'Risk Assessment Matrix'!H270","v":0}]
[{"$f":"'Risk Assessment Matrix'!A271","v":0},{"$f":"'Risk Assessment Matrix'!B271","v":0},{"$f":"'Risk Assessment Matrix'!E271","v":0},{"$f":"'Risk Assessment Matrix'!G271","v":0},{"$f":"'Risk Assessment Matrix'!H271","v":0}]
[{"$f":"'Risk Assessment Matrix'!A272","v":0},{"$f":"'Risk Assessment Matrix'!B272","v":0},{"$f":"'Risk Assessment Matrix'!E272","v":0},{"$f":"'Risk Assessment Matrix'!G272","v":0},{"$f":"'Risk Assessment Matrix'!H272","v":0}]
[{"$f":"'Risk Assessment Matrix'!A273","v":0},{"$f":"'Risk Assessment Matrix'!B273","v":0},{"$f":"'Risk Assessment Matrix'!E273","v":0},{"$f":"'Risk Assessment Matrix'!G273","v":0},{"$f":"'Risk Assessment Matrix'!H273","v":0}]
[{"$f":"'Risk Assessment Matrix'!A274","v":0},{"$f":"'Risk Assessment Matrix'!B274","v":0},{"$f":"'Risk Assessment Matrix'!E274","v":0},{"$f":"'Risk Assessment Matrix'!G274","v":0},{"$f":"'Risk Assessment Matrix'!H274","v":0}]
[{"$f":"'Risk Assessment Matrix'!A275","v":0},{"$f":"'Risk Assessment Matrix'!B275","v":0},{"$f":"'Risk Assessment Matrix'!E275","v":0},{"$f":"'Risk Assessment Matrix'!G275","v":0},{"$f":"'Risk Assessment Matrix'!H275","v":0}]
[{"$f":"'Risk Assessment Matrix'!A276","v":0},{"$f":"'Risk Assessment Matrix'!B276","v":0},{"$f":"'Risk Assessment Matrix'!E276","v":0},{"$f":"'Risk Assessment Matrix'!G276","v":0},{"$f":"'Risk Assessment Matrix'!H276","v":0}]
[{"$f":"'Risk Assessment Matrix'!A277","v":0},{"$f":"'Risk Assessment Matrix'!B277","v":0},{"$f":"'Risk Assessment Matrix'!E277","v":0},{"$f":"'Risk Assessment Matrix'!G277","v":0},{"$f":"'Risk Assessment Matrix'!H277","v":0}]
[{"$f":"'Risk Assessment Matrix'!A278","v":0},{"$f":"'Risk Assessment Matrix'!B278","v":0},{"$f":"'Risk Assessment Matrix'!E278","v":0},{"$f":"'Risk Assessment Matrix'!G278","v":0},{"$f":"'Risk Assessment Matrix'!H278","v":0}]
[{"$f":"'Risk Assessment Matrix'!A279","v":0},{"$f":"'Risk Assessment Matrix'!B279","v":0},{"$f":"'Risk Assessment Matrix'!E279","v":0},{"$f":"'Risk Assessment Matrix'!G279","v":0},{"$f":"'Risk Assessment Matrix'!H279","v":0}]
[{"$f":"'Risk Assessment Matrix'!A280","v":0},{"$f":"'Risk Assessment Matrix'!B280","v":0},{"$f":"'Risk Assessment Matrix'!E280","v":0},{"$f":"'Risk Assessment Matrix'!G280","v":0},{"$f":"'Risk Assessment Matrix'!H280","v":0}]
[{"$f":"'Risk Assessment Matrix'!A281","v":0},{"$f":"'Risk Assessment Matrix'!B281","v":0},{"$f":"'Risk Assessment Matrix'!E281","v":0},{"$f":"'Risk Assessment Matrix'!G281","v":0},{"$f":"'Risk Assessment Matrix'!H281","v":0}]
[{"$f":"'Risk Assessment Matrix'!A282","v":0},{"$f":"'Risk Assessment Matrix'!B282","v":0},{"$f":"'Risk Assessment Matrix'!E282","v":0},{"$f":"'Risk Assessment Matrix'!G282","v":0},{"$f":"'Risk Assessment Matrix'!H282","v":0}]
[{"$f":"'Risk Assessment Matrix'!A283","v":0},{"$f":"'Risk Assessment Matrix'!B283","v":0},{"$f":"'Risk Assessment Matrix'!E283","v":0},{"$f":"'Risk Assessment Matrix'!G283","v":0},{"$f":"'Risk Assessment Matrix'!H283","v":0}]
[{"$f":"'Risk Assessment Matrix'!A284","v":0},{"$f":"'Risk Assessment Matrix'!B284","v":0},{"$f":"'Risk Assessment Matrix'!E284","v":0},{"$f":"'Risk Assessment Matrix'!G284","v":0},{"$f":"'Risk Assessment Matrix'!H284","v":0}]
[{"$f":"'Risk Assessment Matrix'!A285","v":0},{"$f":"'Risk Assessment Matrix'!B285","v":0},{"$f":"'Risk Assessment Matrix'!E285","v":0},{"$f":"'Risk Assessment Matrix'!G285","v":0},{"$f":"'Risk Assessment Matrix'!H285","v":0}]
[{"$f":"'Risk Assessment Matrix'!A286","v":0},{"$f":"'Risk Assessment Matrix'!B286","v":0},{"$f":"'Risk Assessment Matrix'!E286","v":0},{"$f":"'Risk Assessment Matrix'!G286","v":0},{"$f":"'Risk Assessment Matrix'!H286","v":0}]
[{"$f":"'Risk Assessment Matrix'!A287","v":0},{"$f":"'Risk Assessment Matrix'!B287","v":0},{"$f":"'Risk Assessment Matrix'!E287","v":0},{"$f":"'Risk Assessment Matrix'!G287","v":0},{"$f":"'Risk Assessment Matrix'!H287","v":0}]
[{"$f":"'Risk Assessment Matrix'!A288","v":0},{"$f":"'Risk Assessment Matrix'!B288","v":0},{"$f":"'Risk Assessment Matrix'!E288","v":0},{"$f":"'Risk Assessment Matrix'!G288","v":0},{"$f":"'Risk Assessment Matrix'!H288","v":0}]
[{"$f":"'Risk Assessment Matrix'!A289","v":0},{"$f":"'Risk Assessment Matrix'!B289","v":0},{"$f":"'Risk Assessment Matrix'!E289","v":0},{"$f":"'Risk Assessment Matrix'!G289","v":0},{"$f":"'Risk Assessment Matrix'!H289","v":0}]
[{"$f":"'Risk Assessment Matrix'!A290","v":0},{"$f":"'Risk Assessment Matrix'!B290","v":0},{"$f":"'Risk Assessment Matrix'!E290","v":0},{"$f":"'Risk Assessment Matrix'!G290","v":0},{"$f":"'Risk Assessment Matrix'!H290","v":0}]
[{"$f":"'Risk Assessment Matrix'!A291","v":0},{"$f":"'Risk Assessment Matrix'!B291","v":0},{"$f":"'Risk Assessment Matrix'!E291","v":0},{"$f":"'Risk Assessment Matrix'!G291","v":0},{"$f":"'Risk Assessment Matrix'!H291","v":0}]
[{"$f":"'Risk Assessment Matrix'!A292","v":0},{"$f":"'Risk Assessment Matrix'!B292","v":0},{"$f":"'Risk Assessment Matrix'!E292","v":0},{"$f":"'Risk Assessment Matrix'!G292","v":0},{"$f":"'Risk Assessment Matrix'!H292","v":0}]
[{"$f":"'Risk Assessment Matrix'!A293","v":0},{"$f":"'Risk Assessment Matrix'!B293","v":0},{"$f":"'Risk Assessment Matrix'!E293","v":0},{"$f":"'Risk Assessment Matrix'!G293","v":0},{"$f":"'Risk Assessment Matrix'!H293","v":0}]
[{"$f":"'Risk Assessment Matrix'!A294","v":0},{"$f":"'Risk Assessment Matrix'!B294","v":0},{"$f":"'Risk Assessment Matrix'!E294","v":0},{"$f":"'Risk Assessment Matrix'!G294","v":0},{"$f":"'Risk Assessment Matrix'!H294","v":0}]
[{"$f":"'Risk Assessment Matrix'!A295","v":0},{"$f":"'Risk Assessment Matrix'!B295","v":0},{"$f":"'Risk Assessment Matrix'!E295","v":0},{"$f":"'Risk Assessment Matrix'!G295","v":0},{"$f":"'Risk Assessment Matrix'!H295","v":0}]
[{"$f":"'Risk Assessment Matrix'!A296","v":0},{"$f":"'Risk Assessment Matrix'!B296","v":0},{"$f":"'Risk Assessment Matrix'!E296","v":0},{"$f":"'Risk Assessment Matrix'!G296","v":0},{"$f":"'Risk Assessment Matrix'!H296","v":0}]
[{"$f":"'Risk Assessment Matrix'!A297","v":0},{"$f":"'Risk Assessment Matrix'!B297","v":0},{"$f":"'Risk Assessment Matrix'!E297","v":0},{"$f":"'Risk Assessment Matrix'!G297","v":0},{"$f":"'Risk Assessment Matrix'!H297","v":0}]
[{"$f":"'Risk Assessment Matrix'!A298","v":0},{"$f":"'Risk Assessment Matrix'!B298","v":0},{"$f":"'Risk Assessment Matrix'!E298","v":0},{"$f":"'Risk Assessment Matrix'!G298","v":0},{"$f":"'Risk Assessment Matrix'!H298","v":0}]
[{"$f":"'Risk Assessment Matrix'!A299","v":0},{"$f":"'Risk Assessment Matrix'!B299","v":0},{"$f":"'Risk Assessment Matrix'!E299","v":0},{"$f":"'Risk Assessment Matrix'!G299","v":0},{"$f":"'Risk Assessment Matrix'!H299","v":0}]
[{"$f":"'Risk Assessment Matrix'!A300","v":0},{"$f":"'Risk Assessment Matrix'!B300","v":0},{"$f":"'Risk Assessment Matrix'!E300","v":0},{"$f":"'Risk Assessment Matrix'!G300","v":0},{"$f":"'Risk Assessment Matrix'!H300","v":0}]
[{"$f":"'Risk Assessment Matrix'!A301","v":0},{"$f":"'Risk Assessment Matrix'!B301","v":0},{"$f":"'Risk Assessment Matrix'!E301","v":0},{"$f":"'Risk Assessment Matrix'!G301","v":0},{"$f":"'Risk Assessment Matrix'!H301","v":0}]
[{"$f":"'Risk Assessment Matrix'!A302","v":0},{"$f":"'Risk Assessment Matrix'!B302","v":0},{"$f":"'Risk Assessment Matrix'!E302","v":0},{"$f":"'Risk Assessment Matrix'!G302","v":0},{"$f":"'Risk Assessment Matrix'!H302","v":0}]
[{"$f":"'Risk Assessment Matrix'!A303","v":0},{"$f":"'Risk Assessment Matrix'!B303","v":0},{"$f":"'Risk Assessment Matrix'!E303","v":0},{"$f":"'Risk Assessment Matrix'!G303","v":0},{"$f":"'Risk Assessment Matrix'!H303","v":0}]
[{"$f":"'Risk Assessment Matrix'!A304","v":0},{"$f":"'Risk Assessment Matrix'!B304","v":0},{"$f":"'Risk Assessment Matrix'!E304","v":0},{"$f":"'Risk Assessment Matrix'!G304","v":0},{"$f":"'Risk Assessment Matrix'!H304","v":0}]
[{"$f":"'Risk Assessment Matrix'!A305","v":0},{"$f":"'Risk Assessment Matrix'!B305","v":0},{"$f":"'Risk Assessment Matrix'!E305","v":0},{"$f":"'Risk Assessment Matrix'!G305","v":0},{"$f":"'Risk Assessment Matrix'!H305","v":0}]
[{"$f":"'Risk Assessment Matrix'!A306","v":0},{"$f":"'Risk Assessment Matrix'!B306","v":0},{"$f":"'Risk Assessment Matrix'!E306","v":0},{"$f":"'Risk Assessment Matrix'!G306","v":0},{"$f":"'Risk Assessment Matrix'!H306","v":0}]
[{"$f":"'Risk Assessment Matrix'!A307","v":0},{"$f":"'Risk Assessment Matrix'!B307","v":0},{"$f":"'Risk Assessment Matrix'!E307","v":0},{"$f":"'Risk Assessment Matrix'!G307","v":0},{"$f":"'Risk Assessment Matrix'!H307","v":0}]
[{"$f":"'Risk Assessment Matrix'!A308","v":0},{"$f":"'Risk Assessment Matrix'!B308","v":0},{"$f":"'Risk Assessment Matrix'!E308","v":0},{"$f":"'Risk Assessment Matrix'!G308","v":0},{"$f":"'Risk Assessment Matrix'!H308","v":0}]
[{"$f":"'Risk Assessment Matrix'!A309","v":0},{"$f":"'Risk Assessment Matrix'!B309","v":0},{"$f":"'Risk Assessment Matrix'!E309","v":0},{"$f":"'Risk Assessment Matrix'!G309","v":0},{"$f":"'Risk Assessment Matrix'!H309","v":0}]
[{"$f":"'Risk Assessment Matrix'!A310","v":0},{"$f":"'Risk Assessment Matrix'!B310","v":0},{"$f":"'Risk Assessment Matrix'!E310","v":0},{"$f":"'Risk Assessment Matrix'!G310","v":0},{"$f":"'Risk Assessment Matrix'!H310","v":0}]
[{"$f":"'Risk Assessment Matrix'!A311","v":0},{"$f":"'Risk Assessment Matrix'!B311","v":0},{"$f":"'Risk Assessment Matrix'!E311","v":0},{"$f":"'Risk Assessment Matrix'!G311","v":0},{"$f":"'Risk Assessment Matrix'!H311","v":0}]
[{"$f":"'Risk Assessment Matrix'!A312","v":0},{"$f":"'Risk Assessment Matrix'!B312","v":0},{"$f":"'Risk Assessment Matrix'!E312","v":0},{"$f":"'Risk Assessment Matrix'!G312","v":0},{"$f":"'Risk Assessment Matrix'!H312","v":0}]
[{"$f":"'Risk Assessment Matrix'!A313","v":0},{"$f":"'Risk Assessment Matrix'!B313","v":0},{"$f":"'Risk Assessment Matrix'!E313","v":0},{"$f":"'Risk Assessment Matrix'!G313","v":0},{"$f":"'Risk Assessment Matrix'!H313","v":0}]
[{"$f":"'Risk Assessment Matrix'!A314","v":0},{"$f":"'Risk Assessment Matrix'!B314","v":0},{"$f":"'Risk Assessment Matrix'!E314","v":0},{"$f":"'Risk Assessment Matrix'!G314","v":0},{"$f":"'Risk Assessment Matrix'!H314","v":0}]
[{"$f":"'Risk Assessment Matrix'!A315","v":0},{"$f":"'Risk Assessment Matrix'!B315","v":0},{"$f":"'Risk Assessment Matrix'!E315","v":0},{"$f":"'Risk Assessment Matrix'!G315","v":0},{"$f":"'Risk Assessment Matrix'!H315","v":0}]
[{"$f":"'Risk Assessment Matrix'!A316","v":0},{"$f":"'Risk Assessment Matrix'!B316","v":0},{"$f":"'Risk Assessment Matrix'!E316","v":0},{"$f":"'Risk Assessment Matrix'!G316","v":0},{"$f":"'Risk Assessment Matrix'!H316","v":0}]
[{"$f":"'Risk Assessment Matrix'!A317","v":0},{"$f":"'Risk Assessment Matrix'!B317","v":0},{"$f":"'Risk Assessment Matrix'!E317","v":0},{"$f":"'Risk Assessment Matrix'!G317","v":0},{"$f":"'Risk Assessment Matrix'!H317","v":0}]
[{"$f":"'Risk Assessment Matrix'!A318","v":0},{"$f":"'Risk Assessment Matrix'!B318","v":0},{"$f":"'Risk Assessment Matrix'!E318","v":0},{"$f":"'Risk Assessment Matrix'!G318","v":0},{"$f":"'Risk Assessment Matrix'!H318","v":0}]
[{"$f":"'Risk Assessment Matrix'!A319","v":0},{"$f":"'Risk Assessment Matrix'!B319","v":0},{"$f":"'Risk Assessment Matrix'!E319","v":0},{"$f":"'Risk Assessment Matrix'!G319","v":0},{"$f":"'Risk Assessment Matrix'!H319","v":0}]
[{"$f":"'Risk Assessment Matrix'!A320","v":0},{"$f":"'Risk Assessment Matrix'!B320","v":0},{"$f":"'Risk Assessment Matrix'!E320","v":0},{"$f":"'Risk Assessment Matrix'!G320","v":0},{"$f":"'Risk Assessment Matrix'!H320","v":0}]
[{"$f":"'Risk Assessment Matrix'!A321","v":0},{"$f":"'Risk Assessment Matrix'!B321","v":0},{"$f":"'Risk Assessment Matrix'!E321","v":0},{"$f":"'Risk Assessment Matrix'!G321","v":0},{"$f":"'Risk Assessment Matrix'!H321","v":0}]
[{"$f":"'Risk Assessment Matrix'!A322","v":0},{"$f":"'Risk Assessment Matrix'!B322","v":0},{"$f":"'Risk Assessment Matrix'!E322","v":0},{"$f":"'Risk Assessment Matrix'!G322","v":0},{"$f":"'Risk Assessment Matrix'!H322","v":0}]
[{"$f":"'Risk Assessment Matrix'!A323","v":0},{"$f":"'Risk Assessment Matrix'!B323","v":0},{"$f":"'Risk Assessment Matrix'!E323","v":0},{"$f":"'Risk Assessment Matrix'!G323","v":0},{"$f":"'Risk Assessment Matrix'!H323","v":0}]
[{"$f":"'Risk Assessment Matrix'!A324","v":0},{"$f":"'Risk Assessment Matrix'!B324","v":0},{"$f":"'Risk Assessment Matrix'!E324","v":0},{"$f":"'Risk Assessment Matrix'!G324","v":0},{"$f":"'Risk Assessment Matrix'!H324","v":0}]
[{"$f":"'Risk Assessment Matrix'!A325","v":0},{"$f":"'Risk Assessment Matrix'!B325","v":0},{"$f":"'Risk Assessment Matrix'!E325","v":0},{"$f":"'Risk Assessment Matrix'!G325","v":0},{"$f":"'Risk Assessment Matrix'!H325","v":0}]
[{"$f":"'Risk Assessment Matrix'!A326","v":0},{"$f":"'Risk Assessment Matrix'!B326","v":0},{"$f":"'Risk Assessment Matrix'!E326","v":0},{"$f":"'Risk Assessment Matrix'!G326","v":0},{"$f":"'Risk Assessment Matrix'!H326","v":0}]
[{"$f":"'Risk Assessment Matrix'!A327","v":0},{"$f":"'Risk Assessment Matrix'!B327","v":0},{"$f":"'Risk Assessment Matrix'!E327","v":0},{"$f":"'Risk Assessment Matrix'!G327","v":0},{"$f":"'Risk Assessment Matrix'!H327","v":0}]
[{"$f":"'Risk Assessment Matrix'!A328","v":0},{"$f":"'Risk Assessment Matrix'!B328","v":0},{"$f":"'Risk Assessment Matrix'!E328","v":0},{"$f":"'Risk Assessment Matrix'!G328","v":0},{"$f":"'Risk Assessment Matrix'!H328","v":0}]
[{"$f":"'Risk Assessment Matrix'!A329","v":0},{"$f":"'Risk Assessment Matrix'!B329","v":0},{"$f":"'Risk Assessment Matrix'!E329","v":0},{"$f":"'Risk Assessment Matrix'!G329","v":0},{"$f":"'Risk Assessment Matrix'!H329","v":0}]
[{"$f":"'Risk Assessment Matrix'!A330","v":0},{"$f":"'Risk Assessment Matrix'!B330","v":0},{"$f":"'Risk Assessment Matrix'!E330","v":0},{"$f":"'Risk Assessment Matrix'!G330","v":0},{"$f":"'Risk Assessment Matrix'!H330","v":0}]
[{"$f":"'Risk Assessment Matrix'!A331","v":0},{"$f":"'Risk Assessment Matrix'!B331","v":0},{"$f":"'Risk Assessment Matrix'!E331","v":0},{"$f":"'Risk Assessment Matrix'!G331","v":0},{"$f":"'Risk Assessment Matrix'!H331","v":0}]
[{"$f":"'Risk Assessment Matrix'!A332","v":0},{"$f":"'Risk Assessment Matrix'!B332","v":0},{"$f":"'Risk Assessment Matrix'!E332","v":0},{"$f":"'Risk Assessment Matrix'!G332","v":0},{"$f":"'Risk Assessment Matrix'!H332","v":0}]
[{"$f":"'Risk Assessment Matrix'!A333","v":0},{"$f":"'Risk Assessment Matrix'!B333","v":0},{"$f":"'Risk Assessment Matrix'!E333","v":0},{"$f":"'Risk Assessment Matrix'!G333","v":0},{"$f":"'Risk Assessment Matrix'!H333","v":0}]
[{"$f":"'Risk Assessment Matrix'!A334","v":0},{"$f":"'Risk Assessment Matrix'!B334","v":0},{"$f":"'Risk Assessment Matrix'!E334","v":0},{"$f":"'Risk Assessment Matrix'!G334","v":0},{"$f":"'Risk Assessment Matrix'!H334","v":0}]
[{"$f":"'Risk Assessment Matrix'!A335","v":0},{"$f":"'Risk Assessment Matrix'!B335","v":0},{"$f":"'Risk Assessment Matrix'!E335","v":0},{"$f":"'Risk Assessment Matrix'!G335","v":0},{"$f":"'Risk Assessment Matrix'!H335","v":0}]
[{"$f":"'Risk Assessment Matrix'!A336","v":0},{"$f":"'Risk Assessment Matrix'!B336","v":0},{"$f":"'Risk Assessment Matrix'!E336","v":0},{"$f":"'Risk Assessment Matrix'!G336","v":0},{"$f":"'Risk Assessment Matrix'!H336","v":0}]
[{"$f":"'Risk Assessment Matrix'!A337","v":0},{"$f":"'Risk Assessment Matrix'!B337","v":0},{"$f":"'Risk Assessment Matrix'!E337","v":0},{"$f":"'Risk Assessment Matrix'!G337","v":0},{"$f":"'Risk Assessment Matrix'!H337","v":0}]
[{"$f":"'Risk Assessment Matrix'!A338","v":0},{"$f":"'Risk Assessment Matrix'!B338","v":0},{"$f":"'Risk Assessment Matrix'!E338","v":0},{"$f":"'Risk Assessment Matrix'!G338","v":0},{"$f":"'Risk Assessment Matrix'!H338","v":0}]
[{"$f":"'Risk Assessment Matrix'!A339","v":0},{"$f":"'Risk Assessment Matrix'!B339","v":0},{"$f":"'Risk Assessment Matrix'!E339","v":0},{"$f":"'Risk Assessment Matrix'!G339","v":0},{"$f":"'Risk Assessment Matrix'!H339","v":0}]
[{"$f":"'Risk Assessment Matrix'!A340","v":0},{"$f":"'Risk Assessment Matrix'!B340","v":0},{"$f":"'Risk Assessment Matrix'!E340","v":0},{"$f":"'Risk Assessment Matrix'!G340","v":0},{"$f":"'Risk Assessment Matrix'!H340","v":0}]
[{"$f":"'Risk Assessment Matrix'!A341","v":0},{"$f":"'Risk Assessment Matrix'!B341","v":0},{"$f":"'Risk Assessment Matrix'!E341","v":0},{"$f":"'Risk Assessment Matrix'!G341","v":0},{"$f":"'Risk Assessment Matrix'!H341","v":0}]
[{"$f":"'Risk Assessment Matrix'!A342","v":0},{"$f":"'Risk Assessment Matrix'!B342","v":0},{"$f":"'Risk Assessment Matrix'!E342","v":0},{"$f":"'Risk Assessment Matrix'!G342","v":0},{"$f":"'Risk Assessment Matrix'!H342","v":0}]
[{"$f":"'Risk Assessment Matrix'!A343","v":0},{"$f":"'Risk Assessment Matrix'!B343","v":0},{"$f":"'Risk Assessment Matrix'!E343","v":0},{"$f":"'Risk Assessment Matrix'!G343","v":0},{"$f":"'Risk Assessment Matrix'!H343","v":0}]
[{"$f":"'Risk Assessment Matrix'!A344","v":0},{"$f":"'Risk Assessment Matrix'!B344","v":0},{"$f":"'Risk Assessment Matrix'!E344","v":0},{"$f":"'Risk Assessment Matrix'!G344","v":0},{"$f":"'Risk Assessment Matrix'!H344","v":0}]
[{"$f":"'Risk Assessment Matrix'!A345","v":0},{"$f":"'Risk Assessment Matrix'!B345","v":0},{"$f":"'Risk Assessment Matrix'!E345","v":0},{"$f":"'Risk Assessment Matrix'!G345","v":0},{"$f":"'Risk Assessment Matrix'!H345","v":0}]
[{"$f":"'Risk Assessment Matrix'!A346","v":0},{"$f":"'Risk Assessment Matrix'!B346","v":0},{"$f":"'Risk Assessment Matrix'!E346","v":0},{"$f":"'Risk Assessment Matrix'!G346","v":0},{"$f":"'Risk Assessment Matrix'!H346","v":0}]
[{"$f":"'Risk Assessment Matrix'!A347","v":0},{"$f":"'Risk Assessment Matrix'!B347","v":0},{"$f":"'Risk Assessment Matrix'!E347","v":0},{"$f":"'Risk Assessment Matrix'!G347","v":0},{"$f":"'Risk Assessment Matrix'!H347","v":0}]
[{"$f":"'Risk Assessment Matrix'!A348","v":0},{"$f":"'Risk Assessment Matrix'!B348","v":0},{"$f":"'Risk Assessment Matrix'!E348","v":0},{"$f":"'Risk Assessment Matrix'!G348","v":0},{"$f":"'Risk Assessment Matrix'!H348","v":0}]
[{"$f":"'Risk Assessment Matrix'!A349","v":0},{"$f":"'Risk Assessment Matrix'!B349","v":0},{"$f":"'Risk Assessment Matrix'!E349","v":0},{"$f":"'Risk Assessment Matrix'!G349","v":0},{"$f":"'Risk Assessment Matrix'!H349","v":0}]
[{"$f":"'Risk Assessment Matrix'!A350","v":0},{"$f":"'Risk Assessment Matrix'!B350","v":0},{"$f":"'Risk Assessment Matrix'!E350","v":0},{"$f":"'Risk Assessment Matrix'!G350","v":0},{"$f":"'Risk Assessment Matrix'!H350","v":0}]
[{"$f":"'Risk Assessment Matrix'!A351","v":0},{"$f":"'Risk Assessment Matrix'!B351","v":0},{"$f":"'Risk Assessment Matrix'!E351","v":0},{"$f":"'Risk Assessment Matrix'!G351","v":0},{"$f":"'Risk Assessment Matrix'!H351","v":0}]
[{"$f":"'Risk Assessment Matrix'!A352","v":0},{"$f":"'Risk Assessment Matrix'!B352","v":0},{"$f":"'Risk Assessment Matrix'!E352","v":0},{"$f":"'Risk Assessment Matrix'!G352","v":0},{"$f":"'Risk Assessment Matrix'!H352","v":0}]
[{"$f":"'Risk Assessment Matrix'!A353","v":0},{"$f":"'Risk Assessment Matrix'!B353","v":0},{"$f":"'Risk Assessment Matrix'!E353","v":0},{"$f":"'Risk Assessment Matrix'!G353","v":0},{"$f":"'Risk Assessment Matrix'!H353","v":0}]
[{"$f":"'Risk Assessment Matrix'!A354","v":0},{"$f":"'Risk Assessment Matrix'!B354","v":0},{"$f":"'Risk Assessment Matrix'!E354","v":0},{"$f":"'Risk Assessment Matrix'!G354","v":0},{"$f":"'Risk Assessment Matrix'!H354","v":0}]
[{"$f":"'Risk Assessment Matrix'!A355","v":0},{"$f":"'Risk Assessment Matrix'!B355","v":0},{"$f":"'Risk Assessment Matrix'!E355","v":0},{"$f":"'Risk Assessment Matrix'!G355","v":0},{"$f":"'Risk Assessment Matrix'!H355","v":0}]
[{"$f":"'Risk Assessment Matrix'!A356","v":0},{"$f":"'Risk Assessment Matrix'!B356","v":0},{"$f":"'Risk Assessment Matrix'!E356","v":0},{"$f":"'Risk Assessment Matrix'!G356","v":0},{"$f":"'Risk Assessment Matrix'!H356","v":0}]
[{"$f":"'Risk Assessment Matrix'!A357","v":0},{"$f":"'Risk Assessment Matrix'!B357","v":0},{"$f":"'Risk Assessment Matrix'!E357","v":0},{"$f":"'Risk Assessment Matrix'!G357","v":0},{"$f":"'Risk Assessment Matrix'!H357","v":0}]
[{"$f":"'Risk Assessment Matrix'!A358","v":0},{"$f":"'Risk Assessment Matrix'!B358","v":0},{"$f":"'Risk Assessment Matrix'!E358","v":0},{"$f":"'Risk Assessment Matrix'!G358","v":0},{"$f":"'Risk Assessment Matrix'!H358","v":0}]
[{"$f":"'Risk Assessment Matrix'!A359","v":0},{"$f":"'Risk Assessment Matrix'!B359","v":0},{"$f":"'Risk Assessment Matrix'!E359","v":0},{"$f":"'Risk Assessment Matrix'!G359","v":0},{"$f":"'Risk Assessment Matrix'!H359","v":0}]
[{"$f":"'Risk Assessment Matrix'!A360","v":0},{"$f":"'Risk Assessment Matrix'!B360","v":0},{"$f":"'Risk Assessment Matrix'!E360","v":0},{"$f":"'Risk Assessment Matrix'!G360","v":0},{"$f":"'Risk Assessment Matrix'!H360","v":0}]
[{"$f":"'Risk Assessment Matrix'!A361","v":0},{"$f":"'Risk Assessment Matrix'!B361","v":0},{"$f":"'Risk Assessment Matrix'!E361","v":0},{"$f":"'Risk Assessment Matrix'!G361","v":0},{"$f":"'Risk Assessment Matrix'!H361","v":0}]
[{"$f":"'Risk Assessment Matrix'!A362","v":0},{"$f":"'Risk Assessment Matrix'!B362","v":0},{"$f":"'Risk Assessment Matrix'!E362","v":0},{"$f":"'Risk Assessment Matrix'!G362","v":0},{"$f":"'Risk Assessment Matrix'!H362","v":0}]
[{"$f":"'Risk Assessment Matrix'!A363","v":0},{"$f":"'Risk Assessment Matrix'!B363","v":0},{"$f":"'Risk Assessment Matrix'!E363","v":0},{"$f":"'Risk Assessment Matrix'!G363","v":0},{"$f":"'Risk Assessment Matrix'!H363","v":0}]
[{"$f":"'Risk Assessment Matrix'!A364","v":0},{"$f":"'Risk Assessment Matrix'!B364","v":0},{"$f":"'Risk Assessment Matrix'!E364","v":0},{"$f":"'Risk Assessment Matrix'!G364","v":0},{"$f":"'Risk Assessment Matrix'!H364","v":0}]
[{"$f":"'Risk Assessment Matrix'!A365","v":0},{"$f":"'Risk Assessment Matrix'!B365","v":0},{"$f":"'Risk Assessment Matrix'!E365","v":0},{"$f":"'Risk Assessment Matrix'!G365","v":0},{"$f":"'Risk Assessment Matrix'!H365","v":0}]
[{"$f":"'Risk Assessment Matrix'!A366","v":0},{"$f":"'Risk Assessment Matrix'!B366","v":0},{"$f":"'Risk Assessment Matrix'!E366","v":0},{"$f":"'Risk Assessment Matrix'!G366","v":0},{"$f":"'Risk Assessment Matrix'!H366","v":0}]
[{"$f":"'Risk Assessment Matrix'!A367","v":0},{"$f":"'Risk Assessment Matrix'!B367","v":0},{"$f":"'Risk Assessment Matrix'!E367","v":0},{"$f":"'Risk Assessment Matrix'!G367","v":0},{"$f":"'Risk Assessment Matrix'!H367","v":0}]
[{"$f":"'Risk Assessment Matrix'!A368","v":0},{"$f":"'Risk Assessment Matrix'!B368","v":0},{"$f":"'Risk Assessment Matrix'!E368","v":0},{"$f":"'Risk Assessment Matrix'!G368","v":0},{"$f":"'Risk Assessment Matrix'!H368","v":0}]
[{"$f":"'Risk Assessment Matrix'!A369","v":0},{"$f":"'Risk Assessment Matrix'!B369","v":0},{"$f":"'Risk Assessment Matrix'!E369","v":0},{"$f":"'Risk Assessment Matrix'!G369","v":0},{"$f":"'Risk Assessment Matrix'!H369","v":0}]
[{"$f":"'Risk Assessment Matrix'!A370","v":0},{"$f":"'Risk Assessment Matrix'!B370","v":0},{"$f":"'Risk Assessment Matrix'!E370","v":0},{"$f":"'Risk Assessment Matrix'!G370","v":0},{"$f":"'Risk Assessment Matrix'!H370","v":0}]
[{"$f":"'Risk Assessment Matrix'!A371","v":0},{"$f":"'Risk Assessment Matrix'!B371","v":0},{"$f":"'Risk Assessment Matrix'!E371","v":0},{"$f":"'Risk Assessment Matrix'!G371","v":0},{"$f":"'Risk Assessment Matrix'!H371","v":0}]
[{"$f":"'Risk Assessment Matrix'!A372","v":0},{"$f":"'Risk Assessment Matrix'!B372","v":0},{"$f":"'Risk Assessment Matrix'!E372","v":0},{"$f":"'Risk Assessment Matrix'!G372","v":0},{"$f":"'Risk Assessment Matrix'!H372","v":0}]
[{"$f":"'Risk Assessment Matrix'!A373","v":0},{"$f":"'Risk Assessment Matrix'!B373","v":0},{"$f":"'Risk Assessment Matrix'!E373","v":0},{"$f":"'Risk Assessment Matrix'!G373","v":0},{"$f":"'Risk Assessment Matrix'!H373","v":0}]
[{"$f":"'Risk Assessment Matrix'!A374","v":0},{"$f":"'Risk Assessment Matrix'!B374","v":0},{"$f":"'Risk Assessment Matrix'!E374","v":0},{"$f":"'Risk Assessment Matrix'!G374","v":0},{"$f":"'Risk Assessment Matrix'!H374","v":0}]
[{"$f":"'Risk Assessment Matrix'!A375","v":0},{"$f":"'Risk Assessment Matrix'!B375","v":0},{"$f":"'Risk Assessment Matrix'!E375","v":0},{"$f":"'Risk Assessment Matrix'!G375","v":0},{"$f":"'Risk Assessment Matrix'!H375","v":0}]
[{"$f":"'Risk Assessment Matrix'!A376","v":0},{"$f":"'Risk Assessment Matrix'!B376","v":0},{"$f":"'Risk Assessment Matrix'!E376","v":0},{"$f":"'Risk Assessment Matrix'!G376","v":0},{"$f":"'Risk Assessment Matrix'!H376","v":0}]
[{"$f":"'Risk Assessment Matrix'!A377","v":0},{"$f":"'Risk Assessment Matrix'!B377","v":0},{"$f":"'Risk Assessment Matrix'!E377","v":0},{"$f":"'Risk Assessment Matrix'!G377","v":0},{"$f":"'Risk Assessment Matrix'!H377","v":0}]
[{"$f":"'Risk Assessment Matrix'!A378","v":0},{"$f":"'Risk Assessment Matrix'!B378","v":0},{"$f":"'Risk Assessment Matrix'!E378","v":0},{"$f":"'Risk Assessment Matrix'!G378","v":0},{"$f":"'Risk Assessment Matrix'!H378","v":0}]
[{"$f":"'Risk Assessment Matrix'!A379","v":0},{"$f":"'Risk Assessment Matrix'!B379","v":0},{"$f":"'Risk Assessment Matrix'!E379","v":0},{"$f":"'Risk Assessment Matrix'!G379","v":0},{"$f":"'Risk Assessment Matrix'!H379","v":0}]
[{"$f":"'Risk Assessment Matrix'!A380","v":0},{"$f":"'Risk Assessment Matrix'!B380","v":0},{"$f":"'Risk Assessment Matrix'!E380","v":0},{"$f":"'Risk Assessment Matrix'!G380","v":0},{"$f":"'Risk Assessment Matrix'!H380","v":0}]
[{"$f":"'Risk Assessment Matrix'!A381","v":0},{"$f":"'Risk Assessment Matrix'!B381","v":0},{"$f":"'Risk Assessment Matrix'!E381","v":0},{"$f":"'Risk Assessment Matrix'!G381","v":0},{"$f":"'Risk Assessment Matrix'!H381","v":0}]
[{"$f":"'Risk Assessment Matrix'!A382","v":0},{"$f":"'Risk Assessment Matrix'!B382","v":0},{"$f":"'Risk Assessment Matrix'!E382","v":0},{"$f":"'Risk Assessment Matrix'!G382","v":0},{"$f":"'Risk Assessment Matrix'!H382","v":0}]
[{"$f":"'Risk Assessment Matrix'!A383","v":0},{"$f":"'Risk Assessment Matrix'!B383","v":0},{"$f":"'Risk Assessment Matrix'!E383","v":0},{"$f":"'Risk Assessment Matrix'!G383","v":0},{"$f":"'Risk Assessment Matrix'!H383","v":0}]
[{"$f":"'Risk Assessment Matrix'!A384","v":0},{"$f":"'Risk Assessment Matrix'!B384","v":0},{"$f":"'Risk Assessment Matrix'!E384","v":0},{"$f":"'Risk Assessment Matrix'!G384","v":0},{"$f":"'Risk Assessment Matrix'!H384","v":0}]
[{"$f":"'Risk Assessment Matrix'!A385","v":0},{"$f":"'Risk Assessment Matrix'!B385","v":0},{"$f":"'Risk Assessment Matrix'!E385","v":0},{"$f":"'Risk Assessment Matrix'!G385","v":0},{"$f":"'Risk Assessment Matrix'!H385","v":0}]
[{"$f":"'Risk Assessment Matrix'!A386","v":0},{"$f":"'Risk Assessment Matrix'!B386","v":0},{"$f":"'Risk Assessment Matrix'!E386","v":0},{"$f":"'Risk Assessment Matrix'!G386","v":0},{"$f":"'Risk Assessment Matrix'!H386","v":0}]
[{"$f":"'Risk Assessment Matrix'!A387","v":0},{"$f":"'Risk Assessment Matrix'!B387","v":0},{"$f":"'Risk Assessment Matrix'!E387","v":0},{"$f":"'Risk Assessment Matrix'!G387","v":0},{"$f":"'Risk Assessment Matrix'!H387","v":0}]
[{"$f":"'Risk Assessment Matrix'!A388","v":0},{"$f":"'Risk Assessment Matrix'!B388","v":0},{"$f":"'Risk Assessment Matrix'!E388","v":0},{"$f":"'Risk Assessment Matrix'!G388","v":0},{"$f":"'Risk Assessment Matrix'!H388","v":0}]
[{"$f":"'Risk Assessment Matrix'!A389","v":0},{"$f":"'Risk Assessment Matrix'!B389","v":0},{"$f":"'Risk Assessment Matrix'!E389","v":0},{"$f":"'Risk Assessment Matrix'!G389","v":0},{"$f":"'Risk Assessment Matrix'!H389","v":0}]
[{"$f":"'Risk Assessment Matrix'!A390","v":0},{"$f":"'Risk Assessment Matrix'!B390","v":0},{"$f":"'Risk Assessment Matrix'!E390","v":0},{"$f":"'Risk Assessment Matrix'!G390","v":0},{"$f":"'Risk Assessment Matrix'!H390","v":0}]
[{"$f":"'Risk Assessment Matrix'!A391","v":0},{"$f":"'Risk Assessment Matrix'!B391","v":0},{"$f":"'Risk Assessment Matrix'!E391","v":0},{"$f":"'Risk Assessment Matrix'!G391","v":0},{"$f":"'Risk Assessment Matrix'!H391","v":0}]
[{"$f":"'Risk Assessment Matrix'!A392","v":0},{"$f":"'Risk Assessment Matrix'!B392","v":0},{"$f":"'Risk Assessment Matrix'!E392","v":0},{"$f":"'Risk Assessment Matrix'!G392","v":0},{"$f":"'Risk Assessment Matrix'!H392","v":0}]
[{"$f":"'Risk Assessment Matrix'!A393","v":0},{"$f":"'Risk Assessment Matrix'!B393","v":0},{"$f":"'Risk Assessment Matrix'!E393","v":0},{"$f":"'Risk Assessment Matrix'!G393","v":0},{"$f":"'Risk Assessment Matrix'!H393","v":0}]
[{"$f":"'Risk Assessment Matrix'!A394","v":0},{"$f":"'Risk Assessment Matrix'!B394","v":0},{"$f":"'Risk Assessment Matrix'!E394","v":0},{"$f":"'Risk Assessment Matrix'!G394","v":0},{"$f":"'Risk Assessment Matrix'!H394","v":0}]
[{"$f":"'Risk Assessment Matrix'!A395","v":0},{"$f":"'Risk Assessment Matrix'!B395","v":0},{"$f":"'Risk Assessment Matrix'!E395","v":0},{"$f":"'Risk Assessment Matrix'!G395","v":0},{"$f":"'Risk Assessment Matrix'!H395","v":0}]
[{"$f":"'Risk Assessment Matrix'!A396","v":0},{"$f":"'Risk Assessment Matrix'!B396","v":0},{"$f":"'Risk Assessment Matrix'!E396","v":0},{"$f":"'Risk Assessment Matrix'!G396","v":0},{"$f":"'Risk Assessment Matrix'!H396","v":0}]
[{"$f":"'Risk Assessment Matrix'!A397","v":0},{"$f":"'Risk Assessment Matrix'!B397","v":0},{"$f":"'Risk Assessment Matrix'!E397","v":0},{"$f":"'Risk Assessment Matrix'!G397","v":0},{"$f":"'Risk Assessment Matrix'!H397","v":0}]
[{"$f":"'Risk Assessment Matrix'!A398","v":0},{"$f":"'Risk Assessment Matrix'!B398","v":0},{"$f":"'Risk Assessment Matrix'!E398","v":0},{"$f":"'Risk Assessment Matrix'!G398","v":0},{"$f":"'Risk Assessment Matrix'!H398","v":0}]
[{"$f":"'Risk Assessment Matrix'!A399","v":0},{"$f":"'Risk Assessment Matrix'!B399","v":0},{"$f":"'Risk Assessment Matrix'!E399","v":0},{"$f":"'Risk Assessment Matrix'!G399","v":0},{"$f":"'Risk Assessment Matrix'!H399","v":0}]
[{"$f":"'Risk Assessment Matrix'!A400","v":0},{"$f":"'Risk Assessment Matrix'!B400","v":0},{"$f":"'Risk Assessment Matrix'!E400","v":0},{"$f":"'Risk Assessment Matrix'!G400","v":0},{"$f":"'Risk Assessment Matrix'!H400","v":0}]

{"sheet":"Allegations-Disposition","index":8,"n_rows":3,"n_cols":12,"rows_kept":3,"cut":false,"hidden":false,"merged":[[0,0,0,11]]}
["Fraud Investigations and Corrective Actions Taken"]
[]
["Case Tracking Number","Description of Allegation","Source","Date Received","Resolution Responsibility Assigned To:","Date Investigation Completed","Recommended Disposition","Recommendations Reported To:","Date Reported","Resolution Decisions Reached","Date Matter Closed","Was Source Informed of Outcome?"]

{"sheet":"Monitoring Actions","index":9,"n_rows":8,"n_cols":8,"rows_kept":8,"cut":false,"hidden":false,"merged":[[0,0,0,7]]}
["Fraud Risk Monitoring Actions"]
[]
["Fraud Risk Principle","Scope and Description of Monitoring Plans/Actions","Frequency","Measurement Criteria","Person(s) Responsible","Date Latest Monitoring Completed","Deficiencies Identified","Corrective Actions Implemented"]
["Principle 1: The organization establishes and communicates a fraud risk management program that demonstrates the expectations of the board of directors and senior management and their commitment to high integrity and ethical values regarding managing fraud risk."]
["Principle 2: The organization performs comprehensive fraud risk assessments to identify specific fraud schemes and risks, assess their likelihood and significance, evaluate existing fraud control activities, and implement actions to mitigate residual fraud risks."]
["Principle 3: The organization selects, develops, and deploys preventive and detective fraud control activities to mitigate the risk of fraud events occurring or not being detected in a timely manner."]
["Principle 4: The organization establishes a communication process to obtain information about potential fraud and deploys a coordinated approach to investigation and corrective action to address fraud appropriately and in a timely manner."]
["Principle 5: The organization selects, develops, and performs ongoing evaluations to ascertain whether each of the five principles of fraud risk management is present and functioning and communicates fraud risk management program deficiencies in a timely manner to parties responsible for taking corrective action, including senior management and the board of directors."]

{"sheet":"Risk Assessment Matrix (ex.)","index":10,"n_rows":48,"n_cols":11,"rows_kept":48,"cut":false,"hidden":false,"merged":[[0,0,1,10]]}
["Fraud Risk Assessment as of [DATE]"]
[]
["ID Number","Identified Fraud Risks and Schemes","Likelihood [1-5]","Significance [1-5]","Fraud Risk Rating","People and/or Department","Existing Anti-Fraud Controls","Preventive [P], Detective [D], or Combined [C]","Controls Effectiveness Assessment [1-5]","Residual Risks\n(High, Medium, Low)","Fraud Risk Response"]
["AM4","Fraudulent Disbursements - Check Tampering & Expense Reimbursement Schemes",5,5,{"$f":"C4*D4","v":25},"Check tampering:\nAccounting & Finance staff (including Treasury)\nContracting\nPurchasing\nOperations managers\nSenior executives (e.g. Sales, Marketing, IT, Legal, General managers of remote locations, CEO, COO)\n\nExpense Reimbursement:\nAll staff (especially sales personnel and management at remote locations)","Physical access controls, dual signatures on checks, support for expenses, review by supervisor and requirement that any false statement made on any expense report could be grounds for dismissal\n\nAwareness of pressures/incentives at all levels that might drive inappropriate financial behavior as well as observation, inquiry, and other information that focus on lifestyle, family, and personal financial issues of personnel in these departments.","D",1,"Medium (if by senior mgmt)\n\nLow (if by other employees)","Rotation of responsibilities in Accounting & Finance function, (e.g. mandatory vacations) \n\nAwareness of lifestyle and other personal issues such as divorce, illness, bankruptcies, and disgruntled employees who might want to get back at the organization"]
["IAC 2","Conflicts of Interest - Undisclosed relationships or related-party transactions that negatively impact an organization's reputation and may cause financial harm while benefiting the person with the relationship",5,5,25,"Owners\nDirectors\nSenior executives (e.g. CEO, COO)\nManagers of operating units\nManagers at remote locations\nPurchasing\nSales\nLegal","Policy requires all employees including senior management to disclose any personal relationships, business transactions and related parties in a timely manner for approval by the Board or other governing body\n\nBackground checks are performed on all key personnel looking for undisclosed interests in businesses, real estate, or other relationships\n\nIA routinely uses data analysis tools to compare vendor and customer master files with employee payroll files looking for matching addresses, names, tax identification or social security numbers and telephone numbers","D",1,"Medium - Risk of management override of internal controls to conceal relationships and related party transactions","Use background check specialists to re-evaluate the organization's background check procedures and to test-check the results on selected individuals"]
["AM1","Cash Theft by Cyberfraud - Professional fraudsters use phishing to obtain organization's online banking login credentials and severely deplete the bank accounts",4,5,20,"Accounting & Finance staff (including Treasury)","Dedicated computer(s) for online banking use only (using other computers is strictly prohibited as is using this computer for any other purpose)\n\nIT specialists setup the dedicated banking computer(s) with high security against both internal and external unauthorized access and use. Security measures are updated by IT security specialists on an ongoing basis\n\nAll personnel with access to online banking credentials receive mandatory training about avoiding fraudster's phishing techniques using only the permitted computer(s) for online banking and their responsibility to help ensure their colleagues comply very strictly with this policy, including the requirement to report any violations","P",2,"Medium - emptying the organization's bank accounts would create a liquidity crisis that could severely disrupt operations","A separate team of IT security specialists will test the system security annually by trying to hack the system or obtain banking credentials through phishing, social engineering, \"salting\" thumb drives with malware posing as a cleaner or computer repair person."]
["FR3","Revenue Recognition - Delivery of product prior to customer's requested delivery date or prior to receipt of customer's order",4,5,20,"Sales and shipping\nSenior executives (e.g. CEO, COO)","Systematic matching of sales order to shipping documentation; exception reports generated","C",1,"Medium - Risk of management override of internal controls to initiate early shipment and revenue recognition for significant sales","IA will increase cut-off testing"]
["IAC 1","Bribery of governmental officials",4,5,20,"Business unit sales managers\nAccounting & Finance staff\nSenior executives (e.g. CEO, COO)\nLegal\n\n","Strictly-enforced policy against offering, giving, receiving, and soliciting anything of value to influence an official act by a public official, agent, or government employee\n\nStrictly-enforced policy prohibiting bribing of foreign officials as well as making unauthorized facilitation payments to those individuals involved in customs, permitting the flow of goods and other activities\n\nWe examine contracts where U.S.-based government or foreign officials have had any involvement and determine the historical relationships between sales agents and sources of revenue to determine if there was inappropriate influence on the part of the government official by the sales agent\n\nWe examine expense reports of sales representatives and promotional activities by country (foreign) managers ","C",2,"High - Sales personnel could become part of a corruption scheme (both wittingly and unwittingly)\n\nHuge fines and penalties as well as criminal sanctions are realistic possibilities if the bribery schemes are not dealt with in a timely fashion","Data analytics on sales and expense transactions in high-risk locations to identify potentially suspicious transactions for further testing by IA\n\nSend quarterly statements about the organization's compliance and ethics program to all customers, vendors, sales agents, and independent contractors regarding their responsibility to report any violations of this program\n\nAll employees will have annual ethics training and be required to affirm that they understand the compliance and ethics policies and sign off stating that they understand its provisions and they will comply with the program."]
["AM2","Fraudulent Disbursements - Billing Schemes - Use of phony vendors",3,5,15,"Contracting\nPurchasing\nOperations managers\nSenior executives (e.g. Sales, Marketing, IT, Legal, General managers of remote locations, CEO, COO)\nAccounting & Finance staff","Purchases can only be made from approved vendors\n\nVendors are approved by the contracting department","D",1,"Medium - Employee could set up and get approved a phony vendor either through collusion or by fooling the contracts department, but it would be extremely difficult for this to be material to the organization","Establish a data analytic test that looks for any matching fields in the vendor and employee databases"]
["FR2","Revenue Recognition - Side letters/agreements with concessions (e.g. extened payment terms, price reductions, rebates, unusual sales/marketing support funding for dealers, distributors or retailers)",3,5,15,"Sales\nSenior executives (e.g. CEO, COO)\nLegal\nAccounting & Finance staff","Annual training of sales personnel on revenue recognition practices\n\nQuarterly signed attestations of sales personnel concerning extra contractual agreements\n\nInternal audit confirming with customers that there are no other agreements, written or oral, that would modify the terms of the written agreement\n\nTesting of purchase orders to shipping documents and cash receipts for transactions entered into at or near the end of the quarter or year","D",1,"High - Risk of management override of internal controls to leading to significant/material misstatement of revenue and net income\n\nMedium - Lax enforcement of training requirements may lead to isolated examples of improper revenue recognition by lower-level personnel","Disaggregated anaysis of sales, sales returns, and adjustments by salesperson\n\nAdd to all purchase orders, invoices, and contracts a statement about the organization's ethics and how to report misconduct\n\nHave sales personnel affirm annually that they have not modified terms of sales contrracts by allowing concessions or altering payment terms"]
["FR4","Revenue Recognition - Partial shipments",3,5,15,"Sales and shipping\nSenior executives(e.g. CEO, COO)","Systematic shipping documents manually checked against every shipment\n\nSystematic matching of sales order to shipping documentation; exception reports generated\n\nCustomer approval of partial shipment required prior to revenue recognition","P",1,"Medium - Risk of management override of internal controls to initiate partial shipments and record revenue on them despite not having customer approval for partial shipments","IA will increase cut-off testing"]
["FR6","Revenue Recognition - Holding books open to record in the current period revenue from sales made in the next period",3,5,15,"Accounting & Finance staff\nSenior executives (e.g. CEO, COO)\nSales","Standard monthly close process\n\nReconciliation of invoice register to GL\n\nEstablished procedures for shipping, invoicing, and revenue recognition\n\nEstablished process for consolidation","D",1,"Medium - Risk of management override of controls to hold the books open","Data analytic identification and testing of late journal entries\n\nSales cut-off testing by IA"]
["FR7","Manipulation of Liabilities/Expenses - Unrecorded vendor invoices",3,5,15,"Accounting & Finance staff\nSenior executives (e.g. CEO, COO)\nSales","Vendors are instructed to send invoices only to the centralized Accounting function where they are logged into the A/P system upon receipt and held in a suspense account as \"Pending approval\" until authorized by the relevant department\n\nDept. heads and Accounting review the nature/value of pending invoices at period end to help ensure proper cut-off","D",3,"Medium - Risk of management override of internal controls to defer recognition of current period liabilities/expenses into next period by not processing invoices from certain vendors for select transactions or for a particular period (not necessarily at year end)","IA will use data analytics to identify and test major invoices processed in nonstandard manner to identify potential recording in the wrong period\n\nAccounting function will check each quarter end with the heads of marketing and legal depts and with CEO to help identify major invoices not recorded in the A/P system"]
["FR9","Revenue Recognition - Backdating sales agreements",3,5,15,"Accounting & Finance staff\nSenior executives (e.g. CEO, COO)\nSales","A clear revenue recognition policy & training for all sales persons, sales management, and Accounting & Finance personnel involved in accounting for sales\n\nCEO and VP Sales both set a clear and strong tone about making sure revenue recognition conditions are met before sales are booked as revenue - violators are disciplined including termination for \"serious\" offenses (e.g. lying to mgmt)\n\nWell-controlled sales contract administration system\n\nSales management monitors transactions in sales contract system to help ensure compliance. They provide more scrutiny to significant sales booked in the last two weeks of each quarter","D",1,"Low","None required due to low residual risk.\nExisting testing of fraud controls are sufficient."]
["FR5","Revenue recognition - Recording revenue for items shipped after books closed for period end (e.g. late shipments)",3,4,12,"Shipping\nSales\nAccounting & Finance staff\nSenior executives (e.g. CEO, COO)","Integrated shipping system, linked to invoicing and sales register\n\nDaily reconciliation of shipping log to invoice register\n\nRequired management approval of manual invoices","D",1,"Medium - Risk of management override of internal controls to record as sales items that were not shipped until after the accounting period","More frequent cut-off testing by IA"]
["NF5","Overstated/false employee qualifications or certifications",3,4,12,"All Departments\nSales\nHuman Resources\nSenior executives (e.g. CEO, COO)","Confirmation of credentials via background checks on a sample of new hires whose qualifications or credentials are to be relied upon for regulatory or contractual compliance or key organizational performance purposes","C",3,"Medium - Involving personnel who lack required qualifications or credentials could violate provisions in customer contracts and introduce defects into the organization's products/services, leading to financial claims against the organization, charges of false billing, disbarment as a government contractor, and reputational harm","Expand background testing to 100%\n\nTake swift, decisive action against people who have misrepresented their credentials\n\nPublicize internally (on a no-name basis) the disciplinary actions taken"]
["NF1","Quality - Material testing results altered",2,5,10,"Production\nVendors\nInternal QC personnel\nSales\nSenior executives (e.g. CEO, COO)","Independent sample testing","D",5,"High - Bait/switch, collusion, kickbacks, or management override of internal controls to alter material testing results for raw materials, components,  or final products to avoid demonstrating violation of key contract provisions","Conduct more frequent testing using larger samples\n\nAdd to all purchase orders, invoices, and contracts a statement about the organization's ethics on how to report misconduct"]
["NF2","Compliance - Environmental, Health, & Safety Reporting",2,5,10,"Operating unit leaders\nProduction/Warehouse\nHuman Resources\nSecurity\nEH&S personnel\nSenior executives (e.g. CEO, COO)\nLegal","No process-specific fraud controls. Rely on entity-level compliance program, \"speak up\" policy, and whistleblower program with anti-retaliation protection","D",1,"Medium - Collusion or management override of internal controls to conceal issues with major reputational or financial consequences (e.g. serious violation of emissions laws or regulations or defective product safety features","Include follow-up questions in annual employee survey"]
["NF3","Quality - Employee Certification Test Score Tampering",3,3,9,"Production\nHuman Resources\nSecurity personnel\nSales\nSenior executives (e.g. CEO, COO)","No process-specific fraud controls. Rely on entity-level compliance and ethics/fraud controls","D",1,"Medium - Collusion or management override of internal controls to tamper with test scores (e.g. to avoid violating provisions in a major contract)","Revise testing procedure to require automatic recording and reporting of score results at test completion"]
["FR1","Inappropriate Journal Entries",2,4,8,"General Manager\nSenior executives (e.g. CEO, COO)\nAccounting & Finance staff","Established process for consolidation\n\nReview process for standard and non-standard journal entries\n\nSystematic access controls to the GL","D",2,"High - Risk of management override of internal controls to mistate financial results by making journal entries","Data analysis of journal entry population by IA for:\n - Unusual DR/CR combinations\n - Late entries to accounts subject to significant judgments & estimates\n - Indications of journal entries being approved or entered by persons not involved (e.g. by more senior mgmt. or others using special or unauthorized system access)"]
["FR11","Disclosures - Improper or inadequate disclosures of material facts, circumstances, and events",2,4,8,"Accounting & Finance staff\nSenior executives (e.g. CEO, COO)\nLegal","CFO and Controller confer with senior management and legal to ensure all appropriate disclosures have been made\n\nPeriodic reviews by outside counsel, sign off by senior management and CFO and Controller\n\nReview by disclosure committee of the Board of Directors","D",1,"Low - Risk of management of override of controls over disclosures (e.g. to prevent timely disclosure of adverse drug trial results, failure to win a key contract or indications of defective product with liability consequences)","None required due to low residual risk."]
["FR8","Revenue Recognition - Manipulation of secondary revenue streams (e.g. service and support revenue)",2,3,6,"Accounting & Finance staff\nSenior executives (e.g. CEO, COO)\nSales","Signed customer contract documentation is required to record service/support revenue","D",1,"Medium - Risk of management override of internal controls to create fictitious sales or to \"front load\" revenue recognition in secondary revenue streams","IA will implement data analytic tests for unusual trends and transactions"]
["NF4","Compliance - Falsely reporting compliance information on contracts",2,3,6,"Contract\nAdministration Unit\nSales\nSenior executives. (e.g. CEO, COO)","No process-specific fraud controls. Rely on entity-level compliance and ethics/fraud controls","C",1,"Medium - Collusion, bribes, kickbacks or management override","Include follow-up questions in annual employee survey\n\nWill add a statement pertaining to company ethics and misconduct reporting to all purchase orders and contracts"]
["FR10","Revenue Recognition - Channel stuffing",1,4,4,"Accounting & Finance staff\nSenior executives (e.g. CEO, COO)\nSales","VP Sales has established a clear policy requiring his written pre-approval for all sales in excess of 3 month's usage and which exceeds $1 million\n\nSales Managers review each salesperson's sales figures by customer\n\nSenior sales management reviews sales figures for each location/business unit\n\nAccounting and Finance function performs analytical review on sales figures and compares to budget and projections","D",1,"Low","None required due to low residual risk.\nExisting testing of fraud controls are sufficient."]
["AM3","Theft or diversion of inventory",1,3,3,"Warehouse\nPurchasing\nSecurity\nGeneral managers at remote locations\nSite supervisors at remote locations","Physical access controls\n\nComparison of purchase requisitions and receiving reports","D",2,"Medium - Collusion or concealment of purchases by delivery to off-site addresses","Begin using pre-numbered purchase requisitions that include a statement that deliveries are only to be made to the warehouse address\n\nImplement data analytic tests comparing purchasing disbursements and inventory levels"]
["IAC3","Commercial Bribery/Illegal Gratuities",1,3,3,"Sales\nPurchasing\nGeneral managers of business units\nSenior executives (e.g. CEO, COO)\nLegal\nAccounting & Finance staff","Background checks on all purchasing personnel that look for bankruptcies, divorces, financial problems, criminal history\n\nInsuring that all vendors are logged in, vetted, approved by a supervisor, and selected on a competitive bid basis\n\nIA performs routine audits of the purchasing department","D",1,"Medium - Kickback schemes usually result in higher prices for goods purchased (reflective of the amount \"kicked back\")","Add a statement about the organization's compliance and ethics program directed at vendors requiring them to report all suspicious activities, solicitations, and misconduct relating to purchase orders and contracts"]
["AM5","Cash Skimming",1,1,1,"Cashiers and cash room staff\nAccounting & Finance staff","Use of minimal cash transactions\n\nCash reconciliations\n\n","C",1,"Low","None required due to low residual risk"]
["FR12","Revenue Recognition - Manipulation of bill and hold arrangements",1,1,1,"Accounting & Finance staff\nSenior executives (e.g. CEO, COO)","None required due to low inherent risk","N/A","N/A","Low","None required due to low residual risk."]
["FR13","Revenue Recognition - Roundtrip transactions",1,1,1,"Accounting & Finance staff\nSenior executives (e.g. CEO, COO)\nSales","None required due to low inherent risk","N/A","N/A","Low","None required due to low residual risk."]
["NF6","Altered Productivity Reports",1,1,1,"Production\nOperating Unit Management","Analytic comparisons of inventory consumption with labor hours","C",2,"Low - False reporting to earn productivity bonuses","None required due to low residual risk"]
[]
[]
[]
[]
[]
[]
[]
[]
[]
[]
[]
[]
[]
[]
[]
[]
[]
[null,null,null,null,null," "]

{"sheet":"Heat Map (ex.)","index":11,"n_rows":400,"n_cols":6,"rows_kept":400,"cut":false,"hidden":false,"merged":[[29,5,29,15]]}
["Item number","Likelihood","Significance"]
[{"$f":"'Risk Assessment Matrix (ex.)'!A4","v":"AM4"},{"$f":"'Risk Assessment Matrix (ex.)'!C4","v":5},{"$f":"'Risk Assessment Matrix (ex.)'!D4","v":5}]
[{"$f":"'Risk Assessment Matrix (ex.)'!A5","v":"IAC 2"},{"$f":"'Risk Assessment Matrix (ex.)'!C5","v":5},{"$f":"'Risk Assessment Matrix (ex.)'!D5","v":5}]
[{"$f":"'Risk Assessment Matrix (ex.)'!A6","v":"AM1"},{"$f":"'Risk Assessment Matrix (ex.)'!C6","v":4},{"$f":"'Risk Assessment Matrix (ex.)'!D6","v":5}]
[{"$f":"'Risk Assessment Matrix (ex.)'!A7","v":"FR3"},{"$f":"'Risk Assessment Matrix (ex.)'!C7","v":4},{"$f":"'Risk Assessment Matrix (ex.)'!D7","v":5}]
[{"$f":"'Risk Assessment Matrix (ex.)'!A8","v":"IAC 1"},{"$f":"'Risk Assessment Matrix (ex.)'!C8","v":4},{"$f":"'Risk Assessment Matrix (ex.)'!D8","v":5}]
[{"$f":"'Risk Assessment Matrix (ex.)'!A9","v":"AM2"},{"$f":"'Risk Assessment Matrix (ex.)'!C9","v":3},{"$f":"'Risk Assessment Matrix (ex.)'!D9","v":5}]
[{"$f":"'Risk Assessment Matrix (ex.)'!A10","v":"FR2"},{"$f":"'Risk Assessment Matrix (ex.)'!C10","v":3},{"$f":"'Risk Assessment Matrix (ex.)'!D10","v":5}]
[{"$f":"'Risk Assessment Matrix (ex.)'!A11","v":"FR4"},{"$f":"'Risk Assessment Matrix (ex.)'!C11","v":3},{"$f":"'Risk Assessment Matrix (ex.)'!D11","v":5}]
[{"$f":"'Risk Assessment Matrix (ex.)'!A12","v":"FR6"},{"$f":"'Risk Assessment Matrix (ex.)'!C12","v":3},{"$f":"'Risk Assessment Matrix (ex.)'!D12","v":5}]
[{"$f":"'Risk Assessment Matrix (ex.)'!A13","v":"FR7"},{"$f":"'Risk Assessment Matrix (ex.)'!C13","v":3},{"$f":"'Risk Assessment Matrix (ex.)'!D13","v":5}]
[{"$f":"'Risk Assessment Matrix (ex.)'!A14","v":"FR9"},{"$f":"'Risk Assessment Matrix (ex.)'!C14","v":3},{"$f":"'Risk Assessment Matrix (ex.)'!D14","v":5}]
[{"$f":"'Risk Assessment Matrix (ex.)'!A15","v":"FR5"},{"$f":"'Risk Assessment Matrix (ex.)'!C15","v":3},{"$f":"'Risk Assessment Matrix (ex.)'!D15","v":4}]
[{"$f":"'Risk Assessment Matrix (ex.)'!A16","v":"NF5"},{"$f":"'Risk Assessment Matrix (ex.)'!C16","v":3},{"$f":"'Risk Assessment Matrix (ex.)'!D16","v":4}]
[{"$f":"'Risk Assessment Matrix (ex.)'!A17","v":"NF1"},{"$f":"'Risk Assessment Matrix (ex.)'!C17","v":2},{"$f":"'Risk Assessment Matrix (ex.)'!D17","v":5}]
[{"$f":"'Risk Assessment Matrix (ex.)'!A18","v":"NF2"},{"$f":"'Risk Assessment Matrix (ex.)'!C18","v":2},{"$f":"'Risk Assessment Matrix (ex.)'!D18","v":5}]
[{"$f":"'Risk Assessment Matrix (ex.)'!A19","v":"NF3"},{"$f":"'Risk Assessment Matrix (ex.)'!C19","v":3},{"$f":"'Risk Assessment Matrix (ex.)'!D19","v":3}]
[{"$f":"'Risk Assessment Matrix (ex.)'!A20","v":"FR1"},{"$f":"'Risk Assessment Matrix (ex.)'!C20","v":2},{"$f":"'Risk Assessment Matrix (ex.)'!D20","v":4}]
[{"$f":"'Risk Assessment Matrix (ex.)'!A21","v":"FR11"},{"$f":"'Risk Assessment Matrix (ex.)'!C21","v":2},{"$f":"'Risk Assessment Matrix (ex.)'!D21","v":4}]
[{"$f":"'Risk Assessment Matrix (ex.)'!A22","v":"FR8"},{"$f":"'Risk Assessment Matrix (ex.)'!C22","v":2},{"$f":"'Risk Assessment Matrix (ex.)'!D22","v":3}]
[{"$f":"'Risk Assessment Matrix (ex.)'!A23","v":"NF4"},{"$f":"'Risk Assessment Matrix (ex.)'!C23","v":2},{"$f":"'Risk Assessment Matrix (ex.)'!D23","v":3}]
[{"$f":"'Risk Assessment Matrix (ex.)'!A24","v":"FR10"},{"$f":"'Risk Assessment Matrix (ex.)'!C24","v":1},{"$f":"'Risk Assessment Matrix (ex.)'!D24","v":4}]
[{"$f":"'Risk Assessment Matrix (ex.)'!A25","v":"AM3"},{"$f":"'Risk Assessment Matrix (ex.)'!C25","v":1},{"$f":"'Risk Assessment Matrix (ex.)'!D25","v":3}]
[{"$f":"'Risk Assessment Matrix (ex.)'!A26","v":"IAC3"},{"$f":"'Risk Assessment Matrix (ex.)'!C26","v":1},{"$f":"'Risk Assessment Matrix (ex.)'!D26","v":3}]
[{"$f":"'Risk Assessment Matrix (ex.)'!A27","v":"AM5"},{"$f":"'Risk Assessment Matrix (ex.)'!C27","v":1},{"$f":"'Risk Assessment Matrix (ex.)'!D27","v":1}]
[{"$f":"'Risk Assessment Matrix (ex.)'!A28","v":"FR12"},{"$f":"'Risk Assessment Matrix (ex.)'!C28","v":1},{"$f":"'Risk Assessment Matrix (ex.)'!D28","v":1}]
[{"$f":"'Risk Assessment Matrix (ex.)'!A29","v":"FR13"},{"$f":"'Risk Assessment Matrix (ex.)'!C29","v":1},{"$f":"'Risk Assessment Matrix (ex.)'!D29","v":1}]
[{"$f":"'Risk Assessment Matrix (ex.)'!A30","v":"NF6"},{"$f":"'Risk Assessment Matrix (ex.)'!C30","v":1},{"$f":"'Risk Assessment Matrix (ex.)'!D30","v":1}]
[{"$f":"'Risk Assessment Matrix (ex.)'!A31","v":0},{"$f":"'Risk Assessment Matrix (ex.)'!C31","v":0},{"$f":"'Risk Assessment Matrix (ex.)'!D31","v":0}]
[{"$f":"'Risk Assessment Matrix (ex.)'!A32","v":0},{"$f":"'Risk Assessment Matrix (ex.)'!C32","v":0},{"$f":"'Risk Assessment Matrix (ex.)'!D32","v":0},null,null,"LIKELIHOOD"]
[{"$f":"'Risk Assessment Matrix (ex.)'!A33","v":0},{"$f":"'Risk Assessment Matrix (ex.)'!C33","v":0},{"$f":"'Risk Assessment Matrix (ex.)'!D33","v":0}]
[{"$f":"'Risk Assessment Matrix (ex.)'!A34","v":0},{"$f":"'Risk Assessment Matrix (ex.)'!C34","v":0},{"$f":"'Risk Assessment Matrix (ex.)'!D34","v":0}]
[{"$f":"'Risk Assessment Matrix (ex.)'!A35","v":0},{"$f":"'Risk Assessment Matrix (ex.)'!C35","v":0},{"$f":"'Risk Assessment Matrix (ex.)'!D35","v":0}]
[{"$f":"'Risk Assessment Matrix (ex.)'!A36","v":0},{"$f":"'Risk Assessment Matrix (ex.)'!C36","v":0},{"$f":"'Risk Assessment Matrix (ex.)'!D36","v":0}]
[{"$f":"'Risk Assessment Matrix (ex.)'!A37","v":0},{"$f":"'Risk Assessment Matrix (ex.)'!C37","v":0},{"$f":"'Risk Assessment Matrix (ex.)'!D37","v":0}]
[{"$f":"'Risk Assessment Matrix (ex.)'!A38","v":0},{"$f":"'Risk Assessment Matrix (ex.)'!C38","v":0},{"$f":"'Risk Assessment Matrix (ex.)'!D38","v":0}]
[{"$f":"'Risk Assessment Matrix (ex.)'!A39","v":0},{"$f":"'Risk Assessment Matrix (ex.)'!C39","v":0},{"$f":"'Risk Assessment Matrix (ex.)'!D39","v":0}]
[{"$f":"'Risk Assessment Matrix (ex.)'!A40","v":0},{"$f":"'Risk Assessment Matrix (ex.)'!C40","v":0},{"$f":"'Risk Assessment Matrix (ex.)'!D40","v":0}]
[{"$f":"'Risk Assessment Matrix (ex.)'!A41","v":0},{"$f":"'Risk Assessment Matrix (ex.)'!C41","v":0},{"$f":"'Risk Assessment Matrix (ex.)'!D41","v":0}]
[{"$f":"'Risk Assessment Matrix (ex.)'!A42","v":0},{"$f":"'Risk Assessment Matrix (ex.)'!C42","v":0},{"$f":"'Risk Assessment Matrix (ex.)'!D42","v":0}]
[{"$f":"'Risk Assessment Matrix (ex.)'!A43","v":0},{"$f":"'Risk Assessment Matrix (ex.)'!C43","v":0},{"$f":"'Risk Assessment Matrix (ex.)'!D43","v":0}]
[{"$f":"'Risk Assessment Matrix (ex.)'!A44","v":0},{"$f":"'Risk Assessment Matrix (ex.)'!C44","v":0},{"$f":"'Risk Assessment Matrix (ex.)'!D44","v":0}]
[{"$f":"'Risk Assessment Matrix (ex.)'!A45","v":0},{"$f":"'Risk Assessment Matrix (ex.)'!C45","v":0},{"$f":"'Risk Assessment Matrix (ex.)'!D45","v":0}]
[{"$f":"'Risk Assessment Matrix (ex.)'!A46","v":0},{"$f":"'Risk Assessment Matrix (ex.)'!C46","v":0},{"$f":"'Risk Assessment Matrix (ex.)'!D46","v":0}]
[{"$f":"'Risk Assessment Matrix (ex.)'!A47","v":0},{"$f":"'Risk Assessment Matrix (ex.)'!C47","v":0},{"$f":"'Risk Assessment Matrix (ex.)'!D47","v":0}]
[{"$f":"'Risk Assessment Matrix (ex.)'!A48","v":0},{"$f":"'Risk Assessment Matrix (ex.)'!C48","v":0},{"$f":"'Risk Assessment Matrix (ex.)'!D48","v":0}]
[{"$f":"'Risk Assessment Matrix (ex.)'!A49","v":0},{"$f":"'Risk Assessment Matrix (ex.)'!C49","v":0},{"$f":"'Risk Assessment Matrix (ex.)'!D49","v":0}]
[{"$f":"'Risk Assessment Matrix (ex.)'!A50","v":0},{"$f":"'Risk Assessment Matrix (ex.)'!C50","v":0},{"$f":"'Risk Assessment Matrix (ex.)'!D50","v":0}]
[{"$f":"'Risk Assessment Matrix (ex.)'!A51","v":0},{"$f":"'Risk Assessment Matrix (ex.)'!C51","v":0},{"$f":"'Risk Assessment Matrix (ex.)'!D51","v":0}]
[{"$f":"'Risk Assessment Matrix (ex.)'!A52","v":0},{"$f":"'Risk Assessment Matrix (ex.)'!C52","v":0},{"$f":"'Risk Assessment Matrix (ex.)'!D52","v":0}]
[{"$f":"'Risk Assessment Matrix (ex.)'!A53","v":0},{"$f":"'Risk Assessment Matrix (ex.)'!C53","v":0},{"$f":"'Risk Assessment Matrix (ex.)'!D53","v":0}]
[{"$f":"'Risk Assessment Matrix (ex.)'!A54","v":0},{"$f":"'Risk Assessment Matrix (ex.)'!C54","v":0},{"$f":"'Risk Assessment Matrix (ex.)'!D54","v":0}]
[{"$f":"'Risk Assessment Matrix (ex.)'!A55","v":0},{"$f":"'Risk Assessment Matrix (ex.)'!C55","v":0},{"$f":"'Risk Assessment Matrix (ex.)'!D55","v":0}]
[{"$f":"'Risk Assessment Matrix (ex.)'!A56","v":0},{"$f":"'Risk Assessment Matrix (ex.)'!C56","v":0},{"$f":"'Risk Assessment Matrix (ex.)'!D56","v":0}]
[{"$f":"'Risk Assessment Matrix (ex.)'!A57","v":0},{"$f":"'Risk Assessment Matrix (ex.)'!C57","v":0},{"$f":"'Risk Assessment Matrix (ex.)'!D57","v":0}]
[{"$f":"'Risk Assessment Matrix (ex.)'!A58","v":0},{"$f":"'Risk Assessment Matrix (ex.)'!C58","v":0},{"$f":"'Risk Assessment Matrix (ex.)'!D58","v":0}]
[{"$f":"'Risk Assessment Matrix (ex.)'!A59","v":0},{"$f":"'Risk Assessment Matrix (ex.)'!C59","v":0},{"$f":"'Risk Assessment Matrix (ex.)'!D59","v":0}]
[{"$f":"'Risk Assessment Matrix (ex.)'!A60","v":0},{"$f":"'Risk Assessment Matrix (ex.)'!C60","v":0},{"$f":"'Risk Assessment Matrix (ex.)'!D60","v":0}]
[{"$f":"'Risk Assessment Matrix (ex.)'!A61","v":0},{"$f":"'Risk Assessment Matrix (ex.)'!C61","v":0},{"$f":"'Risk Assessment Matrix (ex.)'!D61","v":0}]
[{"$f":"'Risk Assessment Matrix (ex.)'!A62","v":0},{"$f":"'Risk Assessment Matrix (ex.)'!C62","v":0},{"$f":"'Risk Assessment Matrix (ex.)'!D62","v":0}]
[{"$f":"'Risk Assessment Matrix (ex.)'!A63","v":0},{"$f":"'Risk Assessment Matrix (ex.)'!C63","v":0},{"$f":"'Risk Assessment Matrix (ex.)'!D63","v":0}]
[{"$f":"'Risk Assessment Matrix (ex.)'!A64","v":0},{"$f":"'Risk Assessment Matrix (ex.)'!C64","v":0},{"$f":"'Risk Assessment Matrix (ex.)'!D64","v":0}]
[{"$f":"'Risk Assessment Matrix (ex.)'!A65","v":0},{"$f":"'Risk Assessment Matrix (ex.)'!C65","v":0},{"$f":"'Risk Assessment Matrix (ex.)'!D65","v":0}]
[{"$f":"'Risk Assessment Matrix (ex.)'!A66","v":0},{"$f":"'Risk Assessment Matrix (ex.)'!C66","v":0},{"$f":"'Risk Assessment Matrix (ex.)'!D66","v":0}]
[{"$f":"'Risk Assessment Matrix (ex.)'!A67","v":0},{"$f":"'Risk Assessment Matrix (ex.)'!C67","v":0},{"$f":"'Risk Assessment Matrix (ex.)'!D67","v":0}]
[{"$f":"'Risk Assessment Matrix (ex.)'!A68","v":0},{"$f":"'Risk Assessment Matrix (ex.)'!C68","v":0},{"$f":"'Risk Assessment Matrix (ex.)'!D68","v":0}]
[{"$f":"'Risk Assessment Matrix (ex.)'!A69","v":0},{"$f":"'Risk Assessment Matrix (ex.)'!C69","v":0},{"$f":"'Risk Assessment Matrix (ex.)'!D69","v":0}]
[{"$f":"'Risk Assessment Matrix (ex.)'!A70","v":0},{"$f":"'Risk Assessment Matrix (ex.)'!C70","v":0},{"$f":"'Risk Assessment Matrix (ex.)'!D70","v":0}]
[{"$f":"'Risk Assessment Matrix (ex.)'!A71","v":0},{"$f":"'Risk Assessment Matrix (ex.)'!C71","v":0},{"$f":"'Risk Assessment Matrix (ex.)'!D71","v":0}]
[{"$f":"'Risk Assessment Matrix (ex.)'!A72","v":0},{"$f":"'Risk Assessment Matrix (ex.)'!C72","v":0},{"$f":"'Risk Assessment Matrix (ex.)'!D72","v":0}]
[{"$f":"'Risk Assessment Matrix (ex.)'!A73","v":0},{"$f":"'Risk Assessment Matrix (ex.)'!C73","v":0},{"$f":"'Risk Assessment Matrix (ex.)'!D73","v":0}]
[{"$f":"'Risk Assessment Matrix (ex.)'!A74","v":0},{"$f":"'Risk Assessment Matrix (ex.)'!C74","v":0},{"$f":"'Risk Assessment Matrix (ex.)'!D74","v":0}]
[{"$f":"'Risk Assessment Matrix (ex.)'!A75","v":0},{"$f":"'Risk Assessment Matrix (ex.)'!C75","v":0},{"$f":"'Risk Assessment Matrix (ex.)'!D75","v":0}]
[{"$f":"'Risk Assessment Matrix (ex.)'!A76","v":0},{"$f":"'Risk Assessment Matrix (ex.)'!C76","v":0},{"$f":"'Risk Assessment Matrix (ex.)'!D76","v":0}]
[{"$f":"'Risk Assessment Matrix (ex.)'!A77","v":0},{"$f":"'Risk Assessment Matrix (ex.)'!C77","v":0},{"$f":"'Risk Assessment Matrix (ex.)'!D77","v":0}]
[{"$f":"'Risk Assessment Matrix (ex.)'!A78","v":0},{"$f":"'Risk Assessment Matrix (ex.)'!C78","v":0},{"$f":"'Risk Assessment Matrix (ex.)'!D78","v":0}]
[{"$f":"'Risk Assessment Matrix (ex.)'!A79","v":0},{"$f":"'Risk Assessment Matrix (ex.)'!C79","v":0},{"$f":"'Risk Assessment Matrix (ex.)'!D79","v":0}]
[{"$f":"'Risk Assessment Matrix (ex.)'!A80","v":0},{"$f":"'Risk Assessment Matrix (ex.)'!C80","v":0},{"$f":"'Risk Assessment Matrix (ex.)'!D80","v":0}]
[{"$f":"'Risk Assessment Matrix (ex.)'!A81","v":0},{"$f":"'Risk Assessment Matrix (ex.)'!C81","v":0},{"$f":"'Risk Assessment Matrix (ex.)'!D81","v":0}]
[{"$f":"'Risk Assessment Matrix (ex.)'!A82","v":0},{"$f":"'Risk Assessment Matrix (ex.)'!C82","v":0},{"$f":"'Risk Assessment Matrix (ex.)'!D82","v":0}]
[{"$f":"'Risk Assessment Matrix (ex.)'!A83","v":0},{"$f":"'Risk Assessment Matrix (ex.)'!C83","v":0},{"$f":"'Risk Assessment Matrix (ex.)'!D83","v":0}]
[{"$f":"'Risk Assessment Matrix (ex.)'!A84","v":0},{"$f":"'Risk Assessment Matrix (ex.)'!C84","v":0},{"$f":"'Risk Assessment Matrix (ex.)'!D84","v":0}]
[{"$f":"'Risk Assessment Matrix (ex.)'!A85","v":0},{"$f":"'Risk Assessment Matrix (ex.)'!C85","v":0},{"$f":"'Risk Assessment Matrix (ex.)'!D85","v":0}]
[{"$f":"'Risk Assessment Matrix (ex.)'!A86","v":0},{"$f":"'Risk Assessment Matrix (ex.)'!C86","v":0},{"$f":"'Risk Assessment Matrix (ex.)'!D86","v":0}]
[{"$f":"'Risk Assessment Matrix (ex.)'!A87","v":0},{"$f":"'Risk Assessment Matrix (ex.)'!C87","v":0},{"$f":"'Risk Assessment Matrix (ex.)'!D87","v":0}]
[{"$f":"'Risk Assessment Matrix (ex.)'!A88","v":0},{"$f":"'Risk Assessment Matrix (ex.)'!C88","v":0},{"$f":"'Risk Assessment Matrix (ex.)'!D88","v":0}]
[{"$f":"'Risk Assessment Matrix (ex.)'!A89","v":0},{"$f":"'Risk Assessment Matrix (ex.)'!C89","v":0},{"$f":"'Risk Assessment Matrix (ex.)'!D89","v":0}]
[{"$f":"'Risk Assessment Matrix (ex.)'!A90","v":0},{"$f":"'Risk Assessment Matrix (ex.)'!C90","v":0},{"$f":"'Risk Assessment Matrix (ex.)'!D90","v":0}]
[{"$f":"'Risk Assessment Matrix (ex.)'!A91","v":0},{"$f":"'Risk Assessment Matrix (ex.)'!C91","v":0},{"$f":"'Risk Assessment Matrix (ex.)'!D91","v":0}]
[{"$f":"'Risk Assessment Matrix (ex.)'!A92","v":0},{"$f":"'Risk Assessment Matrix (ex.)'!C92","v":0},{"$f":"'Risk Assessment Matrix (ex.)'!D92","v":0}]
[{"$f":"'Risk Assessment Matrix (ex.)'!A93","v":0},{"$f":"'Risk Assessment Matrix (ex.)'!C93","v":0},{"$f":"'Risk Assessment Matrix (ex.)'!D93","v":0}]
[{"$f":"'Risk Assessment Matrix (ex.)'!A94","v":0},{"$f":"'Risk Assessment Matrix (ex.)'!C94","v":0},{"$f":"'Risk Assessment Matrix (ex.)'!D94","v":0}]
[{"$f":"'Risk Assessment Matrix (ex.)'!A95","v":0},{"$f":"'Risk Assessment Matrix (ex.)'!C95","v":0},{"$f":"'Risk Assessment Matrix (ex.)'!D95","v":0}]
[{"$f":"'Risk Assessment Matrix (ex.)'!A96","v":0},{"$f":"'Risk Assessment Matrix (ex.)'!C96","v":0},{"$f":"'Risk Assessment Matrix (ex.)'!D96","v":0}]
[{"$f":"'Risk Assessment Matrix (ex.)'!A97","v":0},{"$f":"'Risk Assessment Matrix (ex.)'!C97","v":0},{"$f":"'Risk Assessment Matrix (ex.)'!D97","v":0}]
[{"$f":"'Risk Assessment Matrix (ex.)'!A98","v":0},{"$f":"'Risk Assessment Matrix (ex.)'!C98","v":0},{"$f":"'Risk Assessment Matrix (ex.)'!D98","v":0}]
[{"$f":"'Risk Assessment Matrix (ex.)'!A99","v":0},{"$f":"'Risk Assessment Matrix (ex.)'!C99","v":0},{"$f":"'Risk Assessment Matrix (ex.)'!D99","v":0}]
[{"$f":"'Risk Assessment Matrix (ex.)'!A100","v":0},{"$f":"'Risk Assessment Matrix (ex.)'!C100","v":0},{"$f":"'Risk Assessment Matrix (ex.)'!D100","v":0}]
[{"$f":"'Risk Assessment Matrix (ex.)'!A101","v":0},{"$f":"'Risk Assessment Matrix (ex.)'!C101","v":0},{"$f":"'Risk Assessment Matrix (ex.)'!D101","v":0}]
[{"$f":"'Risk Assessment Matrix (ex.)'!A102","v":0},{"$f":"'Risk Assessment Matrix (ex.)'!C102","v":0},{"$f":"'Risk Assessment Matrix (ex.)'!D102","v":0}]
[{"$f":"'Risk Assessment Matrix (ex.)'!A103","v":0},{"$f":"'Risk Assessment Matrix (ex.)'!C103","v":0},{"$f":"'Risk Assessment Matrix (ex.)'!D103","v":0}]
[{"$f":"'Risk Assessment Matrix (ex.)'!A104","v":0},{"$f":"'Risk Assessment Matrix (ex.)'!C104","v":0},{"$f":"'Risk Assessment Matrix (ex.)'!D104","v":0}]
[{"$f":"'Risk Assessment Matrix (ex.)'!A105","v":0},{"$f":"'Risk Assessment Matrix (ex.)'!C105","v":0},{"$f":"'Risk Assessment Matrix (ex.)'!D105","v":0}]
[{"$f":"'Risk Assessment Matrix (ex.)'!A106","v":0},{"$f":"'Risk Assessment Matrix (ex.)'!C106","v":0},{"$f":"'Risk Assessment Matrix (ex.)'!D106","v":0}]
[{"$f":"'Risk Assessment Matrix (ex.)'!A107","v":0},{"$f":"'Risk Assessment Matrix (ex.)'!C107","v":0},{"$f":"'Risk Assessment Matrix (ex.)'!D107","v":0}]
[{"$f":"'Risk Assessment Matrix (ex.)'!A108","v":0},{"$f":"'Risk Assessment Matrix (ex.)'!C108","v":0},{"$f":"'Risk Assessment Matrix (ex.)'!D108","v":0}]
[{"$f":"'Risk Assessment Matrix (ex.)'!A109","v":0},{"$f":"'Risk Assessment Matrix (ex.)'!C109","v":0},{"$f":"'Risk Assessment Matrix (ex.)'!D109","v":0}]
[{"$f":"'Risk Assessment Matrix (ex.)'!A110","v":0},{"$f":"'Risk Assessment Matrix (ex.)'!C110","v":0},{"$f":"'Risk Assessment Matrix (ex.)'!D110","v":0}]
[{"$f":"'Risk Assessment Matrix (ex.)'!A111","v":0},{"$f":"'Risk Assessment Matrix (ex.)'!C111","v":0},{"$f":"'Risk Assessment Matrix (ex.)'!D111","v":0}]
[{"$f":"'Risk Assessment Matrix (ex.)'!A112","v":0},{"$f":"'Risk Assessment Matrix (ex.)'!C112","v":0},{"$f":"'Risk Assessment Matrix (ex.)'!D112","v":0}]
[{"$f":"'Risk Assessment Matrix (ex.)'!A113","v":0},{"$f":"'Risk Assessment Matrix (ex.)'!C113","v":0},{"$f":"'Risk Assessment Matrix (ex.)'!D113","v":0}]
[{"$f":"'Risk Assessment Matrix (ex.)'!A114","v":0},{"$f":"'Risk Assessment Matrix (ex.)'!C114","v":0},{"$f":"'Risk Assessment Matrix (ex.)'!D114","v":0}]
[{"$f":"'Risk Assessment Matrix (ex.)'!A115","v":0},{"$f":"'Risk Assessment Matrix (ex.)'!C115","v":0},{"$f":"'Risk Assessment Matrix (ex.)'!D115","v":0}]
[{"$f":"'Risk Assessment Matrix (ex.)'!A116","v":0},{"$f":"'Risk Assessment Matrix (ex.)'!C116","v":0},{"$f":"'Risk Assessment Matrix (ex.)'!D116","v":0}]
[{"$f":"'Risk Assessment Matrix (ex.)'!A117","v":0},{"$f":"'Risk Assessment Matrix (ex.)'!C117","v":0},{"$f":"'Risk Assessment Matrix (ex.)'!D117","v":0}]
[{"$f":"'Risk Assessment Matrix (ex.)'!A118","v":0},{"$f":"'Risk Assessment Matrix (ex.)'!C118","v":0},{"$f":"'Risk Assessment Matrix (ex.)'!D118","v":0}]
[{"$f":"'Risk Assessment Matrix (ex.)'!A119","v":0},{"$f":"'Risk Assessment Matrix (ex.)'!C119","v":0},{"$f":"'Risk Assessment Matrix (ex.)'!D119","v":0}]
[{"$f":"'Risk Assessment Matrix (ex.)'!A120","v":0},{"$f":"'Risk Assessment Matrix (ex.)'!C120","v":0},{"$f":"'Risk Assessment Matrix (ex.)'!D120","v":0}]
[{"$f":"'Risk Assessment Matrix (ex.)'!A121","v":0},{"$f":"'Risk Assessment Matrix (ex.)'!C121","v":0},{"$f":"'Risk Assessment Matrix (ex.)'!D121","v":0}]
[{"$f":"'Risk Assessment Matrix (ex.)'!A122","v":0},{"$f":"'Risk Assessment Matrix (ex.)'!C122","v":0},{"$f":"'Risk Assessment Matrix (ex.)'!D122","v":0}]
[{"$f":"'Risk Assessment Matrix (ex.)'!A123","v":0},{"$f":"'Risk Assessment Matrix (ex.)'!C123","v":0},{"$f":"'Risk Assessment Matrix (ex.)'!D123","v":0}]
[{"$f":"'Risk Assessment Matrix (ex.)'!A124","v":0},{"$f":"'Risk Assessment Matrix (ex.)'!C124","v":0},{"$f":"'Risk Assessment Matrix (ex.)'!D124","v":0}]
[{"$f":"'Risk Assessment Matrix (ex.)'!A125","v":0},{"$f":"'Risk Assessment Matrix (ex.)'!C125","v":0},{"$f":"'Risk Assessment Matrix (ex.)'!D125","v":0}]
[{"$f":"'Risk Assessment Matrix (ex.)'!A126","v":0},{"$f":"'Risk Assessment Matrix (ex.)'!C126","v":0},{"$f":"'Risk Assessment Matrix (ex.)'!D126","v":0}]
[{"$f":"'Risk Assessment Matrix (ex.)'!A127","v":0},{"$f":"'Risk Assessment Matrix (ex.)'!C127","v":0},{"$f":"'Risk Assessment Matrix (ex.)'!D127","v":0}]
[{"$f":"'Risk Assessment Matrix (ex.)'!A128","v":0},{"$f":"'Risk Assessment Matrix (ex.)'!C128","v":0},{"$f":"'Risk Assessment Matrix (ex.)'!D128","v":0}]
[{"$f":"'Risk Assessment Matrix (ex.)'!A129","v":0},{"$f":"'Risk Assessment Matrix (ex.)'!C129","v":0},{"$f":"'Risk Assessment Matrix (ex.)'!D129","v":0}]
[{"$f":"'Risk Assessment Matrix (ex.)'!A130","v":0},{"$f":"'Risk Assessment Matrix (ex.)'!C130","v":0},{"$f":"'Risk Assessment Matrix (ex.)'!D130","v":0}]
[{"$f":"'Risk Assessment Matrix (ex.)'!A131","v":0},{"$f":"'Risk Assessment Matrix (ex.)'!C131","v":0},{"$f":"'Risk Assessment Matrix (ex.)'!D131","v":0}]
[{"$f":"'Risk Assessment Matrix (ex.)'!A132","v":0},{"$f":"'Risk Assessment Matrix (ex.)'!C132","v":0},{"$f":"'Risk Assessment Matrix (ex.)'!D132","v":0}]
[{"$f":"'Risk Assessment Matrix (ex.)'!A133","v":0},{"$f":"'Risk Assessment Matrix (ex.)'!C133","v":0},{"$f":"'Risk Assessment Matrix (ex.)'!D133","v":0}]
[{"$f":"'Risk Assessment Matrix (ex.)'!A134","v":0},{"$f":"'Risk Assessment Matrix (ex.)'!C134","v":0},{"$f":"'Risk Assessment Matrix (ex.)'!D134","v":0}]
[{"$f":"'Risk Assessment Matrix (ex.)'!A135","v":0},{"$f":"'Risk Assessment Matrix (ex.)'!C135","v":0},{"$f":"'Risk Assessment Matrix (ex.)'!D135","v":0}]
[{"$f":"'Risk Assessment Matrix (ex.)'!A136","v":0},{"$f":"'Risk Assessment Matrix (ex.)'!C136","v":0},{"$f":"'Risk Assessment Matrix (ex.)'!D136","v":0}]
[{"$f":"'Risk Assessment Matrix (ex.)'!A137","v":0},{"$f":"'Risk Assessment Matrix (ex.)'!C137","v":0},{"$f":"'Risk Assessment Matrix (ex.)'!D137","v":0}]
[{"$f":"'Risk Assessment Matrix (ex.)'!A138","v":0},{"$f":"'Risk Assessment Matrix (ex.)'!C138","v":0},{"$f":"'Risk Assessment Matrix (ex.)'!D138","v":0}]
[{"$f":"'Risk Assessment Matrix (ex.)'!A139","v":0},{"$f":"'Risk Assessment Matrix (ex.)'!C139","v":0},{"$f":"'Risk Assessment Matrix (ex.)'!D139","v":0}]
[{"$f":"'Risk Assessment Matrix (ex.)'!A140","v":0},{"$f":"'Risk Assessment Matrix (ex.)'!C140","v":0},{"$f":"'Risk Assessment Matrix (ex.)'!D140","v":0}]
[{"$f":"'Risk Assessment Matrix (ex.)'!A141","v":0},{"$f":"'Risk Assessment Matrix (ex.)'!C141","v":0},{"$f":"'Risk Assessment Matrix (ex.)'!D141","v":0}]
[{"$f":"'Risk Assessment Matrix (ex.)'!A142","v":0},{"$f":"'Risk Assessment Matrix (ex.)'!C142","v":0},{"$f":"'Risk Assessment Matrix (ex.)'!D142","v":0}]
[{"$f":"'Risk Assessment Matrix (ex.)'!A143","v":0},{"$f":"'Risk Assessment Matrix (ex.)'!C143","v":0},{"$f":"'Risk Assessment Matrix (ex.)'!D143","v":0}]
[{"$f":"'Risk Assessment Matrix (ex.)'!A144","v":0},{"$f":"'Risk Assessment Matrix (ex.)'!C144","v":0},{"$f":"'Risk Assessment Matrix (ex.)'!D144","v":0}]
[{"$f":"'Risk Assessment Matrix (ex.)'!A145","v":0},{"$f":"'Risk Assessment Matrix (ex.)'!C145","v":0},{"$f":"'Risk Assessment Matrix (ex.)'!D145","v":0}]
[{"$f":"'Risk Assessment Matrix (ex.)'!A146","v":0},{"$f":"'Risk Assessment Matrix (ex.)'!C146","v":0},{"$f":"'Risk Assessment Matrix (ex.)'!D146","v":0}]
[{"$f":"'Risk Assessment Matrix (ex.)'!A147","v":0},{"$f":"'Risk Assessment Matrix (ex.)'!C147","v":0},{"$f":"'Risk Assessment Matrix (ex.)'!D147","v":0}]
[{"$f":"'Risk Assessment Matrix (ex.)'!A148","v":0},{"$f":"'Risk Assessment Matrix (ex.)'!C148","v":0},{"$f":"'Risk Assessment Matrix (ex.)'!D148","v":0}]
[{"$f":"'Risk Assessment Matrix (ex.)'!A149","v":0},{"$f":"'Risk Assessment Matrix (ex.)'!C149","v":0},{"$f":"'Risk Assessment Matrix (ex.)'!D149","v":0}]
[{"$f":"'Risk Assessment Matrix (ex.)'!A150","v":0},{"$f":"'Risk Assessment Matrix (ex.)'!C150","v":0},{"$f":"'Risk Assessment Matrix (ex.)'!D150","v":0}]
[{"$f":"'Risk Assessment Matrix (ex.)'!A151","v":0},{"$f":"'Risk Assessment Matrix (ex.)'!C151","v":0},{"$f":"'Risk Assessment Matrix (ex.)'!D151","v":0}]
[{"$f":"'Risk Assessment Matrix (ex.)'!A152","v":0},{"$f":"'Risk Assessment Matrix (ex.)'!C152","v":0},{"$f":"'Risk Assessment Matrix (ex.)'!D152","v":0}]
[{"$f":"'Risk Assessment Matrix (ex.)'!A153","v":0},{"$f":"'Risk Assessment Matrix (ex.)'!C153","v":0},{"$f":"'Risk Assessment Matrix (ex.)'!D153","v":0}]
[{"$f":"'Risk Assessment Matrix (ex.)'!A154","v":0},{"$f":"'Risk Assessment Matrix (ex.)'!C154","v":0},{"$f":"'Risk Assessment Matrix (ex.)'!D154","v":0}]
[{"$f":"'Risk Assessment Matrix (ex.)'!A155","v":0},{"$f":"'Risk Assessment Matrix (ex.)'!C155","v":0},{"$f":"'Risk Assessment Matrix (ex.)'!D155","v":0}]
[{"$f":"'Risk Assessment Matrix (ex.)'!A156","v":0},{"$f":"'Risk Assessment Matrix (ex.)'!C156","v":0},{"$f":"'Risk Assessment Matrix (ex.)'!D156","v":0}]
[{"$f":"'Risk Assessment Matrix (ex.)'!A157","v":0},{"$f":"'Risk Assessment Matrix (ex.)'!C157","v":0},{"$f":"'Risk Assessment Matrix (ex.)'!D157","v":0}]
[{"$f":"'Risk Assessment Matrix (ex.)'!A158","v":0},{"$f":"'Risk Assessment Matrix (ex.)'!C158","v":0},{"$f":"'Risk Assessment Matrix (ex.)'!D158","v":0}]
[{"$f":"'Risk Assessment Matrix (ex.)'!A159","v":0},{"$f":"'Risk Assessment Matrix (ex.)'!C159","v":0},{"$f":"'Risk Assessment Matrix (ex.)'!D159","v":0}]
[{"$f":"'Risk Assessment Matrix (ex.)'!A160","v":0},{"$f":"'Risk Assessment Matrix (ex.)'!C160","v":0},{"$f":"'Risk Assessment Matrix (ex.)'!D160","v":0}]
[{"$f":"'Risk Assessment Matrix (ex.)'!A161","v":0},{"$f":"'Risk Assessment Matrix (ex.)'!C161","v":0},{"$f":"'Risk Assessment Matrix (ex.)'!D161","v":0}]
[{"$f":"'Risk Assessment Matrix (ex.)'!A162","v":0},{"$f":"'Risk Assessment Matrix (ex.)'!C162","v":0},{"$f":"'Risk Assessment Matrix (ex.)'!D162","v":0}]
[{"$f":"'Risk Assessment Matrix (ex.)'!A163","v":0},{"$f":"'Risk Assessment Matrix (ex.)'!C163","v":0},{"$f":"'Risk Assessment Matrix (ex.)'!D163","v":0}]
[{"$f":"'Risk Assessment Matrix (ex.)'!A164","v":0},{"$f":"'Risk Assessment Matrix (ex.)'!C164","v":0},{"$f":"'Risk Assessment Matrix (ex.)'!D164","v":0}]
[{"$f":"'Risk Assessment Matrix (ex.)'!A165","v":0},{"$f":"'Risk Assessment Matrix (ex.)'!C165","v":0},{"$f":"'Risk Assessment Matrix (ex.)'!D165","v":0}]
[{"$f":"'Risk Assessment Matrix (ex.)'!A166","v":0},{"$f":"'Risk Assessment Matrix (ex.)'!C166","v":0},{"$f":"'Risk Assessment Matrix (ex.)'!D166","v":0}]
[{"$f":"'Risk Assessment Matrix (ex.)'!A167","v":0},{"$f":"'Risk Assessment Matrix (ex.)'!C167","v":0},{"$f":"'Risk Assessment Matrix (ex.)'!D167","v":0}]
[{"$f":"'Risk Assessment Matrix (ex.)'!A168","v":0},{"$f":"'Risk Assessment Matrix (ex.)'!C168","v":0},{"$f":"'Risk Assessment Matrix (ex.)'!D168","v":0}]
[{"$f":"'Risk Assessment Matrix (ex.)'!A169","v":0},{"$f":"'Risk Assessment Matrix (ex.)'!C169","v":0},{"$f":"'Risk Assessment Matrix (ex.)'!D169","v":0}]
[{"$f":"'Risk Assessment Matrix (ex.)'!A170","v":0},{"$f":"'Risk Assessment Matrix (ex.)'!C170","v":0},{"$f":"'Risk Assessment Matrix (ex.)'!D170","v":0}]
[{"$f":"'Risk Assessment Matrix (ex.)'!A171","v":0},{"$f":"'Risk Assessment Matrix (ex.)'!C171","v":0},{"$f":"'Risk Assessment Matrix (ex.)'!D171","v":0}]
[{"$f":"'Risk Assessment Matrix (ex.)'!A172","v":0},{"$f":"'Risk Assessment Matrix (ex.)'!C172","v":0},{"$f":"'Risk Assessment Matrix (ex.)'!D172","v":0}]
[{"$f":"'Risk Assessment Matrix (ex.)'!A173","v":0},{"$f":"'Risk Assessment Matrix (ex.)'!C173","v":0},{"$f":"'Risk Assessment Matrix (ex.)'!D173","v":0}]
[{"$f":"'Risk Assessment Matrix (ex.)'!A174","v":0},{"$f":"'Risk Assessment Matrix (ex.)'!C174","v":0},{"$f":"'Risk Assessment Matrix (ex.)'!D174","v":0}]
[{"$f":"'Risk Assessment Matrix (ex.)'!A175","v":0},{"$f":"'Risk Assessment Matrix (ex.)'!C175","v":0},{"$f":"'Risk Assessment Matrix (ex.)'!D175","v":0}]
[{"$f":"'Risk Assessment Matrix (ex.)'!A176","v":0},{"$f":"'Risk Assessment Matrix (ex.)'!C176","v":0},{"$f":"'Risk Assessment Matrix (ex.)'!D176","v":0}]
[{"$f":"'Risk Assessment Matrix (ex.)'!A177","v":0},{"$f":"'Risk Assessment Matrix (ex.)'!C177","v":0},{"$f":"'Risk Assessment Matrix (ex.)'!D177","v":0}]
[{"$f":"'Risk Assessment Matrix (ex.)'!A178","v":0},{"$f":"'Risk Assessment Matrix (ex.)'!C178","v":0},{"$f":"'Risk Assessment Matrix (ex.)'!D178","v":0}]
[{"$f":"'Risk Assessment Matrix (ex.)'!A179","v":0},{"$f":"'Risk Assessment Matrix (ex.)'!C179","v":0},{"$f":"'Risk Assessment Matrix (ex.)'!D179","v":0}]
[{"$f":"'Risk Assessment Matrix (ex.)'!A180","v":0},{"$f":"'Risk Assessment Matrix (ex.)'!C180","v":0},{"$f":"'Risk Assessment Matrix (ex.)'!D180","v":0}]
[{"$f":"'Risk Assessment Matrix (ex.)'!A181","v":0},{"$f":"'Risk Assessment Matrix (ex.)'!C181","v":0},{"$f":"'Risk Assessment Matrix (ex.)'!D181","v":0}]
[{"$f":"'Risk Assessment Matrix (ex.)'!A182","v":0},{"$f":"'Risk Assessment Matrix (ex.)'!C182","v":0},{"$f":"'Risk Assessment Matrix (ex.)'!D182","v":0}]
[{"$f":"'Risk Assessment Matrix (ex.)'!A183","v":0},{"$f":"'Risk Assessment Matrix (ex.)'!C183","v":0},{"$f":"'Risk Assessment Matrix (ex.)'!D183","v":0}]
[{"$f":"'Risk Assessment Matrix (ex.)'!A184","v":0},{"$f":"'Risk Assessment Matrix (ex.)'!C184","v":0},{"$f":"'Risk Assessment Matrix (ex.)'!D184","v":0}]
[{"$f":"'Risk Assessment Matrix (ex.)'!A185","v":0},{"$f":"'Risk Assessment Matrix (ex.)'!C185","v":0},{"$f":"'Risk Assessment Matrix (ex.)'!D185","v":0}]
[{"$f":"'Risk Assessment Matrix (ex.)'!A186","v":0},{"$f":"'Risk Assessment Matrix (ex.)'!C186","v":0},{"$f":"'Risk Assessment Matrix (ex.)'!D186","v":0}]
[{"$f":"'Risk Assessment Matrix (ex.)'!A187","v":0},{"$f":"'Risk Assessment Matrix (ex.)'!C187","v":0},{"$f":"'Risk Assessment Matrix (ex.)'!D187","v":0}]
[{"$f":"'Risk Assessment Matrix (ex.)'!A188","v":0},{"$f":"'Risk Assessment Matrix (ex.)'!C188","v":0},{"$f":"'Risk Assessment Matrix (ex.)'!D188","v":0}]
[{"$f":"'Risk Assessment Matrix (ex.)'!A189","v":0},{"$f":"'Risk Assessment Matrix (ex.)'!C189","v":0},{"$f":"'Risk Assessment Matrix (ex.)'!D189","v":0}]
[{"$f":"'Risk Assessment Matrix (ex.)'!A190","v":0},{"$f":"'Risk Assessment Matrix (ex.)'!C190","v":0},{"$f":"'Risk Assessment Matrix (ex.)'!D190","v":0}]
[{"$f":"'Risk Assessment Matrix (ex.)'!A191","v":0},{"$f":"'Risk Assessment Matrix (ex.)'!C191","v":0},{"$f":"'Risk Assessment Matrix (ex.)'!D191","v":0}]
[{"$f":"'Risk Assessment Matrix (ex.)'!A192","v":0},{"$f":"'Risk Assessment Matrix (ex.)'!C192","v":0},{"$f":"'Risk Assessment Matrix (ex.)'!D192","v":0}]
[{"$f":"'Risk Assessment Matrix (ex.)'!A193","v":0},{"$f":"'Risk Assessment Matrix (ex.)'!C193","v":0},{"$f":"'Risk Assessment Matrix (ex.)'!D193","v":0}]
[{"$f":"'Risk Assessment Matrix (ex.)'!A194","v":0},{"$f":"'Risk Assessment Matrix (ex.)'!C194","v":0},{"$f":"'Risk Assessment Matrix (ex.)'!D194","v":0}]
[{"$f":"'Risk Assessment Matrix (ex.)'!A195","v":0},{"$f":"'Risk Assessment Matrix (ex.)'!C195","v":0},{"$f":"'Risk Assessment Matrix (ex.)'!D195","v":0}]
[{"$f":"'Risk Assessment Matrix (ex.)'!A196","v":0},{"$f":"'Risk Assessment Matrix (ex.)'!C196","v":0},{"$f":"'Risk Assessment Matrix (ex.)'!D196","v":0}]
[{"$f":"'Risk Assessment Matrix (ex.)'!A197","v":0},{"$f":"'Risk Assessment Matrix (ex.)'!C197","v":0},{"$f":"'Risk Assessment Matrix (ex.)'!D197","v":0}]
[{"$f":"'Risk Assessment Matrix (ex.)'!A198","v":0},{"$f":"'Risk Assessment Matrix (ex.)'!C198","v":0},{"$f":"'Risk Assessment Matrix (ex.)'!D198","v":0}]
[{"$f":"'Risk Assessment Matrix (ex.)'!A199","v":0},{"$f":"'Risk Assessment Matrix (ex.)'!C199","v":0},{"$f":"'Risk Assessment Matrix (ex.)'!D199","v":0}]
[{"$f":"'Risk Assessment Matrix (ex.)'!A200","v":0},{"$f":"'Risk Assessment Matrix (ex.)'!C200","v":0},{"$f":"'Risk Assessment Matrix (ex.)'!D200","v":0}]
[{"$f":"'Risk Assessment Matrix (ex.)'!A201","v":0},{"$f":"'Risk Assessment Matrix (ex.)'!C201","v":0},{"$f":"'Risk Assessment Matrix (ex.)'!D201","v":0}]
[{"$f":"'Risk Assessment Matrix (ex.)'!A202","v":0},{"$f":"'Risk Assessment Matrix (ex.)'!C202","v":0},{"$f":"'Risk Assessment Matrix (ex.)'!D202","v":0}]
[{"$f":"'Risk Assessment Matrix (ex.)'!A203","v":0},{"$f":"'Risk Assessment Matrix (ex.)'!C203","v":0},{"$f":"'Risk Assessment Matrix (ex.)'!D203","v":0}]
[{"$f":"'Risk Assessment Matrix (ex.)'!A204","v":0},{"$f":"'Risk Assessment Matrix (ex.)'!C204","v":0},{"$f":"'Risk Assessment Matrix (ex.)'!D204","v":0}]
[{"$f":"'Risk Assessment Matrix (ex.)'!A205","v":0},{"$f":"'Risk Assessment Matrix (ex.)'!C205","v":0},{"$f":"'Risk Assessment Matrix (ex.)'!D205","v":0}]
[{"$f":"'Risk Assessment Matrix (ex.)'!A206","v":0},{"$f":"'Risk Assessment Matrix (ex.)'!C206","v":0},{"$f":"'Risk Assessment Matrix (ex.)'!D206","v":0}]
[{"$f":"'Risk Assessment Matrix (ex.)'!A207","v":0},{"$f":"'Risk Assessment Matrix (ex.)'!C207","v":0},{"$f":"'Risk Assessment Matrix (ex.)'!D207","v":0}]
[{"$f":"'Risk Assessment Matrix (ex.)'!A208","v":0},{"$f":"'Risk Assessment Matrix (ex.)'!C208","v":0},{"$f":"'Risk Assessment Matrix (ex.)'!D208","v":0}]
[{"$f":"'Risk Assessment Matrix (ex.)'!A209","v":0},{"$f":"'Risk Assessment Matrix (ex.)'!C209","v":0},{"$f":"'Risk Assessment Matrix (ex.)'!D209","v":0}]
[{"$f":"'Risk Assessment Matrix (ex.)'!A210","v":0},{"$f":"'Risk Assessment Matrix (ex.)'!C210","v":0},{"$f":"'Risk Assessment Matrix (ex.)'!D210","v":0}]
[{"$f":"'Risk Assessment Matrix (ex.)'!A211","v":0},{"$f":"'Risk Assessment Matrix (ex.)'!C211","v":0},{"$f":"'Risk Assessment Matrix (ex.)'!D211","v":0}]
[{"$f":"'Risk Assessment Matrix (ex.)'!A212","v":0},{"$f":"'Risk Assessment Matrix (ex.)'!C212","v":0},{"$f":"'Risk Assessment Matrix (ex.)'!D212","v":0}]
[{"$f":"'Risk Assessment Matrix (ex.)'!A213","v":0},{"$f":"'Risk Assessment Matrix (ex.)'!C213","v":0},{"$f":"'Risk Assessment Matrix (ex.)'!D213","v":0}]
[{"$f":"'Risk Assessment Matrix (ex.)'!A214","v":0},{"$f":"'Risk Assessment Matrix (ex.)'!C214","v":0},{"$f":"'Risk Assessment Matrix (ex.)'!D214","v":0}]
[{"$f":"'Risk Assessment Matrix (ex.)'!A215","v":0},{"$f":"'Risk Assessment Matrix (ex.)'!C215","v":0},{"$f":"'Risk Assessment Matrix (ex.)'!D215","v":0}]
[{"$f":"'Risk Assessment Matrix (ex.)'!A216","v":0},{"$f":"'Risk Assessment Matrix (ex.)'!C216","v":0},{"$f":"'Risk Assessment Matrix (ex.)'!D216","v":0}]
[{"$f":"'Risk Assessment Matrix (ex.)'!A217","v":0},{"$f":"'Risk Assessment Matrix (ex.)'!C217","v":0},{"$f":"'Risk Assessment Matrix (ex.)'!D217","v":0}]
[{"$f":"'Risk Assessment Matrix (ex.)'!A218","v":0},{"$f":"'Risk Assessment Matrix (ex.)'!C218","v":0},{"$f":"'Risk Assessment Matrix (ex.)'!D218","v":0}]
[{"$f":"'Risk Assessment Matrix (ex.)'!A219","v":0},{"$f":"'Risk Assessment Matrix (ex.)'!C219","v":0},{"$f":"'Risk Assessment Matrix (ex.)'!D219","v":0}]
[{"$f":"'Risk Assessment Matrix (ex.)'!A220","v":0},{"$f":"'Risk Assessment Matrix (ex.)'!C220","v":0},{"$f":"'Risk Assessment Matrix (ex.)'!D220","v":0}]
[{"$f":"'Risk Assessment Matrix (ex.)'!A221","v":0},{"$f":"'Risk Assessment Matrix (ex.)'!C221","v":0},{"$f":"'Risk Assessment Matrix (ex.)'!D221","v":0}]
[{"$f":"'Risk Assessment Matrix (ex.)'!A222","v":0},{"$f":"'Risk Assessment Matrix (ex.)'!C222","v":0},{"$f":"'Risk Assessment Matrix (ex.)'!D222","v":0}]
[{"$f":"'Risk Assessment Matrix (ex.)'!A223","v":0},{"$f":"'Risk Assessment Matrix (ex.)'!C223","v":0},{"$f":"'Risk Assessment Matrix (ex.)'!D223","v":0}]
[{"$f":"'Risk Assessment Matrix (ex.)'!A224","v":0},{"$f":"'Risk Assessment Matrix (ex.)'!C224","v":0},{"$f":"'Risk Assessment Matrix (ex.)'!D224","v":0}]
[{"$f":"'Risk Assessment Matrix (ex.)'!A225","v":0},{"$f":"'Risk Assessment Matrix (ex.)'!C225","v":0},{"$f":"'Risk Assessment Matrix (ex.)'!D225","v":0}]
[{"$f":"'Risk Assessment Matrix (ex.)'!A226","v":0},{"$f":"'Risk Assessment Matrix (ex.)'!C226","v":0},{"$f":"'Risk Assessment Matrix (ex.)'!D226","v":0}]
[{"$f":"'Risk Assessment Matrix (ex.)'!A227","v":0},{"$f":"'Risk Assessment Matrix (ex.)'!C227","v":0},{"$f":"'Risk Assessment Matrix (ex.)'!D227","v":0}]
[{"$f":"'Risk Assessment Matrix (ex.)'!A228","v":0},{"$f":"'Risk Assessment Matrix (ex.)'!C228","v":0},{"$f":"'Risk Assessment Matrix (ex.)'!D228","v":0}]
[{"$f":"'Risk Assessment Matrix (ex.)'!A229","v":0},{"$f":"'Risk Assessment Matrix (ex.)'!C229","v":0},{"$f":"'Risk Assessment Matrix (ex.)'!D229","v":0}]
[{"$f":"'Risk Assessment Matrix (ex.)'!A230","v":0},{"$f":"'Risk Assessment Matrix (ex.)'!C230","v":0},{"$f":"'Risk Assessment Matrix (ex.)'!D230","v":0}]
[{"$f":"'Risk Assessment Matrix (ex.)'!A231","v":0},{"$f":"'Risk Assessment Matrix (ex.)'!C231","v":0},{"$f":"'Risk Assessment Matrix (ex.)'!D231","v":0}]
[{"$f":"'Risk Assessment Matrix (ex.)'!A232","v":0},{"$f":"'Risk Assessment Matrix (ex.)'!C232","v":0},{"$f":"'Risk Assessment Matrix (ex.)'!D232","v":0}]
[{"$f":"'Risk Assessment Matrix (ex.)'!A233","v":0},{"$f":"'Risk Assessment Matrix (ex.)'!C233","v":0},{"$f":"'Risk Assessment Matrix (ex.)'!D233","v":0}]
[{"$f":"'Risk Assessment Matrix (ex.)'!A234","v":0},{"$f":"'Risk Assessment Matrix (ex.)'!C234","v":0},{"$f":"'Risk Assessment Matrix (ex.)'!D234","v":0}]
[{"$f":"'Risk Assessment Matrix (ex.)'!A235","v":0},{"$f":"'Risk Assessment Matrix (ex.)'!C235","v":0},{"$f":"'Risk Assessment Matrix (ex.)'!D235","v":0}]
[{"$f":"'Risk Assessment Matrix (ex.)'!A236","v":0},{"$f":"'Risk Assessment Matrix (ex.)'!C236","v":0},{"$f":"'Risk Assessment Matrix (ex.)'!D236","v":0}]
[{"$f":"'Risk Assessment Matrix (ex.)'!A237","v":0},{"$f":"'Risk Assessment Matrix (ex.)'!C237","v":0},{"$f":"'Risk Assessment Matrix (ex.)'!D237","v":0}]
[{"$f":"'Risk Assessment Matrix (ex.)'!A238","v":0},{"$f":"'Risk Assessment Matrix (ex.)'!C238","v":0},{"$f":"'Risk Assessment Matrix (ex.)'!D238","v":0}]
[{"$f":"'Risk Assessment Matrix (ex.)'!A239","v":0},{"$f":"'Risk Assessment Matrix (ex.)'!C239","v":0},{"$f":"'Risk Assessment Matrix (ex.)'!D239","v":0}]
[{"$f":"'Risk Assessment Matrix (ex.)'!A240","v":0},{"$f":"'Risk Assessment Matrix (ex.)'!C240","v":0},{"$f":"'Risk Assessment Matrix (ex.)'!D240","v":0}]
[{"$f":"'Risk Assessment Matrix (ex.)'!A241","v":0},{"$f":"'Risk Assessment Matrix (ex.)'!C241","v":0},{"$f":"'Risk Assessment Matrix (ex.)'!D241","v":0}]
[{"$f":"'Risk Assessment Matrix (ex.)'!A242","v":0},{"$f":"'Risk Assessment Matrix (ex.)'!C242","v":0},{"$f":"'Risk Assessment Matrix (ex.)'!D242","v":0}]
[{"$f":"'Risk Assessment Matrix (ex.)'!A243","v":0},{"$f":"'Risk Assessment Matrix (ex.)'!C243","v":0},{"$f":"'Risk Assessment Matrix (ex.)'!D243","v":0}]
[{"$f":"'Risk Assessment Matrix (ex.)'!A244","v":0},{"$f":"'Risk Assessment Matrix (ex.)'!C244","v":0},{"$f":"'Risk Assessment Matrix (ex.)'!D244","v":0}]
[{"$f":"'Risk Assessment Matrix (ex.)'!A245","v":0},{"$f":"'Risk Assessment Matrix (ex.)'!C245","v":0},{"$f":"'Risk Assessment Matrix (ex.)'!D245","v":0}]
[{"$f":"'Risk Assessment Matrix (ex.)'!A246","v":0},{"$f":"'Risk Assessment Matrix (ex.)'!C246","v":0},{"$f":"'Risk Assessment Matrix (ex.)'!D246","v":0}]
[{"$f":"'Risk Assessment Matrix (ex.)'!A247","v":0},{"$f":"'Risk Assessment Matrix (ex.)'!C247","v":0},{"$f":"'Risk Assessment Matrix (ex.)'!D247","v":0}]
[{"$f":"'Risk Assessment Matrix (ex.)'!A248","v":0},{"$f":"'Risk Assessment Matrix (ex.)'!C248","v":0},{"$f":"'Risk Assessment Matrix (ex.)'!D248","v":0}]
[{"$f":"'Risk Assessment Matrix (ex.)'!A249","v":0},{"$f":"'Risk Assessment Matrix (ex.)'!C249","v":0},{"$f":"'Risk Assessment Matrix (ex.)'!D249","v":0}]
[{"$f":"'Risk Assessment Matrix (ex.)'!A250","v":0},{"$f":"'Risk Assessment Matrix (ex.)'!C250","v":0},{"$f":"'Risk Assessment Matrix (ex.)'!D250","v":0}]
[{"$f":"'Risk Assessment Matrix (ex.)'!A251","v":0},{"$f":"'Risk Assessment Matrix (ex.)'!C251","v":0},{"$f":"'Risk Assessment Matrix (ex.)'!D251","v":0}]
[{"$f":"'Risk Assessment Matrix (ex.)'!A252","v":0},{"$f":"'Risk Assessment Matrix (ex.)'!C252","v":0},{"$f":"'Risk Assessment Matrix (ex.)'!D252","v":0}]
[{"$f":"'Risk Assessment Matrix (ex.)'!A253","v":0},{"$f":"'Risk Assessment Matrix (ex.)'!C253","v":0},{"$f":"'Risk Assessment Matrix (ex.)'!D253","v":0}]
[{"$f":"'Risk Assessment Matrix (ex.)'!A254","v":0},{"$f":"'Risk Assessment Matrix (ex.)'!C254","v":0},{"$f":"'Risk Assessment Matrix (ex.)'!D254","v":0}]
[{"$f":"'Risk Assessment Matrix (ex.)'!A255","v":0},{"$f":"'Risk Assessment Matrix (ex.)'!C255","v":0},{"$f":"'Risk Assessment Matrix (ex.)'!D255","v":0}]
[{"$f":"'Risk Assessment Matrix (ex.)'!A256","v":0},{"$f":"'Risk Assessment Matrix (ex.)'!C256","v":0},{"$f":"'Risk Assessment Matrix (ex.)'!D256","v":0}]
[{"$f":"'Risk Assessment Matrix (ex.)'!A257","v":0},{"$f":"'Risk Assessment Matrix (ex.)'!C257","v":0},{"$f":"'Risk Assessment Matrix (ex.)'!D257","v":0}]
[{"$f":"'Risk Assessment Matrix (ex.)'!A258","v":0},{"$f":"'Risk Assessment Matrix (ex.)'!C258","v":0},{"$f":"'Risk Assessment Matrix (ex.)'!D258","v":0}]
[{"$f":"'Risk Assessment Matrix (ex.)'!A259","v":0},{"$f":"'Risk Assessment Matrix (ex.)'!C259","v":0},{"$f":"'Risk Assessment Matrix (ex.)'!D259","v":0}]
[{"$f":"'Risk Assessment Matrix (ex.)'!A260","v":0},{"$f":"'Risk Assessment Matrix (ex.)'!C260","v":0},{"$f":"'Risk Assessment Matrix (ex.)'!D260","v":0}]
[{"$f":"'Risk Assessment Matrix (ex.)'!A261","v":0},{"$f":"'Risk Assessment Matrix (ex.)'!C261","v":0},{"$f":"'Risk Assessment Matrix (ex.)'!D261","v":0}]
[{"$f":"'Risk Assessment Matrix (ex.)'!A262","v":0},{"$f":"'Risk Assessment Matrix (ex.)'!C262","v":0},{"$f":"'Risk Assessment Matrix (ex.)'!D262","v":0}]
[{"$f":"'Risk Assessment Matrix (ex.)'!A263","v":0},{"$f":"'Risk Assessment Matrix (ex.)'!C263","v":0},{"$f":"'Risk Assessment Matrix (ex.)'!D263","v":0}]
[{"$f":"'Risk Assessment Matrix (ex.)'!A264","v":0},{"$f":"'Risk Assessment Matrix (ex.)'!C264","v":0},{"$f":"'Risk Assessment Matrix (ex.)'!D264","v":0}]
[{"$f":"'Risk Assessment Matrix (ex.)'!A265","v":0},{"$f":"'Risk Assessment Matrix (ex.)'!C265","v":0},{"$f":"'Risk Assessment Matrix (ex.)'!D265","v":0}]
[{"$f":"'Risk Assessment Matrix (ex.)'!A266","v":0},{"$f":"'Risk Assessment Matrix (ex.)'!C266","v":0},{"$f":"'Risk Assessment Matrix (ex.)'!D266","v":0}]
[{"$f":"'Risk Assessment Matrix (ex.)'!A267","v":0},{"$f":"'Risk Assessment Matrix (ex.)'!C267","v":0},{"$f":"'Risk Assessment Matrix (ex.)'!D267","v":0}]
[{"$f":"'Risk Assessment Matrix (ex.)'!A268","v":0},{"$f":"'Risk Assessment Matrix (ex.)'!C268","v":0},{"$f":"'Risk Assessment Matrix (ex.)'!D268","v":0}]
[{"$f":"'Risk Assessment Matrix (ex.)'!A269","v":0},{"$f":"'Risk Assessment Matrix (ex.)'!C269","v":0},{"$f":"'Risk Assessment Matrix (ex.)'!D269","v":0}]
[{"$f":"'Risk Assessment Matrix (ex.)'!A270","v":0},{"$f":"'Risk Assessment Matrix (ex.)'!C270","v":0},{"$f":"'Risk Assessment Matrix (ex.)'!D270","v":0}]
[{"$f":"'Risk Assessment Matrix (ex.)'!A271","v":0},{"$f":"'Risk Assessment Matrix (ex.)'!C271","v":0},{"$f":"'Risk Assessment Matrix (ex.)'!D271","v":0}]
[{"$f":"'Risk Assessment Matrix (ex.)'!A272","v":0},{"$f":"'Risk Assessment Matrix (ex.)'!C272","v":0},{"$f":"'Risk Assessment Matrix (ex.)'!D272","v":0}]
[{"$f":"'Risk Assessment Matrix (ex.)'!A273","v":0},{"$f":"'Risk Assessment Matrix (ex.)'!C273","v":0},{"$f":"'Risk Assessment Matrix (ex.)'!D273","v":0}]
[{"$f":"'Risk Assessment Matrix (ex.)'!A274","v":0},{"$f":"'Risk Assessment Matrix (ex.)'!C274","v":0},{"$f":"'Risk Assessment Matrix (ex.)'!D274","v":0}]
[{"$f":"'Risk Assessment Matrix (ex.)'!A275","v":0},{"$f":"'Risk Assessment Matrix (ex.)'!C275","v":0},{"$f":"'Risk Assessment Matrix (ex.)'!D275","v":0}]
[{"$f":"'Risk Assessment Matrix (ex.)'!A276","v":0},{"$f":"'Risk Assessment Matrix (ex.)'!C276","v":0},{"$f":"'Risk Assessment Matrix (ex.)'!D276","v":0}]
[{"$f":"'Risk Assessment Matrix (ex.)'!A277","v":0},{"$f":"'Risk Assessment Matrix (ex.)'!C277","v":0},{"$f":"'Risk Assessment Matrix (ex.)'!D277","v":0}]
[{"$f":"'Risk Assessment Matrix (ex.)'!A278","v":0},{"$f":"'Risk Assessment Matrix (ex.)'!C278","v":0},{"$f":"'Risk Assessment Matrix (ex.)'!D278","v":0}]
[{"$f":"'Risk Assessment Matrix (ex.)'!A279","v":0},{"$f":"'Risk Assessment Matrix (ex.)'!C279","v":0},{"$f":"'Risk Assessment Matrix (ex.)'!D279","v":0}]
[{"$f":"'Risk Assessment Matrix (ex.)'!A280","v":0},{"$f":"'Risk Assessment Matrix (ex.)'!C280","v":0},{"$f":"'Risk Assessment Matrix (ex.)'!D280","v":0}]
[{"$f":"'Risk Assessment Matrix (ex.)'!A281","v":0},{"$f":"'Risk Assessment Matrix (ex.)'!C281","v":0},{"$f":"'Risk Assessment Matrix (ex.)'!D281","v":0}]
[{"$f":"'Risk Assessment Matrix (ex.)'!A282","v":0},{"$f":"'Risk Assessment Matrix (ex.)'!C282","v":0},{"$f":"'Risk Assessment Matrix (ex.)'!D282","v":0}]
[{"$f":"'Risk Assessment Matrix (ex.)'!A283","v":0},{"$f":"'Risk Assessment Matrix (ex.)'!C283","v":0},{"$f":"'Risk Assessment Matrix (ex.)'!D283","v":0}]
[{"$f":"'Risk Assessment Matrix (ex.)'!A284","v":0},{"$f":"'Risk Assessment Matrix (ex.)'!C284","v":0},{"$f":"'Risk Assessment Matrix (ex.)'!D284","v":0}]
[{"$f":"'Risk Assessment Matrix (ex.)'!A285","v":0},{"$f":"'Risk Assessment Matrix (ex.)'!C285","v":0},{"$f":"'Risk Assessment Matrix (ex.)'!D285","v":0}]
[{"$f":"'Risk Assessment Matrix (ex.)'!A286","v":0},{"$f":"'Risk Assessment Matrix (ex.)'!C286","v":0},{"$f":"'Risk Assessment Matrix (ex.)'!D286","v":0}]
[{"$f":"'Risk Assessment Matrix (ex.)'!A287","v":0},{"$f":"'Risk Assessment Matrix (ex.)'!C287","v":0},{"$f":"'Risk Assessment Matrix (ex.)'!D287","v":0}]
[{"$f":"'Risk Assessment Matrix (ex.)'!A288","v":0},{"$f":"'Risk Assessment Matrix (ex.)'!C288","v":0},{"$f":"'Risk Assessment Matrix (ex.)'!D288","v":0}]
[{"$f":"'Risk Assessment Matrix (ex.)'!A289","v":0},{"$f":"'Risk Assessment Matrix (ex.)'!C289","v":0},{"$f":"'Risk Assessment Matrix (ex.)'!D289","v":0}]
[{"$f":"'Risk Assessment Matrix (ex.)'!A290","v":0},{"$f":"'Risk Assessment Matrix (ex.)'!C290","v":0},{"$f":"'Risk Assessment Matrix (ex.)'!D290","v":0}]
[{"$f":"'Risk Assessment Matrix (ex.)'!A291","v":0},{"$f":"'Risk Assessment Matrix (ex.)'!C291","v":0},{"$f":"'Risk Assessment Matrix (ex.)'!D291","v":0}]
[{"$f":"'Risk Assessment Matrix (ex.)'!A292","v":0},{"$f":"'Risk Assessment Matrix (ex.)'!C292","v":0},{"$f":"'Risk Assessment Matrix (ex.)'!D292","v":0}]
[{"$f":"'Risk Assessment Matrix (ex.)'!A293","v":0},{"$f":"'Risk Assessment Matrix (ex.)'!C293","v":0},{"$f":"'Risk Assessment Matrix (ex.)'!D293","v":0}]
[{"$f":"'Risk Assessment Matrix (ex.)'!A294","v":0},{"$f":"'Risk Assessment Matrix (ex.)'!C294","v":0},{"$f":"'Risk Assessment Matrix (ex.)'!D294","v":0}]
[{"$f":"'Risk Assessment Matrix (ex.)'!A295","v":0},{"$f":"'Risk Assessment Matrix (ex.)'!C295","v":0},{"$f":"'Risk Assessment Matrix (ex.)'!D295","v":0}]
[{"$f":"'Risk Assessment Matrix (ex.)'!A296","v":0},{"$f":"'Risk Assessment Matrix (ex.)'!C296","v":0},{"$f":"'Risk Assessment Matrix (ex.)'!D296","v":0}]
[{"$f":"'Risk Assessment Matrix (ex.)'!A297","v":0},{"$f":"'Risk Assessment Matrix (ex.)'!C297","v":0},{"$f":"'Risk Assessment Matrix (ex.)'!D297","v":0}]
[{"$f":"'Risk Assessment Matrix (ex.)'!A298","v":0},{"$f":"'Risk Assessment Matrix (ex.)'!C298","v":0},{"$f":"'Risk Assessment Matrix (ex.)'!D298","v":0}]
[{"$f":"'Risk Assessment Matrix (ex.)'!A299","v":0},{"$f":"'Risk Assessment Matrix (ex.)'!C299","v":0},{"$f":"'Risk Assessment Matrix (ex.)'!D299","v":0}]
[{"$f":"'Risk Assessment Matrix (ex.)'!A300","v":0},{"$f":"'Risk Assessment Matrix (ex.)'!C300","v":0},{"$f":"'Risk Assessment Matrix (ex.)'!D300","v":0}]
[{"$f":"'Risk Assessment Matrix (ex.)'!A301","v":0},{"$f":"'Risk Assessment Matrix (ex.)'!C301","v":0},{"$f":"'Risk Assessment Matrix (ex.)'!D301","v":0}]
[{"$f":"'Risk Assessment Matrix (ex.)'!A302","v":0},{"$f":"'Risk Assessment Matrix (ex.)'!C302","v":0},{"$f":"'Risk Assessment Matrix (ex.)'!D302","v":0}]
[{"$f":"'Risk Assessment Matrix (ex.)'!A303","v":0},{"$f":"'Risk Assessment Matrix (ex.)'!C303","v":0},{"$f":"'Risk Assessment Matrix (ex.)'!D303","v":0}]
[{"$f":"'Risk Assessment Matrix (ex.)'!A304","v":0},{"$f":"'Risk Assessment Matrix (ex.)'!C304","v":0},{"$f":"'Risk Assessment Matrix (ex.)'!D304","v":0}]
[{"$f":"'Risk Assessment Matrix (ex.)'!A305","v":0},{"$f":"'Risk Assessment Matrix (ex.)'!C305","v":0},{"$f":"'Risk Assessment Matrix (ex.)'!D305","v":0}]
[{"$f":"'Risk Assessment Matrix (ex.)'!A306","v":0},{"$f":"'Risk Assessment Matrix (ex.)'!C306","v":0},{"$f":"'Risk Assessment Matrix (ex.)'!D306","v":0}]
[{"$f":"'Risk Assessment Matrix (ex.)'!A307","v":0},{"$f":"'Risk Assessment Matrix (ex.)'!C307","v":0},{"$f":"'Risk Assessment Matrix (ex.)'!D307","v":0}]
[{"$f":"'Risk Assessment Matrix (ex.)'!A308","v":0},{"$f":"'Risk Assessment Matrix (ex.)'!C308","v":0},{"$f":"'Risk Assessment Matrix (ex.)'!D308","v":0}]
[{"$f":"'Risk Assessment Matrix (ex.)'!A309","v":0},{"$f":"'Risk Assessment Matrix (ex.)'!C309","v":0},{"$f":"'Risk Assessment Matrix (ex.)'!D309","v":0}]
[{"$f":"'Risk Assessment Matrix (ex.)'!A310","v":0},{"$f":"'Risk Assessment Matrix (ex.)'!C310","v":0},{"$f":"'Risk Assessment Matrix (ex.)'!D310","v":0}]
[{"$f":"'Risk Assessment Matrix (ex.)'!A311","v":0},{"$f":"'Risk Assessment Matrix (ex.)'!C311","v":0},{"$f":"'Risk Assessment Matrix (ex.)'!D311","v":0}]
[{"$f":"'Risk Assessment Matrix (ex.)'!A312","v":0},{"$f":"'Risk Assessment Matrix (ex.)'!C312","v":0},{"$f":"'Risk Assessment Matrix (ex.)'!D312","v":0}]
[{"$f":"'Risk Assessment Matrix (ex.)'!A313","v":0},{"$f":"'Risk Assessment Matrix (ex.)'!C313","v":0},{"$f":"'Risk Assessment Matrix (ex.)'!D313","v":0}]
[{"$f":"'Risk Assessment Matrix (ex.)'!A314","v":0},{"$f":"'Risk Assessment Matrix (ex.)'!C314","v":0},{"$f":"'Risk Assessment Matrix (ex.)'!D314","v":0}]
[{"$f":"'Risk Assessment Matrix (ex.)'!A315","v":0},{"$f":"'Risk Assessment Matrix (ex.)'!C315","v":0},{"$f":"'Risk Assessment Matrix (ex.)'!D315","v":0}]
[{"$f":"'Risk Assessment Matrix (ex.)'!A316","v":0},{"$f":"'Risk Assessment Matrix (ex.)'!C316","v":0},{"$f":"'Risk Assessment Matrix (ex.)'!D316","v":0}]
[{"$f":"'Risk Assessment Matrix (ex.)'!A317","v":0},{"$f":"'Risk Assessment Matrix (ex.)'!C317","v":0},{"$f":"'Risk Assessment Matrix (ex.)'!D317","v":0}]
[{"$f":"'Risk Assessment Matrix (ex.)'!A318","v":0},{"$f":"'Risk Assessment Matrix (ex.)'!C318","v":0},{"$f":"'Risk Assessment Matrix (ex.)'!D318","v":0}]
[{"$f":"'Risk Assessment Matrix (ex.)'!A319","v":0},{"$f":"'Risk Assessment Matrix (ex.)'!C319","v":0},{"$f":"'Risk Assessment Matrix (ex.)'!D319","v":0}]
[{"$f":"'Risk Assessment Matrix (ex.)'!A320","v":0},{"$f":"'Risk Assessment Matrix (ex.)'!C320","v":0},{"$f":"'Risk Assessment Matrix (ex.)'!D320","v":0}]
[{"$f":"'Risk Assessment Matrix (ex.)'!A321","v":0},{"$f":"'Risk Assessment Matrix (ex.)'!C321","v":0},{"$f":"'Risk Assessment Matrix (ex.)'!D321","v":0}]
[{"$f":"'Risk Assessment Matrix (ex.)'!A322","v":0},{"$f":"'Risk Assessment Matrix (ex.)'!C322","v":0},{"$f":"'Risk Assessment Matrix (ex.)'!D322","v":0}]
[{"$f":"'Risk Assessment Matrix (ex.)'!A323","v":0},{"$f":"'Risk Assessment Matrix (ex.)'!C323","v":0},{"$f":"'Risk Assessment Matrix (ex.)'!D323","v":0}]
[{"$f":"'Risk Assessment Matrix (ex.)'!A324","v":0},{"$f":"'Risk Assessment Matrix (ex.)'!C324","v":0},{"$f":"'Risk Assessment Matrix (ex.)'!D324","v":0}]
[{"$f":"'Risk Assessment Matrix (ex.)'!A325","v":0},{"$f":"'Risk Assessment Matrix (ex.)'!C325","v":0},{"$f":"'Risk Assessment Matrix (ex.)'!D325","v":0}]
[{"$f":"'Risk Assessment Matrix (ex.)'!A326","v":0},{"$f":"'Risk Assessment Matrix (ex.)'!C326","v":0},{"$f":"'Risk Assessment Matrix (ex.)'!D326","v":0}]
[{"$f":"'Risk Assessment Matrix (ex.)'!A327","v":0},{"$f":"'Risk Assessment Matrix (ex.)'!C327","v":0},{"$f":"'Risk Assessment Matrix (ex.)'!D327","v":0}]
[{"$f":"'Risk Assessment Matrix (ex.)'!A328","v":0},{"$f":"'Risk Assessment Matrix (ex.)'!C328","v":0},{"$f":"'Risk Assessment Matrix (ex.)'!D328","v":0}]
[{"$f":"'Risk Assessment Matrix (ex.)'!A329","v":0},{"$f":"'Risk Assessment Matrix (ex.)'!C329","v":0},{"$f":"'Risk Assessment Matrix (ex.)'!D329","v":0}]
[{"$f":"'Risk Assessment Matrix (ex.)'!A330","v":0},{"$f":"'Risk Assessment Matrix (ex.)'!C330","v":0},{"$f":"'Risk Assessment Matrix (ex.)'!D330","v":0}]
[{"$f":"'Risk Assessment Matrix (ex.)'!A331","v":0},{"$f":"'Risk Assessment Matrix (ex.)'!C331","v":0},{"$f":"'Risk Assessment Matrix (ex.)'!D331","v":0}]
[{"$f":"'Risk Assessment Matrix (ex.)'!A332","v":0},{"$f":"'Risk Assessment Matrix (ex.)'!C332","v":0},{"$f":"'Risk Assessment Matrix (ex.)'!D332","v":0}]
[{"$f":"'Risk Assessment Matrix (ex.)'!A333","v":0},{"$f":"'Risk Assessment Matrix (ex.)'!C333","v":0},{"$f":"'Risk Assessment Matrix (ex.)'!D333","v":0}]
[{"$f":"'Risk Assessment Matrix (ex.)'!A334","v":0},{"$f":"'Risk Assessment Matrix (ex.)'!C334","v":0},{"$f":"'Risk Assessment Matrix (ex.)'!D334","v":0}]
[{"$f":"'Risk Assessment Matrix (ex.)'!A335","v":0},{"$f":"'Risk Assessment Matrix (ex.)'!C335","v":0},{"$f":"'Risk Assessment Matrix (ex.)'!D335","v":0}]
[{"$f":"'Risk Assessment Matrix (ex.)'!A336","v":0},{"$f":"'Risk Assessment Matrix (ex.)'!C336","v":0},{"$f":"'Risk Assessment Matrix (ex.)'!D336","v":0}]
[{"$f":"'Risk Assessment Matrix (ex.)'!A337","v":0},{"$f":"'Risk Assessment Matrix (ex.)'!C337","v":0},{"$f":"'Risk Assessment Matrix (ex.)'!D337","v":0}]
[{"$f":"'Risk Assessment Matrix (ex.)'!A338","v":0},{"$f":"'Risk Assessment Matrix (ex.)'!C338","v":0},{"$f":"'Risk Assessment Matrix (ex.)'!D338","v":0}]
[{"$f":"'Risk Assessment Matrix (ex.)'!A339","v":0},{"$f":"'Risk Assessment Matrix (ex.)'!C339","v":0},{"$f":"'Risk Assessment Matrix (ex.)'!D339","v":0}]
[{"$f":"'Risk Assessment Matrix (ex.)'!A340","v":0},{"$f":"'Risk Assessment Matrix (ex.)'!C340","v":0},{"$f":"'Risk Assessment Matrix (ex.)'!D340","v":0}]
[{"$f":"'Risk Assessment Matrix (ex.)'!A341","v":0},{"$f":"'Risk Assessment Matrix (ex.)'!C341","v":0},{"$f":"'Risk Assessment Matrix (ex.)'!D341","v":0}]
[{"$f":"'Risk Assessment Matrix (ex.)'!A342","v":0},{"$f":"'Risk Assessment Matrix (ex.)'!C342","v":0},{"$f":"'Risk Assessment Matrix (ex.)'!D342","v":0}]
[{"$f":"'Risk Assessment Matrix (ex.)'!A343","v":0},{"$f":"'Risk Assessment Matrix (ex.)'!C343","v":0},{"$f":"'Risk Assessment Matrix (ex.)'!D343","v":0}]
[{"$f":"'Risk Assessment Matrix (ex.)'!A344","v":0},{"$f":"'Risk Assessment Matrix (ex.)'!C344","v":0},{"$f":"'Risk Assessment Matrix (ex.)'!D344","v":0}]
[{"$f":"'Risk Assessment Matrix (ex.)'!A345","v":0},{"$f":"'Risk Assessment Matrix (ex.)'!C345","v":0},{"$f":"'Risk Assessment Matrix (ex.)'!D345","v":0}]
[{"$f":"'Risk Assessment Matrix (ex.)'!A346","v":0},{"$f":"'Risk Assessment Matrix (ex.)'!C346","v":0},{"$f":"'Risk Assessment Matrix (ex.)'!D346","v":0}]
[{"$f":"'Risk Assessment Matrix (ex.)'!A347","v":0},{"$f":"'Risk Assessment Matrix (ex.)'!C347","v":0},{"$f":"'Risk Assessment Matrix (ex.)'!D347","v":0}]
[{"$f":"'Risk Assessment Matrix (ex.)'!A348","v":0},{"$f":"'Risk Assessment Matrix (ex.)'!C348","v":0},{"$f":"'Risk Assessment Matrix (ex.)'!D348","v":0}]
[{"$f":"'Risk Assessment Matrix (ex.)'!A349","v":0},{"$f":"'Risk Assessment Matrix (ex.)'!C349","v":0},{"$f":"'Risk Assessment Matrix (ex.)'!D349","v":0}]
[{"$f":"'Risk Assessment Matrix (ex.)'!A350","v":0},{"$f":"'Risk Assessment Matrix (ex.)'!C350","v":0},{"$f":"'Risk Assessment Matrix (ex.)'!D350","v":0}]
[{"$f":"'Risk Assessment Matrix (ex.)'!A351","v":0},{"$f":"'Risk Assessment Matrix (ex.)'!C351","v":0},{"$f":"'Risk Assessment Matrix (ex.)'!D351","v":0}]
[{"$f":"'Risk Assessment Matrix (ex.)'!A352","v":0},{"$f":"'Risk Assessment Matrix (ex.)'!C352","v":0},{"$f":"'Risk Assessment Matrix (ex.)'!D352","v":0}]
[{"$f":"'Risk Assessment Matrix (ex.)'!A353","v":0},{"$f":"'Risk Assessment Matrix (ex.)'!C353","v":0},{"$f":"'Risk Assessment Matrix (ex.)'!D353","v":0}]
[{"$f":"'Risk Assessment Matrix (ex.)'!A354","v":0},{"$f":"'Risk Assessment Matrix (ex.)'!C354","v":0},{"$f":"'Risk Assessment Matrix (ex.)'!D354","v":0}]
[{"$f":"'Risk Assessment Matrix (ex.)'!A355","v":0},{"$f":"'Risk Assessment Matrix (ex.)'!C355","v":0},{"$f":"'Risk Assessment Matrix (ex.)'!D355","v":0}]
[{"$f":"'Risk Assessment Matrix (ex.)'!A356","v":0},{"$f":"'Risk Assessment Matrix (ex.)'!C356","v":0},{"$f":"'Risk Assessment Matrix (ex.)'!D356","v":0}]
[{"$f":"'Risk Assessment Matrix (ex.)'!A357","v":0},{"$f":"'Risk Assessment Matrix (ex.)'!C357","v":0},{"$f":"'Risk Assessment Matrix (ex.)'!D357","v":0}]
[{"$f":"'Risk Assessment Matrix (ex.)'!A358","v":0},{"$f":"'Risk Assessment Matrix (ex.)'!C358","v":0},{"$f":"'Risk Assessment Matrix (ex.)'!D358","v":0}]
[{"$f":"'Risk Assessment Matrix (ex.)'!A359","v":0},{"$f":"'Risk Assessment Matrix (ex.)'!C359","v":0},{"$f":"'Risk Assessment Matrix (ex.)'!D359","v":0}]
[{"$f":"'Risk Assessment Matrix (ex.)'!A360","v":0},{"$f":"'Risk Assessment Matrix (ex.)'!C360","v":0},{"$f":"'Risk Assessment Matrix (ex.)'!D360","v":0}]
[{"$f":"'Risk Assessment Matrix (ex.)'!A361","v":0},{"$f":"'Risk Assessment Matrix (ex.)'!C361","v":0},{"$f":"'Risk Assessment Matrix (ex.)'!D361","v":0}]
[{"$f":"'Risk Assessment Matrix (ex.)'!A362","v":0},{"$f":"'Risk Assessment Matrix (ex.)'!C362","v":0},{"$f":"'Risk Assessment Matrix (ex.)'!D362","v":0}]
[{"$f":"'Risk Assessment Matrix (ex.)'!A363","v":0},{"$f":"'Risk Assessment Matrix (ex.)'!C363","v":0},{"$f":"'Risk Assessment Matrix (ex.)'!D363","v":0}]
[{"$f":"'Risk Assessment Matrix (ex.)'!A364","v":0},{"$f":"'Risk Assessment Matrix (ex.)'!C364","v":0},{"$f":"'Risk Assessment Matrix (ex.)'!D364","v":0}]
[{"$f":"'Risk Assessment Matrix (ex.)'!A365","v":0},{"$f":"'Risk Assessment Matrix (ex.)'!C365","v":0},{"$f":"'Risk Assessment Matrix (ex.)'!D365","v":0}]
[{"$f":"'Risk Assessment Matrix (ex.)'!A366","v":0},{"$f":"'Risk Assessment Matrix (ex.)'!C366","v":0},{"$f":"'Risk Assessment Matrix (ex.)'!D366","v":0}]
[{"$f":"'Risk Assessment Matrix (ex.)'!A367","v":0},{"$f":"'Risk Assessment Matrix (ex.)'!C367","v":0},{"$f":"'Risk Assessment Matrix (ex.)'!D367","v":0}]
[{"$f":"'Risk Assessment Matrix (ex.)'!A368","v":0},{"$f":"'Risk Assessment Matrix (ex.)'!C368","v":0},{"$f":"'Risk Assessment Matrix (ex.)'!D368","v":0}]
[{"$f":"'Risk Assessment Matrix (ex.)'!A369","v":0},{"$f":"'Risk Assessment Matrix (ex.)'!C369","v":0},{"$f":"'Risk Assessment Matrix (ex.)'!D369","v":0}]
[{"$f":"'Risk Assessment Matrix (ex.)'!A370","v":0},{"$f":"'Risk Assessment Matrix (ex.)'!C370","v":0},{"$f":"'Risk Assessment Matrix (ex.)'!D370","v":0}]
[{"$f":"'Risk Assessment Matrix (ex.)'!A371","v":0},{"$f":"'Risk Assessment Matrix (ex.)'!C371","v":0},{"$f":"'Risk Assessment Matrix (ex.)'!D371","v":0}]
[{"$f":"'Risk Assessment Matrix (ex.)'!A372","v":0},{"$f":"'Risk Assessment Matrix (ex.)'!C372","v":0},{"$f":"'Risk Assessment Matrix (ex.)'!D372","v":0}]
[{"$f":"'Risk Assessment Matrix (ex.)'!A373","v":0},{"$f":"'Risk Assessment Matrix (ex.)'!C373","v":0},{"$f":"'Risk Assessment Matrix (ex.)'!D373","v":0}]
[{"$f":"'Risk Assessment Matrix (ex.)'!A374","v":0},{"$f":"'Risk Assessment Matrix (ex.)'!C374","v":0},{"$f":"'Risk Assessment Matrix (ex.)'!D374","v":0}]
[{"$f":"'Risk Assessment Matrix (ex.)'!A375","v":0},{"$f":"'Risk Assessment Matrix (ex.)'!C375","v":0},{"$f":"'Risk Assessment Matrix (ex.)'!D375","v":0}]
[{"$f":"'Risk Assessment Matrix (ex.)'!A376","v":0},{"$f":"'Risk Assessment Matrix (ex.)'!C376","v":0},{"$f":"'Risk Assessment Matrix (ex.)'!D376","v":0}]
[{"$f":"'Risk Assessment Matrix (ex.)'!A377","v":0},{"$f":"'Risk Assessment Matrix (ex.)'!C377","v":0},{"$f":"'Risk Assessment Matrix (ex.)'!D377","v":0}]
[{"$f":"'Risk Assessment Matrix (ex.)'!A378","v":0},{"$f":"'Risk Assessment Matrix (ex.)'!C378","v":0},{"$f":"'Risk Assessment Matrix (ex.)'!D378","v":0}]
[{"$f":"'Risk Assessment Matrix (ex.)'!A379","v":0},{"$f":"'Risk Assessment Matrix (ex.)'!C379","v":0},{"$f":"'Risk Assessment Matrix (ex.)'!D379","v":0}]
[{"$f":"'Risk Assessment Matrix (ex.)'!A380","v":0},{"$f":"'Risk Assessment Matrix (ex.)'!C380","v":0},{"$f":"'Risk Assessment Matrix (ex.)'!D380","v":0}]
[{"$f":"'Risk Assessment Matrix (ex.)'!A381","v":0},{"$f":"'Risk Assessment Matrix (ex.)'!C381","v":0},{"$f":"'Risk Assessment Matrix (ex.)'!D381","v":0}]
[{"$f":"'Risk Assessment Matrix (ex.)'!A382","v":0},{"$f":"'Risk Assessment Matrix (ex.)'!C382","v":0},{"$f":"'Risk Assessment Matrix (ex.)'!D382","v":0}]
[{"$f":"'Risk Assessment Matrix (ex.)'!A383","v":0},{"$f":"'Risk Assessment Matrix (ex.)'!C383","v":0},{"$f":"'Risk Assessment Matrix (ex.)'!D383","v":0}]
[{"$f":"'Risk Assessment Matrix (ex.)'!A384","v":0},{"$f":"'Risk Assessment Matrix (ex.)'!C384","v":0},{"$f":"'Risk Assessment Matrix (ex.)'!D384","v":0}]
[{"$f":"'Risk Assessment Matrix (ex.)'!A385","v":0},{"$f":"'Risk Assessment Matrix (ex.)'!C385","v":0},{"$f":"'Risk Assessment Matrix (ex.)'!D385","v":0}]
[{"$f":"'Risk Assessment Matrix (ex.)'!A386","v":0},{"$f":"'Risk Assessment Matrix (ex.)'!C386","v":0},{"$f":"'Risk Assessment Matrix (ex.)'!D386","v":0}]
[{"$f":"'Risk Assessment Matrix (ex.)'!A387","v":0},{"$f":"'Risk Assessment Matrix (ex.)'!C387","v":0},{"$f":"'Risk Assessment Matrix (ex.)'!D387","v":0}]
[{"$f":"'Risk Assessment Matrix (ex.)'!A388","v":0},{"$f":"'Risk Assessment Matrix (ex.)'!C388","v":0},{"$f":"'Risk Assessment Matrix (ex.)'!D388","v":0}]
[{"$f":"'Risk Assessment Matrix (ex.)'!A389","v":0},{"$f":"'Risk Assessment Matrix (ex.)'!C389","v":0},{"$f":"'Risk Assessment Matrix (ex.)'!D389","v":0}]
[{"$f":"'Risk Assessment Matrix (ex.)'!A390","v":0},{"$f":"'Risk Assessment Matrix (ex.)'!C390","v":0},{"$f":"'Risk Assessment Matrix (ex.)'!D390","v":0}]
[{"$f":"'Risk Assessment Matrix (ex.)'!A391","v":0},{"$f":"'Risk Assessment Matrix (ex.)'!C391","v":0},{"$f":"'Risk Assessment Matrix (ex.)'!D391","v":0}]
[{"$f":"'Risk Assessment Matrix (ex.)'!A392","v":0},{"$f":"'Risk Assessment Matrix (ex.)'!C392","v":0},{"$f":"'Risk Assessment Matrix (ex.)'!D392","v":0}]
[{"$f":"'Risk Assessment Matrix (ex.)'!A393","v":0},{"$f":"'Risk Assessment Matrix (ex.)'!C393","v":0},{"$f":"'Risk Assessment Matrix (ex.)'!D393","v":0}]
[{"$f":"'Risk Assessment Matrix (ex.)'!A394","v":0},{"$f":"'Risk Assessment Matrix (ex.)'!C394","v":0},{"$f":"'Risk Assessment Matrix (ex.)'!D394","v":0}]
[{"$f":"'Risk Assessment Matrix (ex.)'!A395","v":0},{"$f":"'Risk Assessment Matrix (ex.)'!C395","v":0},{"$f":"'Risk Assessment Matrix (ex.)'!D395","v":0}]
[{"$f":"'Risk Assessment Matrix (ex.)'!A396","v":0},{"$f":"'Risk Assessment Matrix (ex.)'!C396","v":0},{"$f":"'Risk Assessment Matrix (ex.)'!D396","v":0}]
[{"$f":"'Risk Assessment Matrix (ex.)'!A397","v":0},{"$f":"'Risk Assessment Matrix (ex.)'!C397","v":0},{"$f":"'Risk Assessment Matrix (ex.)'!D397","v":0}]
[{"$f":"'Risk Assessment Matrix (ex.)'!A398","v":0},{"$f":"'Risk Assessment Matrix (ex.)'!C398","v":0},{"$f":"'Risk Assessment Matrix (ex.)'!D398","v":0}]
[{"$f":"'Risk Assessment Matrix (ex.)'!A399","v":0},{"$f":"'Risk Assessment Matrix (ex.)'!C399","v":0},{"$f":"'Risk Assessment Matrix (ex.)'!D399","v":0}]
[{"$f":"'Risk Assessment Matrix (ex.)'!A400","v":0},{"$f":"'Risk Assessment Matrix (ex.)'!C400","v":0},{"$f":"'Risk Assessment Matrix (ex.)'!D400","v":0}]
[{"$f":"'Risk Assessment Matrix (ex.)'!A401","v":0},{"$f":"'Risk Assessment Matrix (ex.)'!C401","v":0},{"$f":"'Risk Assessment Matrix (ex.)'!D401","v":0}]
[{"$f":"'Risk Assessment Matrix (ex.)'!A402","v":0},{"$f":"'Risk Assessment Matrix (ex.)'!C402","v":0},{"$f":"'Risk Assessment Matrix (ex.)'!D402","v":0}]

{"sheet":"Fraud Risk Ranking (ex.)","index":12,"n_rows":30,"n_cols":6,"rows_kept":30,"cut":false,"hidden":false,"merged":[[0,0,0,5]]}
["Fraud Risk Ranking"]
[]
["ID Number","Identified Fraud Risks and Schemes","Likelihood [1-5]","Significance [1-5]","Risk Score","Response Plan"]
[{"$f":"'Risk Assessment Matrix (ex.)'!A4","v":"AM4"},{"$f":"'Risk Assessment Matrix (ex.)'!B4","v":"Fraudulent Disbursements - Check Tampering & Expense Reimbursement Schemes"},{"$f":"'Risk Assessment Matrix (ex.)'!C4","v":5},{"$f":"'Risk Assessment Matrix (ex.)'!D4","v":5},{"$f":"C4*D4","v":25}]
[{"$f":"'Risk Assessment Matrix (ex.)'!A5","v":"IAC 2"},{"$f":"'Risk Assessment Matrix (ex.)'!B5","v":"Conflicts of Interest - Undisclosed relationships or related-party transactions that negatively impact an organization's reputation and may cause financial harm while benefiting the person with the relationship"},{"$f":"'Risk Assessment Matrix (ex.)'!C5","v":5},{"$f":"'Risk Assessment Matrix (ex.)'!D5","v":5},25]
[{"$f":"'Risk Assessment Matrix (ex.)'!A7","v":"FR3"},{"$f":"'Risk Assessment Matrix (ex.)'!B7","v":"Revenue Recognition - Delivery of product prior to customer's requested delivery date or prior to receipt of customer's order"},{"$f":"'Risk Assessment Matrix (ex.)'!C7","v":4},{"$f":"'Risk Assessment Matrix (ex.)'!D7","v":5},20]
[{"$f":"'Risk Assessment Matrix (ex.)'!A6","v":"AM1"},{"$f":"'Risk Assessment Matrix (ex.)'!B6","v":"Cash Theft by Cyberfraud - Professional fraudsters use phishing to obtain organization's online banking login credentials and severely deplete the bank accounts"},{"$f":"'Risk Assessment Matrix (ex.)'!C6","v":4},{"$f":"'Risk Assessment Matrix (ex.)'!D6","v":5},20]
[{"$f":"'Risk Assessment Matrix (ex.)'!A8","v":"IAC 1"},{"$f":"'Risk Assessment Matrix (ex.)'!B8","v":"Bribery of governmental officials"},{"$f":"'Risk Assessment Matrix (ex.)'!C8","v":4},{"$f":"'Risk Assessment Matrix (ex.)'!D8","v":5},20]
[{"$f":"'Risk Assessment Matrix (ex.)'!A14","v":"FR9"},{"$f":"'Risk Assessment Matrix (ex.)'!B14","v":"Revenue Recognition - Backdating sales agreements"},{"$f":"'Risk Assessment Matrix (ex.)'!C14","v":3},{"$f":"'Risk Assessment Matrix (ex.)'!D14","v":5},15]
[{"$f":"'Risk Assessment Matrix (ex.)'!A11","v":"FR4"},{"$f":"'Risk Assessment Matrix (ex.)'!B11","v":"Revenue Recognition - Partial shipments"},{"$f":"'Risk Assessment Matrix (ex.)'!C11","v":3},{"$f":"'Risk Assessment Matrix (ex.)'!D11","v":5},15]
[{"$f":"'Risk Assessment Matrix (ex.)'!A9","v":"AM2"},{"$f":"'Risk Assessment Matrix (ex.)'!B9","v":"Fraudulent Disbursements - Billing Schemes - Use of phony vendors"},{"$f":"'Risk Assessment Matrix (ex.)'!C9","v":3},{"$f":"'Risk Assessment Matrix (ex.)'!D9","v":5},15]
[{"$f":"'Risk Assessment Matrix (ex.)'!A10","v":"FR2"},{"$f":"'Risk Assessment Matrix (ex.)'!B10","v":"Revenue Recognition - Side letters/agreements with concessions (e.g. extened payment terms, price reductions, rebates, unusual sales/marketing support funding for dealers, distributors or retailers)"},{"$f":"'Risk Assessment Matrix (ex.)'!C10","v":3},{"$f":"'Risk Assessment Matrix (ex.)'!D10","v":5},15]
[{"$f":"'Risk Assessment Matrix (ex.)'!A13","v":"FR7"},{"$f":"'Risk Assessment Matrix (ex.)'!B13","v":"Manipulation of Liabilities/Expenses - Unrecorded vendor invoices"},{"$f":"'Risk Assessment Matrix (ex.)'!C13","v":3},{"$f":"'Risk Assessment Matrix (ex.)'!D13","v":5},15]
[{"$f":"'Risk Assessment Matrix (ex.)'!A12","v":"FR6"},{"$f":"'Risk Assessment Matrix (ex.)'!B12","v":"Revenue Recognition - Holding books open to record in the current period revenue from sales made in the next period"},{"$f":"'Risk Assessment Matrix (ex.)'!C12","v":3},{"$f":"'Risk Assessment Matrix (ex.)'!D12","v":5},15]
[{"$f":"'Risk Assessment Matrix (ex.)'!A15","v":"FR5"},{"$f":"'Risk Assessment Matrix (ex.)'!B15","v":"Revenue recognition - Recording revenue for items shipped after books closed for period end (e.g. late shipments)"},{"$f":"'Risk Assessment Matrix (ex.)'!C15","v":3},{"$f":"'Risk Assessment Matrix (ex.)'!D15","v":4},12]
[{"$f":"'Risk Assessment Matrix (ex.)'!A16","v":"NF5"},{"$f":"'Risk Assessment Matrix (ex.)'!B16","v":"Overstated/false employee qualifications or certifications"},{"$f":"'Risk Assessment Matrix (ex.)'!C16","v":3},{"$f":"'Risk Assessment Matrix (ex.)'!D16","v":4},12]
[{"$f":"'Risk Assessment Matrix (ex.)'!A18","v":"NF2"},{"$f":"'Risk Assessment Matrix (ex.)'!B18","v":"Compliance - Environmental, Health, & Safety Reporting"},{"$f":"'Risk Assessment Matrix (ex.)'!C18","v":2},{"$f":"'Risk Assessment Matrix (ex.)'!D18","v":5},10]
[{"$f":"'Risk Assessment Matrix (ex.)'!A17","v":"NF1"},{"$f":"'Risk Assessment Matrix (ex.)'!B17","v":"Quality - Material testing results altered"},{"$f":"'Risk Assessment Matrix (ex.)'!C17","v":2},{"$f":"'Risk Assessment Matrix (ex.)'!D17","v":5},10]
[{"$f":"'Risk Assessment Matrix (ex.)'!A19","v":"NF3"},{"$f":"'Risk Assessment Matrix (ex.)'!B19","v":"Quality - Employee Certification Test Score Tampering"},{"$f":"'Risk Assessment Matrix (ex.)'!C19","v":3},{"$f":"'Risk Assessment Matrix (ex.)'!D19","v":3},9]
[{"$f":"'Risk Assessment Matrix (ex.)'!A21","v":"FR11"},{"$f":"'Risk Assessment Matrix (ex.)'!B21","v":"Disclosures - Improper or inadequate disclosures of material facts, circumstances, and events"},{"$f":"'Risk Assessment Matrix (ex.)'!C21","v":2},{"$f":"'Risk Assessment Matrix (ex.)'!D21","v":4},8]
[{"$f":"'Risk Assessment Matrix (ex.)'!A20","v":"FR1"},{"$f":"'Risk Assessment Matrix (ex.)'!B20","v":"Inappropriate Journal Entries"},{"$f":"'Risk Assessment Matrix (ex.)'!C20","v":2},{"$f":"'Risk Assessment Matrix (ex.)'!D20","v":4},8]
[{"$f":"'Risk Assessment Matrix (ex.)'!A23","v":"NF4"},{"$f":"'Risk Assessment Matrix (ex.)'!B23","v":"Compliance - Falsely reporting compliance information on contracts"},{"$f":"'Risk Assessment Matrix (ex.)'!C23","v":2},{"$f":"'Risk Assessment Matrix (ex.)'!D23","v":3},6]
[{"$f":"'Risk Assessment Matrix (ex.)'!A22","v":"FR8"},{"$f":"'Risk Assessment Matrix (ex.)'!B22","v":"Revenue Recognition - Manipulation of secondary revenue streams (e.g. service and support revenue)"},{"$f":"'Risk Assessment Matrix (ex.)'!C22","v":2},{"$f":"'Risk Assessment Matrix (ex.)'!D22","v":3},6]
[{"$f":"'Risk Assessment Matrix (ex.)'!A24","v":"FR10"},{"$f":"'Risk Assessment Matrix (ex.)'!B24","v":"Revenue Recognition - Channel stuffing"},{"$f":"'Risk Assessment Matrix (ex.)'!C24","v":1},{"$f":"'Risk Assessment Matrix (ex.)'!D24","v":4},4]
[{"$f":"'Risk Assessment Matrix (ex.)'!A26","v":"IAC3"},{"$f":"'Risk Assessment Matrix (ex.)'!B26","v":"Commercial Bribery/Illegal Gratuities"},{"$f":"'Risk Assessment Matrix (ex.)'!C26","v":1},{"$f":"'Risk Assessment Matrix (ex.)'!D26","v":3},3]
[{"$f":"'Risk Assessment Matrix (ex.)'!A25","v":"AM3"},{"$f":"'Risk Assessment Matrix (ex.)'!B25","v":"Theft or diversion of inventory"},{"$f":"'Risk Assessment Matrix (ex.)'!C25","v":1},{"$f":"'Risk Assessment Matrix (ex.)'!D25","v":3},3]
[{"$f":"'Risk Assessment Matrix (ex.)'!A29","v":"FR13"},{"$f":"'Risk Assessment Matrix (ex.)'!B29","v":"Revenue Recognition - Roundtrip transactions"},{"$f":"'Risk Assessment Matrix (ex.)'!C29","v":1},{"$f":"'Risk Assessment Matrix (ex.)'!D29","v":1},1]
[{"$f":"'Risk Assessment Matrix (ex.)'!A27","v":"AM5"},{"$f":"'Risk Assessment Matrix (ex.)'!B27","v":"Cash Skimming"},{"$f":"'Risk Assessment Matrix (ex.)'!C27","v":1},{"$f":"'Risk Assessment Matrix (ex.)'!D27","v":1},1]
[{"$f":"'Risk Assessment Matrix (ex.)'!A28","v":"FR12"},{"$f":"'Risk Assessment Matrix (ex.)'!B28","v":"Revenue Recognition - Manipulation of bill and hold arrangements"},{"$f":"'Risk Assessment Matrix (ex.)'!C28","v":1},{"$f":"'Risk Assessment Matrix (ex.)'!D28","v":1},1]
[{"$f":"'Risk Assessment Matrix (ex.)'!A30","v":"NF6"},{"$f":"'Risk Assessment Matrix (ex.)'!B30","v":"Altered Productivity Reports"},{"$f":"'Risk Assessment Matrix (ex.)'!C30","v":1},{"$f":"'Risk Assessment Matrix (ex.)'!D30","v":1},1]

{"sheet":"Control Activities Matrix (ex.)","index":13,"n_rows":30,"n_cols":9,"rows_kept":30,"cut":false,"hidden":false,"merged":[[0,0,0,8]]}
["Control Activities Matrix"]
[]
["ID Number","Identified Fraud Risks and Schemes","Risk Score","Existing Control Activities","Preventive [P], Detective [D], or Combined [C]","Responsible Person(s)","Additional Control Activities","Preventive [P], Detective [D], or Combined [C]","Responsible Person(s)"]
[{"$f":"'Risk Assessment Matrix (ex.)'!A4","v":"AM4"},{"$f":"'Risk Assessment Matrix (ex.)'!B4","v":"Fraudulent Disbursements - Check Tampering & Expense Reimbursement Schemes"},{"$f":"'Fraud Risk Ranking (ex.)'!E4","v":25},{"$f":"'Risk Assessment Matrix (ex.)'!G4","v":"Physical access controls, dual signatures on checks, support for expenses, review by supervisor and requirement that any false statement made on any expense report could be grounds for dismissal\n\nAwareness of pressures/incentives at all levels that might drive inappropriate financial behavior as well as observation, inquiry, and other information that focus on lifestyle, family, and personal financial issues of personnel in these departments."},"D"," "]
[{"$f":"'Risk Assessment Matrix (ex.)'!A5","v":"IAC 2"},{"$f":"'Risk Assessment Matrix (ex.)'!B5","v":"Conflicts of Interest - Undisclosed relationships or related-party transactions that negatively impact an organization's reputation and may cause financial harm while benefiting the person with the relationship"},{"$f":"'Fraud Risk Ranking (ex.)'!E5","v":25},{"$f":"'Risk Assessment Matrix (ex.)'!G5","v":"Policy requires all employees including senior management to disclose any personal relationships, business transactions and related parties in a timely manner for approval by the Board or other governing body\n\nBackground checks are performed on all key personnel looking for undisclosed interests in businesses, real estate, or other relationships\n\nIA routinely uses data analysis tools to compare vendor and customer master files with employee payroll files looking for matching addresses, names, tax identification or social security numbers and telephone numbers"},"D"]
[{"$f":"'Risk Assessment Matrix (ex.)'!A6","v":"AM1"},{"$f":"'Risk Assessment Matrix (ex.)'!B6","v":"Cash Theft by Cyberfraud - Professional fraudsters use phishing to obtain organization's online banking login credentials and severely deplete the bank accounts"},{"$f":"'Fraud Risk Ranking (ex.)'!E6","v":20},{"$f":"'Risk Assessment Matrix (ex.)'!G6","v":"Dedicated computer(s) for online banking use only (using other computers is strictly prohibited as is using this computer for any other purpose)\n\nIT specialists setup the dedicated banking computer(s) with high security against both internal and external unauthorized access and use. Security measures are updated by IT security specialists on an ongoing basis\n\nAll personnel with access to online banking credentials receive mandatory training about avoiding fraudster's phishing techniques using only the permitted computer(s) for online banking and their responsibility to help ensure their colleagues comply very strictly with this policy, including the requirement to report any violations"},"P"]
[{"$f":"'Risk Assessment Matrix (ex.)'!A7","v":"FR3"},{"$f":"'Risk Assessment Matrix (ex.)'!B7","v":"Revenue Recognition - Delivery of product prior to customer's requested delivery date or prior to receipt of customer's order"},{"$f":"'Fraud Risk Ranking (ex.)'!E7","v":20},{"$f":"'Risk Assessment Matrix (ex.)'!G7","v":"Systematic matching of sales order to shipping documentation; exception reports generated"},"C"]
[{"$f":"'Risk Assessment Matrix (ex.)'!A8","v":"IAC 1"},{"$f":"'Risk Assessment Matrix (ex.)'!B8","v":"Bribery of governmental officials"},{"$f":"'Fraud Risk Ranking (ex.)'!E8","v":20},{"$f":"'Risk Assessment Matrix (ex.)'!G8","v":"Strictly-enforced policy against offering, giving, receiving, and soliciting anything of value to influence an official act by a public official, agent, or government employee\n\nStrictly-enforced policy prohibiting bribing of foreign officials as well as making unauthorized facilitation payments to those individuals involved in customs, permitting the flow of goods and other activities\n\nWe examine contracts where U.S.-based government or foreign officials have had any involvement and determine the historical relationships between sales agents and sources of revenue to determine if there was inappropriate influence on the part of the government official by the sales agent\n\nWe examine expense reports of sales representatives and promotional activities by country (foreign) managers "},"C"]
[{"$f":"'Risk Assessment Matrix (ex.)'!A9","v":"AM2"},{"$f":"'Risk Assessment Matrix (ex.)'!B9","v":"Fraudulent Disbursements - Billing Schemes - Use of phony vendors"},{"$f":"'Fraud Risk Ranking (ex.)'!E9","v":15},{"$f":"'Risk Assessment Matrix (ex.)'!G9","v":"Purchases can only be made from approved vendors\n\nVendors are approved by the contracting department"},"D"]
[{"$f":"'Risk Assessment Matrix (ex.)'!A10","v":"FR2"},{"$f":"'Risk Assessment Matrix (ex.)'!B10","v":"Revenue Recognition - Side letters/agreements with concessions (e.g. extened payment terms, price reductions, rebates, unusual sales/marketing support funding for dealers, distributors or retailers)"},{"$f":"'Fraud Risk Ranking (ex.)'!E10","v":15},{"$f":"'Risk Assessment Matrix (ex.)'!G10","v":"Annual training of sales personnel on revenue recognition practices\n\nQuarterly signed attestations of sales personnel concerning extra contractual agreements\n\nInternal audit confirming with customers that there are no other agreements, written or oral, that would modify the terms of the written agreement\n\nTesting of purchase orders to shipping documents and cash receipts for transactions entered into at or near the end of the quarter or year"},"D"]
[{"$f":"'Risk Assessment Matrix (ex.)'!A11","v":"FR4"},{"$f":"'Risk Assessment Matrix (ex.)'!B11","v":"Revenue Recognition - Partial shipments"},{"$f":"'Fraud Risk Ranking (ex.)'!E11","v":15},{"$f":"'Risk Assessment Matrix (ex.)'!G11","v":"Systematic shipping documents manually checked against every shipment\n\nSystematic matching of sales order to shipping documentation; exception reports generated\n\nCustomer approval of partial shipment required prior to revenue recognition"},"P"]
[{"$f":"'Risk Assessment Matrix (ex.)'!A12","v":"FR6"},{"$f":"'Risk Assessment Matrix (ex.)'!B12","v":"Revenue Recognition - Holding books open to record in the current period revenue from sales made in the next period"},{"$f":"'Fraud Risk Ranking (ex.)'!E12","v":15},{"$f":"'Risk Assessment Matrix (ex.)'!G12","v":"Standard monthly close process\n\nReconciliation of invoice register to GL\n\nEstablished procedures for shipping, invoicing, and revenue recognition\n\nEstablished process for consolidation"},"D"]
[{"$f":"'Risk Assessment Matrix (ex.)'!A13","v":"FR7"},{"$f":"'Risk Assessment Matrix (ex.)'!B13","v":"Manipulation of Liabilities/Expenses - Unrecorded vendor invoices"},{"$f":"'Fraud Risk Ranking (ex.)'!E13","v":15},{"$f":"'Risk Assessment Matrix (ex.)'!G13","v":"Vendors are instructed to send invoices only to the centralized Accounting function where they are logged into the A/P system upon receipt and held in a suspense account as \"Pending approval\" until authorized by the relevant department\n\nDept. heads and Accounting review the nature/value of pending invoices at period end to help ensure proper cut-off"},"D"]
[{"$f":"'Risk Assessment Matrix (ex.)'!A14","v":"FR9"},{"$f":"'Risk Assessment Matrix (ex.)'!B14","v":"Revenue Recognition - Backdating sales agreements"},{"$f":"'Fraud Risk Ranking (ex.)'!E14","v":15},{"$f":"'Risk Assessment Matrix (ex.)'!G14","v":"A clear revenue recognition policy & training for all sales persons, sales management, and Accounting & Finance personnel involved in accounting for sales\n\nCEO and VP Sales both set a clear and strong tone about making sure revenue recognition conditions are met before sales are booked as revenue - violators are disciplined including termination for \"serious\" offenses (e.g. lying to mgmt)\n\nWell-controlled sales contract administration system\n\nSales management monitors transactions in sales contract system to help ensure compliance. They provide more scrutiny to significant sales booked in the last two weeks of each quarter"},"D"]
[{"$f":"'Risk Assessment Matrix (ex.)'!A15","v":"FR5"},{"$f":"'Risk Assessment Matrix (ex.)'!B15","v":"Revenue recognition - Recording revenue for items shipped after books closed for period end (e.g. late shipments)"},{"$f":"'Fraud Risk Ranking (ex.)'!E15","v":12},{"$f":"'Risk Assessment Matrix (ex.)'!G15","v":"Integrated shipping system, linked to invoicing and sales register\n\nDaily reconciliation of shipping log to invoice register\n\nRequired management approval of manual invoices"},"D"]
[{"$f":"'Risk Assessment Matrix (ex.)'!A16","v":"NF5"},{"$f":"'Risk Assessment Matrix (ex.)'!B16","v":"Overstated/false employee qualifications or certifications"},{"$f":"'Fraud Risk Ranking (ex.)'!E16","v":12},{"$f":"'Risk Assessment Matrix (ex.)'!G16","v":"Confirmation of credentials via background checks on a sample of new hires whose qualifications or credentials are to be relied upon for regulatory or contractual compliance or key organizational performance purposes"},"C"]
[{"$f":"'Risk Assessment Matrix (ex.)'!A17","v":"NF1"},{"$f":"'Risk Assessment Matrix (ex.)'!B17","v":"Quality - Material testing results altered"},{"$f":"'Fraud Risk Ranking (ex.)'!E17","v":10},{"$f":"'Risk Assessment Matrix (ex.)'!G17","v":"Independent sample testing"},"D"]
[{"$f":"'Risk Assessment Matrix (ex.)'!A18","v":"NF2"},{"$f":"'Risk Assessment Matrix (ex.)'!B18","v":"Compliance - Environmental, Health, & Safety Reporting"},{"$f":"'Fraud Risk Ranking (ex.)'!E18","v":10},{"$f":"'Risk Assessment Matrix (ex.)'!G18","v":"No process-specific fraud controls. Rely on entity-level compliance program, \"speak up\" policy, and whistleblower program with anti-retaliation protection"},"D"]
[{"$f":"'Risk Assessment Matrix (ex.)'!A19","v":"NF3"},{"$f":"'Risk Assessment Matrix (ex.)'!B19","v":"Quality - Employee Certification Test Score Tampering"},{"$f":"'Fraud Risk Ranking (ex.)'!E19","v":9},{"$f":"'Risk Assessment Matrix (ex.)'!G19","v":"No process-specific fraud controls. Rely on entity-level compliance and ethics/fraud controls"},"D"]
[{"$f":"'Risk Assessment Matrix (ex.)'!A20","v":"FR1"},{"$f":"'Risk Assessment Matrix (ex.)'!B20","v":"Inappropriate Journal Entries"},{"$f":"'Fraud Risk Ranking (ex.)'!E20","v":8},{"$f":"'Risk Assessment Matrix (ex.)'!G20","v":"Established process for consolidation\n\nReview process for standard and non-standard journal entries\n\nSystematic access controls to the GL"},"D"]
[{"$f":"'Risk Assessment Matrix (ex.)'!A21","v":"FR11"},{"$f":"'Risk Assessment Matrix (ex.)'!B21","v":"Disclosures - Improper or inadequate disclosures of material facts, circumstances, and events"},{"$f":"'Fraud Risk Ranking (ex.)'!E21","v":8},{"$f":"'Risk Assessment Matrix (ex.)'!G21","v":"CFO and Controller confer with senior management and legal to ensure all appropriate disclosures have been made\n\nPeriodic reviews by outside counsel, sign off by senior management and CFO and Controller\n\nReview by disclosure committee of the Board of Directors"},"D"]
[{"$f":"'Risk Assessment Matrix (ex.)'!A22","v":"FR8"},{"$f":"'Risk Assessment Matrix (ex.)'!B22","v":"Revenue Recognition - Manipulation of secondary revenue streams (e.g. service and support revenue)"},{"$f":"'Fraud Risk Ranking (ex.)'!E22","v":6},{"$f":"'Risk Assessment Matrix (ex.)'!G22","v":"Signed customer contract documentation is required to record service/support revenue"},"D"]
[{"$f":"'Risk Assessment Matrix (ex.)'!A23","v":"NF4"},{"$f":"'Risk Assessment Matrix (ex.)'!B23","v":"Compliance - Falsely reporting compliance information on contracts"},{"$f":"'Fraud Risk Ranking (ex.)'!E23","v":6},{"$f":"'Risk Assessment Matrix (ex.)'!G23","v":"No process-specific fraud controls. Rely on entity-level compliance and ethics/fraud controls"},"C"]
[{"$f":"'Risk Assessment Matrix (ex.)'!A24","v":"FR10"},{"$f":"'Risk Assessment Matrix (ex.)'!B24","v":"Revenue Recognition - Channel stuffing"},{"$f":"'Fraud Risk Ranking (ex.)'!E24","v":4},{"$f":"'Risk Assessment Matrix (ex.)'!G24","v":"VP Sales has established a clear policy requiring his written pre-approval for all sales in excess of 3 month's usage and which exceeds $1 million\n\nSales Managers review each salesperson's sales figures by customer\n\nSenior sales management reviews sales figures for each location/business unit\n\nAccounting and Finance function performs analytical review on sales figures and compares to budget and projections"},"D"]
[{"$f":"'Risk Assessment Matrix (ex.)'!A25","v":"AM3"},{"$f":"'Risk Assessment Matrix (ex.)'!B25","v":"Theft or diversion of inventory"},{"$f":"'Fraud Risk Ranking (ex.)'!E25","v":3},{"$f":"'Risk Assessment Matrix (ex.)'!G25","v":"Physical access controls\n\nComparison of purchase requisitions and receiving reports"},"D"]
[{"$f":"'Risk Assessment Matrix (ex.)'!A26","v":"IAC3"},{"$f":"'Risk Assessment Matrix (ex.)'!B26","v":"Commercial Bribery/Illegal Gratuities"},{"$f":"'Fraud Risk Ranking (ex.)'!E26","v":3},{"$f":"'Risk Assessment Matrix (ex.)'!G26","v":"Background checks on all purchasing personnel that look for bankruptcies, divorces, financial problems, criminal history\n\nInsuring that all vendors are logged in, vetted, approved by a supervisor, and selected on a competitive bid basis\n\nIA performs routine audits of the purchasing department"},"D"]
[{"$f":"'Risk Assessment Matrix (ex.)'!A27","v":"AM5"},{"$f":"'Risk Assessment Matrix (ex.)'!B27","v":"Cash Skimming"},{"$f":"'Fraud Risk Ranking (ex.)'!E27","v":1},{"$f":"'Risk Assessment Matrix (ex.)'!G27","v":"Use of minimal cash transactions\n\nCash reconciliations\n\n"},"C"]
[{"$f":"'Risk Assessment Matrix (ex.)'!A28","v":"FR12"},{"$f":"'Risk Assessment Matrix (ex.)'!B28","v":"Revenue Recognition - Manipulation of bill and hold arrangements"},{"$f":"'Fraud Risk Ranking (ex.)'!E28","v":1},{"$f":"'Risk Assessment Matrix (ex.)'!G28","v":"None required due to low inherent risk"},"N/A"]
[{"$f":"'Risk Assessment Matrix (ex.)'!A29","v":"FR13"},{"$f":"'Risk Assessment Matrix (ex.)'!B29","v":"Revenue Recognition - Roundtrip transactions"},{"$f":"'Fraud Risk Ranking (ex.)'!E29","v":1},{"$f":"'Risk Assessment Matrix (ex.)'!G29","v":"None required due to low inherent risk"},"N/A"]
[{"$f":"'Risk Assessment Matrix (ex.)'!A30","v":"NF6"},{"$f":"'Risk Assessment Matrix (ex.)'!B30","v":"Altered Productivity Reports"},{"$f":"'Fraud Risk Ranking (ex.)'!E30","v":1},{"$f":"'Risk Assessment Matrix (ex.)'!G30","v":"Analytic comparisons of inventory consumption with labor hours"},"C"]

{"sheet":"Sheet1","index":14,"n_rows":7,"n_cols":3,"rows_kept":7,"cut":false,"hidden":true,"merged":[]}
[null,"N/A","N/A"]
[null,null," "]
[null,"C",1]
[null,"D",2]
[null,null,3]
[null,null,4]
[null,null,5]

{"sheet":"Sheet2","index":15,"n_rows":0,"n_cols":0,"rows_kept":0,"cut":false,"hidden":true,"merged":[]}